Workbook

Sheet IAAR
B2: IAAR PP - INFORME DE AVANCE DE ACCIONES REALIZADAS DE LOS PROGRAMAS PRESUPUESTARIOS
B3: EJERCICIO FISCAL 2023
B4: Datos de la Unidad Responsable del Gasto
B6: Clave del Centro Gestor | C6: 02CD14 | E6: Unidad Responsable del Gasto | F6: =VLOOKUP(C6,'Hoja1 (2)'!C:D,2,FALSE) -> Alcaldia Tlalpan | K6: Periodo | L6: 2do Trimestre
B7: RESULTADOS
B8: Clave del Pp | C8: Denominación del Pp | E8: Acción | H8: Meta absoluta anual | I8: Meta Relativa de la Acción Programada | J8: Avance al Trimestre | K8: Justificación de la variación | L8: Descripción del avance
A9: =$C$6&M9 -> 02CD14_1 | B9: =IFERROR(VLOOKUP(A9,Base!B:E,3,FALSE),"") -> E185 | C9: =IFERROR(VLOOKUP(A9,Base!B:E,4,FALSE),"") -> Gobierno y atención ciudadana | E9: =IFERROR(VLOOKUP(A9,Base!B:F,5,FALSE),"") -> Actualizacion de censos de asentamientos irregulares. | H9: CENSO | I9: =IFERROR(VLOOKUP(A9,Base!B:L,6,FALSE),"") -> 0 | J9: 0.1 | M9: _1 | N9: =IFERROR(J9*VLOOKUP(A9,Base!B:K,10,FALSE),"") -> 0
A10: =$C$6&M10 -> 02CD14_2 | B10: =IFERROR(VLOOKUP(A10,Base!B:E,3,FALSE),"") -> E185 | C10: =IFERROR(VLOOKUP(A10,Base!B:E,4,FALSE),"") -> Gobierno y atención ciudadana | E10: =IFERROR(VLOOKUP(A10,Base!B:F,5,FALSE),"") -> Tramites y servicios en materia de: giros mercantiles. | H10: TRAMITE | I10: =IFERROR(VLOOKUP(A10,Base!B:L,6,FALSE),"") -> 0 | J10: 0.17 | M10: _2 | N10: =IFERROR(J10*VLOOKUP(A10,Base!B:K,10,FALSE),"") -> 0
A11: 02CD14_3 | B11: =IFERROR(VLOOKUP(A11,Base!B:E,3,FALSE),"") -> E185 | C11: =IFERROR(VLOOKUP(A11,Base!B:E,4,FALSE),"") -> Gobierno y atención ciudadana | E11: =IFERROR(VLOOKUP(A11,Base!B:F,5,FALSE),"") -> Servicios de asesorias juridicas y promocion de los Derechos Humanos. | H11: ASESORIA | I11: =IFERROR(VLOOKUP(A11,Base!B:L,6,FALSE),"") -> 0 | J11: 0.08 | M11: _3 | N11: =IFERROR(J11*VLOOKUP(A11,Base!B:K,10,FALSE),"") -> 0
A12: 02CD14_4 | B12: =IFERROR(VLOOKUP(A12,Base!B:E,3,FALSE),"") -> E185 | C12: =IFERROR(VLOOKUP(A12,Base!B:E,4,FALSE),"") -> Gobierno y atención ciudadana | E12: =IFERROR(VLOOKUP(A12,Base!B:F,5,FALSE),"") -> Orientaciones en materia de colaboracion, vinculacion, concertacion y participacion ciudadana | H12: TRAMITE | I12: =IFERROR(VLOOKUP(A12,Base!B:L,6,FALSE),"") -> 0 | J12: 0.23 | M12: _4 | N12: =IFERROR(J12*VLOOKUP(A12,Base!B:K,10,FALSE),"") -> 0
A13: 02CD14_5 | B13: =IFERROR(VLOOKUP(A13,Base!B:E,3,FALSE),"") -> E185 | C13: =IFERROR(VLOOKUP(A13,Base!B:E,4,FALSE),"") -> Gobierno y atención ciudadana | E13: =IFERROR(VLOOKUP(A13,Base!B:F,5,FALSE),"") -> Levantar diagnosticos de necesidades en colonias, barrios y pueblos. | H13: TRAMITE | I13: =IFERROR(VLOOKUP(A13,Base!B:L,6,FALSE),"") -> 0 | J13: 0.11 | M13: _5 | N13: =IFERROR(J13*VLOOKUP(A13,Base!B:K,10,FALSE),"") -> 0
A14: 02CD14_6 | B14: =IFERROR(VLOOKUP(A14,Base!B:E,3,FALSE),"") -> E185 | C14: =IFERROR(VLOOKUP(A14,Base!B:E,4,FALSE),"") -> Gobierno y atención ciudadana | E14: =IFERROR(VLOOKUP(A14,Base!B:F,5,FALSE),"") -> Atender las solicitudes de Informacion Publica y solventacion de requerimientos a traves de los INFOMEX | H14: TRAMITE | I14: =IFERROR(VLOOKUP(A14,Base!B:L,6,FALSE),"") -> 0 | J14: 0.12 | M14: _6 | N14: =IFERROR(J14*VLOOKUP(A14,Base!B:K,10,FALSE),"") -> 0
A15: 02CD14_7 | B15: =IFERROR(VLOOKUP(A15,Base!B:E,3,FALSE),"") -> E185 | C15: =IFERROR(VLOOKUP(A15,Base!B:E,4,FALSE),"") -> Gobierno y atención ciudadana | E15: =IFERROR(VLOOKUP(A15,Base!B:F,5,FALSE),"") -> Atencion de requerimientos de infromacion por parte de los organos de fiscalizacion. | H15: TRAMITE | I15: =IFERROR(VLOOKUP(A15,Base!B:L,6,FALSE),"") -> 0 | J15: 0.18 | M15: _7 | N15: =IFERROR(J15*VLOOKUP(A15,Base!B:K,10,FALSE),"") -> 0
A16: 02CD14_8 | B16: =IFERROR(VLOOKUP(A16,Base!B:E,3,FALSE),"") -> E185 | C16: =IFERROR(VLOOKUP(A16,Base!B:E,4,FALSE),"") -> Gobierno y atención ciudadana | E16: =IFERROR(VLOOKUP(A16,Base!B:F,5,FALSE),"") -> Difusion de las actividades que se realizan en la Alcaldia Tlalpan. | H16: ACCION | I16: =IFERROR(VLOOKUP(A16,Base!B:L,6,FALSE),"") -> 0 | J16: 0.08 | M16: _8 | N16: =IFERROR(J16*VLOOKUP(A16,Base!B:K,10,FALSE),"") -> 0
A17: 02CD14_9 | B17: =IFERROR(VLOOKUP(A17,Base!B:E,3,FALSE),"") -> E185 | C17: =IFERROR(VLOOKUP(A17,Base!B:E,4,FALSE),"") -> Gobierno y atención ciudadana | E17: =IFERROR(VLOOKUP(A17,Base!B:F,5,FALSE),"") -> Implementar el Modelo Integral de Atencion Ciudadana y asegurar su cumplimiento y funcionamiento y Establecer mecanismos de evaluacion que contemplen aspectos de satisfaccion ciudadana como encuestas, reuniones o analisis estadistico. | H17: ACCION | I17: =IFERROR(VLOOKUP(A17,Base!B:L,6,FALSE),"") -> 0 | J17: 0.15 | M17: _9 | N17: =IFERROR(J17*VLOOKUP(A17,Base!B:K,10,FALSE),"") -> 0
A18: 02CD14_10 | B18: =IFERROR(VLOOKUP(A18,Base!B:E,3,FALSE),"") -> E186 | C18: =IFERROR(VLOOKUP(A18,Base!B:E,4,FALSE),"") -> Seguridad en Alcalíias | E18: =IFERROR(VLOOKUP(A18,Base!B:F,5,FALSE),"") -> Operativos de Seguridad en las colonias, barrios y pueblos de la Alcaldia. | H18: ACCION | I18: =IFERROR(VLOOKUP(A18,Base!B:L,6,FALSE),"") -> 0 | M18: _10 | N18: =IFERROR(J18*VLOOKUP(A18,Base!B:K,10,FALSE),"") -> 0
A19: 02CD14_11 | B19: =IFERROR(VLOOKUP(A19,Base!B:E,3,FALSE),"") -> E186 | C19: =IFERROR(VLOOKUP(A19,Base!B:E,4,FALSE),"") -> Seguridad en Alcalíias | E19: =IFERROR(VLOOKUP(A19,Base!B:F,5,FALSE),"") -> Remision y acompañamiento institucional ante el juzgado civico y la fiscalia. | H19: ACCION | I19: =IFERROR(VLOOKUP(A19,Base!B:L,6,FALSE),"") -> 0 | M19: _11 | N19: =IFERROR(J19*VLOOKUP(A19,Base!B:K,10,FALSE),"") -> 0
A20: 02CD14_12 | B20: =IFERROR(VLOOKUP(A20,Base!B:E,3,FALSE),"") -> E186 | C20: =IFERROR(VLOOKUP(A20,Base!B:E,4,FALSE),"") -> Seguridad en Alcalíias | E20: =IFERROR(VLOOKUP(A20,Base!B:F,5,FALSE),"") -> Estrategias operativas atencion integral para apoyo a los habitantes de las colonias con mayor indice delictivo. | H20: ACCION | I20: =IFERROR(VLOOKUP(A20,Base!B:L,6,FALSE),"") -> 0 | M20: _12 | N20: =IFERROR(J20*VLOOKUP(A20,Base!B:K,10,FALSE),"") -> 0
A21: 02CD14_13 | B21: =IFERROR(VLOOKUP(A21,Base!B:E,3,FALSE),"") -> E186 | C21: =IFERROR(VLOOKUP(A21,Base!B:E,4,FALSE),"") -> Seguridad en Alcalíias | E21: =IFERROR(VLOOKUP(A21,Base!B:F,5,FALSE),"") -> Talleres en materia de prevencion de la violencia y cultura de la denuncia. | H21: TALLER | I21: =IFERROR(VLOOKUP(A21,Base!B:L,6,FALSE),"") -> 0 | M21: _13 | N21: =IFERROR(J21*VLOOKUP(A21,Base!B:K,10,FALSE),"") -> 0
A22: 02CD14_14 | B22: =IFERROR(VLOOKUP(A22,Base!B:E,3,FALSE),"") -> E187 | C22: =IFERROR(VLOOKUP(A22,Base!B:E,4,FALSE),"") -> Servicios públicos | E22: =IFERROR(VLOOKUP(A22,Base!B:F,5,FALSE),"") -> Recoleccion domiciliaria de residuos organicos, inorganicos e industriales | H22: TONELADA | I22: =IFERROR(VLOOKUP(A22,Base!B:L,6,FALSE),"") -> 0 | M22: _14 | N22: =IFERROR(J22*VLOOKUP(A22,Base!B:K,10,FALSE),"") -> 0
A23: 02CD14_15 | B23: =IFERROR(VLOOKUP(A23,Base!B:E,3,FALSE),"") -> E187 | C23: =IFERROR(VLOOKUP(A23,Base!B:E,4,FALSE),"") -> Servicios públicos | E23: =IFERROR(VLOOKUP(A23,Base!B:F,5,FALSE),"") -> Rehabilitar, consevar y mantener luminarias de la Red Alumbrado Publico, con el cambio y actualizacion de nuevas tecnologias de iluminacion y ahorro de energia y la conservacion de la infraestructura existentes con mantenimiento preventivo y correctivo en calles, vialidades secundarias y espacios publicos. | H23: MANTENIMIENTO | I23: =IFERROR(VLOOKUP(A23,Base!B:L,6,FALSE),"") -> 0 | M23: _15 | N23: =IFERROR(J23*VLOOKUP(A23,Base!B:K,10,FALSE),"") -> 0
A24: 02CD14_16 | B24: =IFERROR(VLOOKUP(A24,Base!B:E,3,FALSE),"") -> E187 | C24: =IFERROR(VLOOKUP(A24,Base!B:E,4,FALSE),"") -> Servicios públicos | E24: =IFERROR(VLOOKUP(A24,Base!B:F,5,FALSE),"") -> Actividades de mejoramiento en la movilidad y el ordenamiento urbano en intervenciones, con la aplicacion de pintura para balizamiento, realizacion de señalamientos y adecuaciones geometricas, a efecto de mejorar la vialidad y seguridad de las personas. | H24: MANTENIMIENTO | I24: =IFERROR(VLOOKUP(A24,Base!B:L,6,FALSE),"") -> 0 | M24: _16 | N24: =IFERROR(J24*VLOOKUP(A24,Base!B:K,10,FALSE),"") -> 0
A25: 02CD14_17 | B25: =IFERROR(VLOOKUP(A25,Base!B:E,3,FALSE),"") -> E187 | C25: =IFERROR(VLOOKUP(A25,Base!B:E,4,FALSE),"") -> Servicios públicos | E25: =IFERROR(VLOOKUP(A25,Base!B:F,5,FALSE),"") -> Mantenimiento de areas verdes en parques, jardines, camellones, plazas y espacios publicos, conservandolos limpios y seguros con actividades de poda de arboles, poda de pasto, riego de areas verdes, barrido de areas verdes, retiro de hierba y maleza. | H25: MANTENIMIENTO | I25: =IFERROR(VLOOKUP(A25,Base!B:L,6,FALSE),"") -> 0 | M25: _17 | N25: =IFERROR(J25*VLOOKUP(A25,Base!B:K,10,FALSE),"") -> 0
A26: 02CD14_18 | B26: =IFERROR(VLOOKUP(A26,Base!B:E,3,FALSE),"") -> E187 | C26: =IFERROR(VLOOKUP(A26,Base!B:E,4,FALSE),"") -> Servicios públicos | E26: =IFERROR(VLOOKUP(A26,Base!B:F,5,FALSE),"") -> Mantenimiento y conservacion del mobiliario urbano en espacios publicos como: kioscos, fuentes ornamentales, bustos, monumentos, bajo puentes, etc. con trabajos de eliminacion y borrado de grafiti con la aplicacion de pintura en muros y bardas, colocacion de malla ciclonica, etc. | H26: MANTENIMIENTO | I26: =IFERROR(VLOOKUP(A26,Base!B:L,6,FALSE),"") -> 0 | M26: _18 | N26: =IFERROR(J26*VLOOKUP(A26,Base!B:K,10,FALSE),"") -> 0
A27: 02CD14_19 | B27: =IFERROR(VLOOKUP(A27,Base!B:E,3,FALSE),"") -> E187 | C27: =IFERROR(VLOOKUP(A27,Base!B:E,4,FALSE),"") -> Servicios públicos | E27: =IFERROR(VLOOKUP(A27,Base!B:F,5,FALSE),"") -> Otorgar servicios funerarios y dar mantenimiento a panteones. | H27: SERVICIO | I27: =IFERROR(VLOOKUP(A27,Base!B:L,6,FALSE),"") -> 0 | M27: _19 | N27: =IFERROR(J27*VLOOKUP(A27,Base!B:K,10,FALSE),"") -> 0
A28: 02CD14_20 | B28: =IFERROR(VLOOKUP(A28,Base!B:E,3,FALSE),"") -> E187 | C28: =IFERROR(VLOOKUP(A28,Base!B:E,4,FALSE),"") -> Servicios públicos | E28: =IFERROR(VLOOKUP(A28,Base!B:F,5,FALSE),"") -> Contribuir al derecho de la poblacion a contar con el agua potable en sus viviendas, principalmente en las zonas de marginacion. | H28: ACCION | I28: =IFERROR(VLOOKUP(A28,Base!B:L,6,FALSE),"") -> 0 | M28: _20 | N28: =IFERROR(J28*VLOOKUP(A28,Base!B:K,10,FALSE),"") -> 0
A29: 02CD14_21 | B29: =IFERROR(VLOOKUP(A29,Base!B:E,3,FALSE),"") -> E187 | C29: =IFERROR(VLOOKUP(A29,Base!B:E,4,FALSE),"") -> Servicios públicos | E29: =IFERROR(VLOOKUP(A29,Base!B:F,5,FALSE),"") -> Difusion de informacion sobre el cuidado del medio ambiente, el desarrollo sustentable, el cambio climatico, los efectos de la contaminacion y conservacion de la biodiversidad entre la poblacion tlalpense. | H29: ACCION | I29: =IFERROR(VLOOKUP(A29,Base!B:L,6,FALSE),"") -> 0 | M29: _21 | N29: =IFERROR(J29*VLOOKUP(A29,Base!B:K,10,FALSE),"") -> 0
A30: 02CD14_22 | B30: =IFERROR(VLOOKUP(A30,Base!B:E,3,FALSE),"") -> E187 | C30: =IFERROR(VLOOKUP(A30,Base!B:E,4,FALSE),"") -> Servicios públicos | E30: =IFERROR(VLOOKUP(A30,Base!B:F,5,FALSE),"") -> Capacitacion a inspectores, dictaminadores, funcionarios y personal de la alcaldia, en temas ambientales. | H30: TALLER | I30: =IFERROR(VLOOKUP(A30,Base!B:L,6,FALSE),"") -> 0 | M30: _22 | N30: =IFERROR(J30*VLOOKUP(A30,Base!B:K,10,FALSE),"") -> 0
A31: 02CD14_23 | B31: =IFERROR(VLOOKUP(A31,Base!B:E,3,FALSE),"") -> E187 | C31: =IFERROR(VLOOKUP(A31,Base!B:E,4,FALSE),"") -> Servicios públicos | E31: =IFERROR(VLOOKUP(A31,Base!B:F,5,FALSE),"") -> Contribucion a la proteccion, preservacion y conservacion de los recursos naturales, | H31: ACCION | I31: =IFERROR(VLOOKUP(A31,Base!B:L,6,FALSE),"") -> 0 | M31: _23 | N31: =IFERROR(J31*VLOOKUP(A31,Base!B:K,10,FALSE),"") -> 0
A32: 02CD14_24 | B32: =IFERROR(VLOOKUP(A32,Base!B:E,3,FALSE),"") -> E188 | C32: =IFERROR(VLOOKUP(A32,Base!B:E,4,FALSE),"") -> Educación, cultura, deporte y recreación | M32: _24 | N32: =IFERROR(J32*VLOOKUP(A32,Base!B:K,10,FALSE),"") -> 0
A33: 02CD14_25 | B33: =IFERROR(VLOOKUP(A33,Base!B:E,3,FALSE),"") -> E188 | C33: =IFERROR(VLOOKUP(A33,Base!B:E,4,FALSE),"") -> Educación, cultura, deporte y recreación | M33: _25 | N33: =IFERROR(J33*VLOOKUP(A33,Base!B:K,10,FALSE),"") -> 0
A34: 02CD14_26 | B34: =IFERROR(VLOOKUP(A34,Base!B:E,3,FALSE),"") -> E188 | C34: =IFERROR(VLOOKUP(A34,Base!B:E,4,FALSE),"") -> Educación, cultura, deporte y recreación | E34: =IFERROR(VLOOKUP(A34,Base!B:F,5,FALSE),"") -> Impartir de clases deportivas en Modulos y Centros Deportivos a traves de las Escuelas Tecnico Deportivas. | H34: CLASE | I34: 0.46 | J34: 0.46 | K34: SIN VARIACIÓN | L34: SE IMPARTIERON CLASES EN LAS ESCUELAS TÉCNICO DEPORTIVAS: ATLETISMO, BASQUETBOL, BOXEO, DEPORTE ADAPTADO, HANDBALL, JUDO, LUCHAS ASOCIADAS, NADO SINCRONIZADO, NATACIÓN, PATINAJE ARTÍSTICO, TAE-KWON-DO, JUDO, POLO ACUÁTICO , REMO Y CLAVADOS. | M34: _26 | N34: =IFERROR(J34*VLOOKUP(A34,Base!B:K,10,FALSE),"") -> 0
A35: 02CD14_27 | B35: =IFERROR(VLOOKUP(A35,Base!B:E,3,FALSE),"") -> E188 | C35: =IFERROR(VLOOKUP(A35,Base!B:E,4,FALSE),"") -> Educación, cultura, deporte y recreación | E35: =IFERROR(VLOOKUP(A35,Base!B:F,5,FALSE),"") -> Fomentar la cultura fisica y promocion deportiva organizando eventos deportivos gratuitos. | H35: EVENTO | I35: 0.46 | J35: 0.46 | K35: SIN VARIACIÓN | L35: SE REALIZARON LOS SIGUIENTES EVENTOS DEPORTIVOS: MEGACASCARITA DE FUTBOL INFANTIL EN EL DEPORTIVO SAN PEDRO MÁRTIR, MEGACASCARITA DE FUTBOL FEMENIL JUVENIL EN EL DEPORTIVO SAN PEDRO MÁRTIR, ACUAZUMBA EN EL DEPORTIVO VIVANCO Y FÚTBOL EN EL DEPORTIVO SAN PEDRO MÁRTIR, EVENTO DE INICIO DE ACUATIZANDO TLALPAN EN ALBERCAS: SÁNCHEZ TABOADA, SOLIDARIDAD, VIVANCO, PARQUE MORELOS, EVENTOS DE EXHIBICIÓN CON MOTIVO DE LA INSTALACIÓN DEL SUBCOMITÉ DEPORTIVO DE LA ALCALDÍA DE TLALPAN, EN CEFORMA Y CARRERA SANTA ÚRSULA XITLA, 1ER. DUAL MEET TAEKWONDO Y 2DO. DUAL MEET TAEKWONDO EN EL DEPORTIVO VIVANCO, MATROCLASE DE DANZA AÉREA EN EL PARQUE JUANA DE ASBAJE , MEGA CLASE ACUAZUMBA EN EL DEPORTIVO SÁNCHEZ TABOADA , TORNEO DE FUTBOL LGBT EN DEPORTIVO SAN PEDRO MARTÍR, MEGA CLASE DE ACUAZUMBA EN EL DEPORTIVO VIVANCO, EXHIBICIÓN DE BOXEO DEL PADRE EN EL CENTRO DE ARTES Y OFICIOS AJUSCO MEDIO, XVII CARRERA TLALPENSE 10K 2023 CON SALIDA Y META EN LA EXPLANADA DE LA ALCALDÍA. | M35: _27 | N35: =IFERROR(J35*VLOOKUP(A35,Base!B:K,10,FALSE),"") -> 0
A36: 02CD14_28 | B36: =IFERROR(VLOOKUP(A36,Base!B:E,3,FALSE),"") -> E188 | C36: =IFERROR(VLOOKUP(A36,Base!B:E,4,FALSE),"") -> Educación, cultura, deporte y recreación | E36: =IFERROR(VLOOKUP(A36,Base!B:F,5,FALSE),"") -> Realizar actividades de mantenimiento menor a Centros y Modulos Deportivos a cargo de la Alcaldia Tlalpan | H36: ACTIVIDAD | I36: 0.46 | J36: 0.46 | K36: SIN VARIACIÓN | L36: SE ATENDIERON A LOS SIGUIENTES CENTROS Y MÓDULOS DEPORTIVOS CON MANTENIMIENTO MENOR: SÁNCHEZ TABOADA: SE PINTARON TODOS LOS JUEGOS INFANTILES Y SE REPARAN 2 RESBALADILLAS; PELOTA MIXTECA: SE REPARARON PORTERÍAS DE FÚTBOL Y SE REPARAN COLUMPIO; VIVANCO: SE REPARÓ BEBEDERO Y SE COLOCÓ LLAVE NARIZ; VILLA OLÍMPICA SE COLOCARON LÁMPARAS Y CEFORMA SE SOLDÓ REJILLA DE PISO Y PROTECCIONES PARA VENTANAS, MÓDULO CHICOAZEN.- SE REPARARON 2 APARATOS Y 6 TUBOS EN LA CANCHA DE FÚTBOL RÁPIDO.DEPORTIVO CEFORMA- SE REALIZARON TRABAJOS DE PINTURA EN LAS PLATAFORMAS Y TRAMPOLINES Y SE CORTAN TORNILLOS DE BASES DESMONTADAS, VILLA OLÍMPICA- SE INSTALÓ TAPA PARA REGISTRO Y SE HACE REPARACIÓN EN LAS PLUMAS DE ESTACIONAMIENTO, MODULO INDEPENDENCIA.- SE COLOCARON 3 LÁMPARAS EN ÁREA DE JUEGOS INFANTILES Y GIMNASIO AL AIRE LIBRE, DEPORTIVO VIVANCO- SE REALIZÓ TRABAJO DE PODA Y SE REMPLAZAN CRISTALES ROTOS DE ALBERCA, MÓDULO VAQUERITOS.- SE REALIZARON TRABAJOS DE PINTURA EN GRADAS. MÓDULO CRUZ DEL FAROL, DEPORTIVO SAN PEDRO MÁRTIR- SE REPARÓ MALLA CICLÓNICA EN ÁREA DE JUEGOS INFANTILES Y GIMNASIO AL AIRE LIBRE, DEPORTIVO VILLA OLÍMPICA.- SE COLOCARON AROS EN CANCHA DE BALONCESTO, SE REALIZÓ PODA EN CANCHAS DE VOLIBOL DE PLAYA. SE RETIRÓ PASTO SINTÉTICO DE CANCHA DE FÚTBOL 7- MODULO DEPORTIVO BALANCAN.- SE REPARÓ MALLA CICLÓNICA DE BARDA PERIMETRAL, SE SOLDARON 7 POSTES. - DEPORTIVO SOLIDARIDAD.- SE PINTARON CAJONES DE ESTACIONAMIENTO Y SE PINTÓ BARDA EN ACCESO PRINCIPAL. MODULO DEPORTIVO ACANCEH, SE COLOCÓ ARO EN CANCHA DE BALONCESTO Y SE REPARÓ UN TABLERO. DEPORTIVO SAN ANDRÉS.- SE RETIRARON REJILLAS PARA ALBERCA Y SE LLEVARON A LA ALBERCA DE SOLIDARIDAD. DEPORTIVO CEFORMA.- SE REALIZA REPARACIÓN DE PUERTA EN OFICINA. SE PINTA Y SE REPARACIÓN BANCA ASÍ COMO SE RETIRARON TORNILLOS DE BASE DE BANCO DE SALIDA. DEPORTIVO SÁNCHEZ TABOADA.- SE SOLDARON REJILLAS DE DRENAJE EN ÁREA DE JUEGOS INFANTILES. DEPORTIVO SAN PEDRO MÁRTIR.- SE REPARÓ TOBOGÁN DE PLASTICO EN ÁREA DE JUEGOS INFANTILES. MODULO BELISARIO DOMÍNGUEZ.- SE REPARÓ COLUMPIO Y SUBE Y BAJA, MODULO DEPORTIVO VAQUERITOS SE REALIZÓ PODA Y LIMPIEZA EN GENERAL Y PINTURA EN LAS GRADAS. MODULO PELOTA MIXTECA.- SE SOLDÓ TUBO EN ACCESO PRINCIPAL. DEPORTIVO VIVANCO.- SE REALIZÓ PODA EN ÁREA DE ALBERCA Y PASILLO DE CANCHA DE FÚTBOL. DEPORTIVO VILLA OLÍMPICA.- SE LIMPIARON CANALETAS DE AZOTEA DE GIMNASIO DE BASQUETBOL. 5.- MODULO CHICOASEN.- SE REPARÓ PUERTA DE ACCESO PRINCIPAL. DEPORTIVO VIVANCO.- SE REPARÓ FLOTADOR DE LA CISTERNA. DEPORTIVO SOLIDARIDAD.- SE REPARÓ 7 TUBOS DEL ÁREA PERIMETRAL. DIRECCIÓN GENERAL DE DESARROLLO SOCIAL.- SE LIMPIÓ CANALETA Y DOMO DE LA PARTE DE ACCESO PRINCIPAL, EXHIBICIÓN DE BOXEO DEL PADRE EN EL CENTRO DE ARTES Y OFICIOS AJUSCO MEDIO Y LA XVII CARRERA TLALPENSE 10K 2023 CON SÁLIDA Y META EN LA EXPLANADA DE LA ALCALDÍA. | M36: _28 | N36: =IFERROR(J36*VLOOKUP(A36,Base!B:K,10,FALSE),"") -> 0
A37: 02CD14_29 | B37: =IFERROR(VLOOKUP(A37,Base!B:E,3,FALSE),"") -> E189 | C37: =IFERROR(VLOOKUP(A37,Base!B:E,4,FALSE),"") -> Servicios de salud en Alcaldias | E37: =IFERROR(VLOOKUP(A37,Base!B:F,5,FALSE),"") -> Otorgar Consultas Medica tales como: Odontologica, Optometrista, Nutricional y Alternativa. | H37: ATENCION | I37: 0.46 | J37: 0.46 | M37: _29 | N37: =IFERROR(J37*VLOOKUP(A37,Base!B:K,10,FALSE),"") -> 0
A38: 02CD14_30 | B38: =IFERROR(VLOOKUP(A38,Base!B:E,3,FALSE),"") -> E189 | C38: =IFERROR(VLOOKUP(A38,Base!B:E,4,FALSE),"") -> Servicios de salud en Alcaldias | E38: =IFERROR(VLOOKUP(A38,Base!B:F,5,FALSE),"") -> Brindar Servicios de Salud Mental (Atencion Psicologica, Talleres de Ccrianza Positiva y Grupos Focales de Prevencion de Adicciones) | H38: ATENCION | I38: 0.46 | J38: 0.46 | M38: _30 | N38: =IFERROR(J38*VLOOKUP(A38,Base!B:K,10,FALSE),"") -> 0
A39: 02CD14_31 | B39: =IFERROR(VLOOKUP(A39,Base!B:E,3,FALSE),"") -> E189 | C39: =IFERROR(VLOOKUP(A39,Base!B:E,4,FALSE),"") -> Servicios de salud en Alcaldias | E39: =IFERROR(VLOOKUP(A39,Base!B:F,5,FALSE),"") -> Proporcionar Servicios de Detecciones: Presion arterial, glicemia capilar, cancer de mama, cervicouterino, cancer de prostata y VIH. | H39: ATENCION | I39: 0.46 | J39: 0.46 | M39: _31 | N39: =IFERROR(J39*VLOOKUP(A39,Base!B:K,10,FALSE),"") -> 0
A40: 02CD14_32 | B40: =IFERROR(VLOOKUP(A40,Base!B:E,3,FALSE),"") -> E189 | C40: =IFERROR(VLOOKUP(A40,Base!B:E,4,FALSE),"") -> Servicios de salud en Alcaldias | E40: =IFERROR(VLOOKUP(A40,Base!B:F,5,FALSE),"") -> Brindara Servicios de Salud Preventiva como : Vacunacion, Somatometria, Primeros Auxilios, Prevencion y Promocion a la Salud. | H40: ATENCION | I40: 0.46 | J40: 0.46 | M40: _32 | N40: =IFERROR(J40*VLOOKUP(A40,Base!B:K,10,FALSE),"") -> 0
A41: 02CD14_33 | B41: =IFERROR(VLOOKUP(A41,Base!B:E,3,FALSE),"") -> E189 | C41: =IFERROR(VLOOKUP(A41,Base!B:E,4,FALSE),"") -> Servicios de salud en Alcaldias | E41: =IFERROR(VLOOKUP(A41,Base!B:F,5,FALSE),"") -> Realizar el seguimiento de atencion temprana en el neurodesarrollo a niñas y niños entre 0 y 4 años 6 meses de edad cumplidos, mediante Evaluaciones del Desarrollo Infantil. | H41: ATENCION | I41: 0.46 | J41: 0.46 | M41: _33 | N41: =IFERROR(J41*VLOOKUP(A41,Base!B:K,10,FALSE),"") -> 0
A42: 02CD14_34 | B42: =IFERROR(VLOOKUP(A42,Base!B:E,3,FALSE),"") -> E189 | C42: =IFERROR(VLOOKUP(A42,Base!B:E,4,FALSE),"") -> Servicios de salud en Alcaldias | E42: =IFERROR(VLOOKUP(A42,Base!B:F,5,FALSE),"") -> Realizar servicios de deteccion, manejo y rehabilitacion musculoesqueletica | H42: ATENCION | I42: 0.46 | J42: 0.46 | M42: _34 | N42: =IFERROR(J42*VLOOKUP(A42,Base!B:K,10,FALSE),"") -> 0
A43: 02CD14_35 | B43: =IFERROR(VLOOKUP(A43,Base!B:E,3,FALSE),"") -> E189 | C43: =IFERROR(VLOOKUP(A43,Base!B:E,4,FALSE),"") -> Servicios de salud en Alcaldias | E43: =IFERROR(VLOOKUP(A43,Base!B:F,5,FALSE),"") -> Brindar talleres sobre Derechos de las Personas con Discapacidad, lenguaje incluyente, Lengua de Señas Mexicanas y Sistema de lecto-escritura Braile. | H43: ATENCION | I43: 0.46 | J43: 0.46 | M43: _35 | N43: =IFERROR(J43*VLOOKUP(A43,Base!B:K,10,FALSE),"") -> 0
A44: 02CD14_36 | B44: =IFERROR(VLOOKUP(A44,Base!B:E,3,FALSE),"") -> E190 | C44: =IFERROR(VLOOKUP(A44,Base!B:E,4,FALSE),"") -> Servicios de atención animal | E44: =IFERROR(VLOOKUP(A44,Base!B:F,5,FALSE),"") -> Contribuir a la salud animal entre los que destacan las cirugias, esterilizaciones y vacunas | H44: SERVICIO | I44: 0.46 | J44: 0.46 | M44: _36 | N44: =IFERROR(J44*VLOOKUP(A44,Base!B:K,10,FALSE),"") -> 0
A45: 02CD14_37 | B45: =IFERROR(VLOOKUP(A45,Base!B:E,3,FALSE),"") -> E190 | C45: =IFERROR(VLOOKUP(A45,Base!B:E,4,FALSE),"") -> Servicios de atención animal | E45: =IFERROR(VLOOKUP(A45,Base!B:F,5,FALSE),"") -> Proporcionar servicios a animales de compañia como rehabilitaciones, adiestramiento, adopciones, etc. | H45: SERVICIO | I45: 0.46 | J45: 0.46 | M45: _37 | N45: =IFERROR(J45*VLOOKUP(A45,Base!B:K,10,FALSE),"") -> 0
A46: 02CD14_38 | B46: =IFERROR(VLOOKUP(A46,Base!B:E,3,FALSE),"") -> E190 | C46: =IFERROR(VLOOKUP(A46,Base!B:E,4,FALSE),"") -> Servicios de atención animal | E46: =IFERROR(VLOOKUP(A46,Base!B:F,5,FALSE),"") -> Recepcion de animales donados voluntariamente a razon de lo comprendido en el Articulo 51 de la Ley de Proteccion a los Animales de la Ciudad de Mexico. | H46: SERVICIO | I46: 0.46 | J46: 0.46 | M46: _38 | N46: =IFERROR(J46*VLOOKUP(A46,Base!B:K,10,FALSE),"") -> 0
A47: 02CD14_39 | B47: =IFERROR(VLOOKUP(A47,Base!B:E,3,FALSE),"") -> E190 | C47: =IFERROR(VLOOKUP(A47,Base!B:E,4,FALSE),"") -> Servicios de atención animal | E47: =IFERROR(VLOOKUP(A47,Base!B:F,5,FALSE),"") -> Difusion en redes oficiales a traves de materiales pedagogicos para dar Atencion a personas sobre la tutela responsable de animales de compañia y el respeto por la vida | H47: SERVICIO | I47: 0.46 | J47: 0.46 | M47: _39 | N47: =IFERROR(J47*VLOOKUP(A47,Base!B:K,10,FALSE),"") -> 0
A48: 02CD14_40 | B48: =IFERROR(VLOOKUP(A48,Base!B:E,3,FALSE),"") -> E190 | C48: =IFERROR(VLOOKUP(A48,Base!B:E,4,FALSE),"") -> Servicios de atención animal | E48: =IFERROR(VLOOKUP(A48,Base!B:F,5,FALSE),"") -> Realizar desparasitaciones internas de la poblacion canina y felina en las instalaciones de la clinica veterinaria para la prevencion de enfermedades transmitidas entre animales y humanos | H48: SERVICIO | I48: 0.46 | J48: 0.46 | M48: _40 | N48: =IFERROR(J48*VLOOKUP(A48,Base!B:K,10,FALSE),"") -> 0
A49: 02CD14_41 | B49: =IFERROR(VLOOKUP(A49,Base!B:E,3,FALSE),"") -> E190 | C49: =IFERROR(VLOOKUP(A49,Base!B:E,4,FALSE),"") -> Servicios de atención animal | E49: =IFERROR(VLOOKUP(A49,Base!B:F,5,FALSE),"") -> Brindar asesorias medicas veterinarias en las instalaciones de la clinica veterinaria | H49: SERVICIO | I49: 0.46 | J49: 0.46 | M49: _41 | N49: =IFERROR(J49*VLOOKUP(A49,Base!B:K,10,FALSE),"") -> 0
A50: 02CD14_42 | B50: =IFERROR(VLOOKUP(A50,Base!B:E,3,FALSE),"") -> E198 | C50: =IFERROR(VLOOKUP(A50,Base!B:E,4,FALSE),"") -> Servicios de cuidado infantil | E50: =IFERROR(VLOOKUP(A50,Base!B:F,5,FALSE),"") -> Realizar acciones de consolidacion del Consejo de niñas y niños como parte del proyecto internacional Ciudad de las niñas y niños, para promover el derecho a la participacion, al juego y a la autonomia de las niñas y niños, con ello integrar la participacion de las infancias como parametro para la propuesta y ejecucion de iniciativas de gobierno. Dar voz a las infancias y adolescentes. | H50: ATENCION | I50: 0.46 | J50: 0.46 | M50: _42 | N50: =IFERROR(J50*VLOOKUP(A50,Base!B:K,10,FALSE),"") -> 0
A51: 02CD14_43 | B51: =IFERROR(VLOOKUP(A51,Base!B:E,3,FALSE),"") -> E198 | C51: =IFERROR(VLOOKUP(A51,Base!B:E,4,FALSE),"") -> Servicios de cuidado infantil | E51: =IFERROR(VLOOKUP(A51,Base!B:F,5,FALSE),"") -> Realizar acciones de consolidacion del Sistema Protecion de las Niñas, Niños y Adolescentes SIPINNA Tlalpan, respondiendo al mandato de la Ley General de los derechos de las niñas, niños y adolescentes, asi como a la Convencion de los derechos del niño. | H51: ATENCION | I51: 0.46 | J51: 0.46 | M51: _43 | N51: =IFERROR(J51*VLOOKUP(A51,Base!B:K,10,FALSE),"") -> 0
A52: 02CD14_44 | B52: =IFERROR(VLOOKUP(A52,Base!B:E,3,FALSE),"") -> E198 | C52: =IFERROR(VLOOKUP(A52,Base!B:E,4,FALSE),"") -> Servicios de cuidado infantil | E52: =IFERROR(VLOOKUP(A52,Base!B:F,5,FALSE),"") -> Implementar Audiencias Publicas Infantiles, con el objetivo de generar un espacio de dialogo-escucha para y con niñas y niños de la Alcaldia Tlalpan | H52: AUDIENCIA | I52: 0.46 | J52: 0.46 | M52: _44 | N52: =IFERROR(J52*VLOOKUP(A52,Base!B:K,10,FALSE),"") -> 0
A53: 02CD14_45 | B53: =IFERROR(VLOOKUP(A53,Base!B:E,3,FALSE),"") -> E198 | C53: =IFERROR(VLOOKUP(A53,Base!B:E,4,FALSE),"") -> Servicios de cuidado infantil | E53: =IFERROR(VLOOKUP(A53,Base!B:F,5,FALSE),"") -> Creacion de una campaña promocion de los derechos de las niñas, niños y adolescentes, con la finalidad de contribuir a una cultura del respeto a sus derechos. | H53: CAMPAÑA | I53: 0.46 | J53: 0.46 | M53: _45 | N53: =IFERROR(J53*VLOOKUP(A53,Base!B:K,10,FALSE),"") -> 0
A54: 02CD14_46 | B54: =IFERROR(VLOOKUP(A54,Base!B:E,3,FALSE),"") -> F037 | C54: =IFERROR(VLOOKUP(A54,Base!B:E,4,FALSE),"") -> Turismo, empleo y fomento económico | E54: =IFERROR(VLOOKUP(A54,Base!B:F,5,FALSE),"") -> Organizar ferias relacionadas al sector primario de los sectores de la economia | H54: EVENTO | I54: 0.46 | J54: 0.46 | M54: _46 | N54: =IFERROR(J54*VLOOKUP(A54,Base!B:K,10,FALSE),"") -> 0
A55: 02CD14_47 | B55: =IFERROR(VLOOKUP(A55,Base!B:E,3,FALSE),"") -> F037 | C55: =IFERROR(VLOOKUP(A55,Base!B:E,4,FALSE),"") -> Turismo, empleo y fomento económico | E55: =IFERROR(VLOOKUP(A55,Base!B:F,5,FALSE),"") -> Coordinar ferias para la promocion de empleo y de bienes y servicios locales, para apoyar al comercio y productores locales. | H55: EVENTO | I55: 0.46 | J55: 0.46 | M55: _47 | N55: =IFERROR(J55*VLOOKUP(A55,Base!B:K,10,FALSE),"") -> 0
A56: 02CD14_48 | B56: =IFERROR(VLOOKUP(A56,Base!B:E,3,FALSE),"") -> F037 | C56: =IFERROR(VLOOKUP(A56,Base!B:E,4,FALSE),"") -> Turismo, empleo y fomento económico | E56: =IFERROR(VLOOKUP(A56,Base!B:F,5,FALSE),"") -> Contactar agentes economicos y realizar actividades relacionadas con el sector de servicios | H56: TRAMITE | I56: 0.46 | J56: 0.46 | M56: _48 | N56: =IFERROR(J56*VLOOKUP(A56,Base!B:K,10,FALSE),"") -> 0
A57: 02CD14_49 | B57: =IFERROR(VLOOKUP(A57,Base!B:E,3,FALSE),"") -> F037 | C57: =IFERROR(VLOOKUP(A57,Base!B:E,4,FALSE),"") -> Turismo, empleo y fomento económico | E57: =IFERROR(VLOOKUP(A57,Base!B:F,5,FALSE),"") -> Realizar actividades para fomentar el desarrollo de MYPIMES y sociedades cooperativas | H57: ACCION | I57: 0.46 | J57: 0.46 | M57: _49 | N57: =IFERROR(J57*VLOOKUP(A57,Base!B:K,10,FALSE),"") -> 0
A58: 02CD14_50 | B58: =IFERROR(VLOOKUP(A58,Base!B:E,3,FALSE),"") -> F037 | C58: =IFERROR(VLOOKUP(A58,Base!B:E,4,FALSE),"") -> Turismo, empleo y fomento económico | E58: =IFERROR(VLOOKUP(A58,Base!B:F,5,FALSE),"") -> Generar capacitaciones para el trabajo y promocion del autoempleo para personas jovenes | H58: CAPACITACION | I58: 0.46 | J58: 0.46 | M58: _50 | N58: =IFERROR(J58*VLOOKUP(A58,Base!B:K,10,FALSE),"") -> 0
A59: 02CD14_51 | B59: =IFERROR(VLOOKUP(A59,Base!B:E,3,FALSE),"") -> F037 | C59: =IFERROR(VLOOKUP(A59,Base!B:E,4,FALSE),"") -> Turismo, empleo y fomento económico | E59: =IFERROR(VLOOKUP(A59,Base!B:F,5,FALSE),"") -> Facilitar creditos y financiamientos a personas dedicadas a la produccion agricola y aquellas que se encuentran en condicion de desempleo o no cuentan con los recursos necesarios para emprender. | H59: PERSONA | I59: 0.46 | J59: 0.46 | M59: _51 | N59: =IFERROR(J59*VLOOKUP(A59,Base!B:K,10,FALSE),"") -> 0
A60: 02CD14_52 | B60: =IFERROR(VLOOKUP(A60,Base!B:E,3,FALSE),"") -> F037 | C60: =IFERROR(VLOOKUP(A60,Base!B:E,4,FALSE),"") -> Turismo, empleo y fomento económico | E60: =IFERROR(VLOOKUP(A60,Base!B:F,5,FALSE),"") -> Generar capacitaciones para el trabajo y promocion del autoempleo para personas adultas | H60: CAPACITACION | I60: 0.46 | J60: 0.46 | M60: _52 | N60: =IFERROR(J60*VLOOKUP(A60,Base!B:K,10,FALSE),"") -> 0
A61: 02CD14_53 | B61: =IFERROR(VLOOKUP(A61,Base!B:E,3,FALSE),"") -> F037 | C61: =IFERROR(VLOOKUP(A61,Base!B:E,4,FALSE),"") -> Turismo, empleo y fomento económico | E61: =IFERROR(VLOOKUP(A61,Base!B:F,5,FALSE),"") -> Realizar actividades para fomentar y Promocionar el Turismo en la Alcaldia Tlalpan | H61: PROMOCION | I61: 0.46 | J61: 0.46 | M61: _53 | N61: =IFERROR(J61*VLOOKUP(A61,Base!B:K,10,FALSE),"") -> 0
A62: 02CD14_54 | B62: =IFERROR(VLOOKUP(A62,Base!B:E,3,FALSE),"") -> K023 | C62: =IFERROR(VLOOKUP(A62,Base!B:E,4,FALSE),"") -> Infraestructura urbana | E62: =IFERROR(VLOOKUP(A62,Base!B:F,5,FALSE),"") -> Construccion, ampliacion, rehabilitacion, mantenimiento, mejoramiento de inmuebles deportivos,culturales, educativos y sociales en diversas ubicaciones de la Alcaldia, con el objetivo de elevar la calidad de vida de la poblacion. | H62: =IFERROR(VLOOKUP(A62,Base!B:L,11,FALSE),"") -> 0 | I62: 0.46 | J62: 0.46 | M62: _54 | N62: =IFERROR(J62*VLOOKUP(A62,Base!B:K,10,FALSE),"") -> 0
A63: 02CD14_55 | B63: =IFERROR(VLOOKUP(A63,Base!B:E,3,FALSE),"") -> K023 | C63: =IFERROR(VLOOKUP(A63,Base!B:E,4,FALSE),"") -> Infraestructura urbana | E63: =IFERROR(VLOOKUP(A63,Base!B:F,5,FALSE),"") -> Construccion, ampliacion, rehabilitacion, mantenimiento, mejoramiento de edificios publicos en diversas ubicaciones de la Alcaldia, con el objetivo de mejorar la calidad de los servicios. | H63: =IFERROR(VLOOKUP(A63,Base!B:L,11,FALSE),"") -> 0 | I63: 0.46 | J63: 0.46 | M63: _55 | N63: =IFERROR(J63*VLOOKUP(A63,Base!B:K,10,FALSE),"") -> 0
A64: 02CD14_56 | B64: =IFERROR(VLOOKUP(A64,Base!B:E,3,FALSE),"") -> K023 | C64: =IFERROR(VLOOKUP(A64,Base!B:E,4,FALSE),"") -> Infraestructura urbana | E64: =IFERROR(VLOOKUP(A64,Base!B:F,5,FALSE),"") -> Construccion, ampliacion, rehabilitacion, mantenimiento, mejoramiento de espacios publicos, asi como proyectos de alumbrado publico en diversas ubicaciones de la Alcaldia, con el objetivo de dotar a la poblacion de espacios para esparcimiento | H64: =IFERROR(VLOOKUP(A64,Base!B:L,11,FALSE),"") -> 0 | I64: 0.46 | J64: 0.46 | M64: _56 | N64: =IFERROR(J64*VLOOKUP(A64,Base!B:K,10,FALSE),"") -> 0
A65: 02CD14_57 | B65: =IFERROR(VLOOKUP(A65,Base!B:E,3,FALSE),"") -> K023 | C65: =IFERROR(VLOOKUP(A65,Base!B:E,4,FALSE),"") -> Infraestructura urbana | E65: =IFERROR(VLOOKUP(A65,Base!B:F,5,FALSE),"") -> Construccion, ampliacion, rehabilitacion, mantenimiento, mejoramiento de asfalto y balizamiento en vialidades secundarias,en diversas ubicaciones de la Alcaldia, garantizando un libre transito peatonal y vehicular mas eficiente y seguro. | H65: =IFERROR(VLOOKUP(A65,Base!B:L,11,FALSE),"") -> 0 | I65: 0.46 | J65: 0.46 | M65: _57 | N65: =IFERROR(J65*VLOOKUP(A65,Base!B:K,10,FALSE),"") -> 0
A66: 02CD14_58 | B66: =IFERROR(VLOOKUP(A66,Base!B:E,3,FALSE),"") -> K023 | C66: =IFERROR(VLOOKUP(A66,Base!B:E,4,FALSE),"") -> Infraestructura urbana | E66: =IFERROR(VLOOKUP(A66,Base!B:F,5,FALSE),"") -> Construccion, ampliacion, rehabilitacion, mantenimiento,obra para la mitigacion de riesgos, en diversas ubicaciones de la Alcaldia, con el fin de evitar derrumbres, deslaves, en zonas de alto riesgo | H66: =IFERROR(VLOOKUP(A66,Base!B:L,11,FALSE),"") -> 0 | I66: 0.46 | J66: 0.46 | M66: _58 | N66: =IFERROR(J66*VLOOKUP(A66,Base!B:K,10,FALSE),"") -> 0
A67: 02CD14_59 | B67: =IFERROR(VLOOKUP(A67,Base!B:E,3,FALSE),"") -> K023 | C67: =IFERROR(VLOOKUP(A67,Base!B:E,4,FALSE),"") -> Infraestructura urbana | E67: =IFERROR(VLOOKUP(A67,Base!B:F,5,FALSE),"") -> Construccion, ampliacion, rehabilitacion, mantenimiento, mejoramiento en de banquetas en diversas ubicaciones de la Alcaldia, con el objetivo de garantizar un libre transito peatonal mas eficiente, seguro y con accesibilidad para personas con capacidades diferentes | H67: =IFERROR(VLOOKUP(A67,Base!B:L,11,FALSE),"") -> 0 | I67: 0.46 | J67: 0.46 | M67: _59 | N67: =IFERROR(J67*VLOOKUP(A67,Base!B:K,10,FALSE),"") -> 0
A68: 02CD14_60 | B68: =IFERROR(VLOOKUP(A68,Base!B:E,3,FALSE),"") -> K023 | C68: =IFERROR(VLOOKUP(A68,Base!B:E,4,FALSE),"") -> Infraestructura urbana | E68: =IFERROR(VLOOKUP(A68,Base!B:F,5,FALSE),"") -> Actividades de mejoramiento en la movilidad y el ordenamiento urbano en intervenciones,mejorando la circulacion y transito en las calles y vialidades secundarias de esta Alcaldia, con la aplicacion de pintura para balizamiento, la realizacion de señalamientos y adecuaciones geometricas, a efecto de mejorar la vialidad y seguridad de las personas. | H68: =IFERROR(VLOOKUP(A68,Base!B:L,11,FALSE),"") -> 0 | I68: 0.46 | J68: 0.46 | M68: _60 | N68: =IFERROR(J68*VLOOKUP(A68,Base!B:K,10,FALSE),"") -> 0
A69: 02CD14_61 | B69: =IFERROR(VLOOKUP(A69,Base!B:E,3,FALSE),"") -> K023 | C69: =IFERROR(VLOOKUP(A69,Base!B:E,4,FALSE),"") -> Infraestructura urbana | E69: =IFERROR(VLOOKUP(A69,Base!B:F,5,FALSE),"") -> Mantenimiento de areas verdes en parques, jardines, camellones, plazas y espacios publicos, conservandolos limpios y seguros con actividades de poda de arboles, poda de pasto, riego de areas verdes, barrido de areas verdes, retiro de hierba y maleza. | H69: =IFERROR(VLOOKUP(A69,Base!B:L,11,FALSE),"") -> 0 | I69: 0.46 | J69: 0.46 | M69: _61 | N69: =IFERROR(J69*VLOOKUP(A69,Base!B:K,10,FALSE),"") -> 0
A70: 02CD14_62 | B70: =IFERROR(VLOOKUP(A70,Base!B:E,3,FALSE),"") -> K023 | C70: =IFERROR(VLOOKUP(A70,Base!B:E,4,FALSE),"") -> Infraestructura urbana | E70: =IFERROR(VLOOKUP(A70,Base!B:F,5,FALSE),"") -> Mantenimiento y conservacion del mobiliario urbano en espacios publicos como: kioscos, fuentes ornamentales, bustos, monumentos, bajo puentes, etc. con trabajos de eliminacion y borrado de grafiti con la aplicacion de pintura en muros y bardas, colocacion de malla ciclonica, etc. | H70: =IFERROR(VLOOKUP(A70,Base!B:L,11,FALSE),"") -> 0 | I70: 0.46 | J70: 0.46 | M70: _62 | N70: =IFERROR(J70*VLOOKUP(A70,Base!B:K,10,FALSE),"") -> 0
A71: 02CD14_63 | B71: =IFERROR(VLOOKUP(A71,Base!B:E,3,FALSE),"") -> K023 | C71: =IFERROR(VLOOKUP(A71,Base!B:E,4,FALSE),"") -> Infraestructura urbana | E71: =IFERROR(VLOOKUP(A71,Base!B:F,5,FALSE),"") -> Rehabilitar, consevar y mantener luminarias de la Red Alumbrado Publico, con el cambio y actualizacion de nuevas tecnologias de iluminacion y ahorro de energia y la conservacion de la infraestructura existentes con mantenimiento preventivo y correctivo en calles, vialidades secundarias y espacios publicos. | H71: =IFERROR(VLOOKUP(A71,Base!B:L,11,FALSE),"") -> 0 | I71: 0.46 | J71: 0.46 | M71: _63 | N71: =IFERROR(J71*VLOOKUP(A71,Base!B:K,10,FALSE),"") -> 0
A72: 02CD14_64 | B72: =IFERROR(VLOOKUP(A72,Base!B:E,3,FALSE),"") -> K026 | C72: =IFERROR(VLOOKUP(A72,Base!B:E,4,FALSE),"") -> Infraestructura de agua potable en Alcaldías | E72: =IFERROR(VLOOKUP(A72,Base!B:F,5,FALSE),"") -> Construccion, ampliacion, rehabilitacion, mantenimiento, mejoramiento en metros de la red de agua potable en diversas ubicaciones de la Alcaldia, con el objetivo de que la poblacion cuente con mas y mejores servicios. | H72: =IFERROR(VLOOKUP(A72,Base!B:L,11,FALSE),"") -> 0 | I72: 0.46 | J72: 0.46 | M72: _64 | N72: =IFERROR(J72*VLOOKUP(A72,Base!B:K,10,FALSE),"") -> 0
A73: 02CD14_65 | B73: =IFERROR(VLOOKUP(A73,Base!B:E,3,FALSE),"") -> K027 | C73: =IFERROR(VLOOKUP(A73,Base!B:E,4,FALSE),"") -> Infraestructura de drenaje, alcantarillado y saneamiento en Alcaldías | E73: =IFERROR(VLOOKUP(A73,Base!B:F,5,FALSE),"") -> Construccion, ampliacion, rehabilitacion, mantenimiento, mejoramiento, desazolvede la red de drenaje en diversas ubicaciones de la Alcaldia, con el objetivo que la poblacion cuente con mas y mejores servicios. | H73: =IFERROR(VLOOKUP(A73,Base!B:L,11,FALSE),"") -> 0 | I73: 0.46 | J73: 0.46 | M73: _65 | N73: =IFERROR(J73*VLOOKUP(A73,Base!B:K,10,FALSE),"") -> 0
A74: =$C$6&M74 -> 02CD14_66 | B74: =IFERROR(VLOOKUP(A74,Base!B:E,3,FALSE),"") -> K027 | C74: =IFERROR(VLOOKUP(A74,Base!B:E,4,FALSE),"") -> Infraestructura de drenaje, alcantarillado y saneamiento en Alcaldías | E74: =IFERROR(VLOOKUP(A74,Base!B:F,5,FALSE),"") -> Construccion, ampliacion, rehabilitacion, mantenimiento, mejoramiento en en resumideros. | H74: =IFERROR(VLOOKUP(A74,Base!B:L,11,FALSE),"") -> 0 | I74: 0.46 | J74: 0.46 | M74: _66 | N74: =IFERROR(J74*VLOOKUP(A74,Base!B:K,10,FALSE),"") -> 0
A75: 02CD14_67 | B75: =IFERROR(VLOOKUP(A75,Base!B:E,3,FALSE),"") -> K027 | C75: =IFERROR(VLOOKUP(A75,Base!B:E,4,FALSE),"") -> Infraestructura de drenaje, alcantarillado y saneamiento en Alcaldías | E75: =IFERROR(VLOOKUP(A75,Base!B:F,5,FALSE),"") -> Construccion, ampliacion, rehabilitacion, mantenimiento, mejoramiento, de la red de drenaje en diversas ubicaciones de la Alcaldia, con el objetivo que la poblacion cuente con mas y mejores servicios. | H75: =IFERROR(VLOOKUP(A75,Base!B:L,11,FALSE),"") -> 0 | I75: 0.46 | J75: 0.46 | M75: _67 | N75: =IFERROR(J75*VLOOKUP(A75,Base!B:K,10,FALSE),"") -> 0
A76: 02CD14_68 | B76: =IFERROR(VLOOKUP(A76,Base!B:E,3,FALSE),"") -> M001 | C76: =IFERROR(VLOOKUP(A76,Base!B:E,4,FALSE),"") -> Actividades de apoyo administrativo | E76: =IFERROR(VLOOKUP(A76,Base!B:F,5,FALSE),"") -> Recursos Materiales necesarios para la operacion de la Alcaldia. | H76: =IFERROR(VLOOKUP(A76,Base!B:L,11,FALSE),"") -> 0 | I76: 0.46 | J76: 0.46 | M76: _68 | N76: =IFERROR(J76*VLOOKUP(A76,Base!B:K,10,FALSE),"") -> 0
A77: 02CD14_69 | B77: =IFERROR(VLOOKUP(A77,Base!B:E,3,FALSE),"") -> M001 | C77: =IFERROR(VLOOKUP(A77,Base!B:E,4,FALSE),"") -> Actividades de apoyo administrativo | E77: =IFERROR(VLOOKUP(A77,Base!B:F,5,FALSE),"") -> Servicios generales necesarios para la operacion de la Alcaldia. | H77: =IFERROR(VLOOKUP(A77,Base!B:L,11,FALSE),"") -> 0 | I77: 0.46 | J77: 0.46 | M77: _69 | N77: =IFERROR(J77*VLOOKUP(A77,Base!B:K,10,FALSE),"") -> 0
A78: 02CD14_70 | B78: =IFERROR(VLOOKUP(A78,Base!B:E,3,FALSE),"") -> M001 | C78: =IFERROR(VLOOKUP(A78,Base!B:E,4,FALSE),"") -> Actividades de apoyo administrativo | E78: =IFERROR(VLOOKUP(A78,Base!B:F,5,FALSE),"") -> Planear y atender los requerimientos en funcion del programa en materia de adquisiciones: insumos, bienes y servicios | H78: =IFERROR(VLOOKUP(A78,Base!B:L,11,FALSE),"") -> 0 | I78: 0.46 | J78: 0.46 | M78: _70 | N78: =IFERROR(J78*VLOOKUP(A78,Base!B:K,10,FALSE),"") -> 0
A79: 02CD14_71 | B79: =IFERROR(VLOOKUP(A79,Base!B:E,3,FALSE),"") -> M001 | C79: =IFERROR(VLOOKUP(A79,Base!B:E,4,FALSE),"") -> Actividades de apoyo administrativo | E79: =IFERROR(VLOOKUP(A79,Base!B:F,5,FALSE),"") -> Administrar de manera eficiente los sistemas informaticos, de soporte tecnico y de procesos administrativos | H79: =IFERROR(VLOOKUP(A79,Base!B:L,11,FALSE),"") -> 0 | I79: 0.46 | J79: 0.46 | M79: _71 | N79: =IFERROR(J79*VLOOKUP(A79,Base!B:K,10,FALSE),"") -> 0
A80: 02CD14_72 | B80: =IFERROR(VLOOKUP(A80,Base!B:E,3,FALSE),"") -> M001 | C80: =IFERROR(VLOOKUP(A80,Base!B:E,4,FALSE),"") -> Actividades de apoyo administrativo | E80: =IFERROR(VLOOKUP(A80,Base!B:F,5,FALSE),"") -> Contribuir al fortalecimiento de las finanzas de la Alcaldia a traves de estrategias que permitan controlar, asegurar y eficientar la recaudacion de los ingresos de aplicacion automatica de la Alcaldia, asi como la correcta consolidacion y administracion | H80: =IFERROR(VLOOKUP(A80,Base!B:L,11,FALSE),"") -> 0 | I80: 0.46 | J80: 0.46 | M80: _72 | N80: =IFERROR(J80*VLOOKUP(A80,Base!B:K,10,FALSE),"") -> 0
A81: 02CD14_73 | B81: =IFERROR(VLOOKUP(A81,Base!B:E,3,FALSE),"") -> M002 | C81: =IFERROR(VLOOKUP(A81,Base!B:E,4,FALSE),"") -> Provisiones para contingencias | E81: =IFERROR(VLOOKUP(A81,Base!B:F,5,FALSE),"") -> Brindar recursos para cubrir las obligaciones que deriven de laudos emitidos o sentencias definitivas dictadas por autoridad competente. | H81: =IFERROR(VLOOKUP(A81,Base!B:L,11,FALSE),"") -> 0 | I81: 0.46 | J81: 0.46 | M81: _73 | N81: =IFERROR(J81*VLOOKUP(A81,Base!B:K,10,FALSE),"") -> 0
A82: 02CD14_74 | B82: =IFERROR(VLOOKUP(A82,Base!B:E,3,FALSE),"") -> N001 | C82: =IFERROR(VLOOKUP(A82,Base!B:E,4,FALSE),"") -> Cumplimiento de los programas de protección civil | E82: =IFERROR(VLOOKUP(A82,Base!B:F,5,FALSE),"") -> Reconocimientos y vigilancia de medidas de seguridad en los establecimientos mercantiles, asi como la revision de sus programas internos en materia de proteccion civil. | H82: =IFERROR(VLOOKUP(A82,Base!B:L,11,FALSE),"") -> 0 | I82: 0.46 | J82: 0.46 | M82: _74 | N82: =IFERROR(J82*VLOOKUP(A82,Base!B:K,10,FALSE),"") -> 0
A83: 02CD14_75 | B83: =IFERROR(VLOOKUP(A83,Base!B:E,3,FALSE),"") -> N001 | C83: =IFERROR(VLOOKUP(A83,Base!B:E,4,FALSE),"") -> Cumplimiento de los programas de protección civil | E83: =IFERROR(VLOOKUP(A83,Base!B:F,5,FALSE),"") -> Emision de dictamenes de riesgo sustentados en un analisis tecnico profesional, garantizando la integridad del individuo, sus bienes y entorno | H83: =IFERROR(VLOOKUP(A83,Base!B:L,11,FALSE),"") -> 0 | I83: 0.46 | J83: 0.46 | M83: _75 | N83: =IFERROR(J83*VLOOKUP(A83,Base!B:K,10,FALSE),"") -> 0
A84: 02CD14_76 | B84: =IFERROR(VLOOKUP(A84,Base!B:E,3,FALSE),"") -> N001 | C84: =IFERROR(VLOOKUP(A84,Base!B:E,4,FALSE),"") -> Cumplimiento de los programas de protección civil | E84: =IFERROR(VLOOKUP(A84,Base!B:F,5,FALSE),"") -> Respuesta a las solicitudes o llamados de emergencias para salvaguardar la integridad fisica de la poblacion, de sus bienes y entorno. | H84: =IFERROR(VLOOKUP(A84,Base!B:L,11,FALSE),"") -> 0 | I84: 0.46 | J84: 0.46 | M84: _76 | N84: =IFERROR(J84*VLOOKUP(A84,Base!B:K,10,FALSE),"") -> 0
A85: 02CD14_77 | B85: =IFERROR(VLOOKUP(A85,Base!B:E,3,FALSE),"") -> N001 | C85: =IFERROR(VLOOKUP(A85,Base!B:E,4,FALSE),"") -> Cumplimiento de los programas de protección civil | E85: =IFERROR(VLOOKUP(A85,Base!B:F,5,FALSE),"") -> Capacitacion de simulacros y asesorias en temas como: Primeros auxilios; prevencion,evacuacion, repliegue y combate de incendios; brigadas de Proteccion Civil, Plan Familiar de Proteccion Civil. | H85: =IFERROR(VLOOKUP(A85,Base!B:L,11,FALSE),"") -> 0 | I85: 0.46 | J85: 0.46 | M85: _77 | N85: =IFERROR(J85*VLOOKUP(A85,Base!B:K,10,FALSE),"") -> 0
A86: 02CD14_78 | B86: =IFERROR(VLOOKUP(A86,Base!B:E,3,FALSE),"") -> R002 | C86: =IFERROR(VLOOKUP(A86,Base!B:E,4,FALSE),"") -> Presupuesto participativo | E86: =IFERROR(VLOOKUP(A86,Base!B:F,5,FALSE),"") -> Llevar a cabo los procedimientos necesarios, para ejecutar los Proyectos ganadores, correspondientes a los 179 comites ciudadano del Programa de Presupuesto Participativo 2023 de la Alcaldia | H86: =IFERROR(VLOOKUP(A86,Base!B:L,11,FALSE),"") -> 0 | I86: 0.46 | J86: 0.46 | M86: _78 | N86: =IFERROR(J86*VLOOKUP(A86,Base!B:K,10,FALSE),"") -> 0
A87: 02CD14_79 | B87: =IFERROR(VLOOKUP(A87,Base!B:E,3,FALSE),"") -> R002 | C87: =IFERROR(VLOOKUP(A87,Base!B:E,4,FALSE),"") -> Presupuesto participativo | E87: =IFERROR(VLOOKUP(A87,Base!B:F,5,FALSE),"") -> Se llevaran a cabo obras en Vialidades, Luminarias, Banquetas y Guarniciones, Espacios Publicos, Drenaje, areas comunes de Unidades Habitacionales, etc. en el Marco del Presupuesto Participativo en 179 Comites Ciudadanos en diversas ubicaciones del perimetro de la Alcaldia | H87: =IFERROR(VLOOKUP(A87,Base!B:L,11,FALSE),"") -> 0 | I87: 0.46 | J87: 0.46 | M87: _79 | N87: =IFERROR(J87*VLOOKUP(A87,Base!B:K,10,FALSE),"") -> 0
A88: 02CD14_80 | B88: =IFERROR(VLOOKUP(A88,Base!B:E,3,FALSE),"") -> R002 | C88: =IFERROR(VLOOKUP(A88,Base!B:E,4,FALSE),"") -> Presupuesto participativo | E88: =IFERROR(VLOOKUP(A88,Base!B:F,5,FALSE),"") -> Seguimiento de los avances en los proyectos del Programa de Presupuesto Participativo a traves de los comites ciudadanos e informar a las areas correspondientes, | H88: =IFERROR(VLOOKUP(A88,Base!B:L,11,FALSE),"") -> 0 | I88: 0.46 | J88: 0.46 | M88: _80 | N88: =IFERROR(J88*VLOOKUP(A88,Base!B:K,10,FALSE),"") -> 0
A89: 02CD14_81 | B89: =IFERROR(VLOOKUP(A89,Base!B:E,3,FALSE),"") -> S229 | C89: =IFERROR(VLOOKUP(A89,Base!B:E,4,FALSE),"") -> Apoyo para el desarrollo integral de la mujer | E89: =IFERROR(VLOOKUP(A89,Base!B:F,5,FALSE),"") -> Otorgar apoyos economicos o en especie a mujeres habitantes de la Alcaldia Tlalpan que sean victimas de violencia de genero y con ello contribuir a mejorar su calidad de vida. | H89: APOYO | I89: 0.46 | J89: 0.46 | M89: _81 | N89: =IFERROR(J89*VLOOKUP(A89,Base!B:K,10,FALSE),"") -> 0
A90: 02CD14_82 | B90: =IFERROR(VLOOKUP(A90,Base!B:E,3,FALSE),"") -> S229 | C90: =IFERROR(VLOOKUP(A90,Base!B:E,4,FALSE),"") -> Apoyo para el desarrollo integral de la mujer | E90: =IFERROR(VLOOKUP(A90,Base!B:F,5,FALSE),"") -> Otorgar apoyos economicos a personas beneficiarias denominadas facilitadores que coadyuven a desarrollar las siguientes actividades: 1) Capacitaciones a la poblacion adolescente en temas de derechos sexuales, reproductivos y la prevencion del embarazo adolescente no deseado, para el ejercicio del derecho a una vida libre de violencia en las mujeres de 15 años y mas que habitan en zonas con mayores indices de delitos de genero. 2) difunda servicios de asesoria y primera atencion psicologica y juridica a la violencia de genero disponibles en el Centro de Atencion Integral para mujeres victimas de violencia de genero. Justa Hernandez Farfan. | H90: APOYO | I90: 0.46 | J90: 0.46 | M90: _82 | N90: =IFERROR(J90*VLOOKUP(A90,Base!B:K,10,FALSE),"") -> 0
A91: 02CD14_83 | B91: =IFERROR(VLOOKUP(A92,Base!B:E,3,FALSE),"") -> S231 | C91: =IFERROR(VLOOKUP(A92,Base!B:E,4,FALSE),"") -> Programa para el impulso agroalimentario | E91: =IFERROR(VLOOKUP(A91,Base!B:F,5,FALSE),"") -> Produccion Agropecuaria: Con el fin de fomentar las actividades productivas rurales sustentables de la Alcaldia Tlalpan, se otorgara apoyos economicos a las mujeres y los hombres de ejidos y comunidades, a las y los pequeños propietarios y a las y los posesionarios o arrendatarios que se interesen y/o realicen actividades agropecuarias, apoyando los programas de trabajo que contribuyan a la recuperacion de tierras ociosas y al impulso de los cultivos nativos de Tlalpan, asi mismo se brindara capacitacion de manera virtual o presencial que promueva entre los productores involucrarse en el diseño e implementacion de acciones que contribuyan con alcanzar el objetivo denominado hambre cero, a traves del aprendizaje tecnico de buenas practicas para mejorar la produccion y comercializacion de sus productos. | H91: APOYO | I91: 0.46 | J91: 0.46 | M91: _83 | N91: =IFERROR(J91*VLOOKUP(A91,Base!B:K,10,FALSE),"") -> 0
A92: 02CD14_84 | E92: =IFERROR(VLOOKUP(A92,Base!B:F,5,FALSE),"") -> Economia Sustentable: Impulsar la creacion y fortalecimiento de micro, pequeñas y medianas empresas, sociedades cooperativas, proyectos ecoturisticos, asi como, impulsar emprendimientos en las areas de comercializacion y capacitacion en temas especificos contando con la supervision y acompañamiento en campo por parte de la Unidad Tecnico Operativa a las unidades economicas apoyadas, con el objetivo de coadyuvar a la sostenibilidad de las unidades economicas en el mercado, incorporando a personas en condicion de desempleo con alguna vocacion productiva. | H92: APOYO | I92: 0.46 | J92: 0.46 | M92: _84 | N92: =IFERROR(J92*VLOOKUP(A92,Base!B:K,10,FALSE),"") -> 0
A93: 02CD14_85 | B93: =IFERROR(VLOOKUP(A93,Base!B:E,3,FALSE),"") -> S231 | C93: =IFERROR(VLOOKUP(A93,Base!B:E,4,FALSE),"") -> Programa para el impulso agroalimentario | E93: =IFERROR(VLOOKUP(A93,Base!B:F,5,FALSE),"") -> Manejo de recursos naturales: Implementar proyectos que vayan encaminados a la proteccion y conservacion del ambiente, fomentando la participacion activa de las y los posesionarios o usufructuarios de este territorio, permitiendo a los posesionarios de tierras, bosques y comunidades de hecho y a los habitantes de los pueblos originarios ubicados dentro de la Alcaldia Tlalpan, realizar actividades de conservacion, mantenimiento y restauracion del suelo, agua y monitoreo de la biodiversidad del suelo de conservacion para mantener los servicios ecosistemicos y la proteccion de Areas Naturales Protegidas en sus distintas categorias. | H93: APOYO | I93: 0.46 | J93: 0.46 | M93: _85 | N93: =IFERROR(J93*VLOOKUP(A93,Base!B:K,10,FALSE),"") -> 0
A94: 02CD14_86 | B94: =IFERROR(VLOOKUP(A94,Base!B:E,3,FALSE),"") -> S231 | C94: =IFERROR(VLOOKUP(A94,Base!B:E,4,FALSE),"") -> Programa para el impulso agroalimentario | E94: =IFERROR(VLOOKUP(A94,Base!B:F,5,FALSE),"") -> Produccion Agropecuaria: Con el fin de fomentar las actividades productivas rurales sustentables de la Alcaldia Tlalpan, se otorgara apoyos economicos a las mujeres y los hombres de ejidos y comunidades, a las y los pequeños propietarios y a las y los posesionarios o arrendatarios que se interesen y/o realicen actividades agropecuarias, apoyando los programas de trabajo que contribuyan a la recuperacion de tierras ociosas y al impulso de los cultivos nativos de Tlalpan, asi mismo se brindara capacitacion de manera virtual o presencial que promueva entre los productores involucrarse en el diseño e implementacion de acciones que contribuyan con alcanzar el objetivo denominado hambre cero, a traves del aprendizaje tecnico de buenas practicas para mejorar la produccion y comercializacion de sus productos. | H94: APOYO | I94: 0.46 | J94: 0.46 | M94: _86 | N94: =IFERROR(J94*VLOOKUP(A94,Base!B:K,10,FALSE),"") -> 0
A95: 02CD14_87 | B95: =IFERROR(VLOOKUP(A95,Base!B:E,3,FALSE),"") -> S231 | C95: =IFERROR(VLOOKUP(A95,Base!B:E,4,FALSE),"") -> Programa para el impulso agroalimentario | E95: =IFERROR(VLOOKUP(A95,Base!B:F,5,FALSE),"") -> Ecotecnologias: Se pretende reducir el problema de abastecimiento de agua, disminuir el gasto familiar por la obtencion del recurso y capacitar a los habitantes en materia de educacion ambiental acerca del cuidado y aprovechamiento racional del agua, a traves de un proceso de capacitacion y concientizacion previo para el beneficiario sobre las implicaciones de implementar eco tecnologias y los habitos que requieren adaptarse al proceso de cosecha de agua de lluvia y de energia solar a traves de paneles solares, se pretende reducir el problema de abastecimiento de agua, disminuir el gasto familiar por la obtencion del recurso y capacitar a los habitantes en materia de educacion ambiental acerca del cuidado y aprovechamiento racional del agua. | H95: APOYO | I95: 0.46 | J95: 0.46 | M95: _87 | N95: =IFERROR(J95*VLOOKUP(A95,Base!B:K,10,FALSE),"") -> 0
A96: 02CD14_88 | B96: =IFERROR(VLOOKUP(A96,Base!B:E,3,FALSE),"") -> S233 | C96: =IFERROR(VLOOKUP(A96,Base!B:E,4,FALSE),"") -> Apoyo de alimentación y refugio para personas vulnerables | E96: =IFERROR(VLOOKUP(A96,Base!B:F,5,FALSE),"") -> Otorgar apoyos economicos para que niñas y niñas entre 1 año y 3 años 11 meses de edad, incluyendo niñas y niños con discapacidad cuyas madres, padres o tutores legales residan preferentemente en la Alcaldia Tlalpan, o que tengan su centro de trabajo en la Alcaldia Tlalpan reciben el servicio de cuidado y atencion infantil. | H96: APOYO | I96: 0.46 | J96: 0.46 | M96: _88 | N96: =IFERROR(J96*VLOOKUP(A96,Base!B:K,10,FALSE),"") -> 0
A97: 02CD14_89 | B97: =IFERROR(VLOOKUP(A97,Base!B:E,3,FALSE),"") -> S233 | C97: =IFERROR(VLOOKUP(A97,Base!B:E,4,FALSE),"") -> Apoyo de alimentación y refugio para personas vulnerables | E97: =IFERROR(VLOOKUP(A97,Base!B:F,5,FALSE),"") -> Otorgar apoyos economicos a personas beneficiarias denominadas facilitadores que coadyuven a desarrollar las siguientes actividades: 1) Capacitaciones a la poblacion adolescente en temas de derechos sexuales, reproductivos y la prevencion del embarazo adolescente no deseado, para el ejercicio del derecho a una vida libre de violencia en las mujeres de 15 años y mas que habitan en zonas con mayores indices de delitos de genero. 2) difunda servicios de asesoria y primera atencion psicologica y juridica a la violencia de genero disponibles en el Centro de Atencion Integral para mujeres victimas de violencia de genero "Justa Hernandez Farfan”. | H97: APOYO | I97: 0.46 | J97: 0.46 | M97: _89 | N97: =IFERROR(J97*VLOOKUP(A97,Base!B:K,10,FALSE),"") -> 0
A98: 02CD14_90 | B98: =IFERROR(VLOOKUP(A98,Base!B:E,3,FALSE),"") -> S233 | C98: =IFERROR(VLOOKUP(A98,Base!B:E,4,FALSE),"") -> Apoyo de alimentación y refugio para personas vulnerables | E98: =IFERROR(VLOOKUP(A98,Base!B:F,5,FALSE),"") -> Otorgar apoyos economicos o en especie a mujeres habitantes de la Alcaldia Tlalpan que desarrollen proyectos economicos, comunitarios, culturales, educativos. | H98: APOYO | I98: 0.46 | J98: 0.46 | M98: _90 | N98: =IFERROR(J98*VLOOKUP(A98,Base!B:K,10,FALSE),"") -> 0
A99: 02CD14_91 | B99: =IFERROR(VLOOKUP(A99,Base!B:E,3,FALSE),"") -> S234 | C99: =IFERROR(VLOOKUP(A99,Base!B:E,4,FALSE),"") -> Programa de apoyo para el bienestar familiar | I99: 0.46 | J99: 0.46 | M99: _91 | N99: =IFERROR(J99*VLOOKUP(A99,Base!B:K,10,FALSE),"") -> 0
A100: 02CD14_92 | B100: =IFERROR(VLOOKUP(A100,Base!B:E,3,FALSE),"") -> S234 | C100: =IFERROR(VLOOKUP(A100,Base!B:E,4,FALSE),"") -> Programa de apoyo para el bienestar familiar | E100: =IFERROR(VLOOKUP(A100,Base!B:F,5,FALSE),"") -> Otorgar apoyos economicos o en especie con el fin de proveer del servicio de Internet a niños con rezago educativo y que encuentran en desigualdad de oportunidades, que se residan en las zonas de bajo indice de desarrollo social en la alcaldia Tlalpan, asimismo se capacitaran facilitadores que coadyuvaran en el seguimiento de el programa social que se implemente. contribuyendo a mejorar su calidad de vida y solventar sus necesidades basicas. | H100: APOYO | I100: 0.46 | J100: 0.46 | M100: _92 | N100: =IFERROR(J100*VLOOKUP(A100,Base!B:K,10,FALSE),"") -> 0
A101: 02CD14_93 | B101: =IFERROR(VLOOKUP(A101,Base!B:E,3,FALSE),"") -> S234 | C101: =IFERROR(VLOOKUP(A101,Base!B:E,4,FALSE),"") -> Programa de apoyo para el bienestar familiar | E101: =IFERROR(VLOOKUP(A101,Base!B:F,5,FALSE),"") -> Otorgar apoyos economicos o en especie para la formacion musical de los integrantes de la Camerata infantil y Juvenil de Tlalpan, para extender y ampliar los derechos sociales de la atencion a grupos vulnerables y no vulnerables, garantizando el acceso a la formacion musical, promoviendo el pleno ejercicio de los derechos culturales, mejorando la calidad de vida de los habitantes de esta Alcaldia. | H101: APOYO | I101: 0.46 | J101: 0.46 | M101: _93 | N101: =IFERROR(J101*VLOOKUP(A101,Base!B:K,10,FALSE),"") -> 0
A102: 02CD14_94 | B102: =IFERROR(VLOOKUP(A102,Base!B:E,3,FALSE),"") -> S234 | C102: =IFERROR(VLOOKUP(A102,Base!B:E,4,FALSE),"") -> Programa de apoyo para el bienestar familiar | E102: =IFERROR(VLOOKUP(A102,Base!B:F,5,FALSE),"") -> Otorgar apoyos economicos o en especie a niñas, niños y adolescentes a traves de sus cuidadores y/o tutores, que permitan contribuir a su desarrollo, promoviendo el ejercicio de los derechos humanos de niñas, niños y adolescentes en condicion de orfandad mediante talleres, actividades y acciones didacticas y contribuir a mejorar su calidad de vida y con ello solventen sus necesidades basicas. | H102: APOYO | I102: 0.46 | J102: 0.46 | M102: _94 | N102: =IFERROR(J102*VLOOKUP(A102,Base!B:K,10,FALSE),"") -> 0
A103: 02CD14_95 | B103: =IFERROR(VLOOKUP(A103,Base!B:E,3,FALSE),"") -> S234 | C103: =IFERROR(VLOOKUP(A103,Base!B:E,4,FALSE),"") -> Programa de apoyo para el bienestar familiar | E103: =IFERROR(VLOOKUP(A103,Base!B:F,5,FALSE),"") -> Otorgar apoyos economicos o en especie a habitantes de la Alcaldia Tlalpan en la promocion de la salud relacionadas con la tutela responsable de animales de compañia y la prevencion de enfermedades zoonoticas de manera presencial y a distancia. | H103: APOYO | I103: 0.46 | J103: 0.46 | M103: _95 | N103: =IFERROR(J103*VLOOKUP(A103,Base!B:K,10,FALSE),"") -> 0
A104: 02CD14_96 | B104: =IFERROR(VLOOKUP(A104,Base!B:E,3,FALSE),"") -> S234 | C104: =IFERROR(VLOOKUP(A104,Base!B:E,4,FALSE),"") -> Programa de apoyo para el bienestar familiar | E104: =IFERROR(VLOOKUP(A104,Base!B:F,5,FALSE),"") -> Otorgar apoyos economicos o en especie a habitantes de la Alcaldia Tlalpan que realicen actividades fisicas y deportivas en diferentes disciplinas, en diferentes espacios deportivos de la Alcaldia, para fomentar la practica de actividades fisicas y deportivas en los habitantes de la demarcacion. Para contribuir a mejorar su calidad de vida. | H104: APOYO | I104: 0.46 | J104: 0.46 | K104: SIN VARIACIÓN | L104: SE REALIZÓ LA SIGUIENTES ACCIONES: SE IMPARTIERON LAS SIGUIENTES ACTIVIDADES FÍSICAS Y DEPORTIVAS: YOGA, ZUMBA, ACTIVACIÓN FUNCIONAL, BAILE, BASQUETBOL, TAIJIQUAN, ACONDICIONAMIENTO FÍSICO, FUTBOL, AEROBICS Y VOLEIBOL EN LOS MÓDULOS DEPORTIVOS: PARRES, TOPILEJO, CAO LOS HORNOS, TEPEXIMILPA, PARQUE MORELOS, SAN ANDRÉS, HUIPULCO, TOLENTINO, SAN JUAN, VERGEL, EJIDOS DE SAN PEDRO, PARQUE MORELOS, TORRES DE PADIERNA, ARENERO TISKOKOB, CHICOASEN, CULTURA MAYA, VALLE VERDE, MANZANA 7 Y TENORIOS. | M104: _96 | N104: =IFERROR(J104*VLOOKUP(A104,Base!B:K,10,FALSE),"") -> 0
A105: 02CD14_97 | B105: =IFERROR(VLOOKUP(A105,Base!B:E,3,FALSE),"") -> S234 | C105: =IFERROR(VLOOKUP(A105,Base!B:E,4,FALSE),"") -> Programa de apoyo para el bienestar familiar | E105: =IFERROR(VLOOKUP(A105,Base!B:F,5,FALSE),"") -> Otorgar apoyos economicos o en especie a "colectivos juveniles” que desarrollen e implementen proyectos que atiendan problematicas juveniles en sus comunidades. | H105: APOYO | I105: =IFERROR(VLOOKUP(A105,Base!B:L,6,FALSE),"") -> 0 | M105: _97 | N105: =IFERROR(J105*VLOOKUP(A105,Base!B:K,10,FALSE),"") -> 0
A106: 02CD14_98 | B106: =IFERROR(VLOOKUP(A106,Base!B:E,3,FALSE),"") -> S234 | C106: =IFERROR(VLOOKUP(A106,Base!B:E,4,FALSE),"") -> Programa de apoyo para el bienestar familiar | E106: =IFERROR(VLOOKUP(A106,Base!B:F,5,FALSE),"") -> Otorgar apoyos economicos a personas beneficiarias denominadas facilitadores que coadyuven a desarrollar las siguientes actividades: 1 ) Identificar obstaculos en via publica que dificulten la movilidad, reportar y canalizar a diferentes areas de la Alcaldia para su atencion correspondiente. 2) Prevencion de las violencias, como orientacion psicologica, juridica, establecer mecanismos y acciones para concientizar a la poblacion en general. 3 ) impartir asesorias educativas presenciales o virtuales, a traves de la utilizacion de medios electronicos y plataformas digitales. 4) Realizacion y disfrute de actividades artisticas, ludicas y de oficios en la poblacion Tlalpense que busca generar una vida mas recreativa, cultural y artistica por medio de los Centros de Artes y Oficios. 5) impartir talleres ludicos, formativos, participativos y ocupacionales de manera personal o mediante materiales audiovisuales a personas que habiten en zonas de muy bajo y bajo indice de desarrollo social. 6) Servicios de mejoramiento y mantenimiento de espacios publicos, en colonias, barrios, pueblos originarios y unidades habitacionales de la Alcaldia Tlalpan, que padecen conflictos sociales o requieren mejoramiento de su entorno fisico. 7) Implementar actividades del programa social brindando accesibilidad a la informacion de programas y servicios mediante la difusion y contacto directo con la ciudadania. Propiciar la organizacion y realizacion de actividades que fortalezcan la organizacion vecinal en las colonias, barrios, pueblos originarios y unidades y conjuntos habitacionales de la demarcacion Tlalpan. | H106: APOYO | I106: =IFERROR(VLOOKUP(A106,Base!B:L,6,FALSE),"") -> 0 | M106: _98 | N106: =IFERROR(J106*VLOOKUP(A106,Base!B:K,10,FALSE),"") -> 0
A107: 02CD14_99 | B107: =IFERROR(VLOOKUP(A107,Base!B:E,3,FALSE),"") -> S235 | C107: =IFERROR(VLOOKUP(A107,Base!B:E,4,FALSE),"") -> Apoyos para el cuidado del adulto mayor | E107: =IFERROR(VLOOKUP(A107,Base!B:F,5,FALSE),"") -> Otorgar apoyos economicos a personas mayores de 60 años en estado de vulnerabilidad agrupados en colectivos | H107: APOYO | I107: =IFERROR(VLOOKUP(A107,Base!B:L,6,FALSE),"") -> 0 | M107: _99 | N107: =IFERROR(J107*VLOOKUP(A107,Base!B:K,10,FALSE),"") -> 0
A108: 02CD14_100 | B108: =IFERROR(VLOOKUP(A108,Base!B:E,3,FALSE),"") -> S235 | C108: =IFERROR(VLOOKUP(A108,Base!B:E,4,FALSE),"") -> Apoyos para el cuidado del adulto mayor | E108: =IFERROR(VLOOKUP(A108,Base!B:F,5,FALSE),"") -> Capacitacion de personas facilitadoras de servicios, que les permita contar con las herramientas necesaria para impulsar la construccion de un modelo de envejecimiento, mediante formas de organizacion colectiva y la participacion en la cultura de los cuidados. | H108: CAPACITACION | I108: =IFERROR(VLOOKUP(A108,Base!B:L,6,FALSE),"") -> 0 | M108: _100 | N108: =IFERROR(J108*VLOOKUP(A108,Base!B:K,10,FALSE),"") -> 0
A109: 02CD14_101 | B109: =IFERROR(VLOOKUP(A109,Base!B:E,3,FALSE),"") -> S235 | C109: =IFERROR(VLOOKUP(A109,Base!B:E,4,FALSE),"") -> Apoyos para el cuidado del adulto mayor | E109: =IFERROR(VLOOKUP(A109,Base!B:F,5,FALSE),"") -> Por medio de las personas facilitadores, se brinda acompañamiento, asesorias e informacion sobre el autocuidado y cuidado a personas mayores y sus familias residentes de colonias de muy bajo y bajo indice de desarrollo social, generando la cultura de los cuidado. | H109: APOYO | I109: =IFERROR(VLOOKUP(A109,Base!B:L,6,FALSE),"") -> 0 | M109: _101 | N109: =IFERROR(J109*VLOOKUP(A109,Base!B:K,10,FALSE),"") -> 0
A110: 02CD14_103 | B110: =IFERROR(VLOOKUP(A110,[1]Base!B:E,3,FALSE),"") -> U048 | C110: =IFERROR(VLOOKUP(A110,[1]Base!B:E,4,FALSE),"") -> Apoyos sociales | E110: =IFERROR(VLOOKUP(A110,[1]Base!B:F,5,FALSE),"") -> Apoyos economicos a deportistas destacados y prospectos deportivos 2023; Ayudas economicas para cubrir gastos de participacion en eventos deportivos 2023: XVII Carrera Tlalpense 10 km. 2023; XV Circuito Tlalpense de Pista y Campo 2023 | H110: APOYO | I110: 0.46 | J110: 0.46 | K110: SIN VARIACIÓN | L110: RE INICIO LA RECEPCION DE SOLICITUDES PARA LAS ACCIONES SOCIALES: "ENTREGA DE CONJUNTOS DE PANTS A DEPORTISTAS Y ENTRENADORES DEPORTIVOS REPRESENTANTES DE LA ALCALDIA TLALPAN" Y "APOYOS ECONÓMICOS A DEPORTISTAS Y ENTRENADORES DEPORTIVOS DE TLALPAN", SE REALIZO LA XVII CARRERA TLALPENSE 10K 2023 CON 2000 PARTICIPANTES A LOS CUALES SE LES ENTREGO UN KIT DE PARTICIPACIÓN (PLAYERA, MEDALLA, NUMERO DE PARTICIPACION Y PAQUETE DE HIDRATACION Y RECUPERACION), SE OBTUVIERON 54 GANADORES DE PREMIACION ECONÓMICA. | M110: _103 | N110: =IFERROR(J110*VLOOKUP(A110,[1]Base!B:K,10,FALSE),"") -> 0
B113: ELABORÓ | I113: AUTORIZÓ
B116: NOMBRE: EDGARDO RAMIREZ CRUZ | I116: NOMBRE: LIC. NATALIA GUADALUPE MÁRQUEZ CODINA
B117: CARGO: COORDINADOR DE DESARROLLO DE ACTIVIDADES DEPORTIVAS | I117: CARGO: DIRECTORA GENERAL DE DESARROLLO SOCIAL
B118: CUENTA DE CORREO INSTITUCIONAL: | I118: CUENTA DE CORREO INSTITUCIONAL: socialtlalpan@gmail.com
B119: TELÉFONO DE CONTACTO: 5589432874 | I119: TELÉFONO DE CONTACTO: 55-54831500 | M119: EXTENSIÓN:
C120: EXTENSIÓN: | K120: EXTENSIÓN: 5931 y 5932
B124: NOTA: EN CASO DE NO CONTAR CON ACCIONES PROGRAMADAS y AUTORIZADAS DE ORIGEN, FAVOR DE INCLUIRLAS EN EL SIGUIENTE CUADRO
B125: Clave del Pp | C125: Denominación del Pp | E125: Acción | H125: Meta absoluta anual | I125: Meta Relativa de la Acción Programada | J125: Avance al Trimestre | K125: Justificación de la variación | L125: Descripción del avance

Sheet IR PP
C5: IR PP- INFORME DE RESULTADOS DE PROGRAMAS PRESUPUESTARIOS
C6: EJERCICIO FISCAL 2023
C7: DATOS DE LA UNIDAD RESPONSABLE DE GASTO
AD8: 0
C9: Unidad Responsable de Gasto: | J9: =IAAR!F6 -> Alcaldia Tlalpan | T9: Clave Centro Gestor: | V9: =IAAR!C6 -> 02CD14 | Y9: Periodo: | AB9: 2do Trimestre
C11: RESULTADOS
C12: Alineaciones | I12: Clave PP | J12: Nombre PP | L12: Meta Física Proyectada | M12: Definición de la meta | P12: Indicador de la meta | S12: Medios de Verificación | V12: Unidad de Medida | W12: Meta programada al trimestre | AA12: Avance en los Indicadores | AB12: Presupuesto Programado al Periodo | AC12: Presupuesto Ejercido al Periodo | AD12: Porcentaje de Presupuesto Programado Ejercido | AE12: Semaforización Avance en los Indicadores
C13: Eje | D13: Sub Eje | E13: Sub Sub Eje | F13: CFG | G13: ODS | H13: Metas ODS | W13: 1er.TMP | X13: 2do.TMP | Y13: 3er.TMP | Z13: 4to.TMP
A14: _1 | B14: =CONCATENATE($V$9,A14) -> 02CD14_1 | C14: =IFERROR(VLOOKUP(B14,'Hoja1 (2)'!A:AQ,11,FALSE),"") -> 2 | D14: =IFERROR(VLOOKUP(B14,'Hoja1 (2)'!A:AQ,13,FALSE),"") -> 1 | E14: =IFERROR(VLOOKUP(B14,'Hoja1 (2)'!A:AQ,15,FALSE),"") -> 3 | F14: =IFERROR(VLOOKUP(B14,'Hoja1 (2)'!A:AQ,29,FALSE),"") -> 1.8.1 | G14: =IFERROR(VLOOKUP(B14,'Hoja1 (2)'!A:AQ,25,FALSE),"") -> 16 | H14: =IFERROR(VLOOKUP(B14,'Hoja1 (2)'!A:AQ,27,FALSE),"") -> 16.6 | I14: =IFERROR(VLOOKUP(B14,'Hoja1 (2)'!A:J,9,FALSE),"") -> E185 | J14: =IFERROR(VLOOKUP(B14,'Hoja1 (2)'!A:J,10,FALSE),"") -> Gobierno y atención ciudadana | L14: =IFERROR(VLOOKUP(B14,'Hoja1 (2)'!A:AQ,35,FALSE),"") -> 100% | M14: =IFERROR(VLOOKUP(B14,'Hoja1 (2)'!A:AQ,36,FALSE),"") -> Indice que mide el avance de las atenciones de los servicios administrativos y operativos que la poblacion requiere. | P14: =IFERROR(VLOOKUP(B14,'Hoja1 (2)'!A:AQ,37,FALSE),"") -> ((Actualizacion de censos de asentamientos irregulares realizados/ Actualizacion de censos de asentamientos irregulares programados)*11.5)+((Tramites y servicios para la operacion de giros mercantiles realizados/Tramites y servicios para la operacion de giros mercantiles programados) *11.5)+((Servicios de asesoria juridica y promocion de los Derechos Humanos realizados/Servicios de asesoria juridica y promocion de los Derechos Humanos programados) *11)+((Orientaciones en materia de colaboracion, vinculacion, concertacion y participacion ciudadana realizadas/Orientaciones en materia de colaboracion, vinculacion, concertacion y participacion ciudadana programadas)*11)+((Total de diagnosticos de necesidades en colonias, barrios y pueblos. realizados / Total de diagnosticos de necesidades en colonias, barrios y pueblos programados)*11)+(((Tota de solicitudes de Informacion publica y solvatacion de requerimientos a traves de INFOMEX atenidas/total de solicitudes de Informacion publica y solvatacion de requerimientos a traves de INFOMEX programadas)*11)+((Atencion de requerimientos de informacion por parte de los organos de fiscalizacion requesitados/Atencion de requerimientos de informacion por parte de los organos de fiscalizacion solicitados) *11)+((Difusion de las actividades que se realizan en la Alcaldia Tlalpan realizadas/ Difusion de las actividades que se realizan en la Alcaldia Tlalpan programadas)*11) + ((Total de solicitudes atendidas en el Centro de Servicios y Atencion Ciudadana/Total de solicitudes recibidas en el Centro de Servicios y Atencion Ciudadana)*11) | S14: =IFERROR(VLOOKUP(B14,'Hoja1 (2)'!A:AQ,39,FALSE),"") -> http://micrositiotransparencia.tlalpan.cdmx.gob.mx/index.html | V14: =IFERROR(VLOOKUP(B14,'Hoja1 (2)'!A:AQ,38,FALSE),"") -> Indice | W14: =IFERROR(VLOOKUP(B14,'Hoja1 (2)'!A:AQ,40,FALSE),"") -> 0.25 | X14: =IFERROR(VLOOKUP(B14,'Hoja1 (2)'!A:AQ,41,FALSE),"") -> 0.5 | Y14: =IFERROR(VLOOKUP(B14,'Hoja1 (2)'!A:AQ,42,FALSE),"") -> 0.75 | Z14: =IFERROR(VLOOKUP(B14,'Hoja1 (2)'!A:AQ,43,FALSE),"") -> 1 | AA14: =IF(I14<>"", SUMIF(IAAR!B$9:N$109,I14,IAAR!N$9:N$109),"") -> 0 | AD14: =IFERROR(AC14/AB14,"") -> 
A15: _2 | B15: 02CD14_2 | C15: =IFERROR(VLOOKUP(B15,'Hoja1 (2)'!A:AQ,11,FALSE),"") -> 6 | D15: =IFERROR(VLOOKUP(B15,'Hoja1 (2)'!A:AQ,13,FALSE),"") -> 5 | E15: =IFERROR(VLOOKUP(B15,'Hoja1 (2)'!A:AQ,15,FALSE),"") -> 1 | F15: =IFERROR(VLOOKUP(B15,'Hoja1 (2)'!A:AQ,29,FALSE),"") -> 2.2.1 | G15: =IFERROR(VLOOKUP(B15,'Hoja1 (2)'!A:AQ,25,FALSE),"") -> 16 | H15: =IFERROR(VLOOKUP(B15,'Hoja1 (2)'!A:AQ,27,FALSE),"") -> 16.1 | I15: =IFERROR(VLOOKUP(B15,'Hoja1 (2)'!A:J,9,FALSE),"") -> E186 | J15: =IFERROR(VLOOKUP(B15,'Hoja1 (2)'!A:J,10,FALSE),"") -> Seguridad en Alcalíias | L15: =IFERROR(VLOOKUP(B15,'Hoja1 (2)'!A:AQ,35,FALSE),"") -> 100% | M15: =IFERROR(VLOOKUP(B15,'Hoja1 (2)'!A:AQ,36,FALSE),"") -> Indice que mide el avance de las atenciones de los servicios de seguridad proporcionados por la Alcaldia Tlalpan. | P15: =IFERROR(VLOOKUP(B15,'Hoja1 (2)'!A:AQ,37,FALSE),"") -> ((Operativos de Seguridad en las colonias, barrios y pueblos de la Alcaldia realizados/ Operativos de Seguridad en las colonias, barrios y pueblos de la Alcaldia programados)*25)+((Remision y acompañamiento institucional ante el juzgado civico y la fiscalia realizados/ Remision y acompañamiento institucional ante el juzgado civico y la fiscalia realizados)*25)+((Estrategias operativas atencion integral para apoyo a los habitantes de las colonias con mayor indice delictivo realizadas/ Estrategias operativas atencion integral para apoyo a los habitantes de las colonias con mayor indice delictivo programadas)*25)+((Talleres en materia de prevencion de la violencia y cultura de la denuncia realizados/Talleres en materia de prevencion de la violencia y cultura de la denuncia programados)*25). | S15: =IFERROR(VLOOKUP(B15,'Hoja1 (2)'!A:AQ,39,FALSE),"") -> http://micrositiotransparencia.tlalpan.cdmx.gob.mx/index.html | V15: =IFERROR(VLOOKUP(B15,'Hoja1 (2)'!A:AQ,38,FALSE),"") -> Indice | W15: =IFERROR(VLOOKUP(B15,'Hoja1 (2)'!A:AQ,40,FALSE),"") -> 0.25 | X15: =IFERROR(VLOOKUP(B15,'Hoja1 (2)'!A:AQ,41,FALSE),"") -> 0.5 | Y15: =IFERROR(VLOOKUP(B15,'Hoja1 (2)'!A:AQ,42,FALSE),"") -> 0.75 | Z15: =IFERROR(VLOOKUP(B15,'Hoja1 (2)'!A:AQ,43,FALSE),"") -> 1 | AA15: =IF(I15<>"", SUMIF(IAAR!B$9:N$109,I15,IAAR!N$9:N$109),"") -> 0 | AD15: =IFERROR(AC15/AB15,"") -> 
A16: _3 | B16: 02CD14_3 | C16: =IFERROR(VLOOKUP(B16,'Hoja1 (2)'!A:AQ,11,FALSE),"") -> 2 | D16: =IFERROR(VLOOKUP(B16,'Hoja1 (2)'!A:AQ,13,FALSE),"") -> 2 | E16: =IFERROR(VLOOKUP(B16,'Hoja1 (2)'!A:AQ,15,FALSE),"") -> 2 | F16: =IFERROR(VLOOKUP(B16,'Hoja1 (2)'!A:AQ,29,FALSE),"") -> 2.2.6 | G16: =IFERROR(VLOOKUP(B16,'Hoja1 (2)'!A:AQ,25,FALSE),"") -> 11 | H16: =IFERROR(VLOOKUP(B16,'Hoja1 (2)'!A:AQ,27,FALSE),"") -> 11.6 | I16: =IFERROR(VLOOKUP(B16,'Hoja1 (2)'!A:J,9,FALSE),"") -> E187 | J16: =IFERROR(VLOOKUP(B16,'Hoja1 (2)'!A:J,10,FALSE),"") -> Servicios públicos | L16: =IFERROR(VLOOKUP(B16,'Hoja1 (2)'!A:AQ,35,FALSE),"") -> 100% | M16: =IFERROR(VLOOKUP(B16,'Hoja1 (2)'!A:AQ,36,FALSE),"") -> Indice que mide el avance de los servicios publicos que se otorgan a la poblacion de la Alcaldia Tlalpan. | P16: =IFERROR(VLOOKUP(B16,'Hoja1 (2)'!A:AQ,37,FALSE),"") -> ((Total de toneladas de residuos solidos organicos, inorganicos e industriales recolectados/ Total de toneladas de residuos solidos organicos e inorganico programados) *0.10 + ((Total de luminarias de la Red de alumbrado publico atendidas/Total de luminarias de la Red de alumbrado publico programadas)*0.10)+(Total de actividades como trabajos de balizamiento + señalamientos + adecuaciones geometricas realizados/Total de actividades como trabajos de balizamiento, señalamientos, adecuaciones geometricas programados)*0.10)+((Total de trabajos de poda de arboles, poda de pasto, riego de areas verdes, barrido de areas verdes, retiro de hierba y maleza realizados/Total de trabajos de poda de arbole, poda de pasto, riego de areas verdes, barrido de areas verdes, retiro de hierba y maleza programados) *0.10)+((Total de trabajos de eliminacion y borrado de grafiti, aplicacion de pintura en muros y bardas, colocacion de malla ciclonica y otros realizados/Total de trabajos de eliminacion y borrado de grafiti, aplicacion de pintura en muros y barda, colocacion de malla ciclonica y otros programados)*0.10)+((Total de servicios funerarios atendidos, mantenimiento a panteones realizados/Total de servicios funerarios y mantenimiento a panteones programados)*0.10)+(Metros cubicos entregados/Metros cubicos programados)*0.10 + ((Difusion de informacion sobre el cuidado del medio ambiente, el desarrollo sustentable, el cambio climatico, los efectos de la contaminacion y conservacion de la biodiversidad entre la poblacion tlalpense ofrecida/Difusion de informacion sobre el cuidado del medio ambiente, el desarrollo sustentable, el cambio climatico, los efectos de la contaminacion y conservacion de la biodiversidad entre la poblacion tlalpense programada)*0.10) +((Numero de capacitaciones a inspectores, dictaminadores, funcionarios y personal de la alcaldia, en temas ambientales brindadas/ numero de capacitaciones a inspectores, dictaminadores, funcionarios y personal de la alcaldia, en temas ambientales programadas)*0.10)+((numero de contribuciones a la proteccion, preservacion y conservacion de los recursos naturales entregadas/numero de contribuciones a la proteccion, preservacion y conservacion de los recursos naturales programadas)*0.10) | S16: =IFERROR(VLOOKUP(B16,'Hoja1 (2)'!A:AQ,39,FALSE),"") -> http://micrositiotransparencia.tlalpan.cdmx.gob.mx/index.html | V16: =IFERROR(VLOOKUP(B16,'Hoja1 (2)'!A:AQ,38,FALSE),"") -> Indice | W16: =IFERROR(VLOOKUP(B16,'Hoja1 (2)'!A:AQ,40,FALSE),"") -> 0.25 | X16: =IFERROR(VLOOKUP(B16,'Hoja1 (2)'!A:AQ,41,FALSE),"") -> 0.5 | Y16: =IFERROR(VLOOKUP(B16,'Hoja1 (2)'!A:AQ,42,FALSE),"") -> 0.75 | Z16: =IFERROR(VLOOKUP(B16,'Hoja1 (2)'!A:AQ,43,FALSE),"") -> 1 | AA16: =IF(I16<>"", SUMIF(IAAR!B$9:N$109,I16,IAAR!N$9:N$109),"") -> 0
A17: _4 | B17: 02CD14_4 | C17: =IFERROR(VLOOKUP(B17,'Hoja1 (2)'!A:AQ,11,FALSE),"") -> 2 | D17: =IFERROR(VLOOKUP(B17,'Hoja1 (2)'!A:AQ,13,FALSE),"") -> 1 | E17: =IFERROR(VLOOKUP(B17,'Hoja1 (2)'!A:AQ,15,FALSE),"") -> 5 | F17: =IFERROR(VLOOKUP(B17,'Hoja1 (2)'!A:AQ,29,FALSE),"") -> 2.4.2 | G17: =IFERROR(VLOOKUP(B17,'Hoja1 (2)'!A:AQ,25,FALSE),"") -> 11 | H17: =IFERROR(VLOOKUP(B17,'Hoja1 (2)'!A:AQ,27,FALSE),"") -> 11.4 | I17: =IFERROR(VLOOKUP(B17,'Hoja1 (2)'!A:J,9,FALSE),"") -> E188 | J17: =IFERROR(VLOOKUP(B17,'Hoja1 (2)'!A:J,10,FALSE),"") -> Educación, cultura, deporte y recreación | L17: =IFERROR(VLOOKUP(B17,'Hoja1 (2)'!A:AQ,35,FALSE),"") -> 100% | M17: =IFERROR(VLOOKUP(B17,'Hoja1 (2)'!A:AQ,36,FALSE),"") -> Indice que mide el avance de las acciones de las actividades que la Alcaldia realiza para el desarrollo de la cultura, la educacion, el arte y la recreacion que demandan los ciudadanos. | P17: =IFERROR(VLOOKUP(B17,'Hoja1 (2)'!A:AQ,37,FALSE),"") -> ((Actividades culturales de diversas expresiones artisticas realizadas/ Actividades culturales de diversas expresiones artisticas programadas)*0.20 + ((Total de actividades culturales realizadas/ Total de actividades culturales programadas)*+20 ((Total de clases deportivas en Modulos y Centros Deportivos a traves de las Escuelas Tecnico Deportivas impartidas/ total de clases deportivas en Modulos y Centros Deportivos a traves de las Escuelas Tecnico Deportivas programadas))*0.20 + ((Total de eventos deportivos gratuitos realizados/ Total de eventos deportivos gratuitos programados)*0.20+ ((Total de actividades de mantenimiento menor a Centros y Modulos Deportivos a cargo de la Alcaldia Tlalpan realizadas/ Total de actividades de mantenimiento menor a Centros y Modulos Deportivos a cargo de la Alcaldia Tlalpan programadas)*0.20) | S17: =IFERROR(VLOOKUP(B17,'Hoja1 (2)'!A:AQ,39,FALSE),"") -> http://micrositiotransparencia.tlalpan.cdmx.gob.mx/index.html | V17: =IFERROR(VLOOKUP(B17,'Hoja1 (2)'!A:AQ,38,FALSE),"") -> Indice | W17: =IFERROR(VLOOKUP(B17,'Hoja1 (2)'!A:AQ,40,FALSE),"") -> 0.25 | X17: =IFERROR(VLOOKUP(B17,'Hoja1 (2)'!A:AQ,41,FALSE),"") -> 0.5 | Y17: =IFERROR(VLOOKUP(B17,'Hoja1 (2)'!A:AQ,42,FALSE),"") -> 0.75 | Z17: =IFERROR(VLOOKUP(B17,'Hoja1 (2)'!A:AQ,43,FALSE),"") -> 1 | AA17: 0.46
A18: _5 | B18: 02CD14_5 | C18: =IFERROR(VLOOKUP(B18,'Hoja1 (2)'!A:AQ,11,FALSE),"") -> 2 | D18: =IFERROR(VLOOKUP(B18,'Hoja1 (2)'!A:AQ,13,FALSE),"") -> 1 | E18: =IFERROR(VLOOKUP(B18,'Hoja1 (2)'!A:AQ,15,FALSE),"") -> 7 | F18: =IFERROR(VLOOKUP(B18,'Hoja1 (2)'!A:AQ,29,FALSE),"") -> 2.3.2 | G18: =IFERROR(VLOOKUP(B18,'Hoja1 (2)'!A:AQ,25,FALSE),"") -> 11 | H18: =IFERROR(VLOOKUP(B18,'Hoja1 (2)'!A:AQ,27,FALSE),"") -> 11.1 | I18: =IFERROR(VLOOKUP(B18,'Hoja1 (2)'!A:J,9,FALSE),"") -> E189 | J18: =IFERROR(VLOOKUP(B18,'Hoja1 (2)'!A:J,10,FALSE),"") -> Servicios de salud en Alcaldias | L18: =IFERROR(VLOOKUP(B18,'Hoja1 (2)'!A:AQ,35,FALSE),"") -> 100% | M18: =IFERROR(VLOOKUP(B18,'Hoja1 (2)'!A:AQ,36,FALSE),"") -> Indice que mide el avance de las atenciones de los servicios de alud requeridos para los habitantes de la Alcaldia. | P18: =IFERROR(VLOOKUP(B18,'Hoja1 (2)'!A:AQ,37,FALSE),"") -> ((Total de Consultas Medica tales como: Odontologica, Optometrista, Nutricional y Alternativa realizadas / Total de Consultas Medica tales como: Odontologica, Optometrista, Nutricional y Alternativa programadas)*0.14 )+((Total de Servicios de Salud Mental (Atencion Psicologica, Talleres de Crianza Positiva y Grupos Focales de Prevencion de Adicciones) brindados/ Total Servicios de Salud Mental (Atencion Psicologica, Talleres de Crianza Positiva y Grupos Focales de Prevencion de Adicciones) programados)*0.14)+((Total de Servicios de Salud de Detecciones: Presion arterial, glicemia capilar, cancer de mama, cervicouterino, cancer de prostata y VIH proporcionados/ Total de Servicios de Detecciones: Presion arterial, glicemia capilar, cancer de mama, cervicouterino, cancer de prostata y VIH programados)*0.14)+((Total de Servicios de Salud Preventiva como : Vacunacion, Somatometria, Primeros Auxilios, Prevencion y Promocion a la Salud brindados/ Total de Servicios de Salud Preventiva como : Vacunacion, Somatometria, Primeros Auxilios, Prevencion y Promocion a la Salud programados*0.16) + (( Total de Evaluaciones del Desarrollo Infantil realizados / total de Evaluaciones del Desarrollo Infantil programados)*0.14)+(( Total de servicios de deteccion, manejo y rehabilitacion musculo esqueletica realizados + total de servicios de deteccion, manejo y rehabilitacion musculo esqueletica programados)*0.14)+((Total de Talleres sobre Derechos de las Personas con Discapacidad, lenguaje incluyente, Lengua de Señas Mexicanas y Sistema de lecto-escritura Braille realizados/ total de talleres sobre Derechos de las Personas con Discapacidad, lenguaje incluyente, Lengua de Señas Mexicanas y Sistema de lecto-escritura Braille programados)*0.14) | S18: =IFERROR(VLOOKUP(B18,'Hoja1 (2)'!A:AQ,39,FALSE),"") -> http://micrositiotransparencia.tlalpan.cdmx.gob.mx/index.html | V18: =IFERROR(VLOOKUP(B18,'Hoja1 (2)'!A:AQ,38,FALSE),"") -> Indice | W18: =IFERROR(VLOOKUP(B18,'Hoja1 (2)'!A:AQ,40,FALSE),"") -> 0.25 | X18: =IFERROR(VLOOKUP(B18,'Hoja1 (2)'!A:AQ,41,FALSE),"") -> 0.5 | Y18: =IFERROR(VLOOKUP(B18,'Hoja1 (2)'!A:AQ,42,FALSE),"") -> 0.75 | Z18: =IFERROR(VLOOKUP(B18,'Hoja1 (2)'!A:AQ,43,FALSE),"") -> 1 | AA18: =IF(I18<>"", SUMIF(IAAR!B$9:N$109,I18,IAAR!N$9:N$109),"") -> 0
A19: _6 | B19: 02CD14_6 | C19: =IFERROR(VLOOKUP(B19,'Hoja1 (2)'!A:AQ,11,FALSE),"") -> 2 | D19: =IFERROR(VLOOKUP(B19,'Hoja1 (2)'!A:AQ,13,FALSE),"") -> 3 | E19: =IFERROR(VLOOKUP(B19,'Hoja1 (2)'!A:AQ,15,FALSE),"") -> 4 | F19: =IFERROR(VLOOKUP(B19,'Hoja1 (2)'!A:AQ,29,FALSE),"") -> 2.1.6 | G19: =IFERROR(VLOOKUP(B19,'Hoja1 (2)'!A:AQ,25,FALSE),"") -> 15 | H19: =IFERROR(VLOOKUP(B19,'Hoja1 (2)'!A:AQ,27,FALSE),"") -> 15.a | I19: =IFERROR(VLOOKUP(B19,'Hoja1 (2)'!A:J,9,FALSE),"") -> E190 | J19: =IFERROR(VLOOKUP(B19,'Hoja1 (2)'!A:J,10,FALSE),"") -> Servicios de atención animal | L19: =IFERROR(VLOOKUP(B19,'Hoja1 (2)'!A:AQ,35,FALSE),"") -> 100% | M19: =IFERROR(VLOOKUP(B19,'Hoja1 (2)'!A:AQ,36,FALSE),"") -> Indice que mide el avance de los servicios de la atencion animal en la demarcacion. | P19: =IFERROR(VLOOKUP(B19,'Hoja1 (2)'!A:AQ,37,FALSE),"") -> ((Total de Cirugias, esterilizaciones y vacunas realizadas/ Total de Cirugias, esterilizaciones y vacunas programadas)*0.17)+((Total de servicios a animales de compañia como rehabilitaciones, adiestramiento, adopciones, etc. realizados/Total de servicios a animales de compañia como rehabilitaciones, adiestramiento, adopciones, etc. programados) *0.17) + ((Total de animales donados voluntariamente a razon de lo comprendido en el Articulo 51 de la Ley de Proteccion a los Animales de la Ciudad de Mexico recibidos/ Total de animales donados voluntariamente a razon de lo comprendido en el Articulo 51 de la Ley de Proteccion a los Animales de la Ciudad de Mexico programados a recibir) *0.17) + ((Total de difusiones en redes oficiales a traves de materiales pedagogicos para dar atencion a personas sobre la tutela responsable de animales de compañia y el respeto por la vida publicados/ Total de difusiones en redes oficiales a traves de materiales pedagogicos para dar atencion a personas sobre la tutela responsable de animales de compañia y el respeto por la vida programados) *0.17) + ((Total de desparasitaciones internas de la poblacion canina y felina en las instalaciones de la clinica veterinaria para la prevencion de enfermedades transmitidas entre animales y humanos realizadas / total de desparasitaciones internas de la poblacion canina y felina en las instalaciones de la clinica veterinaria para la prevencion de enfermedades transmitidas entre animales y humanos programadas) *0.17)+ (Total de asesorias medicas veterinarias en las instalaciones de la clinica veterinaria brindadas / Total de asesorias medicas veterinarias en las instalaciones de la clinica veterinaria programadas) *0.15) | S19: =IFERROR(VLOOKUP(B19,'Hoja1 (2)'!A:AQ,39,FALSE),"") -> http://micrositiotransparencia.tlalpan.cdmx.gob.mx/index.html | V19: =IFERROR(VLOOKUP(B19,'Hoja1 (2)'!A:AQ,38,FALSE),"") -> Indice | W19: =IFERROR(VLOOKUP(B19,'Hoja1 (2)'!A:AQ,40,FALSE),"") -> 0.25 | X19: =IFERROR(VLOOKUP(B19,'Hoja1 (2)'!A:AQ,41,FALSE),"") -> 0.5 | Y19: =IFERROR(VLOOKUP(B19,'Hoja1 (2)'!A:AQ,42,FALSE),"") -> 0.75 | Z19: =IFERROR(VLOOKUP(B19,'Hoja1 (2)'!A:AQ,43,FALSE),"") -> 1 | AA19: =IF(I19<>"", SUMIF(IAAR!B$9:N$109,I19,IAAR!N$9:N$109),"") -> 0
A20: _7 | B20: 02CD14_7 | C20: =IFERROR(VLOOKUP(B20,'Hoja1 (2)'!A:AQ,11,FALSE),"") -> 2 | D20: =IFERROR(VLOOKUP(B20,'Hoja1 (2)'!A:AQ,13,FALSE),"") -> 1 | E20: =IFERROR(VLOOKUP(B20,'Hoja1 (2)'!A:AQ,15,FALSE),"") -> 7 | F20: =IFERROR(VLOOKUP(B20,'Hoja1 (2)'!A:AQ,29,FALSE),"") -> 2.6.3 | G20: =IFERROR(VLOOKUP(B20,'Hoja1 (2)'!A:AQ,25,FALSE),"") -> 11 | H20: =IFERROR(VLOOKUP(B20,'Hoja1 (2)'!A:AQ,27,FALSE),"") -> 11.1 | I20: =IFERROR(VLOOKUP(B20,'Hoja1 (2)'!A:J,9,FALSE),"") -> E198 | J20: =IFERROR(VLOOKUP(B20,'Hoja1 (2)'!A:J,10,FALSE),"") -> Servicios de cuidado infantil | L20: =IFERROR(VLOOKUP(B20,'Hoja1 (2)'!A:AQ,35,FALSE),"") -> 100% | M20: =IFERROR(VLOOKUP(B20,'Hoja1 (2)'!A:AQ,36,FALSE),"") -> Indice que mide el avance de los servicios de cuidado infantil en la demarcacion. | P20: =IFERROR(VLOOKUP(B20,'Hoja1 (2)'!A:AQ,37,FALSE),"") -> ((Total de Acciones de Consolidacion del Consejo de niñas y niños para promover los derechos de las niñas, niños y adolescentes realizadas /Total de Acciones de Consolidacion del Consejo de niñas y niños para promover los derechos de las niñas, niños y adolescentes programadas)*0.25) (Acciones del Sistema de Proteccion de niñas y niños (SIPINNA) realizadas / acciones del Sistema de Proteccion de niñas y niños (SIPINNA)) programadas)*0.25)+((Total de Audiencias Publicas Infantiles, con el objetivo de generar un espacio de dialogo-escucha para y con niñas y niños de la Alcaldia Tlalpan realizadas/ Total de Audiencias Publicas Infantiles, con el objetivo de generar un espacio de dialogo-escucha para y con niñas y niños de la Alcaldia Tlalpan programadas)*0.25) +((Total de Campañas de promocion de los derechos de las niñas, niños y adolescentes, con la finalidad de contribuir a una cultura del respeto a sus derechos realizadas/ Total de Campañas de promocion de los derechos de las niñas, niños y adolescentes, con la finalidad de contribuir a una cultura del respeto a sus derechos programadas)*0.25*). | S20: =IFERROR(VLOOKUP(B20,'Hoja1 (2)'!A:AQ,39,FALSE),"") -> http://micrositiotransparencia.tlalpan.cdmx.gob.mx/index.html | V20: =IFERROR(VLOOKUP(B20,'Hoja1 (2)'!A:AQ,38,FALSE),"") -> Indice | W20: =IFERROR(VLOOKUP(B20,'Hoja1 (2)'!A:AQ,40,FALSE),"") -> 0.25 | X20: =IFERROR(VLOOKUP(B20,'Hoja1 (2)'!A:AQ,41,FALSE),"") -> 0.5 | Y20: =IFERROR(VLOOKUP(B20,'Hoja1 (2)'!A:AQ,42,FALSE),"") -> 0.75 | Z20: =IFERROR(VLOOKUP(B20,'Hoja1 (2)'!A:AQ,43,FALSE),"") -> 1 | AA20: =IF(I20<>"", SUMIF(IAAR!B$9:N$109,I20,IAAR!N$9:N$109),"") -> 0
A21: _8 | B21: 02CD14_8 | C21: =IFERROR(VLOOKUP(B21,'Hoja1 (2)'!A:AQ,11,FALSE),"") -> 2 | D21: =IFERROR(VLOOKUP(B21,'Hoja1 (2)'!A:AQ,13,FALSE),"") -> 1 | E21: =IFERROR(VLOOKUP(B21,'Hoja1 (2)'!A:AQ,15,FALSE),"") -> 3 | F21: =IFERROR(VLOOKUP(B21,'Hoja1 (2)'!A:AQ,29,FALSE),"") -> 3.1.1 | G21: =IFERROR(VLOOKUP(B21,'Hoja1 (2)'!A:AQ,25,FALSE),"") -> 8 | H21: =IFERROR(VLOOKUP(B21,'Hoja1 (2)'!A:AQ,27,FALSE),"") -> 8.3 | I21: =IFERROR(VLOOKUP(B21,'Hoja1 (2)'!A:J,9,FALSE),"") -> F037 | J21: =IFERROR(VLOOKUP(B21,'Hoja1 (2)'!A:J,10,FALSE),"") -> Turismo, empleo y fomento económico | L21: =IFERROR(VLOOKUP(B21,'Hoja1 (2)'!A:AQ,35,FALSE),"") -> 100% | M21: =IFERROR(VLOOKUP(B21,'Hoja1 (2)'!A:AQ,36,FALSE),"") -> Indice que mide el avance de las actividades para impulsar la economia en la demarcacion. | P21: =IFERROR(VLOOKUP(B21,'Hoja1 (2)'!A:AQ,37,FALSE),"") -> ((Total de Ferias relacionadas al sector primario de los sectores de la economia realizadas/ total de Ferias relacionadas al sector primario de los sectores de la economia programadas)*12.5)+((Total de ferias para la promocion de empleo y de bienes y servicios locales, para apoyar al comercio y productores locales realizadas / total de ferias para la promocion de empleo y de bienes y servicios locales, para apoyar al comercio y productores locales realizadas)*12.5)+((Total de agentes economicos contactados y actividades relacionadas con el sector servicios realizadas/Total de agentes economicos programados a contactar y actividades relacionadas con el sector servicios programadas)*12.5)+((Total de actividades para fomentar el desarrollo de MYPIMES y sociedades cooperativas realizadas/ total de actividades para fomentar el desarrollo de MYPIMES y sociedades cooperativas programadas)*12.5)+((Total de capacitaciones para el trabajo y promocion del autoempleo para personas jovenes brindadas / Total de capacitaciones para el trabajo y promocion del autoempleo para personas jovenes programadas)*12.5)+((Total de creditos y financiamientos a personas dedicadas a la produccion agricola y aquellas que se encuentran en condicion de desempleo o no cuentan con los recursos necesarios para emprender entregados / total de creditos y financiamientos a personas dedicadas a la produccion agricola y aquellas que se encuentran en condicion de desempleo o no cuentan con los recursos necesarios para emprender programados)*12.5)+(( Total de capacitaciones para el trabajo y promocion del autoempleo para personas adultas brindadas/ Total de capacitaciones para el trabajo y promocion del autoempleo para personas adultas programadas)*12.5)+(( Total de actividades realizadas para fomentar y Promocionar el Turismo en la Alcaldia Tlalpan/ Total de actividades programadas para fomentar y Promocionar el Turismo en la Alcaldia Tlalpan)*12.5). | S21: =IFERROR(VLOOKUP(B21,'Hoja1 (2)'!A:AQ,39,FALSE),"") -> http://micrositiotransparencia.tlalpan.cdmx.gob.mx/index.html | V21: =IFERROR(VLOOKUP(B21,'Hoja1 (2)'!A:AQ,38,FALSE),"") -> Indice | W21: =IFERROR(VLOOKUP(B21,'Hoja1 (2)'!A:AQ,40,FALSE),"") -> 0.25 | X21: =IFERROR(VLOOKUP(B21,'Hoja1 (2)'!A:AQ,41,FALSE),"") -> 0.5 | Y21: =IFERROR(VLOOKUP(B21,'Hoja1 (2)'!A:AQ,42,FALSE),"") -> 0.75 | Z21: =IFERROR(VLOOKUP(B21,'Hoja1 (2)'!A:AQ,43,FALSE),"") -> 1 | AA21: =IF(I21<>"", SUMIF(IAAR!B$9:N$109,I21,IAAR!N$9:N$109),"") -> 0
A22: _9 | B22: 02CD14_9 | C22: =IFERROR(VLOOKUP(B22,'Hoja1 (2)'!A:AQ,11,FALSE),"") -> 6 | D22: =IFERROR(VLOOKUP(B22,'Hoja1 (2)'!A:AQ,13,FALSE),"") -> 2 | E22: =IFERROR(VLOOKUP(B22,'Hoja1 (2)'!A:AQ,15,FALSE),"") -> 4 | F22: =IFERROR(VLOOKUP(B22,'Hoja1 (2)'!A:AQ,29,FALSE),"") -> 2.2.1 | G22: =IFERROR(VLOOKUP(B22,'Hoja1 (2)'!A:AQ,25,FALSE),"") -> 11 | H22: =IFERROR(VLOOKUP(B22,'Hoja1 (2)'!A:AQ,27,FALSE),"") -> 11.3 | I22: =IFERROR(VLOOKUP(B22,'Hoja1 (2)'!A:J,9,FALSE),"") -> K023 | J22: =IFERROR(VLOOKUP(B22,'Hoja1 (2)'!A:J,10,FALSE),"") -> Infraestructura urbana | L22: =IFERROR(VLOOKUP(B22,'Hoja1 (2)'!A:AQ,35,FALSE),"") -> 100% | M22: =IFERROR(VLOOKUP(B22,'Hoja1 (2)'!A:AQ,36,FALSE),"") -> Indice que mide el avance de las obras para llevar a cabo la infraestructura urbana de la demarcacion. | P22: =IFERROR(VLOOKUP(B22,'Hoja1 (2)'!A:AQ,37,FALSE),"") -> ((Numero de metros de desazolve de la red de drenaje realizada al trimestre/numero de metros desazolve de la red de drenaje programada al trimestre)*0.40) +((Numero de kilometros de la red de drenaje realizados al trimestre/numero de kilometros de la red de drenaje programados al trimestre)*0.50) +((Numero de resumideros realizados al trimestre/numero de resumideros programados al trimestre)*0.10)+((Numero de inmuebles culturales + numero de inmuebles deportivos, realizados al trimestre/numero de inmuebles culturales + numero de inmuebles deportivos programados al trimestre)*0.15)+ ((numero de edificios publicos realizados al trimestre/numero de edificios publicos programados al trimestre)*0.10)+((numero de espacios publicos realizados al trimestre/numero de espacios publicos programados al trimestre)*0.05) +((numero de inmuebles educativos realizados al trimestre/numero de inmuebles educativos programados al trimestre)*0.15)+((numero de obras para la mitigacion de riesgos realizados al trimestre/numero de Obras para la mitigacion de riesgos programados al trimestre)*0.05)+((numero de m2 de banquetas realizados al trimestre/numero de m2 de banquetas programados al trimestre)*0.15)+((numero de m2 de asfalto en vialidades secundarias + numero de metros de balizamiento realizados al trimestre/numero de m2 de asfalto en vialidades secundarias +numero de metros de balizamiento programados al trimestre)*0.15)+((numero de inmuebles de infraestructura sociales realizados al trimestre/numero de inmuebles de infraestructura social programados al trimestre)*0.10)+ (( numero de piezas de luminarias atendidas al trimestre/ numero de piezas de luminarias programados al trimestre)*0.05)+(numero proyectos de obra en el marco del presupuesto participativo realizados al trimestre/numero de proyectos de obra en el marco del presupuesto participativo programado al trimestre)*0.05). | S22: =IFERROR(VLOOKUP(B22,'Hoja1 (2)'!A:AQ,39,FALSE),"") -> http://micrositiotransparencia.tlalpan.cdmx.gob.mx/index.html | V22: =IFERROR(VLOOKUP(B22,'Hoja1 (2)'!A:AQ,38,FALSE),"") -> Indice | W22: =IFERROR(VLOOKUP(B22,'Hoja1 (2)'!A:AQ,40,FALSE),"") -> 0.25 | X22: =IFERROR(VLOOKUP(B22,'Hoja1 (2)'!A:AQ,41,FALSE),"") -> 0.5 | Y22: =IFERROR(VLOOKUP(B22,'Hoja1 (2)'!A:AQ,42,FALSE),"") -> 0.75 | Z22: =IFERROR(VLOOKUP(B22,'Hoja1 (2)'!A:AQ,43,FALSE),"") -> 1 | AA22: =IF(I22<>"", SUMIF(IAAR!B$9:N$109,I22,IAAR!N$9:N$109),"") -> 0
A23: _10 | B23: 02CD14_10 | C23: =IFERROR(VLOOKUP(B23,'Hoja1 (2)'!A:AQ,11,FALSE),"") -> 2 | D23: =IFERROR(VLOOKUP(B23,'Hoja1 (2)'!A:AQ,13,FALSE),"") -> 3 | E23: =IFERROR(VLOOKUP(B23,'Hoja1 (2)'!A:AQ,15,FALSE),"") -> 2 | F23: =IFERROR(VLOOKUP(B23,'Hoja1 (2)'!A:AQ,29,FALSE),"") -> 2.2.3 | G23: =IFERROR(VLOOKUP(B23,'Hoja1 (2)'!A:AQ,25,FALSE),"") -> 6 | H23: =IFERROR(VLOOKUP(B23,'Hoja1 (2)'!A:AQ,27,FALSE),"") -> 6.4 | I23: =IFERROR(VLOOKUP(B23,'Hoja1 (2)'!A:J,9,FALSE),"") -> K026 | J23: =IFERROR(VLOOKUP(B23,'Hoja1 (2)'!A:J,10,FALSE),"") -> Infraestructura de agua potable en Alcaldías | L23: =IFERROR(VLOOKUP(B23,'Hoja1 (2)'!A:AQ,35,FALSE),"") -> 100% | M23: =IFERROR(VLOOKUP(B23,'Hoja1 (2)'!A:AQ,36,FALSE),"") -> Porcentaje de Avance de las obras a realizar en pro de la infraestructura de agua potable en la Alcaldia Tlalpan. | P23: =IFERROR(VLOOKUP(B23,'Hoja1 (2)'!A:AQ,37,FALSE),"") -> (numero de metros de la red de agua potable realizados al trimestre/ numero demetros de la red de agua potable programados al trimestre)*100 | S23: =IFERROR(VLOOKUP(B23,'Hoja1 (2)'!A:AQ,39,FALSE),"") -> http://micrositiotransparencia.tlalpan.cdmx.gob.mx/index.html | V23: =IFERROR(VLOOKUP(B23,'Hoja1 (2)'!A:AQ,38,FALSE),"") -> Porcentaje | W23: =IFERROR(VLOOKUP(B23,'Hoja1 (2)'!A:AQ,40,FALSE),"") -> 0.25 | X23: =IFERROR(VLOOKUP(B23,'Hoja1 (2)'!A:AQ,41,FALSE),"") -> 0.5 | Y23: =IFERROR(VLOOKUP(B23,'Hoja1 (2)'!A:AQ,42,FALSE),"") -> 0.75 | Z23: =IFERROR(VLOOKUP(B23,'Hoja1 (2)'!A:AQ,43,FALSE),"") -> 1 | AA23: =IF(I23<>"", SUMIF(IAAR!B$9:N$109,I23,IAAR!N$9:N$109),"") -> 0
A24: _11 | B24: 02CD14_11 | C24: =IFERROR(VLOOKUP(B24,'Hoja1 (2)'!A:AQ,11,FALSE),"") -> 2 | D24: =IFERROR(VLOOKUP(B24,'Hoja1 (2)'!A:AQ,13,FALSE),"") -> 3 | E24: =IFERROR(VLOOKUP(B24,'Hoja1 (2)'!A:AQ,15,FALSE),"") -> 2 | F24: =IFERROR(VLOOKUP(B24,'Hoja1 (2)'!A:AQ,29,FALSE),"") -> 2.1.3 | G24: =IFERROR(VLOOKUP(B24,'Hoja1 (2)'!A:AQ,25,FALSE),"") -> 6 | H24: =IFERROR(VLOOKUP(B24,'Hoja1 (2)'!A:AQ,27,FALSE),"") -> 6.3 | I24: =IFERROR(VLOOKUP(B24,'Hoja1 (2)'!A:J,9,FALSE),"") -> K027 | J24: =IFERROR(VLOOKUP(B24,'Hoja1 (2)'!A:J,10,FALSE),"") -> Infraestructura de drenaje, alcantarillado y saneamiento en Alcaldías | L24: =IFERROR(VLOOKUP(B24,'Hoja1 (2)'!A:AQ,35,FALSE),"") -> 100% | M24: =IFERROR(VLOOKUP(B24,'Hoja1 (2)'!A:AQ,36,FALSE),"") -> Indice que mide el avance de las obras para el mejoramiento de la infraestructura de drenaje, alcantarillado y saneamiento en la Alcaldia Tlalpan. | P24: =IFERROR(VLOOKUP(B24,'Hoja1 (2)'!A:AQ,37,FALSE),"") -> ((numero de metros de desazolve de la red de drenaje realizada al trimestre/ numero de metros desazolve de la red de drenaje programada al trimestre)*0.40) +((numero de kilometros de la red de drenaje realizados al trimestre/numero de kilometros de la red de drenaje programados al trimestre)*0.50)+((numero de resumideros realizados al trimestre/numero de resumideros programados al trimestre)*0.10)+((numero de inmuebles culturales + numero de inmuebles deportivos, realizados al trimestre/numero de inmuebles culturales + numero de inmuebles deportivos programados al trimestre)*0.15)+((numero de edificios publicos realizados al trimestre/numero de edificios publicos programados al trimestre)*0.10)+((numero de espacios publicos realizados al trimestre / numero de espacios publicos programados al trimestre)*0.05)+((numero de inmuebles educativos realizados al trimestre/numero de inmuebles educativos programados al trimestre)*0.15)+((numero de obras para la mitigacion de riesgos realizados al trimestre/ numero de Obras para la mitigacion de riesgos programados al trimestre)*0.05)+((numero de m2 de banquetas realizados al trimestre / numero de m2 de banquetas programados al trimestre)*0.15)+((numero de m2 de asfalto en Vialidades Secundarias + numero de metros de balizamiento realizados al trimestre/ numero de m2 de asfalto en Vialidades Secundarias +numero de metros de balizamiento programados al trimestre)*0.15)+((numero de inmuebles de infraestructura sociales realizados al trimestre/ numero de inmuebles de infraestructura social programados al trimestre)*0.10)+( numero de piezas de luminarias atendidas al trimestre/numero de piezas de luminarias programados al trimestre)*0.05) +((numero proyectos de obra en el marco del presupuesto participativo realizados al trimestre / numero de proyectos de obra en el marco del presupuesto participativo programado al trimestre)*0.05). | S24: =IFERROR(VLOOKUP(B24,'Hoja1 (2)'!A:AQ,39,FALSE),"") -> http://micrositiotransparencia.tlalpan.cdmx.gob.mx/index.html | V24: =IFERROR(VLOOKUP(B24,'Hoja1 (2)'!A:AQ,38,FALSE),"") -> Indice | W24: =IFERROR(VLOOKUP(B24,'Hoja1 (2)'!A:AQ,40,FALSE),"") -> 0.25 | X24: =IFERROR(VLOOKUP(B24,'Hoja1 (2)'!A:AQ,41,FALSE),"") -> 0.5 | Y24: =IFERROR(VLOOKUP(B24,'Hoja1 (2)'!A:AQ,42,FALSE),"") -> 0.75 | Z24: =IFERROR(VLOOKUP(B24,'Hoja1 (2)'!A:AQ,43,FALSE),"") -> 1 | AA24: =IF(I24<>"", SUMIF(IAAR!B$9:N$109,I24,IAAR!N$9:N$109),"") -> 0
A25: _12 | B25: 02CD14_12 | C25: =IFERROR(VLOOKUP(B25,'Hoja1 (2)'!A:AQ,11,FALSE),"") -> 2 | D25: =IFERROR(VLOOKUP(B25,'Hoja1 (2)'!A:AQ,13,FALSE),"") -> 2 | E25: =IFERROR(VLOOKUP(B25,'Hoja1 (2)'!A:AQ,15,FALSE),"") -> 2 | F25: =IFERROR(VLOOKUP(B25,'Hoja1 (2)'!A:AQ,29,FALSE),"") -> 2.2.1 | G25: =IFERROR(VLOOKUP(B25,'Hoja1 (2)'!A:AQ,25,FALSE),"") -> 11 | H25: =IFERROR(VLOOKUP(B25,'Hoja1 (2)'!A:AQ,27,FALSE),"") -> 11.3 | I25: =IFERROR(VLOOKUP(B25,'Hoja1 (2)'!A:J,9,FALSE),"") -> M001 | J25: =IFERROR(VLOOKUP(B25,'Hoja1 (2)'!A:J,10,FALSE),"") -> Actividades de apoyo administrativo | L25: =IFERROR(VLOOKUP(B25,'Hoja1 (2)'!A:AQ,35,FALSE),"") -> 100% | M25: =IFERROR(VLOOKUP(B25,'Hoja1 (2)'!A:AQ,36,FALSE),"") -> Indice que mide el avance de las necesidades que en materia de servicios administrativos que requiera la estructura operativa y areas sustantivas de la Alcaldia. | P25: =IFERROR(VLOOKUP(B25,'Hoja1 (2)'!A:AQ,37,FALSE),"") -> ((Recursos Materiales necesarios para la operacion de la Alcaldia realizados/ Recursos Materiales necesarios para la operacion de la Alcaldia programados)*0.50)+((Servicios generales necesarios para la operacion de la Alcaldia realizados/Servicios generales necesarios para la operacion de la Alcaldia)*0.50). | S25: =IFERROR(VLOOKUP(B25,'Hoja1 (2)'!A:AQ,39,FALSE),"") -> http://micrositiotransparencia.tlalpan.cdmx.gob.mx/index.html | V25: =IFERROR(VLOOKUP(B25,'Hoja1 (2)'!A:AQ,38,FALSE),"") -> Indice | W25: =IFERROR(VLOOKUP(B25,'Hoja1 (2)'!A:AQ,40,FALSE),"") -> 0.25 | X25: =IFERROR(VLOOKUP(B25,'Hoja1 (2)'!A:AQ,41,FALSE),"") -> 0.5 | Y25: =IFERROR(VLOOKUP(B25,'Hoja1 (2)'!A:AQ,42,FALSE),"") -> 0.75 | Z25: =IFERROR(VLOOKUP(B25,'Hoja1 (2)'!A:AQ,43,FALSE),"") -> 1 | AA25: =IF(I25<>"", SUMIF(IAAR!B$9:N$109,I25,IAAR!N$9:N$109),"") -> 0
A26: _13 | B26: 02CD14_13 | C26: =IFERROR(VLOOKUP(B26,'Hoja1 (2)'!A:AQ,11,FALSE),"") -> 2 | D26: =IFERROR(VLOOKUP(B26,'Hoja1 (2)'!A:AQ,13,FALSE),"") -> 1 | E26: =IFERROR(VLOOKUP(B26,'Hoja1 (2)'!A:AQ,15,FALSE),"") -> 7 | F26: =IFERROR(VLOOKUP(B26,'Hoja1 (2)'!A:AQ,29,FALSE),"") -> 1.8.1 | G26: =IFERROR(VLOOKUP(B26,'Hoja1 (2)'!A:AQ,25,FALSE),"") -> 11 | H26: =IFERROR(VLOOKUP(B26,'Hoja1 (2)'!A:AQ,27,FALSE),"") -> 11.3 | I26: =IFERROR(VLOOKUP(B26,'Hoja1 (2)'!A:J,9,FALSE),"") -> M002 | J26: =IFERROR(VLOOKUP(B26,'Hoja1 (2)'!A:J,10,FALSE),"") -> Provisiones para contingencias | L26: =IFERROR(VLOOKUP(B26,'Hoja1 (2)'!A:AQ,35,FALSE),"") -> 100% | M26: =IFERROR(VLOOKUP(B26,'Hoja1 (2)'!A:AQ,36,FALSE),"") -> Porcentaje de avance de laudos laborales y sentencias pendientes de resolucion en la Alcaldia. | P26: =IFERROR(VLOOKUP(B26,'Hoja1 (2)'!A:AQ,37,FALSE),"") -> (Numero de laudos o sentencias atendidas / Numero de laudos o sentencias Programadas)*100 | S26: =IFERROR(VLOOKUP(B26,'Hoja1 (2)'!A:AQ,39,FALSE),"") -> http://micrositiotransparencia.tlalpan.cdmx.gob.mx/index.html | V26: =IFERROR(VLOOKUP(B26,'Hoja1 (2)'!A:AQ,38,FALSE),"") -> Porcentaje | W26: =IFERROR(VLOOKUP(B26,'Hoja1 (2)'!A:AQ,40,FALSE),"") -> 0.25 | X26: =IFERROR(VLOOKUP(B26,'Hoja1 (2)'!A:AQ,41,FALSE),"") -> 0.5 | Y26: =IFERROR(VLOOKUP(B26,'Hoja1 (2)'!A:AQ,42,FALSE),"") -> 0.75 | Z26: =IFERROR(VLOOKUP(B26,'Hoja1 (2)'!A:AQ,43,FALSE),"") -> 1 | AA26: =IF(I26<>"", SUMIF(IAAR!B$9:N$109,I26,IAAR!N$9:N$109),"") -> 0
A27: _14 | B27: 02CD14_14 | C27: =IFERROR(VLOOKUP(B27,'Hoja1 (2)'!A:AQ,11,FALSE),"") -> 5 | D27: =IFERROR(VLOOKUP(B27,'Hoja1 (2)'!A:AQ,13,FALSE),"") -> 3 | E27: =IFERROR(VLOOKUP(B27,'Hoja1 (2)'!A:AQ,15,FALSE),"") -> 3 | F27: =IFERROR(VLOOKUP(B27,'Hoja1 (2)'!A:AQ,29,FALSE),"") -> 1.7.2 | G27: =IFERROR(VLOOKUP(B27,'Hoja1 (2)'!A:AQ,25,FALSE),"") -> 11 | H27: =IFERROR(VLOOKUP(B27,'Hoja1 (2)'!A:AQ,27,FALSE),"") -> 11.5 | I27: =IFERROR(VLOOKUP(B27,'Hoja1 (2)'!A:J,9,FALSE),"") -> N001 | J27: =IFERROR(VLOOKUP(B27,'Hoja1 (2)'!A:J,10,FALSE),"") -> Cumplimiento de los programas de protección civil | L27: =IFERROR(VLOOKUP(B27,'Hoja1 (2)'!A:AQ,35,FALSE),"") -> 100% | M27: =IFERROR(VLOOKUP(B27,'Hoja1 (2)'!A:AQ,36,FALSE),"") -> Indice que mide el avance en el Programa Interno de Proteccion Civil en la Alcaldia. | P27: =IFERROR(VLOOKUP(B27,'Hoja1 (2)'!A:AQ,37,FALSE),"") -> ((Numero de reconocimientos y vigilancia a establecimientos mercantiles realizados al trimestre/numero de reconocimientos y vigilancia a establecimientos mercantiles, programados al trimestre)*0.25) + ((Numero de dictamenes de riesgo, realizados al trimestre/numero de dictamenes de riesgo,programados al trimestre)*0.25)+((numero de atenciones a llamadas de emergencia, realizadas al trimestre/numero de atenciones a llamadas de emergencia, programadas al trimestre)*0.25)+(numero de capacitaciones, simulacros y asesorias, realizados al trimestre/numero de capacitaciones, simulacros y asesorias, programados al trimestre)*0.25). | S27: =IFERROR(VLOOKUP(B27,'Hoja1 (2)'!A:AQ,39,FALSE),"") -> http://micrositiotransparencia.tlalpan.cdmx.gob.mx/index.html | V27: =IFERROR(VLOOKUP(B27,'Hoja1 (2)'!A:AQ,38,FALSE),"") -> Indice | W27: =IFERROR(VLOOKUP(B27,'Hoja1 (2)'!A:AQ,40,FALSE),"") -> 0.25 | X27: =IFERROR(VLOOKUP(B27,'Hoja1 (2)'!A:AQ,41,FALSE),"") -> 0.5 | Y27: =IFERROR(VLOOKUP(B27,'Hoja1 (2)'!A:AQ,42,FALSE),"") -> 0.75 | Z27: =IFERROR(VLOOKUP(B27,'Hoja1 (2)'!A:AQ,43,FALSE),"") -> 1 | AA27: =IF(I27<>"", SUMIF(IAAR!B$9:N$109,I27,IAAR!N$9:N$109),"") -> 0
A28: _15 | B28: 02CD14_15 | C28: =IFERROR(VLOOKUP(B28,'Hoja1 (2)'!A:AQ,11,FALSE),"") -> 2 | D28: =IFERROR(VLOOKUP(B28,'Hoja1 (2)'!A:AQ,13,FALSE),"") -> 2 | E28: =IFERROR(VLOOKUP(B28,'Hoja1 (2)'!A:AQ,15,FALSE),"") -> 2 | F28: =IFERROR(VLOOKUP(B28,'Hoja1 (2)'!A:AQ,29,FALSE),"") -> 2.2.2 | G28: =IFERROR(VLOOKUP(B28,'Hoja1 (2)'!A:AQ,25,FALSE),"") -> 16 | H28: =IFERROR(VLOOKUP(B28,'Hoja1 (2)'!A:AQ,27,FALSE),"") -> 16.7 | I28: =IFERROR(VLOOKUP(B28,'Hoja1 (2)'!A:J,9,FALSE),"") -> R002 | J28: =IFERROR(VLOOKUP(B28,'Hoja1 (2)'!A:J,10,FALSE),"") -> Presupuesto participativo | L28: =IFERROR(VLOOKUP(B28,'Hoja1 (2)'!A:AQ,35,FALSE),"") -> 100% | M28: =IFERROR(VLOOKUP(B28,'Hoja1 (2)'!A:AQ,36,FALSE),"") -> Indice que mide el avance en los mecanismos de participacion ciudadana y la eficiencia de los proyectos participativos ganadores. | P28: =IFERROR(VLOOKUP(B28,'Hoja1 (2)'!A:AQ,37,FALSE),"") -> ((Total de gestiones realizadas para la ejecucion de los proyectos ganadores del Programa de Presupuesto Participativo en la Alcaldia/Total de gestiones programadas para la ejecucion de los proyectos ganadores del Programa de Presupuesto Participativo en la Alcaldia)*0.30)+((Numero de unidades territoriales que iniciaron actividades o trabajos para la ejecucion de cada proyecto ganador en campo/Total de proyectos ganadores programados por unidad territorial para iniciar actividades o trabajos para la ejecucion de cada proyecto ganador en campo) *0.30)+((Total de verificaciones en campo para el seguimiento de los trabajos realizados en cada proyecto ganador por unidad territorial + elaboracion de informes del avance porcentual de los trabajos alcanzados para cada proyecto ganador por unidad territorial/Total de verificaciones en campo de los trabajos programados para cada proyecto ganador, por unidad territorial + elaboracion de informes del avance porcentual de los trabajos programados para cada proyecto ganador, por unidad territorial)*0.40). | S28: =IFERROR(VLOOKUP(B28,'Hoja1 (2)'!A:AQ,39,FALSE),"") -> http://micrositiotransparencia.tlalpan.cdmx.gob.mx/index.html | V28: =IFERROR(VLOOKUP(B28,'Hoja1 (2)'!A:AQ,38,FALSE),"") -> Indice | W28: =IFERROR(VLOOKUP(B28,'Hoja1 (2)'!A:AQ,40,FALSE),"") -> 0.25 | X28: =IFERROR(VLOOKUP(B28,'Hoja1 (2)'!A:AQ,41,FALSE),"") -> 0.5 | Y28: =IFERROR(VLOOKUP(B28,'Hoja1 (2)'!A:AQ,42,FALSE),"") -> 0.75 | Z28: =IFERROR(VLOOKUP(B28,'Hoja1 (2)'!A:AQ,43,FALSE),"") -> 1 | AA28: =IF(I28<>"", SUMIF(IAAR!B$9:N$109,I28,IAAR!N$9:N$109),"") -> 0
A29: _16 | B29: 02CD14_16 | C29: =IFERROR(VLOOKUP(B29,'Hoja1 (2)'!A:AQ,11,FALSE),"") -> 2 | D29: =IFERROR(VLOOKUP(B29,'Hoja1 (2)'!A:AQ,13,FALSE),"") -> 1 | E29: =IFERROR(VLOOKUP(B29,'Hoja1 (2)'!A:AQ,15,FALSE),"") -> 3 | F29: =IFERROR(VLOOKUP(B29,'Hoja1 (2)'!A:AQ,29,FALSE),"") -> 2.6.8 | G29: =IFERROR(VLOOKUP(B29,'Hoja1 (2)'!A:AQ,25,FALSE),"") -> 5 | H29: =IFERROR(VLOOKUP(B29,'Hoja1 (2)'!A:AQ,27,FALSE),"") -> 5.1 | I29: =IFERROR(VLOOKUP(B29,'Hoja1 (2)'!A:J,9,FALSE),"") -> S229 | J29: =IFERROR(VLOOKUP(B29,'Hoja1 (2)'!A:J,10,FALSE),"") -> Apoyo para el desarrollo integral de la mujer | L29: =IFERROR(VLOOKUP(B29,'Hoja1 (2)'!A:AQ,35,FALSE),"") -> 100% | M29: =IFERROR(VLOOKUP(B29,'Hoja1 (2)'!A:AQ,36,FALSE),"") -> Mide la atencion a mujeres que reciben formacion, capacitacion en derechos de las mujeres, la igualdad de genero y la prevencion de la violencia hacia las mujeres y atencion para el acceso a la justicia. | P29: =IFERROR(VLOOKUP(B29,'Hoja1 (2)'!A:AQ,37,FALSE),"") -> ((Total de apoyos economicos o en especie a mujeres victimas de violencia de genero entregados / Total de apoyos economicos o en especie a mujeres victimas de violencia de genero programados) *35 + ((Total de apoyos economicos a facilitadores de servicio entregados/ total de apoyos economicos a facilitadores de servicios programados) *35 + ((Total de apoyos economicos o en especie a mujeres que desarrollen proyectos economicos, comunitarios, culturales, educativos. Entregados/ Total de apoyos economicos o en especie a mujeres que desarrollen proyectos economicos, comunitarios, culturales, educativos. Programados) *30). | S29: =IFERROR(VLOOKUP(B29,'Hoja1 (2)'!A:AQ,39,FALSE),"") -> Listas de asisencia a las actividade de formacion y capacitacion. Registros de mujeres atendidas en prevencion de la violencia y acceso a la justicia. Reportes. | V29: =IFERROR(VLOOKUP(B29,'Hoja1 (2)'!A:AQ,38,FALSE),"") -> Porcentaje | W29: =IFERROR(VLOOKUP(B29,'Hoja1 (2)'!A:AQ,40,FALSE),"") -> 0 | X29: =IFERROR(VLOOKUP(B29,'Hoja1 (2)'!A:AQ,41,FALSE),"") -> 0.4 | Y29: =IFERROR(VLOOKUP(B29,'Hoja1 (2)'!A:AQ,42,FALSE),"") -> 0.75 | Z29: =IFERROR(VLOOKUP(B29,'Hoja1 (2)'!A:AQ,43,FALSE),"") -> 1 | AA29: =IF(I29<>"", SUMIF(IAAR!B$9:N$109,I29,IAAR!N$9:N$109),"") -> 0
A30: _17 | B30: 02CD14_17 | C30: =IFERROR(VLOOKUP(B30,'Hoja1 (2)'!A:AQ,11,FALSE),"") -> 2 | D30: =IFERROR(VLOOKUP(B30,'Hoja1 (2)'!A:AQ,13,FALSE),"") -> 1 | E30: =IFERROR(VLOOKUP(B30,'Hoja1 (2)'!A:AQ,15,FALSE),"") -> 3 | F30: =IFERROR(VLOOKUP(B30,'Hoja1 (2)'!A:AQ,29,FALSE),"") -> 3.2.1 | G30: =IFERROR(VLOOKUP(B30,'Hoja1 (2)'!A:AQ,25,FALSE),"") -> 2 | H30: =IFERROR(VLOOKUP(B30,'Hoja1 (2)'!A:AQ,27,FALSE),"") -> 2.4 | I30: =IFERROR(VLOOKUP(B30,'Hoja1 (2)'!A:J,9,FALSE),"") -> S231 | J30: =IFERROR(VLOOKUP(B30,'Hoja1 (2)'!A:J,10,FALSE),"") -> Programa para el impulso agroalimentario | L30: =IFERROR(VLOOKUP(B30,'Hoja1 (2)'!A:AQ,35,FALSE),"") -> 100% | M30: =IFERROR(VLOOKUP(B30,'Hoja1 (2)'!A:AQ,36,FALSE),"") -> Contribuir al fortalecimiento o expansion de proyectos productivos, de comercializacion y capacitacion de micro, pequeñas, medianas empresas y organizaciones de la economia social y solidaria, contribuyendo a mejorar la calidad de vida de la poblacion, proyectos entre productores agropecuarios, proyectos encaminados a la proteccion y conservacion del ambiente, mediante transferencias monetarias y capacitacion especializada que contribuya a la mitigacion del desempleo. | P30: =IFERROR(VLOOKUP(B30,'Hoja1 (2)'!A:AQ,37,FALSE),"") -> ((Total proyectos en economia sustentable beneficiados/Total de proyectos en economia sustentable programados) *35 + ((Total de proyectos de manejo de recursos naturales beneficiados/Numero de proyectos de manejo de recursos naturales programados) *.25+ ((Total de Apoyos economicos a las mujeres y los hombres que se interesen y/o realicen actividades agropecuarias entregados/ Total de Apoyos economicos a las mujeres y los hombres que se interesen y/o realicen actividades agropecuarias programados) * 25 + ((Total de capacitaciones a beneficiarios realizadas/ Total de capacitaciones a beneficiarios programadas) *15) | S30: =IFERROR(VLOOKUP(B30,'Hoja1 (2)'!A:AQ,39,FALSE),"") -> Expedientes de los proyectos, los cuales podran ser consultados en la Direccion General de Medio Ambiente, Desarrollo Sustentable y Fomento Economico, ubicada en calle Benito Juarez 68, Col. Tlalpan Centro, C.P. 14000, Alcaldia de Tlalpan. | V30: =IFERROR(VLOOKUP(B30,'Hoja1 (2)'!A:AQ,38,FALSE),"") -> Porcentaje | W30: =IFERROR(VLOOKUP(B30,'Hoja1 (2)'!A:AQ,40,FALSE),"") -> 0 | X30: =IFERROR(VLOOKUP(B30,'Hoja1 (2)'!A:AQ,41,FALSE),"") -> 0.25 | Y30: =IFERROR(VLOOKUP(B30,'Hoja1 (2)'!A:AQ,42,FALSE),"") -> 0.5 | Z30: =IFERROR(VLOOKUP(B30,'Hoja1 (2)'!A:AQ,43,FALSE),"") -> 1 | AA30: =IF(I30<>"", SUMIF(IAAR!B$9:N$109,I30,IAAR!N$9:N$109),"") -> 0
A31: _18 | B31: 02CD14_18 | C31: =IFERROR(VLOOKUP(B31,'Hoja1 (2)'!A:AQ,11,FALSE),"") -> 2 | D31: =IFERROR(VLOOKUP(B31,'Hoja1 (2)'!A:AQ,13,FALSE),"") -> 1 | E31: =IFERROR(VLOOKUP(B31,'Hoja1 (2)'!A:AQ,15,FALSE),"") -> 6 | F31: =IFERROR(VLOOKUP(B31,'Hoja1 (2)'!A:AQ,29,FALSE),"") -> 2.6.8 | G31: =IFERROR(VLOOKUP(B31,'Hoja1 (2)'!A:AQ,25,FALSE),"") -> 2 | H31: =IFERROR(VLOOKUP(B31,'Hoja1 (2)'!A:AQ,27,FALSE),"") -> 2.1 | I31: =IFERROR(VLOOKUP(B31,'Hoja1 (2)'!A:J,9,FALSE),"") -> S233 | J31: =IFERROR(VLOOKUP(B31,'Hoja1 (2)'!A:J,10,FALSE),"") -> Apoyo de alimentación y refugio para personas vulnerables | L31: =IFERROR(VLOOKUP(B31,'Hoja1 (2)'!A:AQ,35,FALSE),"") -> 100% | M31: =IFERROR(VLOOKUP(B31,'Hoja1 (2)'!A:AQ,36,FALSE),"") -> Niños entre 1 año y 3 años 11 meses de edad, incluyendo niñas y niños con discapacidad cuyas madres, padres o tutores legales residan preferentemente en la Alcaldia Tlalpan, o que tengan su centro de trabajo en la Alcaldia Tlalpan reciben el servicio de cuidado y atencion infantil. | P31: =IFERROR(VLOOKUP(B31,'Hoja1 (2)'!A:AQ,37,FALSE),"") -> ((Total de apoyos economicos para el cuidado y atencion infantil (en estancias infantilesentregados/ Total de apoyos economicos para el cuidado y atencion infantil ( en estancias infantiles) programado * 100) | S31: =IFERROR(VLOOKUP(B31,'Hoja1 (2)'!A:AQ,39,FALSE),"") -> Listas de Asistencia, evidencia documental que puede encontrarse en la Direccion General de Desarrollo Social. | V31: =IFERROR(VLOOKUP(B31,'Hoja1 (2)'!A:AQ,38,FALSE),"") -> Porcentaje | W31: =IFERROR(VLOOKUP(B31,'Hoja1 (2)'!A:AQ,40,FALSE),"") -> 0 | X31: =IFERROR(VLOOKUP(B31,'Hoja1 (2)'!A:AQ,41,FALSE),"") -> 0.4 | Y31: =IFERROR(VLOOKUP(B31,'Hoja1 (2)'!A:AQ,42,FALSE),"") -> 0.75 | Z31: =IFERROR(VLOOKUP(B31,'Hoja1 (2)'!A:AQ,43,FALSE),"") -> 1 | AA31: =IF(I31<>"", SUMIF(IAAR!B$9:N$109,I31,IAAR!N$9:N$109),"") -> 0
A32: _19 | B32: 02CD14_19 | C32: =IFERROR(VLOOKUP(B32,'Hoja1 (2)'!A:AQ,11,FALSE),"") -> 2 | D32: =IFERROR(VLOOKUP(B32,'Hoja1 (2)'!A:AQ,13,FALSE),"") -> 1 | E32: =IFERROR(VLOOKUP(B32,'Hoja1 (2)'!A:AQ,15,FALSE),"") -> 6 | F32: =IFERROR(VLOOKUP(B32,'Hoja1 (2)'!A:AQ,29,FALSE),"") -> 2.6.3 | G32: =IFERROR(VLOOKUP(B32,'Hoja1 (2)'!A:AQ,25,FALSE),"") -> 10 | H32: =IFERROR(VLOOKUP(B32,'Hoja1 (2)'!A:AQ,27,FALSE),"") -> 10.2 | I32: =IFERROR(VLOOKUP(B32,'Hoja1 (2)'!A:J,9,FALSE),"") -> S234 | J32: =IFERROR(VLOOKUP(B32,'Hoja1 (2)'!A:J,10,FALSE),"") -> Programa de apoyo para el bienestar familiar | L32: =IFERROR(VLOOKUP(B32,'Hoja1 (2)'!A:AQ,35,FALSE),"") -> 100% | M32: =IFERROR(VLOOKUP(B32,'Hoja1 (2)'!A:AQ,36,FALSE),"") -> Numero de Personas beneficiarias que reciben apoyos economicos o en especie, que contribuyen a mejorar su calidad de vida y con ello pueden solventar sus nececidades basicas. | P32: =IFERROR(VLOOKUP(B32,'Hoja1 (2)'!A:AQ,37,FALSE),"") -> ((Total de Apoyos economicos o en especie a jovenes que estan interesados en acceder al nivel medio superior entregados / Total de Apoyos economicos o en especie a jovenes que estan interesados en acceder al nivel medio superior programados) *14 +((Total de Apoyos economicos o en especie con el fin de proveer internet a niños con rezago educativo entregados/ Total de Apoyos economicos o en especie con el fin de proveer internet a niños con rezago educativo programados) * 14+ ((Total de apoyos economicos o en especie para la formacion musical de los integrantes de la Camerata infantil y Juvenil de Tlalpan entregados// Total de apoyos economicos o en especie para la formacion musical de los integrantes de la Camerata infantil y Juvenil de Tlalpan programados) *14 +((Total de apoyos economicos o en especie a niñas, niños y adolescentes a traves de sus cuidadores y/o tutores entregados/ Total de apoyos economicos o en especie a niñas, niños y adolescentes a traves de sus cuidadores y/o tutores programados) *14 + (Total de apoyos economicos o en especie a habitantes de la Alcaldia Tlalpan en la promocion de la salud entregados/ Total de apoyos economicos o en especie a habitantes de la Alcaldia Tlalpan en la promocion de la salud programados) *14 + (( Total de apoyos economicos o en especie a habitantes de la Alcaldia Tlalpan que realicen actividades fisicas y deportiva entregados/ Total de apoyos economicos o en especie a habitantes de la Alcaldia Tlalpan que realicen actividades fisicas y deportiva programados) *14 + ((Total de apoyos economicos o en especie a "colectivos juveniles” que desarrollen e implementen proyectos que atiendan problematicas juveniles en sus comunidades entregados/ implementen proyectos que atiendan problematicas juveniles en sus comunidades programados)*14 +(Total de de Apoyos a personas beneficiarias denominadas facilitadores que desarrollan diversas actividades en beneficio de la poblacion Tlalpense entregados / Total de Apoyos a personas beneficiarias denominadas facilitadores que desarrollan diversas actividades en beneficio de la poblacion Tlalpense programados) *16) | S32: =IFERROR(VLOOKUP(B32,'Hoja1 (2)'!A:AQ,39,FALSE),"") -> Listas de asistencia, ordenes de pago entregadas, registros de personas atendidas, las cuales estaran disponibles para consulta en las siguientes Direcciones : Direccion General de Derechos Culturales y Educativos, Direccion General de Desarrollo Social y Direccion General de Planeacion del Desarrollo, asimismo en la siguiente direccion electronica: http://repositorio.tlalpan.gob.mx:8080/ | V32: =IFERROR(VLOOKUP(B32,'Hoja1 (2)'!A:AQ,38,FALSE),"") -> Porcentaje | W32: =IFERROR(VLOOKUP(B32,'Hoja1 (2)'!A:AQ,40,FALSE),"") -> 0 | X32: =IFERROR(VLOOKUP(B32,'Hoja1 (2)'!A:AQ,41,FALSE),"") -> 0.4 | Y32: =IFERROR(VLOOKUP(B32,'Hoja1 (2)'!A:AQ,42,FALSE),"") -> 0.75 | Z32: =IFERROR(VLOOKUP(B32,'Hoja1 (2)'!A:AQ,43,FALSE),"") -> 1 | AA32: 0.46
A33: _20 | B33: 02CD14_20 | C33: =IFERROR(VLOOKUP(B33,'Hoja1 (2)'!A:AQ,11,FALSE),"") -> 2 | D33: =IFERROR(VLOOKUP(B33,'Hoja1 (2)'!A:AQ,13,FALSE),"") -> 1 | E33: =IFERROR(VLOOKUP(B33,'Hoja1 (2)'!A:AQ,15,FALSE),"") -> 6 | F33: =IFERROR(VLOOKUP(B33,'Hoja1 (2)'!A:AQ,29,FALSE),"") -> 2.6.2 | G33: =IFERROR(VLOOKUP(B33,'Hoja1 (2)'!A:AQ,25,FALSE),"") -> 10 | H33: =IFERROR(VLOOKUP(B33,'Hoja1 (2)'!A:AQ,27,FALSE),"") -> 10.2 | I33: =IFERROR(VLOOKUP(B33,'Hoja1 (2)'!A:J,9,FALSE),"") -> S235 | J33: =IFERROR(VLOOKUP(B33,'Hoja1 (2)'!A:J,10,FALSE),"") -> Apoyos para el cuidado del adulto mayor | L33: =IFERROR(VLOOKUP(B33,'Hoja1 (2)'!A:AQ,35,FALSE),"") -> 100% | M33: =IFERROR(VLOOKUP(B33,'Hoja1 (2)'!A:AQ,36,FALSE),"") -> Personas adultas mayores que participan en los colectivos y redes de apoyo. | P33: =IFERROR(VLOOKUP(B33,'Hoja1 (2)'!A:AQ,37,FALSE),"") -> ((Total de apoyos economicos a personas mayores de 60 años en estado de vulnerabilidad entregados/Total de apoyos economicos a personas mayores de 60 años en estado de vulnerabilidad programados)*40)+((Total de capacitaciones impartidas por facilitadores de servicios/Total de capacitaciones programadas a impartir por facilitadores de servicios)*40)+(Total de acompañamientos y asesorias brindadas por los facilitadores de servicios/Total de acompañamientos y asesorias programadas)*20) | S33: =IFERROR(VLOOKUP(B33,'Hoja1 (2)'!A:AQ,39,FALSE),"") -> Listas de asistencia, ordenes de pago entregadas, registros de personas atendidas, las cuales estaran disponibles para consulta en la Direccion de Atencion a Grupos Prioritarios, ubicada en el interior del Parque Juana de Asbaje, calle Moneda s/n, Col. Tlalpan Centro, C.P. 14000, Alcaldia de Tlalpan. | V33: =IFERROR(VLOOKUP(B33,'Hoja1 (2)'!A:AQ,38,FALSE),"") -> Porcentaje | W33: =IFERROR(VLOOKUP(B33,'Hoja1 (2)'!A:AQ,40,FALSE),"") -> 0 | X33: =IFERROR(VLOOKUP(B33,'Hoja1 (2)'!A:AQ,41,FALSE),"") -> 0.4 | Y33: =IFERROR(VLOOKUP(B33,'Hoja1 (2)'!A:AQ,42,FALSE),"") -> 0.75 | Z33: =IFERROR(VLOOKUP(B33,'Hoja1 (2)'!A:AQ,43,FALSE),"") -> 1 | AA33: =IF(I33<>"", SUMIF(IAAR!B$9:N$109,I33,IAAR!N$9:N$109),"") -> 0
A34: _21 | B34: 02CD14_21 | C34: =IFERROR(VLOOKUP(B34,'Hoja1 (2)'!A:AQ,11,FALSE),"") -> 2 | D34: =IFERROR(VLOOKUP(B34,'Hoja1 (2)'!A:AQ,13,FALSE),"") -> 1 | E34: =IFERROR(VLOOKUP(B34,'Hoja1 (2)'!A:AQ,15,FALSE),"") -> 3 | F34: =IFERROR(VLOOKUP(B34,'Hoja1 (2)'!A:AQ,29,FALSE),"") -> 2.7.1 | G34: =IFERROR(VLOOKUP(B34,'Hoja1 (2)'!A:AQ,25,FALSE),"") -> 10 | H34: =IFERROR(VLOOKUP(B34,'Hoja1 (2)'!A:AQ,27,FALSE),"") -> 10.2 | I34: =IFERROR(VLOOKUP(B34,'Hoja1 (2)'!A:J,9,FALSE),"") -> U048 | J34: =IFERROR(VLOOKUP(B34,'Hoja1 (2)'!A:J,10,FALSE),"") -> Apoyos sociales | L34: =IFERROR(VLOOKUP(B34,'Hoja1 (2)'!A:AQ,35,FALSE),"") -> 100% | M34: =IFERROR(VLOOKUP(B34,'Hoja1 (2)'!A:AQ,36,FALSE),"") -> Mide la atencion a mujeres que reciben formacion, capacitacion en derechos de las mujeres, la igualdad de genero y la prevencion de la violencia hacia las mujeres y atencion para el acceso a la justicia. | P34: =IFERROR(VLOOKUP(B34,'Hoja1 (2)'!A:AQ,37,FALSE),"") -> ((Total de apoyos economicos o en especie a mujeres victimas de violencia de genero entregados / Total de apoyos economicos o en especie a mujeres victimas de violencia de genero programados) *35 + ((Total de apoyos economicos a facilitadores de servicio entregados/ total de apoyos economicos a facilitadores de servicios programados) *35 + (Total de apoyos economicos o en especie a mujeres que desarrollen proyectos economicos, comunitarios, culturales, educativos. Entregados/ Total de apoyos economicos o en especie a mujeres que desarrollen proyectos economicos, comunitarios, culturales, educativos. Programados) *30). | S34: =IFERROR(VLOOKUP(B34,'Hoja1 (2)'!A:AQ,39,FALSE),"") -> Listas de asisencia a las actividade de formacion y capacitacion. Registros de mujeres atendidas en prevencion de la violencia y acceso a la justicia. Reportes. http://micrositiotransparencia.tlalpan.cdmx.gob.mx/index.html | V34: =IFERROR(VLOOKUP(B34,'Hoja1 (2)'!A:AQ,38,FALSE),"") -> Porcentaje | W34: =IFERROR(VLOOKUP(B34,'Hoja1 (2)'!A:AQ,40,FALSE),"") -> 0 | X34: =IFERROR(VLOOKUP(B34,'Hoja1 (2)'!A:AQ,41,FALSE),"") -> 0.4 | Y34: =IFERROR(VLOOKUP(B34,'Hoja1 (2)'!A:AQ,42,FALSE),"") -> 0.75 | Z34: =IFERROR(VLOOKUP(B34,'Hoja1 (2)'!A:AQ,43,FALSE),"") -> 1 | AA34: =IF(I34<>"", SUMIF(IAAR!B$9:N$109,I34,IAAR!N$9:N$109),"") -> 0
A35: _22 | B35: 02CD14_22 | C35: =IFERROR(VLOOKUP(B35,'Hoja1 (2)'!A:AQ,11,FALSE),"") ->  | D35: =IFERROR(VLOOKUP(B35,'Hoja1 (2)'!A:AQ,13,FALSE),"") ->  | E35: =IFERROR(VLOOKUP(B35,'Hoja1 (2)'!A:AQ,15,FALSE),"") ->  | F35: =IFERROR(VLOOKUP(B35,'Hoja1 (2)'!A:AQ,29,FALSE),"") ->  | G35: =IFERROR(VLOOKUP(B35,'Hoja1 (2)'!A:AQ,25,FALSE),"") ->  | H35: =IFERROR(VLOOKUP(B35,'Hoja1 (2)'!A:AQ,27,FALSE),"") ->  | I35: =IFERROR(VLOOKUP(B35,'Hoja1 (2)'!A:J,9,FALSE),"") ->  | J35: =IFERROR(VLOOKUP(B35,'Hoja1 (2)'!A:J,10,FALSE),"") ->  | L35: =IFERROR(VLOOKUP(B35,'Hoja1 (2)'!A:AQ,35,FALSE),"") ->  | M35: =IFERROR(VLOOKUP(B35,'Hoja1 (2)'!A:AQ,36,FALSE),"") ->  | P35: =IFERROR(VLOOKUP(B35,'Hoja1 (2)'!A:AQ,37,FALSE),"") ->  | S35: =IFERROR(VLOOKUP(B35,'Hoja1 (2)'!A:AQ,39,FALSE),"") ->  | V35: =IFERROR(VLOOKUP(B35,'Hoja1 (2)'!A:AQ,38,FALSE),"") ->  | W35: =IFERROR(VLOOKUP(B35,'Hoja1 (2)'!A:AQ,40,FALSE),"") ->  | X35: =IFERROR(VLOOKUP(B35,'Hoja1 (2)'!A:AQ,41,FALSE),"") ->  | Y35: =IFERROR(VLOOKUP(B35,'Hoja1 (2)'!A:AQ,42,FALSE),"") ->  | Z35: =IFERROR(VLOOKUP(B35,'Hoja1 (2)'!A:AQ,43,FALSE),"") ->  | AA35: =IF(I35<>"", SUMIF(IAAR!B$9:N$109,I35,IAAR!N$9:N$109),"") -> 
A36: _23 | B36: 02CD14_23 | C36: =IFERROR(VLOOKUP(B36,'Hoja1 (2)'!A:AQ,11,FALSE),"") ->  | D36: =IFERROR(VLOOKUP(B36,'Hoja1 (2)'!A:AQ,13,FALSE),"") ->  | E36: =IFERROR(VLOOKUP(B36,'Hoja1 (2)'!A:AQ,15,FALSE),"") ->  | F36: =IFERROR(VLOOKUP(B36,'Hoja1 (2)'!A:AQ,29,FALSE),"") ->  | G36: =IFERROR(VLOOKUP(B36,'Hoja1 (2)'!A:AQ,25,FALSE),"") ->  | H36: =IFERROR(VLOOKUP(B36,'Hoja1 (2)'!A:AQ,27,FALSE),"") ->  | I36: =IFERROR(VLOOKUP(B36,'Hoja1 (2)'!A:J,9,FALSE),"") ->  | J36: =IFERROR(VLOOKUP(B36,'Hoja1 (2)'!A:J,10,FALSE),"") ->  | L36: =IFERROR(VLOOKUP(B36,'Hoja1 (2)'!A:AQ,35,FALSE),"") ->  | M36: =IFERROR(VLOOKUP(B36,'Hoja1 (2)'!A:AQ,36,FALSE),"") ->  | P36: =IFERROR(VLOOKUP(B36,'Hoja1 (2)'!A:AQ,37,FALSE),"") ->  | S36: =IFERROR(VLOOKUP(B36,'Hoja1 (2)'!A:AQ,39,FALSE),"") ->  | V36: =IFERROR(VLOOKUP(B36,'Hoja1 (2)'!A:AQ,38,FALSE),"") ->  | W36: =IFERROR(VLOOKUP(B36,'Hoja1 (2)'!A:AQ,40,FALSE),"") ->  | X36: =IFERROR(VLOOKUP(B36,'Hoja1 (2)'!A:AQ,41,FALSE),"") ->  | Y36: =IFERROR(VLOOKUP(B36,'Hoja1 (2)'!A:AQ,42,FALSE),"") ->  | Z36: =IFERROR(VLOOKUP(B36,'Hoja1 (2)'!A:AQ,43,FALSE),"") ->  | AA36: =IF(I36<>"", SUMIF(IAAR!B$9:N$109,I36,IAAR!N$9:N$109),"") -> 
A37: _21 | B37: 02CD14_21 | C37: =IFERROR(VLOOKUP(B37,'[1]Hoja1 (2)'!A:AQ,11,FALSE),"") -> 2 | D37: =IFERROR(VLOOKUP(B37,'[1]Hoja1 (2)'!A:AQ,13,FALSE),"") -> 1 | E37: =IFERROR(VLOOKUP(B37,'[1]Hoja1 (2)'!A:AQ,15,FALSE),"") -> 3 | F37: =IFERROR(VLOOKUP(B37,'[1]Hoja1 (2)'!A:AQ,29,FALSE),"") -> 2.7.1 | G37: =IFERROR(VLOOKUP(B37,'[1]Hoja1 (2)'!A:AQ,25,FALSE),"") -> 10 | H37: =IFERROR(VLOOKUP(B37,'[1]Hoja1 (2)'!A:AQ,27,FALSE),"") -> 10.2 | I37: =IFERROR(VLOOKUP(B37,'[1]Hoja1 (2)'!A:J,9,FALSE),"") -> U048 | J37: =IFERROR(VLOOKUP(B37,'[1]Hoja1 (2)'!A:J,10,FALSE),"") -> Apoyos sociales | L37: =IFERROR(VLOOKUP(B37,'[1]Hoja1 (2)'!A:AQ,35,FALSE),"") -> 100% | M37: =IFERROR(VLOOKUP(B37,'[1]Hoja1 (2)'!A:AQ,36,FALSE),"") -> Mide la atencion a mujeres que reciben formacion, capacitacion en derechos de las mujeres, la igualdad de genero y la prevencion de la violencia hacia las mujeres y atencion para el acceso a la justicia. | P37: =IFERROR(VLOOKUP(B37,'[1]Hoja1 (2)'!A:AQ,37,FALSE),"") -> ((Total de apoyos economicos o en especie a mujeres victimas de violencia de genero entregados / Total de apoyos economicos o en especie a mujeres victimas de violencia de genero programados) *35 + ((Total de apoyos economicos a facilitadores de servicio entregados/ total de apoyos economicos a facilitadores de servicios programados) *35 + (Total de apoyos economicos o en especie a mujeres que desarrollen proyectos economicos, comunitarios, culturales, educativos. Entregados/ Total de apoyos economicos o en especie a mujeres que desarrollen proyectos economicos, comunitarios, culturales, educativos. Programados) *30). | S37: =IFERROR(VLOOKUP(B37,'[1]Hoja1 (2)'!A:AQ,39,FALSE),"") -> Listas de asisencia a las actividade de formacion y capacitacion. Registros de mujeres atendidas en prevencion de la violencia y acceso a la justicia. Reportes. http://micrositiotransparencia.tlalpan.cdmx.gob.mx/index.html | V37: =IFERROR(VLOOKUP(B37,'[1]Hoja1 (2)'!A:AQ,38,FALSE),"") -> Porcentaje | W37: =IFERROR(VLOOKUP(B37,'[1]Hoja1 (2)'!A:AQ,40,FALSE),"") -> 0 | X37: =IFERROR(VLOOKUP(B37,'[1]Hoja1 (2)'!A:AQ,41,FALSE),"") -> 0.4 | Y37: =IFERROR(VLOOKUP(B37,'[1]Hoja1 (2)'!A:AQ,42,FALSE),"") -> 0.75 | Z37: =IFERROR(VLOOKUP(B37,'[1]Hoja1 (2)'!A:AQ,43,FALSE),"") -> 1 | AA37: 0.46
C39: NOTA: Los porcentajes manejados son los programados en la Base 2023 por el área ejecutora, por lo que hay una variación a los plasmados en el presente formato.
K42: ELABORÓ | S42: AUTORIZÓ
K45: NOMBRE: EDGARDO RAMIREZ CRUZ | S45: NOMBRE: LIC. NATALIA GUADALUPE MÁRQUEZ CODINA
K47: CARGO: COORDINADOR DE DESARROLLO DE ACTIVIDADES DEPORTIVAS | S47: CARGO: DIRECTORA GENERAL DE DESARROLLO SOCIAL
K48: CUENTA DE CORREO INSTITUCIONAL: | S48: CUENTA DE CORREO INSTITUCIONAL:socialtlalpan@gmail.com
K49: TELÉFONO DE CONTACTO:5589432874 | S49: TELÉFONO DE CONTACTO:55-54831500 | W49: EXTENSIÓN:5931 y 5932

Sheet Base (hidden)
A1: DU | C1: Acciones | D1: CPP | E1: PP | F1: Acción | G1: Meta 1T | H1: Meta 2T | I1: Meta 3T | J1: Meta 4T | K1: Ponderación | L1: Meta absoluta
A2: =MID(C2,1,6) -> 01C001 | B2: =CONCATENATE(A2,"_",COUNTIF(A$1:A2,A2)) -> 01C001_1 | C2: 01C001P020_1 | D2: =MID(C2,7,4) -> P020 | E2: =VLOOKUP(MID(C2,7,4),'Hoja1 (2)'!I:J,2,FALSE) -> Planeación y seguimiento de la política gubernamental | F2: =VLOOKUP(C2,'Base (3)'!C:E,3,FALSE) -> Atencion a las solicitudes y demandas ciudadanas. | G2: 0.1 | H2: 0.5 | I2: 0.7 | J2: 1 | K2: 0.25 | L2: 1500 Atenciones
A3: =MID(C3,1,6) -> 01C001 | B3: =CONCATENATE(A3,"_",COUNTIF(A$1:A3,A3)) -> 01C001_2 | C3: 01C001P020_2 | D3: =MID(C3,7,4) -> P020 | E3: =VLOOKUP(MID(C3,7,4),'Hoja1 (2)'!I:J,2,FALSE) -> Planeación y seguimiento de la política gubernamental | F3: =VLOOKUP(C3,'Base (3)'!C:E,3,FALSE) -> Coordinacion de los Gabinetes de Seguridad Ciudadana y Procuracion de Justicia | G3: 0.2 | H3: 0.35 | I3: 0.8 | J3: 1 | K3: 0.25 | L3: 4 Coordinaciones de juntas
A4: 01C001 | B4: =CONCATENATE(A4,"_",COUNTIF(A$1:A4,A4)) -> 01C001_3 | C4: 01C001P020_3 | D4: P020 | E4: =VLOOKUP(MID(C4,7,4),'Hoja1 (2)'!I:J,2,FALSE) -> Planeación y seguimiento de la política gubernamental | F4: =VLOOKUP(C4,'Base (3)'!C:E,3,FALSE) -> Seguimiento a la Agenda Internacional del Gobierno de la Ciudad de Mexico | G4: 0.15 | H4: 0.4 | I4: 0.6 | J4: 1 | K4: 0.25 | L4: 4 Seguimientos
A5: 01C001 | B5: =CONCATENATE(A5,"_",COUNTIF(A$1:A5,A5)) -> 01C001_4 | C5: 01C001P020_4 | D5: P020 | E5: =VLOOKUP(MID(C5,7,4),'Hoja1 (2)'!I:J,2,FALSE) -> Planeación y seguimiento de la política gubernamental | F5: =VLOOKUP(C5,'Base (3)'!C:E,3,FALSE) -> Entrega de Viviendas Reconstruidas y/o Rehabilitadas | G5: 0.2 | H5: 0.45 | I5: 0.7 | J5: 1 | K5: 0.25 | L5: 100 Entregas de vivienda
A6: 01C001 | B6: =CONCATENATE(A6,"_",COUNTIF(A$1:A6,A6)) -> 01C001_5 | C6: 01C001M001_1 | D6: M001 | E6: =VLOOKUP(MID(C6,7,4),'Hoja1 (2)'!I:J,2,FALSE) -> Actividades de apoyo administrativo | F6: =VLOOKUP(C6,'Base (3)'!C:E,3,FALSE) -> Pago de servicios generales, servicios profesionales, conservacion y mantenimiento del inmueble, asi como servicios de difusion. | G6: 0.1 | H6: 0.3 | I6: 0.6 | J6: 1 | K6: 0.5 | L6: 2000 pagos de servicios
A7: 01C001 | B7: =CONCATENATE(A7,"_",COUNTIF(A$1:A7,A7)) -> 01C001_6 | C7: 01C001M001_2 | D7: M001 | E7: =VLOOKUP(MID(C7,7,4),'Hoja1 (2)'!I:J,2,FALSE) -> Actividades de apoyo administrativo | F7: =VLOOKUP(C7,'Base (3)'!C:E,3,FALSE) -> Adquisicion de materiales, insumos y suministros requeridos para el desempeño de las actividades administrativas. | G7: 0.2 | H7: 0.423 | I7: 0.7 | J7: 1 | K7: 0.5 | L7: 17 Adquisiciones
A8: 01C001 | B8: =CONCATENATE(A8,"_",COUNTIF(A$1:A8,A8)) -> 01C001_7 | C8: 01C001M002_1 | D8: M002 | E8: =VLOOKUP(MID(C8,7,4),'Hoja1 (2)'!I:J,2,FALSE) -> Provisiones para contingencias | F8: =VLOOKUP(C8,'Base (3)'!C:E,3,FALSE) -> Cumplimiento a los laudos emitidos por la Junta de Conciliacion y Arbitraje y provisiones derivadas de contingencias economicas. | G8: 0.2 | H8: 0.3 | I8: 0.6 | J8: 1 | K8: 1 | L8: Pago de 3 laudos
A9: 01C001 | B9: =CONCATENATE(A9,"_",COUNTIF(A$1:A9,A9)) -> 01C001_8 | C9: 01C001N001_1 | D9: N001 | E9: =VLOOKUP(MID(C9,7,4),'Hoja1 (2)'!I:J,2,FALSE) -> Cumplimiento de los programas de protección civil | F9: =VLOOKUP(C9,'Base (3)'!C:E,3,FALSE) -> Cursos de capacitacion impartidos en materia de Proteccion Civil a las personas servidoras publicas de la Jefatura de Gobierno. | G9: 0.3 | H9: 0.45 | I9: 0.8 | J9: 1 | K9: 0.5 | L9: 3 Cursos
A10: 01C001 | B10: =CONCATENATE(A10,"_",COUNTIF(A$1:A10,A10)) -> 01C001_9 | C10: 01C001N001_2 | D10: N001 | E10: =VLOOKUP(MID(C10,7,4),'Hoja1 (2)'!I:J,2,FALSE) -> Cumplimiento de los programas de protección civil | F10: =VLOOKUP(C10,'Base (3)'!C:E,3,FALSE) -> Realizacion de simulacros con las personas servidoras publicas de la Jefatura de Gobierno. | G10: 0.1 | H10: 0.3 | I10: 0.75 | J10: 1 | K10: 0.5 | L10: 2 Simulacros
A11: 01CD03 | B11: =CONCATENATE(A11,"_",COUNTIF(A$1:A11,A11)) -> 01CD03_1 | C11: 01CD03E065_1 | D11: E065 | E11: =VLOOKUP(MID(C11,7,4),'Hoja1 (2)'!I:J,2,FALSE) -> Servicio integral de operación y atención a emergencias | F11: =VLOOKUP(C11,'Base (3)'!C:E,3,FALSE) -> Mantenimiento y ampliacion a la infraestructura, altavoces, botones de auxilio y Sistemas Tecnologicos de Videovigilancia (STVs) y conectividad con el que opera el C5 y C2
A12: 01CD03 | B12: =CONCATENATE(A12,"_",COUNTIF(A$1:A12,A12)) -> 01CD03_2 | C12: 01CD03E065_2 | D12: E065 | E12: =VLOOKUP(MID(C12,7,4),'Hoja1 (2)'!I:J,2,FALSE) -> Servicio integral de operación y atención a emergencias | F12: =VLOOKUP(C12,'Base (3)'!C:E,3,FALSE) -> Atencion a los servicios de llamadas de emergencia a traves del numero unico armonizado 9-1-1 (nueve, uno, uno).
A13: 01CD03 | B13: =CONCATENATE(A13,"_",COUNTIF(A$1:A13,A13)) -> 01CD03_3 | C13: 01CD03E065_3 | D13: E065 | E13: =VLOOKUP(MID(C13,7,4),'Hoja1 (2)'!I:J,2,FALSE) -> Servicio integral de operación y atención a emergencias | F13: =VLOOKUP(C13,'Base (3)'!C:E,3,FALSE) -> Atencion de servicio medico prehospitalario por el sistema de radiocomunicacion en las unidades medicas.
A14: 01CD03 | B14: =CONCATENATE(A14,"_",COUNTIF(A$1:A14,A14)) -> 01CD03_4 | C14: 01CD03E065_4 | D14: E065 | E14: =VLOOKUP(MID(C14,7,4),'Hoja1 (2)'!I:J,2,FALSE) -> Servicio integral de operación y atención a emergencias | F14: =VLOOKUP(C14,'Base (3)'!C:E,3,FALSE) -> Seguimiento a la generacion de informacion y automatizacion de procesos estadisticos y cartograficos para la operacion estrategica.
A15: 01CD03 | B15: =CONCATENATE(A15,"_",COUNTIF(A$1:A15,A15)) -> 01CD03_5 | C15: 01CD03M001_1 | D15: M001 | E15: =VLOOKUP(MID(C15,7,4),'Hoja1 (2)'!I:J,2,FALSE) -> Actividades de apoyo administrativo | F15: =VLOOKUP(C15,'Base (3)'!C:E,3,FALSE) -> Pago de servicios generales, servicios profesionales, conservacion y mantenimiento del inmueble, asi como servicios de difusion.
A16: 01CD03 | B16: =CONCATENATE(A16,"_",COUNTIF(A$1:A16,A16)) -> 01CD03_6 | C16: 01CD03M001_2 | D16: M001 | E16: =VLOOKUP(MID(C16,7,4),'Hoja1 (2)'!I:J,2,FALSE) -> Actividades de apoyo administrativo | F16: =VLOOKUP(C16,'Base (3)'!C:E,3,FALSE) -> Adquisicion de materiales, insumos y suministros requeridos para el desempeño de las actividades administrativas.
A17: 01CD03 | B17: =CONCATENATE(A17,"_",COUNTIF(A$1:A17,A17)) -> 01CD03_7 | C17: 01CD03M002_1 | D17: M002 | E17: =VLOOKUP(MID(C17,7,4),'Hoja1 (2)'!I:J,2,FALSE) -> Provisiones para contingencias | F17: =VLOOKUP(C17,'Base (3)'!C:E,3,FALSE) -> Cumplimiento a los laudos emitidos por la Junta de Conciliacion y Arbitraje.
A18: 01CD03 | B18: =CONCATENATE(A18,"_",COUNTIF(A$1:A18,A18)) -> 01CD03_8 | C18: 01CD03N001_1 | D18: N001 | E18: =VLOOKUP(MID(C18,7,4),'Hoja1 (2)'!I:J,2,FALSE) -> Cumplimiento de los programas de protección civil | F18: =VLOOKUP(C18,'Base (3)'!C:E,3,FALSE) -> Implementacion e Integracion del Programa Interno de Proteccion Civil del C5 y C2
A19: 01CD03 | B19: =CONCATENATE(A19,"_",COUNTIF(A$1:A19,A19)) -> 01CD03_9 | C19: 01CD03N001_2 | D19: N001 | E19: =VLOOKUP(MID(C19,7,4),'Hoja1 (2)'!I:J,2,FALSE) -> Cumplimiento de los programas de protección civil | F19: =VLOOKUP(C19,'Base (3)'!C:E,3,FALSE) -> Cursos de capacitacion impartidos en materia de Proteccion Civil a las personas servidoras publicas del C5.
A20: 01CD06 | B20: =CONCATENATE(A20,"_",COUNTIF(A$1:A20,A20)) -> 01CD06_1 | C20: 01CD06E005_1 | D20: E005 | E20: =VLOOKUP(MID(C20,7,4),'Hoja1 (2)'!I:J,2,FALSE) -> Acciones para mejorar la gobernanza digital | F20: =VLOOKUP(C20,'Base (3)'!C:E,3,FALSE) -> Numero de nuevos usuarios incrementado en la plataforma Llave CDMX, con el aumento de tramites y servicios en dicha herramienta digital.
A21: 01CD06 | B21: =CONCATENATE(A21,"_",COUNTIF(A$1:A21,A21)) -> 01CD06_2 | C21: 01CD06E005_2 | D21: E005 | E21: =VLOOKUP(MID(C21,7,4),'Hoja1 (2)'!I:J,2,FALSE) -> Acciones para mejorar la gobernanza digital | F21: =VLOOKUP(C21,'Base (3)'!C:E,3,FALSE) -> Servicios de infraestructura tecnologica atendidos.
A22: 01CD06 | B22: =CONCATENATE(A22,"_",COUNTIF(A$1:A22,A22)) -> 01CD06_3 | C22: 01CD06E005_3 | D22: E005 | E22: =VLOOKUP(MID(C22,7,4),'Hoja1 (2)'!I:J,2,FALSE) -> Acciones para mejorar la gobernanza digital | F22: =VLOOKUP(C22,'Base (3)'!C:E,3,FALSE) -> Desarrollo y mantenimiento de servicios de infraestructura tecnologica a las Entidades de la Administracion Publica que lo solicitan.
A23: 01CD06 | B23: =CONCATENATE(A23,"_",COUNTIF(A$1:A23,A23)) -> 01CD06_4 | C23: 01CD06E157_1 | D23: E157 | E23: =VLOOKUP(MID(C23,7,4),'Hoja1 (2)'!I:J,2,FALSE) -> Atención y orientación telefónica sobre trámites y servicios | F23: =VLOOKUP(C23,'Base (3)'!C:E,3,FALSE) -> Atencion de solicitudes y consulta ciudadanas que se reciben a traves del Sistema Unificado de Atencion Ciudadana
A24: 01CD06 | B24: =CONCATENATE(A24,"_",COUNTIF(A$1:A24,A24)) -> 01CD06_5 | C24: 01CD06M001_1 | D24: M001 | E24: =VLOOKUP(MID(C24,7,4),'Hoja1 (2)'!I:J,2,FALSE) -> Actividades de apoyo administrativo | F24: =VLOOKUP(C24,'Base (3)'!C:E,3,FALSE) -> Materiales y suministros requeridos para el desempeño de las funciones administrativas de la ADIP.
A25: 01CD06 | B25: =CONCATENATE(A25,"_",COUNTIF(A$1:A25,A25)) -> 01CD06_6 | C25: 01CD06M001_2 | D25: M001 | E25: =VLOOKUP(MID(C25,7,4),'Hoja1 (2)'!I:J,2,FALSE) -> Actividades de apoyo administrativo | F25: =VLOOKUP(C25,'Base (3)'!C:E,3,FALSE) -> Servicios generales requeridos para el desempeño de las funciones administrativas de la ADIP.
A26: 01CD06 | B26: =CONCATENATE(A26,"_",COUNTIF(A$1:A26,A26)) -> 01CD06_7 | C26: 01CD06M002_1 | D26: M002 | E26: =VLOOKUP(MID(C26,7,4),'Hoja1 (2)'!I:J,2,FALSE) -> Provisiones para contingencias | F26: =VLOOKUP(C26,'Base (3)'!C:E,3,FALSE) -> Atencion a las contingencias, acciones penales, demandas, resoluciones judiciales, entre otras, que pueden ser adquiridas por la Agencia Digital de Innovacion Publica.
A27: 01CD06 | B27: =CONCATENATE(A27,"_",COUNTIF(A$1:A27,A27)) -> 01CD06_8 | C27: 01CD06N001_1 | D27: N001 | E27: =VLOOKUP(MID(C27,7,4),'Hoja1 (2)'!I:J,2,FALSE) -> Cumplimiento de los programas de protección civil | F27: =VLOOKUP(C27,'Base (3)'!C:E,3,FALSE) -> Personas servidoras publicas de la ADIP capacitadas en materia de proteccion civil.
A28: 01CD06 | B28: =CONCATENATE(A28,"_",COUNTIF(A$1:A28,A28)) -> 01CD06_9 | C28: 01CD06N001_2 | D28: N001 | E28: =VLOOKUP(MID(C28,7,4),'Hoja1 (2)'!I:J,2,FALSE) -> Cumplimiento de los programas de protección civil | F28: =VLOOKUP(C28,'Base (3)'!C:E,3,FALSE) -> Dotacion de equipo y herramientas de rescate y botiquines de primeros auxilios a los inmuebles de la ADIP.
A29: 01CD06 | B29: =CONCATENATE(A29,"_",COUNTIF(A$1:A29,A29)) -> 01CD06_10 | C29: 01CD06N001_3 | D29: N001 | E29: =VLOOKUP(MID(C29,7,4),'Hoja1 (2)'!I:J,2,FALSE) -> Cumplimiento de los programas de protección civil | F29: =VLOOKUP(C29,'Base (3)'!C:E,3,FALSE) -> Dotacion de señalizacion de medidas preventivas a los inmuebles de la ADIP.
A30: 01P0ES | B30: =CONCATENATE(A30,"_",COUNTIF(A$1:A30,A30)) -> 01P0ES_1 | C30: 01P0ESP054_1 | D30: P054 | E30: =VLOOKUP(MID(C30,7,4),'Hoja1 (2)'!I:J,2,FALSE) -> Estudios de desarrollo económico, social y ambiental | F30: =VLOOKUP(C30,'Base (3)'!C:E,3,FALSE) -> Convenios de colaboracion firmados para la realizacion de estudios o proyectos en la Ciudad de Mexico.
A31: 01P0ES | B31: =CONCATENATE(A31,"_",COUNTIF(A$1:A31,A31)) -> 01P0ES_2 | C31: 01P0ESM001_1 | D31: M001 | E31: =VLOOKUP(MID(C31,7,4),'Hoja1 (2)'!I:J,2,FALSE) -> Actividades de apoyo administrativo | F31: =VLOOKUP(C31,'Base (3)'!C:E,3,FALSE) -> Pago de servicios generales, servicios profesionales, conservacion y mantenimiento del inmueble, asi como servicios de difusion.
A32: 01P0ES | B32: =CONCATENATE(A32,"_",COUNTIF(A$1:A32,A32)) -> 01P0ES_3 | C32: 01P0ESM001_2 | D32: M001 | E32: =VLOOKUP(MID(C32,7,4),'Hoja1 (2)'!I:J,2,FALSE) -> Actividades de apoyo administrativo | F32: =VLOOKUP(C32,'Base (3)'!C:E,3,FALSE) -> Adquisicion de materiales, insumos y suministros requeridos para el desempeño de las actividades administrativas.
A33: 01P0ES | B33: =CONCATENATE(A33,"_",COUNTIF(A$1:A33,A33)) -> 01P0ES_4 | C33: 01P0ESM002_1 | D33: M002 | E33: =VLOOKUP(MID(C33,7,4),'Hoja1 (2)'!I:J,2,FALSE) -> Provisiones para contingencias | F33: =VLOOKUP(C33,'Base (3)'!C:E,3,FALSE) -> Cumplimiento a los laudos emitidos conforme a derecho y resolucion judicial.
A34: 01P0ES | B34: =CONCATENATE(A34,"_",COUNTIF(A$1:A34,A34)) -> 01P0ES_5 | C34: 01P0ESN001_1 | D34: N001 | E34: =VLOOKUP(MID(C34,7,4),'Hoja1 (2)'!I:J,2,FALSE) -> Cumplimiento de los programas de protección civil | F34: =VLOOKUP(C34,'Base (3)'!C:E,3,FALSE) -> Personas servidoras publicas del FES CDMX capacitadas en materia de proteccion civil.
A35: 02C001 | B35: =CONCATENATE(A35,"_",COUNTIF(A$1:A35,A35)) -> 02C001_1 | C35: 02C001M001_1 | D35: M001 | E35: =VLOOKUP(MID(C35,7,4),'Hoja1 (2)'!I:J,2,FALSE) -> Actividades de apoyo administrativo | F35: =VLOOKUP(C35,'Base (3)'!C:E,3,FALSE) -> Adquisicion de materiales, insumos y suministros requeridos para el desempeño de las actividades administrativas.
A36: 02C001 | B36: =CONCATENATE(A36,"_",COUNTIF(A$1:A36,A36)) -> 02C001_2 | C36: 02C001M001_2 | D36: M001 | E36: =VLOOKUP(MID(C36,7,4),'Hoja1 (2)'!I:J,2,FALSE) -> Actividades de apoyo administrativo | F36: =VLOOKUP(C36,'Base (3)'!C:E,3,FALSE) -> Pago de servicios generales, servicios profesionales, conservacion y mantenimiento del inmueble, asi como servicios de difusion.
A37: 02C001 | B37: =CONCATENATE(A37,"_",COUNTIF(A$1:A37,A37)) -> 02C001_3 | C37: 02C001M002_1 | D37: M002 | E37: =VLOOKUP(MID(C37,7,4),'Hoja1 (2)'!I:J,2,FALSE) -> Provisiones para contingencias | F37: =VLOOKUP(C37,'Base (3)'!C:E,3,FALSE) -> Dar cumplimiento a los laudos emitidos por la Junta de Conciliacion y Arbitraje.
A38: 02C001 | B38: =CONCATENATE(A38,"_",COUNTIF(A$1:A38,A38)) -> 02C001_4 | C38: 02C001P055_1 | D38: P055 | E38: =VLOOKUP(MID(C38,7,4),'Hoja1 (2)'!I:J,2,FALSE) -> Coordinación general de gobierno | F38: =VLOOKUP(C38,'Base (3)'!C:E,3,FALSE) -> Acciones de regulacion, atencion y seguimiento para el aprovechamiento del uso del espacio publico
A39: 02C001 | B39: =CONCATENATE(A39,"_",COUNTIF(A$1:A39,A39)) -> 02C001_5 | C39: 02C001P055_2 | D39: P055 | E39: =VLOOKUP(MID(C39,7,4),'Hoja1 (2)'!I:J,2,FALSE) -> Coordinación general de gobierno | F39: =VLOOKUP(C39,'Base (3)'!C:E,3,FALSE) -> Monitoreos y/o recorridos en distintos espacios publicos, para prevenir y atender cualquier incidencia y/o estar en la posibilidad de brindar la atencion procedente.
A40: 02C001 | B40: =CONCATENATE(A40,"_",COUNTIF(A$1:A40,A40)) -> 02C001_6 | C40: 02C001P055_3 | D40: P055 | E40: =VLOOKUP(MID(C40,7,4),'Hoja1 (2)'!I:J,2,FALSE) -> Coordinación general de gobierno | F40: =VLOOKUP(C40,'Base (3)'!C:E,3,FALSE) -> Planear y ejecutar mesas de trabajo y/o reuniones interinstitucionales y/o atenciones ciudadanas con diversas dependencias para atender la demanda ciudadana, individual y/o grupal.
A41: 02C001 | B41: =CONCATENATE(A41,"_",COUNTIF(A$1:A41,A41)) -> 02C001_7 | C41: 02C001P055_4 | D41: P055 | E41: =VLOOKUP(MID(C41,7,4),'Hoja1 (2)'!I:J,2,FALSE) -> Coordinación general de gobierno | F41: =VLOOKUP(C41,'Base (3)'!C:E,3,FALSE) -> Llevar a cabo acciones en materia agraria
A42: 02C001 | B42: =CONCATENATE(A42,"_",COUNTIF(A$1:A42,A42)) -> 02C001_8 | C42: 02C001N001_1 | D42: N001 | E42: =VLOOKUP(MID(C42,7,4),'Hoja1 (2)'!I:J,2,FALSE) -> Cumplimiento de los programas de protección civil | F42: =VLOOKUP(C42,'Base (3)'!C:E,3,FALSE) -> Implementar señaletica, realizar simulacros y capacitar en materia de proteccion civil a las personas servidoras publicas de la Secretaria de Gobierno.
A43: 02C001 | B43: =CONCATENATE(A43,"_",COUNTIF(A$1:A43,A43)) -> 02C001_9 | C43: 02C001S005_1 | D43: S005 | E43: =VLOOKUP(MID(C43,7,4),'Hoja1 (2)'!I:J,2,FALSE) -> Atención prioritaria a personas egresadas del sistema de justicia penal | F43: =VLOOKUP(C43,'Base (3)'!C:E,3,FALSE) -> Entrega de kits con articulos de higiene personal, vestimenta y una tarjeta de transporte para personas egresadas del sistema de justicia penal que pertenecen a un grupo de atencion prioritaria.
A44: 02C001 | B44: =CONCATENATE(A44,"_",COUNTIF(A$1:A44,A44)) -> 02C001_10 | C44: 02C001S005_2 | D44: S005 | E44: =VLOOKUP(MID(C44,7,4),'Hoja1 (2)'!I:J,2,FALSE) -> Atención prioritaria a personas egresadas del sistema de justicia penal | F44: =VLOOKUP(C44,'Base (3)'!C:E,3,FALSE) -> Convenios de colaboracion con empresas socialmente responsables, asociaciones de la sociedad civil, dependencias publicas y/o organizaciones no gubernamentales para ofrecer capacitacion a personas egresadas del sistema de justicia penal de la Ciudad de Mexico.
A45: 02C001 | B45: =CONCATENATE(A45,"_",COUNTIF(A$1:A45,A45)) -> 02C001_11 | C45: 02C001S005_3 | D45: S005 | E45: =VLOOKUP(MID(C45,7,4),'Hoja1 (2)'!I:J,2,FALSE) -> Atención prioritaria a personas egresadas del sistema de justicia penal | F45: =VLOOKUP(C45,'Base (3)'!C:E,3,FALSE) -> Entrega de apoyos monetarios para la realizacion de practicas laborales en empresas participantes en el programa.
A46: 02C001 | B46: =CONCATENATE(A46,"_",COUNTIF(A$1:A46,A46)) -> 02C001_12 | C46: 02C001U019_1 | D46: U019 | E46: =VLOOKUP(MID(C46,7,4),'Hoja1 (2)'!I:J,2,FALSE) -> Sí al desarme, Sí a la paz | F46: =VLOOKUP(C46,'Base (3)'!C:E,3,FALSE) -> Canje de armas de fuego entregadas por las y los ciudadanos de manera voluntaria por apoyos economicos.
A47: 02CD01 | B47: =CONCATENATE(A47,"_",COUNTIF(A$1:A47,A47)) -> 02CD01_1 | C47: 02CD01E185_1 | D47: E185 | E47: =VLOOKUP(MID(C47,7,4),'Hoja1 (2)'!I:J,2,FALSE) -> Gobierno y atención ciudadana | F47: =VLOOKUP(C47,'Base (3)'!C:E,3,FALSE) -> Retiro de objetos que restrinjan o limiten total o parcialmente el libre transito peatonal o vehicular
A48: 02CD01 | B48: =CONCATENATE(A48,"_",COUNTIF(A$1:A48,A48)) -> 02CD01_2 | C48: 02CD01E185_2 | D48: E185 | E48: =VLOOKUP(MID(C48,7,4),'Hoja1 (2)'!I:J,2,FALSE) -> Gobierno y atención ciudadana | F48: =VLOOKUP(C48,'Base (3)'!C:E,3,FALSE) -> Recuperacion de espacios publicos.
A49: 02CD01 | B49: =CONCATENATE(A49,"_",COUNTIF(A$1:A49,A49)) -> 02CD01_3 | C49: 02CD01E185_3 | D49: E185 | E49: =VLOOKUP(MID(C49,7,4),'Hoja1 (2)'!I:J,2,FALSE) -> Gobierno y atención ciudadana | F49: =VLOOKUP(C49,'Base (3)'!C:E,3,FALSE) -> Atencion y seguimiento de Juicios laborales, mercantiles y civiles.
A50: 02CD01 | B50: =CONCATENATE(A50,"_",COUNTIF(A$1:A50,A50)) -> 02CD01_4 | C50: 02CD01E185_4 | D50: E185 | E50: =VLOOKUP(MID(C50,7,4),'Hoja1 (2)'!I:J,2,FALSE) -> Gobierno y atención ciudadana | F50: =VLOOKUP(C50,'Base (3)'!C:E,3,FALSE) -> Publicacion, seguimiento, monitoreo, analisis y difusion de eventos, programas, avances, comunicados, boletines y notas informativas en redes sociales, prensa, radio, television, portales, asi como de servicios de Impresion (15,000 acciones).
A51: 02CD01 | B51: =CONCATENATE(A51,"_",COUNTIF(A$1:A51,A51)) -> 02CD01_5 | C51: 02CD01E185_5 | D51: E185 | E51: =VLOOKUP(MID(C51,7,4),'Hoja1 (2)'!I:J,2,FALSE) -> Gobierno y atención ciudadana | F51: =VLOOKUP(C51,'Base (3)'!C:E,3,FALSE) -> Atencion a las demandas ciudadanas captadas por medio de las audiencias publicas que atiende la alcaldesa (Miercoles Ciudadano y Tu Aliada en tu Colonia)
A52: 02CD01 | B52: =CONCATENATE(A52,"_",COUNTIF(A$1:A52,A52)) -> 02CD01_6 | C52: 02CD01E185_6 | D52: E185 | E52: =VLOOKUP(MID(C52,7,4),'Hoja1 (2)'!I:J,2,FALSE) -> Gobierno y atención ciudadana | F52: =VLOOKUP(C52,'Base (3)'!C:E,3,FALSE) -> Coordinacion y participacion en reuniones y audiencias procedentes de la actividad propia de la Jefatura de Oficina de la Alcaldia.
A53: 02CD01 | B53: =CONCATENATE(A53,"_",COUNTIF(A$1:A53,A53)) -> 02CD01_7 | C53: 02CD01E185_7 | D53: E185 | E53: =VLOOKUP(MID(C53,7,4),'Hoja1 (2)'!I:J,2,FALSE) -> Gobierno y atención ciudadana | F53: =VLOOKUP(C53,'Base (3)'!C:E,3,FALSE) -> Seguimiento y gestion de la demanda ciudadana ingresada en el Sistema Unificado de Atencion Ciudadana (SUAC), y mediante el Sistema Informatico de la Ventanilla Unica de Tramites y que son turnados a las diferentes areas operativas.
A54: 02CD01 | B54: =CONCATENATE(A54,"_",COUNTIF(A$1:A54,A54)) -> 02CD01_8 | C54: 02CD01E185_8 | D54: E185 | E54: =VLOOKUP(MID(C54,7,4),'Hoja1 (2)'!I:J,2,FALSE) -> Gobierno y atención ciudadana | F54: =VLOOKUP(C54,'Base (3)'!C:E,3,FALSE) -> Atencion, gestion y seguimiento a las obligaciones y solicitudes de informacion de transparencia, previstas en la Ley de Transparencia, Acceso a la Informacion Publica, y Rendicion de Cuentas de la CDMX a traves del Sistema de Portales de Obligaciones de Transparencia (SIPOT).
A55: 02CD01 | B55: =CONCATENATE(A55,"_",COUNTIF(A$1:A55,A55)) -> 02CD01_9 | C55: 02CD01E186_1 | D55: E186 | E55: =VLOOKUP(MID(C55,7,4),'Hoja1 (2)'!I:J,2,FALSE) -> Seguridad en Alcalíias | F55: =VLOOKUP(C55,'Base (3)'!C:E,3,FALSE) -> Acciones de proximidad y acompañamientos bancarios para proteccion y seguridad
A56: 02CD01 | B56: =CONCATENATE(A56,"_",COUNTIF(A$1:A56,A56)) -> 02CD01_10 | C56: 02CD01E186_2 | D56: E186 | E56: =VLOOKUP(MID(C56,7,4),'Hoja1 (2)'!I:J,2,FALSE) -> Seguridad en Alcalíias | F56: =VLOOKUP(C56,'Base (3)'!C:E,3,FALSE) -> Atencion a solicitudes por parte de la Fiscalia General de Justicia (FGJ)
A57: 02CD01 | B57: =CONCATENATE(A57,"_",COUNTIF(A$1:A57,A57)) -> 02CD01_11 | C57: 02CD01E186_3 | D57: E186 | E57: =VLOOKUP(MID(C57,7,4),'Hoja1 (2)'!I:J,2,FALSE) -> Seguridad en Alcalíias | F57: =VLOOKUP(C57,'Base (3)'!C:E,3,FALSE) -> Monitoreo y atencion de solicitudes de videos imagenes de las camaras de videovigilancia enlazadas al C2 (Base Plata) con su respectiva cadena de custodia
A58: 02CD01 | B58: =CONCATENATE(A58,"_",COUNTIF(A$1:A58,A58)) -> 02CD01_12 | C58: 02CD01E186_4 | D58: E186 | E58: =VLOOKUP(MID(C58,7,4),'Hoja1 (2)'!I:J,2,FALSE) -> Seguridad en Alcalíias | F58: =VLOOKUP(C58,'Base (3)'!C:E,3,FALSE) -> Recorridos de Patrullaje y operativos con otras instancias de gobierno y de seguridad en materia de prevencion y disminucion de la comision del delito
A59: 02CD01 | B59: =CONCATENATE(A59,"_",COUNTIF(A$1:A59,A59)) -> 02CD01_13 | C59: 02CD01E186_5 | D59: E186 | E59: =VLOOKUP(MID(C59,7,4),'Hoja1 (2)'!I:J,2,FALSE) -> Seguridad en Alcalíias | F59: =VLOOKUP(C59,'Base (3)'!C:E,3,FALSE) -> Mapeo de zonas geograficas con mayor indice delictivo a efecto de tomar medidas preventivas necesarias y generar programas que coadyuven a la prevencion del delito
A60: 02CD01 | B60: =CONCATENATE(A60,"_",COUNTIF(A$1:A60,A60)) -> 02CD01_14 | C60: 02CD01E186_6 | D60: E186 | E60: =VLOOKUP(MID(C60,7,4),'Hoja1 (2)'!I:J,2,FALSE) -> Seguridad en Alcalíias | F60: =VLOOKUP(C60,'Base (3)'!C:E,3,FALSE) -> Brindar atencion y seguimiento a las peticiones que ingresa la ciudadania a traves de la plataforma del sistema unificado de atencion ciudadana en materia de seguridad y vialidad
A61: 02CD01 | B61: =CONCATENATE(A61,"_",COUNTIF(A$1:A61,A61)) -> 02CD01_15 | C61: 02CD01E187_1 | D61: E187 | E61: =VLOOKUP(MID(C61,7,4),'Hoja1 (2)'!I:J,2,FALSE) -> Servicios públicos | F61: =VLOOKUP(C61,'Base (3)'!C:E,3,FALSE) -> Retiro de basura de uso domiciliario y de origen urbano, asi como de los residuos solidos de la construccion que se genera en tiraderos clandestinos
A62: 02CD01 | B62: =CONCATENATE(A62,"_",COUNTIF(A$1:A62,A62)) -> 02CD01_16 | C62: 02CD01E187_2 | D62: E187 | E62: =VLOOKUP(MID(C62,7,4),'Hoja1 (2)'!I:J,2,FALSE) -> Servicios públicos | F62: =VLOOKUP(C62,'Base (3)'!C:E,3,FALSE) -> Transformacion, distribucion y aplicacion de residuos solidos organicos en composta
A63: 02CD01 | B63: =CONCATENATE(A63,"_",COUNTIF(A$1:A63,A63)) -> 02CD01_17 | C63: 02CD01E187_3 | D63: E187 | E63: =VLOOKUP(MID(C63,7,4),'Hoja1 (2)'!I:J,2,FALSE) -> Servicios públicos | F63: =VLOOKUP(C63,'Base (3)'!C:E,3,FALSE) -> Plantacion de arboles y arbustos en las zonas de la alcaldia que son consideradas suelo de conservacion
A64: 02CD01 | B64: =CONCATENATE(A64,"_",COUNTIF(A$1:A64,A64)) -> 02CD01_18 | C64: 02CD01E187_4 | D64: E187 | E64: =VLOOKUP(MID(C64,7,4),'Hoja1 (2)'!I:J,2,FALSE) -> Servicios públicos | F64: =VLOOKUP(C64,'Base (3)'!C:E,3,FALSE) -> Servicios de cremacion, inhumacion, exhumacion y rehinumacion
A65: 02CD01 | B65: =CONCATENATE(A65,"_",COUNTIF(A$1:A65,A65)) -> 02CD01_19 | C65: 02CD01E187_5 | D65: E187 | E65: =VLOOKUP(MID(C65,7,4),'Hoja1 (2)'!I:J,2,FALSE) -> Servicios públicos | F65: =VLOOKUP(C65,'Base (3)'!C:E,3,FALSE) -> Servicios y mantenimiento en materia de limpieza, pintura, barrido, poda de arboles y plantas, limpieza de piletas, y de fosas en lotes y corredores de los panteones publicos
A66: 02CD01 | B66: =CONCATENATE(A66,"_",COUNTIF(A$1:A66,A66)) -> 02CD01_20 | C66: 02CD01E187_6 | D66: E187 | E66: =VLOOKUP(MID(C66,7,4),'Hoja1 (2)'!I:J,2,FALSE) -> Servicios públicos | F66: =VLOOKUP(C66,'Base (3)'!C:E,3,FALSE) -> Digitalizacion de archivos que obran en los cementerios de la Alcaldia Alvaro Obregon
A67: =MID(C67,1,6) -> 02CD01 | B67: =CONCATENATE(A67,"_",COUNTIF(A$1:A67,A67)) -> 02CD01_21 | C67: 02CD01E187_7 | D67: =MID(C67,7,4) -> E187 | E67: =VLOOKUP(MID(C67,7,4),'Hoja1 (2)'!I:J,2,FALSE) -> Servicios públicos | F67: =VLOOKUP(C67,'Base (3)'!C:E,3,FALSE) -> Apoyos economicos a los beneficiarios del programa social que se encuentran en condiciones de vulnerabilidad de ingreso, los cuales son facilitadores de servicios y realizan diversas actividades en beneficio de la comunidad
A68: 02CD01 | B68: =CONCATENATE(A68,"_",COUNTIF(A$1:A68,A68)) -> 02CD01_22 | C68: 02CD01E187_8 | D68: E187 | E68: =VLOOKUP(MID(C68,7,4),'Hoja1 (2)'!I:J,2,FALSE) -> Servicios públicos | F68: =VLOOKUP(C68,'Base (3)'!C:E,3,FALSE) -> Apoyos economicos a cuadrillas de facilitadores temporales para el mejoramiento en espacios publicos por medio de trabajos de albañileria de forma conjunta entre ciudadanos y los beneficiarios del programa social
A69: 02CD01 | B69: =CONCATENATE(A69,"_",COUNTIF(A$1:A69,A69)) -> 02CD01_23 | C69: 02CD01E188_1 | D69: E188 | E69: =VLOOKUP(MID(C69,7,4),'Hoja1 (2)'!I:J,2,FALSE) -> Educación, cultura, deporte y recreación | F69: =VLOOKUP(C69,'Base (3)'!C:E,3,FALSE) -> Torneos deportivos, mega eventos deportivos y torneos de diversas disciplinas y conformacion de las selecciones representativas de la Alcaldia
A70: 02CD01 | B70: =CONCATENATE(A70,"_",COUNTIF(A$1:A70,A70)) -> 02CD01_24 | C70: 02CD01E188_2 | D70: E188 | E70: =VLOOKUP(MID(C70,7,4),'Hoja1 (2)'!I:J,2,FALSE) -> Educación, cultura, deporte y recreación | F70: =VLOOKUP(C70,'Base (3)'!C:E,3,FALSE) -> Activaciones fisicas, capacitacion y certificaciones de entrenadores fisicos preparacion y capacitacion para atletas de alto rendimiento y talleres nutricionales y de habitos deportivos
A71: 02CD01 | B71: =CONCATENATE(A71,"_",COUNTIF(A$1:A71,A71)) -> 02CD01_25 | C71: 02CD01E188_3 | D71: E188 | E71: =VLOOKUP(MID(C71,7,4),'Hoja1 (2)'!I:J,2,FALSE) -> Educación, cultura, deporte y recreación | F71: =VLOOKUP(C71,'Base (3)'!C:E,3,FALSE) -> Mantenimiento, equipamiento, conservacion, reparacion y creacion de nuevos espacios deportivos enfocados a el desarrollo deportivo de la Alcaldia
A72: 02CD01 | B72: =CONCATENATE(A72,"_",COUNTIF(A$1:A72,A72)) -> 02CD01_26 | C72: 02CD01E188_4 | D72: E188 | E72: =VLOOKUP(MID(C72,7,4),'Hoja1 (2)'!I:J,2,FALSE) -> Educación, cultura, deporte y recreación | F72: =VLOOKUP(C72,'Base (3)'!C:E,3,FALSE) -> Actividades culturales, deportivas, educativas y recreativas en los Centros de Desarrollo Comunitario
A73: 02CD01 | B73: =CONCATENATE(A73,"_",COUNTIF(A$1:A73,A73)) -> 02CD01_27 | C73: 02CD01E188_5 | D73: E188 | E73: =VLOOKUP(MID(C73,7,4),'Hoja1 (2)'!I:J,2,FALSE) -> Educación, cultura, deporte y recreación | F73: =VLOOKUP(C73,'Base (3)'!C:E,3,FALSE) -> Exposiciones, talleres de sensibilizacion, proyectos de turismo cultural, espacios de interpretacion del patrimonio, publicaciones, ferias, ceremonias civicas, conferencias y foros
A74: 02CD01 | B74: =CONCATENATE(A74,"_",COUNTIF(A$1:A74,A74)) -> 02CD01_28 | C74: 02CD01E188_6 | D74: E188 | E74: =VLOOKUP(MID(C74,7,4),'Hoja1 (2)'!I:J,2,FALSE) -> Educación, cultura, deporte y recreación | F74: =VLOOKUP(C74,'Base (3)'!C:E,3,FALSE) -> Talleres de danza, teatro, dibujo y pintura, escritura y fomento a la lectura, conciertos, espectaculos de artes escenicas, exposiciones de artes visuales, arte en espacios publicos, conformacion de grupos y colectivos artisticos
A75: 02CD01 | B75: =CONCATENATE(A75,"_",COUNTIF(A$1:A75,A75)) -> 02CD01_29 | C75: 02CD01E188_7 | D75: E188 | E75: =VLOOKUP(MID(C75,7,4),'Hoja1 (2)'!I:J,2,FALSE) -> Educación, cultura, deporte y recreación | F75: =VLOOKUP(C75,'Base (3)'!C:E,3,FALSE) -> Atenciones de activacion fisica, artisticas, culturales, sociales y recreativas en las 9 casas de adulto mayor y jornadas en las diferentes colonias pertenecientes a la Alcaldia
A76: 02CD01 | B76: =CONCATENATE(A76,"_",COUNTIF(A$1:A76,A76)) -> 02CD01_30 | C76: 02CD01E188_8 | D76: E188 | E76: =VLOOKUP(MID(C76,7,4),'Hoja1 (2)'!I:J,2,FALSE) -> Educación, cultura, deporte y recreación | F76: =VLOOKUP(C76,'Base (3)'!C:E,3,FALSE) -> Entrega de Apoyos economicos a personas facilitadoras de servicios
A77: 02CD01 | B77: =CONCATENATE(A77,"_",COUNTIF(A$1:A77,A77)) -> 02CD01_31 | C77: 02CD01E188_9 | D77: E188 | E77: =VLOOKUP(MID(C77,7,4),'Hoja1 (2)'!I:J,2,FALSE) -> Educación, cultura, deporte y recreación | F77: =VLOOKUP(C77,'Base (3)'!C:E,3,FALSE) -> Entrega de 15,000 utiles escolares y mochilas a niñas y niños de educacion basica de la alcaldia Alvaro Obregon.
A78: 02CD01 | B78: =CONCATENATE(A78,"_",COUNTIF(A$1:A78,A78)) -> 02CD01_32 | C78: 02CD01E188_10 | D78: E188 | E78: =VLOOKUP(MID(C78,7,4),'Hoja1 (2)'!I:J,2,FALSE) -> Educación, cultura, deporte y recreación | F78: =VLOOKUP(C78,'Base (3)'!C:E,3,FALSE) -> Otorgar apoyos economicos a deportistas de alto rendimiento y entrenadores destacados de la Alcaldia.
A79: 02CD01 | B79: =CONCATENATE(A79,"_",COUNTIF(A$1:A79,A79)) -> 02CD01_33 | C79: 02CD01E189_1 | D79: E189 | E79: =VLOOKUP(MID(C79,7,4),'Hoja1 (2)'!I:J,2,FALSE) -> Servicios de salud en Alcaldias | F79: =VLOOKUP(C79,'Base (3)'!C:E,3,FALSE) -> Servicios medicos de primer nivel en Jornadas de Salud y en los consultorios medicos pertenecientes a la Alcaldia Alvaro Obregon
A80: 02CD01 | B80: =CONCATENATE(A80,"_",COUNTIF(A$1:A80,A80)) -> 02CD01_34 | C80: 02CD01E189_2 | D80: E189 | E80: =VLOOKUP(MID(C80,7,4),'Hoja1 (2)'!I:J,2,FALSE) -> Servicios de salud en Alcaldias | F80: =VLOOKUP(C80,'Base (3)'!C:E,3,FALSE) -> Talleres psicoeducativos para el desarrollo de las competencias y estilos de vida saludables a niños, adolescentes, padres de familia y profesores
A81: 02CD01 | B81: =CONCATENATE(A81,"_",COUNTIF(A$1:A81,A81)) -> 02CD01_35 | C81: 02CD01E189_3 | D81: E189 | E81: =VLOOKUP(MID(C81,7,4),'Hoja1 (2)'!I:J,2,FALSE) -> Servicios de salud en Alcaldias | F81: =VLOOKUP(C81,'Base (3)'!C:E,3,FALSE) -> Campañas de Prevencion de Adicciones para la poblacion en general (500,000 personas)
A82: 02CD01 | B82: =CONCATENATE(A82,"_",COUNTIF(A$1:A82,A82)) -> 02CD01_36 | C82: 02CD01E189_4 | D82: E189 | E82: =VLOOKUP(MID(C82,7,4),'Hoja1 (2)'!I:J,2,FALSE) -> Servicios de salud en Alcaldias | F82: =VLOOKUP(C82,'Base (3)'!C:E,3,FALSE) -> Estudios de Mastografias para la prevencion y deteccion oportuna de cancer de mama
A83: 02CD01 | B83: =CONCATENATE(A83,"_",COUNTIF(A$1:A83,A83)) -> 02CD01_37 | C83: 02CD01E189_5 | D83: E189 | E83: =VLOOKUP(MID(C83,7,4),'Hoja1 (2)'!I:J,2,FALSE) -> Servicios de salud en Alcaldias | F83: =VLOOKUP(C83,'Base (3)'!C:E,3,FALSE) -> Servicios medicos en las instalaciones de los Centros de Atencion a la Salud de la Alcaldia para la poblacion en general
A84: 02CD01 | B84: =CONCATENATE(A84,"_",COUNTIF(A$1:A84,A84)) -> 02CD01_38 | C84: 02CD01E190_1 | D84: E190 | E84: =VLOOKUP(MID(C84,7,4),'Hoja1 (2)'!I:J,2,FALSE) -> Servicios de atención animal | F84: =VLOOKUP(C84,'Base (3)'!C:E,3,FALSE) -> Servicios medicos veterinarios en las Jornadas de Salud Veterinaria, el centro de atencion a la salud animal y consultorio medico veterinario pertenecientes a la alcaldia Alvaro Obregon.
A85: 02CD01 | B85: =CONCATENATE(A85,"_",COUNTIF(A$1:A85,A85)) -> 02CD01_39 | C85: 02CD01E198_1 | D85: E198 | E85: =VLOOKUP(MID(C85,7,4),'Hoja1 (2)'!I:J,2,FALSE) -> Servicios de cuidado infantil | F85: =VLOOKUP(C85,'Base (3)'!C:E,3,FALSE) -> Planes y programas de la Secretaria de Educacion Publica en los Centros de Atencion y Cuidado Infantil de la Alcaldia
A86: 02CD01 | B86: =CONCATENATE(A86,"_",COUNTIF(A$1:A86,A86)) -> 02CD01_40 | C86: 02CD01E198_2 | D86: E198 | E86: =VLOOKUP(MID(C86,7,4),'Hoja1 (2)'!I:J,2,FALSE) -> Servicios de cuidado infantil | F86: =VLOOKUP(C86,'Base (3)'!C:E,3,FALSE) -> Apoyo economico para brindar y recibir un servicio integral para la atencion y el cuidado infantil, a traves de estancias infantiles que atiendan a niñas y niños
A87: 02CD01 | B87: =CONCATENATE(A87,"_",COUNTIF(A$1:A87,A87)) -> 02CD01_41 | C87: 02CD01F037_1 | D87: F037 | E87: =VLOOKUP(MID(C87,7,4),'Hoja1 (2)'!I:J,2,FALSE) -> Turismo, empleo y fomento económico | F87: =VLOOKUP(C87,'Base (3)'!C:E,3,FALSE) -> Ferias del Empleo y Bolsa de Trabajo
A88: 02CD01 | B88: =CONCATENATE(A88,"_",COUNTIF(A$1:A88,A88)) -> 02CD01_42 | C88: 02CD01F037_2 | D88: F037 | E88: =VLOOKUP(MID(C88,7,4),'Hoja1 (2)'!I:J,2,FALSE) -> Turismo, empleo y fomento económico | F88: =VLOOKUP(C88,'Base (3)'!C:E,3,FALSE) -> Jornadas de creacion, permanencia y crecimiento de micro, pequeñas y medianas empresa y de cooperativas, asi como del emprendimiento
A89: 02CD01 | B89: =CONCATENATE(A89,"_",COUNTIF(A$1:A89,A89)) -> 02CD01_43 | C89: 02CD01F037_3 | D89: F037 | E89: =VLOOKUP(MID(C89,7,4),'Hoja1 (2)'!I:J,2,FALSE) -> Turismo, empleo y fomento económico | F89: =VLOOKUP(C89,'Base (3)'!C:E,3,FALSE) -> Bazar Artesanal que integra actividades economicas de los artesanos y floricultores de la alcaldia
A90: 02CD01 | B90: =CONCATENATE(A90,"_",COUNTIF(A$1:A90,A90)) -> 02CD01_44 | C90: 02CD01F037_4 | D90: F037 | E90: =VLOOKUP(MID(C90,7,4),'Hoja1 (2)'!I:J,2,FALSE) -> Turismo, empleo y fomento económico | F90: =VLOOKUP(C90,'Base (3)'!C:E,3,FALSE) -> Cursos y talleres sobre temas diversos en materia de negocios para promover el emprendimiento y el autoempleo entre la poblacion de la alcaldia
A91: 02CD01 | B91: =CONCATENATE(A91,"_",COUNTIF(A$1:A91,A91)) -> 02CD01_45 | C91: 02CD01F037_5 | D91: F037 | E91: =VLOOKUP(MID(C91,7,4),'Hoja1 (2)'!I:J,2,FALSE) -> Turismo, empleo y fomento económico | F91: =VLOOKUP(C91,'Base (3)'!C:E,3,FALSE) -> Apoyos agropecuarios de barbecho, rastreo, chaponeo y desmalezado, empacado y molienda de forraje, asi como mantenimiento de arboles frutales y magueyes
A92: 02CD01 | B92: =CONCATENATE(A92,"_",COUNTIF(A$1:A92,A92)) -> 02CD01_46 | C92: 02CD01K023_1 | D92: K023 | E92: =VLOOKUP(MID(C92,7,4),'Hoja1 (2)'!I:J,2,FALSE) -> Infraestructura urbana | F92: =VLOOKUP(C92,'Base (3)'!C:E,3,FALSE) -> Trabajos de obras para la rehabilitacion de banquetas, guarniciones y escalinatas, señalizacion vial, espacios publicos, infraestructura educativa, deportiva, social y cultural, mercados publicos, rehabilitacion de la superficie de rodamiento con bacheo, repavimentacion a base de empedrado, adoquin, concreto hidraulico y asfaltico, estabilizacion de taludes, relleno de minas y construccion de muros de contencion
A93: 02CD01 | B93: =CONCATENATE(A93,"_",COUNTIF(A$1:A93,A93)) -> 02CD01_47 | C93: 02CD01K023_2 | D93: K023 | E93: =VLOOKUP(MID(C93,7,4),'Hoja1 (2)'!I:J,2,FALSE) -> Infraestructura urbana | F93: =VLOOKUP(C93,'Base (3)'!C:E,3,FALSE) -> Mantenimiento a servicios urbanos como señalamiento y balizamiento de vialidades, rescate y mantenimiento de espacios publicos, saneamiento y poda del arbolado urbano, areas verdes urbanas, transformacion y rehabilitacion de luminarias
A94: 02CD01 | B94: =CONCATENATE(A94,"_",COUNTIF(A$1:A94,A94)) -> 02CD01_48 | C94: 02CD01K023_3 | D94: K023 | E94: =VLOOKUP(MID(C94,7,4),'Hoja1 (2)'!I:J,2,FALSE) -> Infraestructura urbana | F94: =VLOOKUP(C94,'Base (3)'!C:E,3,FALSE) -> Estudio documental y apoyo logistico para los procedimientos tecnicos-administrativos relacionados con la obra publica por contrato
A95: 02CD01 | B95: =CONCATENATE(A95,"_",COUNTIF(A$1:A95,A95)) -> 02CD01_49 | C95: 02CD01K026_1 | D95: K026 | E95: =VLOOKUP(MID(C95,7,4),'Hoja1 (2)'!I:J,2,FALSE) -> Infraestructura de agua potable en Alcaldías | F95: =VLOOKUP(C95,'Base (3)'!C:E,3,FALSE) -> Mantenimiento y rehabilitacion de la red de agua potable en diversas colonias, dentro de la demarcacion territorial.
A96: 02CD01 | B96: =CONCATENATE(A96,"_",COUNTIF(A$1:A96,A96)) -> 02CD01_50 | C96: 02CD01K027_1 | D96: K027 | E96: =VLOOKUP(MID(C96,7,4),'Hoja1 (2)'!I:J,2,FALSE) -> Infraestructura de drenaje, alcantarillado y saneamiento en Alcaldías | F96: =VLOOKUP(C96,'Base (3)'!C:E,3,FALSE) -> Mantenimiento y rehabilitacion de la red de drenaje en diversas colonias, dentro de la demarcacion territorial.
A97: 02CD01 | B97: =CONCATENATE(A97,"_",COUNTIF(A$1:A97,A97)) -> 02CD01_51 | C97: 02CD01M001_1 | D97: M001 | E97: =VLOOKUP(MID(C97,7,4),'Hoja1 (2)'!I:J,2,FALSE) -> Actividades de apoyo administrativo | F97: =VLOOKUP(C97,'Base (3)'!C:E,3,FALSE) -> Proporcionar los insumos y herramientas necesarias a traves de la adquisicion de bienes y la contratacion de servicios para atender la demanda y necesidades de las oficinas la Alcaldia
A98: 02CD01 | B98: =CONCATENATE(A98,"_",COUNTIF(A$1:A98,A98)) -> 02CD01_52 | C98: 02CD01M002_1 | D98: M002 | E98: =VLOOKUP(MID(C98,7,4),'Hoja1 (2)'!I:J,2,FALSE) -> Provisiones para contingencias | F98: =VLOOKUP(C98,'Base (3)'!C:E,3,FALSE) -> Atender las sentencias emitas por la autoridad competente.
A99: 02CD01 | B99: =CONCATENATE(A99,"_",COUNTIF(A$1:A99,A99)) -> 02CD01_53 | C99: 02CD01N001_1 | D99: N001 | E99: =VLOOKUP(MID(C99,7,4),'Hoja1 (2)'!I:J,2,FALSE) -> Cumplimiento de los programas de protección civil | F99: =VLOOKUP(C99,'Base (3)'!C:E,3,FALSE) -> Capacitacion en materia de Proteccion Civil
A100: 02CD01 | B100: =CONCATENATE(A100,"_",COUNTIF(A$1:A100,A100)) -> 02CD01_54 | C100: 02CD01N001_2 | D100: N001 | E100: =VLOOKUP(MID(C100,7,4),'Hoja1 (2)'!I:J,2,FALSE) -> Cumplimiento de los programas de protección civil | F100: =VLOOKUP(C100,'Base (3)'!C:E,3,FALSE) -> Atencion pre hospitalaria y de emergencias
A101: 02CD01 | B101: =CONCATENATE(A101,"_",COUNTIF(A$1:A101,A101)) -> 02CD01_55 | C101: 02CD01N001_3 | D101: N001 | E101: =VLOOKUP(MID(C101,7,4),'Hoja1 (2)'!I:J,2,FALSE) -> Cumplimiento de los programas de protección civil | F101: =VLOOKUP(C101,'Base (3)'!C:E,3,FALSE) -> Elaboracion de los Programas en Materia de Proteccion Civil de los inmuebles que integran la Alcaldia
A102: 02CD01 | B102: =CONCATENATE(A102,"_",COUNTIF(A$1:A102,A102)) -> 02CD01_56 | C102: 02CD01N001_4 | D102: N001 | E102: =VLOOKUP(MID(C102,7,4),'Hoja1 (2)'!I:J,2,FALSE) -> Cumplimiento de los programas de protección civil | F102: =VLOOKUP(C102,'Base (3)'!C:E,3,FALSE) -> Desarrollo del sistema digital integral (Atlas de peligros y riesgos)
A103: 02CD01 | B103: =CONCATENATE(A103,"_",COUNTIF(A$1:A103,A103)) -> 02CD01_57 | C103: 02CD01R002_1 | D103: R002 | E103: =VLOOKUP(MID(C103,7,4),'Hoja1 (2)'!I:J,2,FALSE) -> Presupuesto participativo | F103: =VLOOKUP(C103,'Base (3)'!C:E,3,FALSE) -> Clasificacion, registro, recorridos y seguimiento de los diversos proyectos ganadores emanados del proceso de la consulta ciudadana sobre el presupuesto participativo
A104: 02CD01 | B104: =CONCATENATE(A104,"_",COUNTIF(A$1:A104,A104)) -> 02CD01_58 | C104: 02CD01S229_1 | D104: S229 | E104: =VLOOKUP(MID(C104,7,4),'Hoja1 (2)'!I:J,2,FALSE) -> Apoyo para el desarrollo integral de la mujer | F104: =VLOOKUP(C104,'Base (3)'!C:E,3,FALSE) -> Proporcionar apoyos a mujeres que se encuentren por debajo de la linea de bienestar a fin de incrementar sus capacidades de apoyo economico.
A105: 02CD01 | B105: =CONCATENATE(A105,"_",COUNTIF(A$1:A105,A105)) -> 02CD01_59 | C105: 02CD01S229_2 | D105: S229 | E105: =VLOOKUP(MID(C105,7,4),'Hoja1 (2)'!I:J,2,FALSE) -> Apoyo para el desarrollo integral de la mujer | F105: =VLOOKUP(C105,'Base (3)'!C:E,3,FALSE) -> Otorgar apoyos integrales a mujeres vicitmas de violencia, a traves de su atencion en la Casa Aliada Vania y su seguimiento una vez fuera de esta.
A106: 02CD01 | B106: =CONCATENATE(A106,"_",COUNTIF(A$1:A106,A106)) -> 02CD01_60 | C106: 02CD01S229_3 | D106: S229 | E106: =VLOOKUP(MID(C106,7,4),'Hoja1 (2)'!I:J,2,FALSE) -> Apoyo para el desarrollo integral de la mujer | F106: =VLOOKUP(C106,'Base (3)'!C:E,3,FALSE) -> Brindar asesoria juridica y atencion psicologica a mujeres en situacion de violencia, sus hijas e hijos, previa solicitud y autorizacion por medio de la Linea Aliada (Linea Telefonica)
A107: 02CD01 | B107: =CONCATENATE(A107,"_",COUNTIF(A$1:A107,A107)) -> 02CD01_61 | C107: 02CD01S230_1 | D107: S230 | E107: =VLOOKUP(MID(C107,7,4),'Hoja1 (2)'!I:J,2,FALSE) -> Programa para enfermedades crónico degenerativas y discapacidad | F107: =VLOOKUP(C107,'Base (3)'!C:E,3,FALSE) -> Cirugias para el tratamiento de cataratas.
A108: 02CD01 | B108: =CONCATENATE(A108,"_",COUNTIF(A$1:A108,A108)) -> 02CD01_62 | C108: 02CD01S230_2 | D108: S230 | E108: =VLOOKUP(MID(C108,7,4),'Hoja1 (2)'!I:J,2,FALSE) -> Programa para enfermedades crónico degenerativas y discapacidad | F108: =VLOOKUP(C108,'Base (3)'!C:E,3,FALSE) -> Entrega de aparatos auditivos
A109: 02CD01 | B109: =CONCATENATE(A109,"_",COUNTIF(A$1:A109,A109)) -> 02CD01_63 | C109: 02CD01S230_3 | D109: S230 | E109: =VLOOKUP(MID(C109,7,4),'Hoja1 (2)'!I:J,2,FALSE) -> Programa para enfermedades crónico degenerativas y discapacidad | F109: =VLOOKUP(C109,'Base (3)'!C:E,3,FALSE) -> Otorgar apoyos en especie a personas con discapacidad en situacion de vulnerabilidad, tales como: sillas de ruedas, bastones puño aleman, andadera para adultos entre otras.
A110: 02CD01 | B110: =CONCATENATE(A110,"_",COUNTIF(A$1:A110,A110)) -> 02CD01_64 | C110: 02CD01U048_1 | D110: U048 | E110: =VLOOKUP(MID(C110,7,4),'Hoja1 (2)'!I:J,2,FALSE) -> Apoyos sociales | F110: =VLOOKUP(C110,'Base (3)'!C:E,3,FALSE) -> Otorgar ayudas sociales y en especie (cobijas y chamarras) a personas en fiestas, tradiciones populares y temporadas invernales
A111: 02CD01 | B111: =CONCATENATE(A111,"_",COUNTIF(A$1:A111,A111)) -> 02CD01_65 | C111: 02CD01U048_2 | D111: U048 | E111: =VLOOKUP(MID(C111,7,4),'Hoja1 (2)'!I:J,2,FALSE) -> Apoyos sociales | F111: =VLOOKUP(C111,'Base (3)'!C:E,3,FALSE) -> Otorgar apoyos funerarios en especie a personas en situacion de vulnerabilidad que sufren el deceso de un familiar
A112: 02CD01 | B112: =CONCATENATE(A112,"_",COUNTIF(A$1:A112,A112)) -> 02CD01_66 | C112: 02CD01U048_3 | D112: U048 | E112: =VLOOKUP(MID(C112,7,4),'Hoja1 (2)'!I:J,2,FALSE) -> Apoyos sociales | F112: =VLOOKUP(C112,'Base (3)'!C:E,3,FALSE) -> Otorgar a la poblacion apoyos en especie (materiales de construccion) para el mejoramiento de sus espacios publicos
A113: 02CD01 | B113: =CONCATENATE(A113,"_",COUNTIF(A$1:A113,A113)) -> 02CD01_67 | C113: 02CD01U048_4 | D113: U048 | E113: =VLOOKUP(MID(C113,7,4),'Hoja1 (2)'!I:J,2,FALSE) -> Apoyos sociales | F113: =VLOOKUP(C113,'Base (3)'!C:E,3,FALSE) -> Otorgar sistemas de captacion de agua pluvial a poblacion en situacion de vulnerabilidad
A114: 02CD02 | B114: =CONCATENATE(A114,"_",COUNTIF(A$1:A114,A114)) -> 02CD02_1 | C114: 02CD02E185_1 | D114: E185 | E114: =VLOOKUP(MID(C114,7,4),'Hoja1 (2)'!I:J,2,FALSE) -> Gobierno y atención ciudadana | F114: =VLOOKUP(C114,'Base (3)'!C:E,3,FALSE) -> Servicios, asesorias y orientacion juridica.
A115: 02CD02 | B115: =CONCATENATE(A115,"_",COUNTIF(A$1:A115,A115)) -> 02CD02_2 | C115: 02CD02E185_2 | D115: E185 | E115: =VLOOKUP(MID(C115,7,4),'Hoja1 (2)'!I:J,2,FALSE) -> Gobierno y atención ciudadana | F115: =VLOOKUP(C115,'Base (3)'!C:E,3,FALSE) -> Regulacion y seguimiento de los padrones de establecimientos mercantiles y comerciales.
A116: 02CD02 | B116: =CONCATENATE(A116,"_",COUNTIF(A$1:A116,A116)) -> 02CD02_3 | C116: 02CD02E185_3 | D116: E185 | E116: =VLOOKUP(MID(C116,7,4),'Hoja1 (2)'!I:J,2,FALSE) -> Gobierno y atención ciudadana | F116: =VLOOKUP(C116,'Base (3)'!C:E,3,FALSE) -> Difusion en medios digitales e impresos de servicios de atencion ciudadana.
A117: 02CD02 | B117: =CONCATENATE(A117,"_",COUNTIF(A$1:A117,A117)) -> 02CD02_4 | C117: 02CD02E185_4 | D117: E185 | E117: =VLOOKUP(MID(C117,7,4),'Hoja1 (2)'!I:J,2,FALSE) -> Gobierno y atención ciudadana | F117: =VLOOKUP(C117,'Base (3)'!C:E,3,FALSE) -> Publicacion de la informacion que se da a conocer a la opinion publica.
A118: 02CD02 | B118: =CONCATENATE(A118,"_",COUNTIF(A$1:A118,A118)) -> 02CD02_5 | C118: 02CD02E185_5 | D118: E185 | E118: =VLOOKUP(MID(C118,7,4),'Hoja1 (2)'!I:J,2,FALSE) -> Gobierno y atención ciudadana | F118: =VLOOKUP(C118,'Base (3)'!C:E,3,FALSE) -> Atencion de solicitudes de informacion y elaboracion de informes por medio de los Sistema de Portales de Obligaciones de Transparencia (SIPOT).
A119: 02CD02 | B119: =CONCATENATE(A119,"_",COUNTIF(A$1:A119,A119)) -> 02CD02_6 | C119: 02CD02E185_6 | D119: E185 | E119: =VLOOKUP(MID(C119,7,4),'Hoja1 (2)'!I:J,2,FALSE) -> Gobierno y atención ciudadana | F119: =VLOOKUP(C119,'Base (3)'!C:E,3,FALSE) -> Capacitacion a servidores publicos en materia de transparencia, acceso a la informacion publica y proteccion de datos personales.
A120: 02CD02 | B120: =CONCATENATE(A120,"_",COUNTIF(A$1:A120,A120)) -> 02CD02_7 | C120: 02CD02E185_7 | D120: E185 | E120: =VLOOKUP(MID(C120,7,4),'Hoja1 (2)'!I:J,2,FALSE) -> Gobierno y atención ciudadana | F120: =VLOOKUP(C120,'Base (3)'!C:E,3,FALSE) -> Brindar atencion ciudadana por medio de resolucion de solicitudes de folios del Sistema Unificado de Atencion Ciudadana (SUAC).
A121: 02CD02 | B121: =CONCATENATE(A121,"_",COUNTIF(A$1:A121,A121)) -> 02CD02_8 | C121: 02CD02E186_1 | D121: E186 | E121: =VLOOKUP(MID(C121,7,4),'Hoja1 (2)'!I:J,2,FALSE) -> Seguridad en Alcalíias | F121: =VLOOKUP(C121,'Base (3)'!C:E,3,FALSE) -> Operativos y atencion a emergencias por parte de la ciudadania, asi como, recorridos para la prevencion del delito en la demarcacion territorial.
A122: 02CD02 | B122: =CONCATENATE(A122,"_",COUNTIF(A$1:A122,A122)) -> 02CD02_9 | C122: 02CD02E187_1 | D122: E187 | E122: =VLOOKUP(MID(C122,7,4),'Hoja1 (2)'!I:J,2,FALSE) -> Servicios públicos | F122: =VLOOKUP(C122,'Base (3)'!C:E,3,FALSE) -> Recoleccion de residuos solidos urbanos.
A123: 02CD02 | B123: =CONCATENATE(A123,"_",COUNTIF(A$1:A123,A123)) -> 02CD02_10 | C123: 02CD02E187_2 | D123: E187 | E123: =VLOOKUP(MID(C123,7,4),'Hoja1 (2)'!I:J,2,FALSE) -> Servicios públicos | F123: =VLOOKUP(C123,'Base (3)'!C:E,3,FALSE) -> Mantenimiento y rehabilitacion a areas verdes e infraestructura urbana.
A124: 02CD02 | B124: =CONCATENATE(A124,"_",COUNTIF(A$1:A124,A124)) -> 02CD02_11 | C124: 02CD02E187_3 | D124: E187 | E124: =VLOOKUP(MID(C124,7,4),'Hoja1 (2)'!I:J,2,FALSE) -> Servicios públicos | F124: =VLOOKUP(C124,'Base (3)'!C:E,3,FALSE) -> Mantenimiento y rehabilitacion a la red de alumbrado publico.
A125: 02CD02 | B125: =CONCATENATE(A125,"_",COUNTIF(A$1:A125,A125)) -> 02CD02_12 | C125: 02CD02E187_4 | D125: E187 | E125: =VLOOKUP(MID(C125,7,4),'Hoja1 (2)'!I:J,2,FALSE) -> Servicios públicos | F125: =VLOOKUP(C125,'Base (3)'!C:E,3,FALSE) -> Servicios funerarios en panteones publicos de la Alcaldia.
A126: 02CD02 | B126: =CONCATENATE(A126,"_",COUNTIF(A$1:A126,A126)) -> 02CD02_13 | C126: 02CD02E188_1 | D126: E188 | E126: =VLOOKUP(MID(C126,7,4),'Hoja1 (2)'!I:J,2,FALSE) -> Educación, cultura, deporte y recreación | F126: =VLOOKUP(C126,'Base (3)'!C:E,3,FALSE) -> Organizacion de eventos y actividades de promocion y fomento a la activacion fisica y el deporte en la Alcaldia.
A127: 02CD02 | B127: =CONCATENATE(A127,"_",COUNTIF(A$1:A127,A127)) -> 02CD02_14 | C127: 02CD02E188_2 | D127: E188 | E127: =VLOOKUP(MID(C127,7,4),'Hoja1 (2)'!I:J,2,FALSE) -> Educación, cultura, deporte y recreación | F127: =VLOOKUP(C127,'Base (3)'!C:E,3,FALSE) -> Organizacion de eventos y actividades de promocion y fomento artisticos, culturales y de tradicion en la Alcaldia.
A128: 02CD02 | B128: =CONCATENATE(A128,"_",COUNTIF(A$1:A128,A128)) -> 02CD02_15 | C128: 02CD02E188_3 | D128: E188 | E128: =VLOOKUP(MID(C128,7,4),'Hoja1 (2)'!I:J,2,FALSE) -> Educación, cultura, deporte y recreación | F128: =VLOOKUP(C128,'Base (3)'!C:E,3,FALSE) -> Diseñar, implementar y fomentar actividades educativas en los Centros de Desarrollo Comunitario y en Bibliotecas para impulsar la educacion en Azcapotzalco.
A129: 02CD02 | B129: =CONCATENATE(A129,"_",COUNTIF(A$1:A129,A129)) -> 02CD02_16 | C129: 02CD02E198_1 | D129: E198 | E129: =VLOOKUP(MID(C129,7,4),'Hoja1 (2)'!I:J,2,FALSE) -> Servicios de cuidado infantil | F129: =VLOOKUP(C129,'Base (3)'!C:E,3,FALSE) -> Atencion a niñas y niños inscritos en Centros de Desarrollo Infantil (CENDI) de la Alcaldia Azcapotzalco.
A130: 02CD02 | B130: =CONCATENATE(A130,"_",COUNTIF(A$1:A130,A130)) -> 02CD02_17 | C130: 02CD02E198_2 | D130: E198 | E130: =VLOOKUP(MID(C130,7,4),'Hoja1 (2)'!I:J,2,FALSE) -> Servicios de cuidado infantil | F130: =VLOOKUP(C130,'Base (3)'!C:E,3,FALSE) -> Planear, diseñar y ejecutar programa de cuidado, alimentacion y apoyo educativo a niñas y niños inscritos a CENDI’s.
A131: =MID(C131,1,6) -> 02CD02 | B131: =CONCATENATE(A131,"_",COUNTIF(A$1:A131,A131)) -> 02CD02_18 | C131: 02CD02F037_1 | D131: =MID(C131,7,4) -> F037 | E131: =VLOOKUP(MID(C131,7,4),'Hoja1 (2)'!I:J,2,FALSE) -> Turismo, empleo y fomento económico | F131: =VLOOKUP(C131,'Base (3)'!C:E,3,FALSE) -> Ferias Economicas y Macro y Micro ferias del empleo.
A132: 02CD02 | B132: =CONCATENATE(A132,"_",COUNTIF(A$1:A132,A132)) -> 02CD02_19 | C132: 02CD02F037_2 | D132: F037 | E132: =VLOOKUP(MID(C132,7,4),'Hoja1 (2)'!I:J,2,FALSE) -> Turismo, empleo y fomento económico | F132: =VLOOKUP(C132,'Base (3)'!C:E,3,FALSE) -> Capacitaciones para el autoempleo
A133: 02CD02 | B133: =CONCATENATE(A133,"_",COUNTIF(A$1:A133,A133)) -> 02CD02_20 | C133: 02CD02K023_1 | D133: K023 | E133: =VLOOKUP(MID(C133,7,4),'Hoja1 (2)'!I:J,2,FALSE) -> Infraestructura urbana | F133: =VLOOKUP(C133,'Base (3)'!C:E,3,FALSE) -> Mantenimiento y Rehabilitacion de la Infraestructura Urbana (Mercados, Escuelas, Deportivos, Edificios Publicos, Espacios Publicos, Vialidades Secundarias y Peatonales e imagen urbana).
A134: 02CD02 | B134: =CONCATENATE(A134,"_",COUNTIF(A$1:A134,A134)) -> 02CD02_21 | C134: 02CD02K023_2 | D134: K023 | E134: =VLOOKUP(MID(C134,7,4),'Hoja1 (2)'!I:J,2,FALSE) -> Infraestructura urbana | F134: =VLOOKUP(C134,'Base (3)'!C:E,3,FALSE) -> Ejecucion de Obra por administracion.
A135: 02CD02 | B135: =CONCATENATE(A135,"_",COUNTIF(A$1:A135,A135)) -> 02CD02_22 | C135: 02CD02K023_3 | D135: K023 | E135: =VLOOKUP(MID(C135,7,4),'Hoja1 (2)'!I:J,2,FALSE) -> Infraestructura urbana | F135: =VLOOKUP(C135,'Base (3)'!C:E,3,FALSE) -> Construccion de Escuela de Artes, Albercas en Deportivos y Arcotechos en Escuelas.
A136: 02CD02 | B136: =CONCATENATE(A136,"_",COUNTIF(A$1:A136,A136)) -> 02CD02_23 | C136: 02CD02K026_1 | D136: K026 | E136: =VLOOKUP(MID(C136,7,4),'Hoja1 (2)'!I:J,2,FALSE) -> Infraestructura de agua potable en Alcaldías | F136: =VLOOKUP(C136,'Base (3)'!C:E,3,FALSE) -> Mantenimiento y Rehabilitacion a la Red Secundaria de Agua Potable.
A137: 02CD02 | B137: =CONCATENATE(A137,"_",COUNTIF(A$1:A137,A137)) -> 02CD02_24 | C137: 02CD02K027_1 | D137: K027 | E137: =VLOOKUP(MID(C137,7,4),'Hoja1 (2)'!I:J,2,FALSE) -> Infraestructura de drenaje, alcantarillado y saneamiento en Alcaldías | F137: =VLOOKUP(C137,'Base (3)'!C:E,3,FALSE) -> Mantenimiento y Rehabilitacion a la Red de Drenaje.
A138: 02CD02 | B138: =CONCATENATE(A138,"_",COUNTIF(A$1:A138,A138)) -> 02CD02_25 | C138: 02CD02M001_1 | D138: M001 | E138: =VLOOKUP(MID(C138,7,4),'Hoja1 (2)'!I:J,2,FALSE) -> Actividades de apoyo administrativo | F138: =VLOOKUP(C138,'Base (3)'!C:E,3,FALSE) -> Proporcionar los insumos y herramientas necesarias a traves de la adquisicion de bienes y la contratacion de servicios para atender la demanda y necesidades de las oficinas de la Alcaldia.
A139: 02CD02 | B139: =CONCATENATE(A139,"_",COUNTIF(A$1:A139,A139)) -> 02CD02_26 | C139: 02CD02M002_1 | D139: M002 | E139: =VLOOKUP(MID(C139,7,4),'Hoja1 (2)'!I:J,2,FALSE) -> Provisiones para contingencias | F139: =VLOOKUP(C139,'Base (3)'!C:E,3,FALSE) -> Atender las sentencias emitas por la autoridad competente
A140: 02CD02 | B140: =CONCATENATE(A140,"_",COUNTIF(A$1:A140,A140)) -> 02CD02_27 | C140: 02CD02N001_1 | D140: N001 | E140: =VLOOKUP(MID(C140,7,4),'Hoja1 (2)'!I:J,2,FALSE) -> Cumplimiento de los programas de protección civil | F140: =VLOOKUP(C140,'Base (3)'!C:E,3,FALSE) -> Elaboracion de los Programas y capacitaciones en Materia de Proteccion Civil de la Alcaldia Azcapotzalco
A141: 02CD02 | B141: =CONCATENATE(A141,"_",COUNTIF(A$1:A141,A141)) -> 02CD02_28 | C141: 02CD02N001_2 | D141: N001 | E141: =VLOOKUP(MID(C141,7,4),'Hoja1 (2)'!I:J,2,FALSE) -> Cumplimiento de los programas de protección civil | F141: =VLOOKUP(C141,'Base (3)'!C:E,3,FALSE) -> Atencion a emergencias urbanas
A142: 02CD02 | B142: =CONCATENATE(A142,"_",COUNTIF(A$1:A142,A142)) -> 02CD02_29 | C142: 02CD02R002_1 | D142: R002 | E142: =VLOOKUP(MID(C142,7,4),'Hoja1 (2)'!I:J,2,FALSE) -> Presupuesto participativo | F142: =VLOOKUP(C142,'Base (3)'!C:E,3,FALSE) -> Atencion a proyectos ingresados para el Presupuesto Participativo de la Alcaldia Azcapotzalco.
A143: 02CD02 | B143: =CONCATENATE(A143,"_",COUNTIF(A$1:A143,A143)) -> 02CD02_30 | C143: 02CD02R002_2 | D143: R002 | E143: =VLOOKUP(MID(C143,7,4),'Hoja1 (2)'!I:J,2,FALSE) -> Presupuesto participativo | F143: =VLOOKUP(C143,'Base (3)'!C:E,3,FALSE) -> Diseñar e implementar estrategias para la correcta ejecucion del Presupuesto Participativo es sus diferentes rubros.
A144: 02CD02 | B144: =CONCATENATE(A144,"_",COUNTIF(A$1:A144,A144)) -> 02CD02_31 | C144: 02CD02S229_1 | D144: S229 | E144: =VLOOKUP(MID(C144,7,4),'Hoja1 (2)'!I:J,2,FALSE) -> Apoyo para el desarrollo integral de la mujer | F144: =VLOOKUP(C144,'Base (3)'!C:E,3,FALSE) -> Otorgar servicio de estancia, pernocta y alimento, asi como de asesoria juridica, atencion psicologica y enfermeria a mujeres victimas de violencia.
A145: 02CD02 | B145: =CONCATENATE(A145,"_",COUNTIF(A$1:A145,A145)) -> 02CD02_32 | C145: 02CD02S229_2 | D145: S229 | E145: =VLOOKUP(MID(C145,7,4),'Hoja1 (2)'!I:J,2,FALSE) -> Apoyo para el desarrollo integral de la mujer | F145: =VLOOKUP(C145,'Base (3)'!C:E,3,FALSE) -> Imparticion de talleres en beneficio de las mujeres de la Alcaldia
A146: 02CD02 | B146: =CONCATENATE(A146,"_",COUNTIF(A$1:A146,A146)) -> 02CD02_33 | C146: 02CD02S230_1 | D146: S230 | E146: =VLOOKUP(MID(C146,7,4),'Hoja1 (2)'!I:J,2,FALSE) -> Programa para enfermedades crónico degenerativas y discapacidad | F146: =VLOOKUP(C146,'Base (3)'!C:E,3,FALSE) -> Otorgar apoyos en especie para personas con discapacidad
A147: 02CD03 | B147: =CONCATENATE(A147,"_",COUNTIF(A$1:A147,A147)) -> 02CD03_1 | C147: 02CD03E185_1 | D147: E185 | E147: =VLOOKUP(MID(C147,7,4),'Hoja1 (2)'!I:J,2,FALSE) -> Gobierno y atención ciudadana | F147: =VLOOKUP(C147,'Base (3)'!C:E,3,FALSE) -> Servicios de expedicion de cartillas para los jovenes conscriptos de clase y remisos, asi como resguardar, sellar y entregar las cartillas expedidas durante el ejercicio fiscal correspondiente; Asi como expedir constancias de no registro al S.M.N. de las personas remisas.
A148: 02CD03 | B148: =CONCATENATE(A148,"_",COUNTIF(A$1:A148,A148)) -> 02CD03_2 | C148: 02CD03E185_2 | D148: E185 | E148: =VLOOKUP(MID(C148,7,4),'Hoja1 (2)'!I:J,2,FALSE) -> Gobierno y atención ciudadana | F148: =VLOOKUP(C148,'Base (3)'!C:E,3,FALSE) -> Asesorar juridica y administrativa a las mujeres que sean victimas de cualquier delito o abuso fisico y/o psicologico.
A149: 02CD03 | B149: =CONCATENATE(A149,"_",COUNTIF(A$1:A149,A149)) -> 02CD03_3 | C149: 02CD03E185_3 | D149: E185 | E149: =VLOOKUP(MID(C149,7,4),'Hoja1 (2)'!I:J,2,FALSE) -> Gobierno y atención ciudadana | F149: =VLOOKUP(C149,'Base (3)'!C:E,3,FALSE) -> Realizar de tramites y servicios relacionados con el comercio en via publica, con el proposito restablecer rubros en materia de medio ambiente y recuperar el patrimonio artistico y cultural con el reordenamiento comercial en via publica.
A150: 02CD03 | B150: =CONCATENATE(A150,"_",COUNTIF(A$1:A150,A150)) -> 02CD03_4 | C150: 02CD03E185_4 | D150: E185 | E150: =VLOOKUP(MID(C150,7,4),'Hoja1 (2)'!I:J,2,FALSE) -> Gobierno y atención ciudadana | F150: =VLOOKUP(C150,'Base (3)'!C:E,3,FALSE) -> Atencion de tramites en el ambito de la demarcacion territoriales, que se relacionen con solicitudes, avisos y manifestaciones que presente la ciudadania, asi como la simplificacion administrativa en materia de procesos
A151: 02CD03 | B151: =CONCATENATE(A151,"_",COUNTIF(A$1:A151,A151)) -> 02CD03_5 | C151: 02CD03E185_5 | D151: E185 | E151: =VLOOKUP(MID(C151,7,4),'Hoja1 (2)'!I:J,2,FALSE) -> Gobierno y atención ciudadana | F151: =VLOOKUP(C151,'Base (3)'!C:E,3,FALSE) -> Implementar mecanismos para la recepcion y canalizacion de solicitudes ciudadanas de los servicios publicos que brinda la alcaldia.
A152: 02CD03 | B152: =CONCATENATE(A152,"_",COUNTIF(A$1:A152,A152)) -> 02CD03_6 | C152: 02CD03E185_6 | D152: E185 | E152: =VLOOKUP(MID(C152,7,4),'Hoja1 (2)'!I:J,2,FALSE) -> Gobierno y atención ciudadana | F152: =VLOOKUP(C152,'Base (3)'!C:E,3,FALSE) -> Brindar el acceso de comunicacion a internet y mantenimiento a sistemas institucionales e infraestructura, y promover el uso digital mas eficiente. (automatizando procesos con la modernizacion tecnologica.)
A153: 02CD03 | B153: =CONCATENATE(A153,"_",COUNTIF(A$1:A153,A153)) -> 02CD03_7 | C153: 02CD03E185_7 | D153: E185 | E153: =VLOOKUP(MID(C153,7,4),'Hoja1 (2)'!I:J,2,FALSE) -> Gobierno y atención ciudadana | F153: =VLOOKUP(C153,'Base (3)'!C:E,3,FALSE) -> Realizar programas, proyectos y acciones con perspectiva de genero
A154: 02CD03 | B154: =CONCATENATE(A154,"_",COUNTIF(A$1:A154,A154)) -> 02CD03_8 | C154: 02CD03E185_8 | D154: E185 | E154: =VLOOKUP(MID(C154,7,4),'Hoja1 (2)'!I:J,2,FALSE) -> Gobierno y atención ciudadana | F154: =VLOOKUP(C154,'Base (3)'!C:E,3,FALSE) -> Monitoreo de la opinion ciudadana de las acciones de gobierno
A155: 02CD03 | B155: =CONCATENATE(A155,"_",COUNTIF(A$1:A155,A155)) -> 02CD03_9 | C155: 02CD03E185_9 | D155: E185 | E155: =VLOOKUP(MID(C155,7,4),'Hoja1 (2)'!I:J,2,FALSE) -> Gobierno y atención ciudadana | F155: =VLOOKUP(C155,'Base (3)'!C:E,3,FALSE) -> Elaboracion del tablero del control
A156: 02CD03 | B156: =CONCATENATE(A156,"_",COUNTIF(A$1:A156,A156)) -> 02CD03_10 | C156: 02CD03E185_10 | D156: E185 | E156: =VLOOKUP(MID(C156,7,4),'Hoja1 (2)'!I:J,2,FALSE) -> Gobierno y atención ciudadana | F156: =VLOOKUP(C156,'Base (3)'!C:E,3,FALSE) -> Implementacion del Sistema de Gestion de la Calidad
A157: 02CD03 | B157: =CONCATENATE(A157,"_",COUNTIF(A$1:A157,A157)) -> 02CD03_11 | C157: 02CD03E186_1 | D157: E186 | E157: =VLOOKUP(MID(C157,7,4),'Hoja1 (2)'!I:J,2,FALSE) -> Seguridad en Alcalíias | F157: =VLOOKUP(C157,'Base (3)'!C:E,3,FALSE) -> Entregar incentivos a las y los elementos de la policia preventiva, policia de investigacion, peritos adscritos y agentes del ministerio publico, en activo y que presten sus servicios en la demarcacion
A158: 02CD03 | B158: =CONCATENATE(A158,"_",COUNTIF(A$1:A158,A158)) -> 02CD03_12 | C158: 02CD03E186_2 | D158: E186 | E158: =VLOOKUP(MID(C158,7,4),'Hoja1 (2)'!I:J,2,FALSE) -> Seguridad en Alcalíias | F158: =VLOOKUP(C158,'Base (3)'!C:E,3,FALSE) -> Brindar platicas y talleres, con la finalidad de fomentar la cultura de la prevencion en el delito enfocados a las diversas problematicas e incidencias dentro de la alcaldia Benito Juarez, es principalmente dirigidas a habitantes y al sector estudiantil en sus niveles medio superior y superior.
A159: 02CD03 | B159: =CONCATENATE(A159,"_",COUNTIF(A$1:A159,A159)) -> 02CD03_13 | C159: 02CD03E186_3 | D159: E186 | E159: =VLOOKUP(MID(C159,7,4),'Hoja1 (2)'!I:J,2,FALSE) -> Seguridad en Alcalíias | F159: =VLOOKUP(C159,'Base (3)'!C:E,3,FALSE) -> Realizar campañas de capacitacion y prevencion del delito, con la finalidad de dar herramientas a jovenes y adultos para crear una red de proteccion y seguridad en la Alcaldia.
A160: 02CD03 | B160: =CONCATENATE(A160,"_",COUNTIF(A$1:A160,A160)) -> 02CD03_14 | C160: 02CD03E186_4 | D160: E186 | E160: =VLOOKUP(MID(C160,7,4),'Hoja1 (2)'!I:J,2,FALSE) -> Seguridad en Alcalíias | F160: =VLOOKUP(C160,'Base (3)'!C:E,3,FALSE) -> Realizar la recuperacion de espacios publicos con la intervencion de la Policia de Proximidad, lo que nos para ejercer el libre transito de los benitojuerences.
A161: 02CD03 | B161: =CONCATENATE(A161,"_",COUNTIF(A$1:A161,A161)) -> 02CD03_15 | C161: 02CD03E186_5 | D161: E186 | E161: =VLOOKUP(MID(C161,7,4),'Hoja1 (2)'!I:J,2,FALSE) -> Seguridad en Alcalíias | F161: =VLOOKUP(C161,'Base (3)'!C:E,3,FALSE) -> Realizar Patrullaje constante las 24 horas, los 365 dias del año en la demarcacion territorial.
A162: 02CD03 | B162: =CONCATENATE(A162,"_",COUNTIF(A$1:A162,A162)) -> 02CD03_16 | C162: 02CD03E186_6 | D162: E186 | E162: =VLOOKUP(MID(C162,7,4),'Hoja1 (2)'!I:J,2,FALSE) -> Seguridad en Alcalíias | F162: =VLOOKUP(C162,'Base (3)'!C:E,3,FALSE) -> Llevar a cabo reuniones con vecinos de la demarcacion, para dar atencion a las peticiones ciudadanas
A163: 02CD03 | B163: =CONCATENATE(A163,"_",COUNTIF(A$1:A163,A163)) -> 02CD03_17 | C163: 02CD03E186_7 | D163: E186 | E163: =VLOOKUP(MID(C163,7,4),'Hoja1 (2)'!I:J,2,FALSE) -> Seguridad en Alcalíias | F163: =VLOOKUP(C163,'Base (3)'!C:E,3,FALSE) -> Actualizacion y seguimiento de la incidencia delictiva, asi como la generacion de mapas y cuadros estadisticos.
A164: 02CD03 | B164: =CONCATENATE(A164,"_",COUNTIF(A$1:A164,A164)) -> 02CD03_18 | C164: 02CD03E186_8 | D164: E186 | E164: =VLOOKUP(MID(C164,7,4),'Hoja1 (2)'!I:J,2,FALSE) -> Seguridad en Alcalíias | F164: =VLOOKUP(C164,'Base (3)'!C:E,3,FALSE) -> Coordinar y supervisar las acciones de los cuerpos de seguridad en materia de vigilancia extramuros e intramuros
A165: 02CD03 | B165: =CONCATENATE(A165,"_",COUNTIF(A$1:A165,A165)) -> 02CD03_19 | C165: 02CD03E186_9 | D165: E186 | E165: =VLOOKUP(MID(C165,7,4),'Hoja1 (2)'!I:J,2,FALSE) -> Seguridad en Alcalíias | F165: =VLOOKUP(C165,'Base (3)'!C:E,3,FALSE) -> Atencion a emergencias prehospitalarias y urbanas, salvaguardar la vida e integridad de las personas que viven o transitan en la Alcaldia.
A166: 02CD03 | B166: =CONCATENATE(A166,"_",COUNTIF(A$1:A166,A166)) -> 02CD03_20 | C166: 02CD03E186_10 | D166: E186 | E166: =VLOOKUP(MID(C166,7,4),'Hoja1 (2)'!I:J,2,FALSE) -> Seguridad en Alcalíias | F166: =VLOOKUP(C166,'Base (3)'!C:E,3,FALSE) -> Generacion de opiniones tecnicas de riesgo y avisos de riesgo, para salvaguardar la vida de la poblacion.
A167: 02CD03 | B167: =CONCATENATE(A167,"_",COUNTIF(A$1:A167,A167)) -> 02CD03_21 | C167: 02CD03E187_1 | D167: E187 | E167: =VLOOKUP(MID(C167,7,4),'Hoja1 (2)'!I:J,2,FALSE) -> Servicios públicos | F167: =VLOOKUP(C167,'Base (3)'!C:E,3,FALSE) -> Limpieza, mantenimiento,conservacion de espacios publicos, retiro de publicidad en mobiliario urbano y poda.
A168: 02CD03 | B168: =CONCATENATE(A168,"_",COUNTIF(A$1:A168,A168)) -> 02CD03_22 | C168: 02CD03E187_2 | D168: E187 | E168: =VLOOKUP(MID(C168,7,4),'Hoja1 (2)'!I:J,2,FALSE) -> Servicios públicos | F168: =VLOOKUP(C168,'Base (3)'!C:E,3,FALSE) -> Mantenimiento, conservacion y rehabilitacion a edificios publicos.
A169: 02CD03 | B169: =CONCATENATE(A169,"_",COUNTIF(A$1:A169,A169)) -> 02CD03_23 | C169: 02CD03E187_3 | D169: E187 | E169: =VLOOKUP(MID(C169,7,4),'Hoja1 (2)'!I:J,2,FALSE) -> Servicios públicos | F169: =VLOOKUP(C169,'Base (3)'!C:E,3,FALSE) -> Mantenimiento, colocacion de señalizacion vertical y horizontal, conservacion y rehabilitacion en vialidades secundarias.
A170: 02CD03 | B170: =CONCATENATE(A170,"_",COUNTIF(A$1:A170,A170)) -> 02CD03_24 | C170: 02CD03E187_4 | D170: E187 | E170: =VLOOKUP(MID(C170,7,4),'Hoja1 (2)'!I:J,2,FALSE) -> Servicios públicos | F170: =VLOOKUP(C170,'Base (3)'!C:E,3,FALSE) -> Mantenimiento, conservacion y rehabilitacion de banquetas y carpeta asfaltica en vialidades secundarias.
A171: 02CD03 | B171: =CONCATENATE(A171,"_",COUNTIF(A$1:A171,A171)) -> 02CD03_25 | C171: 02CD03E187_5 | D171: E187 | E171: =VLOOKUP(MID(C171,7,4),'Hoja1 (2)'!I:J,2,FALSE) -> Servicios públicos | F171: =VLOOKUP(C171,'Base (3)'!C:E,3,FALSE) -> Mantenimiento preventivo y correctivo a la red de alumbrado publico en vialidades secundarias, parques y plazas publicas de la alcaldia.
A172: 02CD03 | B172: =CONCATENATE(A172,"_",COUNTIF(A$1:A172,A172)) -> 02CD03_26 | C172: 02CD03E187_6 | D172: E187 | E172: =VLOOKUP(MID(C172,7,4),'Hoja1 (2)'!I:J,2,FALSE) -> Servicios públicos | F172: =VLOOKUP(C172,'Base (3)'!C:E,3,FALSE) -> Servicio de recoleccion de residuos solidos.
A173: 02CD03 | B173: =CONCATENATE(A173,"_",COUNTIF(A$1:A173,A173)) -> 02CD03_27 | C173: 02CD03E190_1 | D173: E190 | E173: =VLOOKUP(MID(C173,7,4),'Hoja1 (2)'!I:J,2,FALSE) -> Servicios de atención animal | F173: =VLOOKUP(C173,'Base (3)'!C:E,3,FALSE) -> Brindar servicios veterinarios basicos en el Centro de Atencion Veterniaria para animales de compañia BJ.
A174: 02CD03 | B174: =CONCATENATE(A174,"_",COUNTIF(A$1:A174,A174)) -> 02CD03_28 | C174: 02CD03E190_2 | D174: E190 | E174: =VLOOKUP(MID(C174,7,4),'Hoja1 (2)'!I:J,2,FALSE) -> Servicios de atención animal | F174: =VLOOKUP(C174,'Base (3)'!C:E,3,FALSE) -> Campañas preventivas del cuidado animal.
A175: 02CD03 | B175: =CONCATENATE(A175,"_",COUNTIF(A$1:A175,A175)) -> 02CD03_29 | C175: 02CD03E189_1 | D175: E189 | E175: =VLOOKUP(MID(C175,7,4),'Hoja1 (2)'!I:J,2,FALSE) -> Servicios de salud en Alcaldias | F175: =VLOOKUP(C175,'Base (3)'!C:E,3,FALSE) -> Otorgar servicios medicos y consultas de primer nivel y especialidad en los diferentes consultorios y centros medicos de la alcaldia; medicina del deporte y terapia fisica a personas con discapacidad;asi como canalizacion de pacientes a segundo y tercer nivel de atencion a diferentes Clinicas e Institutos.
A176: 02CD03 | B176: =CONCATENATE(A176,"_",COUNTIF(A$1:A176,A176)) -> 02CD03_30 | C176: 02CD03E189_2 | D176: E189 | E176: =VLOOKUP(MID(C176,7,4),'Hoja1 (2)'!I:J,2,FALSE) -> Servicios de salud en Alcaldias | F176: =VLOOKUP(C176,'Base (3)'!C:E,3,FALSE) -> Fomentar el autocuidado y la prevencion de enfermedades mediante Ferias y Campañas de Salud en diferentes puntos de la demarcacion priorizando poblaciones vulnerables.
A177: 02CD03 | B177: =CONCATENATE(A177,"_",COUNTIF(A$1:A177,A177)) -> 02CD03_31 | C177: 02CD03E189_3 | D177: E189 | E177: =VLOOKUP(MID(C177,7,4),'Hoja1 (2)'!I:J,2,FALSE) -> Servicios de salud en Alcaldias | F177: =VLOOKUP(C177,'Base (3)'!C:E,3,FALSE) -> Rehabilitacion a personas con trastorno por dependencia del consumo de sustancias psicoactivas; Deteccion Oportuna de Consumo en Ambitos Escolares; Mujeres libres de adicciones; Capacitacion Constante del Personal adscrito al CAIA.
A178: 02CD03 | B178: =CONCATENATE(A178,"_",COUNTIF(A$1:A178,A178)) -> 02CD03_32 | C178: 02CD03E189_4 | D178: E189 | E178: =VLOOKUP(MID(C178,7,4),'Hoja1 (2)'!I:J,2,FALSE) -> Servicios de salud en Alcaldias | F178: =VLOOKUP(C178,'Base (3)'!C:E,3,FALSE) -> Ejecutar las diferentes campañas de salud a traves apoyos del programa Fortalecimiento Tu Salud BJ
A179: 02CD03 | B179: =CONCATENATE(A179,"_",COUNTIF(A$1:A179,A179)) -> 02CD03_33 | C179: 02CD03E198_1 | D179: E198 | E179: =VLOOKUP(MID(C179,7,4),'Hoja1 (2)'!I:J,2,FALSE) -> Servicios de cuidado infantil | F179: =VLOOKUP(C179,'Base (3)'!C:E,3,FALSE) -> Atencion a niñas y niños en los Centros de Desarrollo Infantil. Impartir educacion integral que sirva de base para la formacion de seres humanos criticos, analiticos y reflexivos con un personal docente capacitado y comprometido con la educacion inicial y preescolar en la ciudad.
A180: 02CD03 | B180: =CONCATENATE(A180,"_",COUNTIF(A$1:A180,A180)) -> 02CD03_34 | C180: 02CD03E198_2 | D180: E198 | E180: =VLOOKUP(MID(C180,7,4),'Hoja1 (2)'!I:J,2,FALSE) -> Servicios de cuidado infantil | F180: =VLOOKUP(C180,'Base (3)'!C:E,3,FALSE) -> Atencion a niñas y niños en la Estancia Temporal Infantil. Se brindan actividades ludico educativas a niñas y niños ademas de fortalecer su desarrollo integral, mientras sus madres y padres terminan su jornada laboral.
A181: 02CD03 | B181: =CONCATENATE(A181,"_",COUNTIF(A$1:A181,A181)) -> 02CD03_35 | C181: 02CD03E198_3 | D181: E198 | E181: =VLOOKUP(MID(C181,7,4),'Hoja1 (2)'!I:J,2,FALSE) -> Servicios de cuidado infantil | F181: =VLOOKUP(C181,'Base (3)'!C:E,3,FALSE) -> Entrega de apoyos del programa Estancias infantiles para el desarrollo integral de la niñez
A182: 02CD03 | B182: =CONCATENATE(A182,"_",COUNTIF(A$1:A182,A182)) -> 02CD03_36 | C182: 02CD03F037_1 | D182: F037 | E182: =VLOOKUP(MID(C182,7,4),'Hoja1 (2)'!I:J,2,FALSE) -> Turismo, empleo y fomento económico | F182: =VLOOKUP(C182,'Base (3)'!C:E,3,FALSE) -> Entrega de Apoyos a Microempresarios y empresarias con la finalidad de realizar actividades productivas para la reactivacion economica.
A183: 02CD03 | B183: =CONCATENATE(A183,"_",COUNTIF(A$1:A183,A183)) -> 02CD03_37 | C183: 02CD03F037_2 | D183: F037 | E183: =VLOOKUP(MID(C183,7,4),'Hoja1 (2)'!I:J,2,FALSE) -> Turismo, empleo y fomento económico | F183: =VLOOKUP(C183,'Base (3)'!C:E,3,FALSE) -> Otorgamiento de Apoyo a Personas Desempleadas que radican en la Alcaldia Benito Juarez
A184: 02CD03 | B184: =CONCATENATE(A184,"_",COUNTIF(A$1:A184,A184)) -> 02CD03_38 | C184: 02CD03F037_3 | D184: F037 | E184: =VLOOKUP(MID(C184,7,4),'Hoja1 (2)'!I:J,2,FALSE) -> Turismo, empleo y fomento económico | F184: =VLOOKUP(C184,'Base (3)'!C:E,3,FALSE) -> Realizar ferias de empleo para personas, comunidad LGBTI. y empresas.
A185: 02CD03 | B185: =CONCATENATE(A185,"_",COUNTIF(A$1:A185,A185)) -> 02CD03_39 | C185: 02CD03F037_4 | D185: F037 | E185: =VLOOKUP(MID(C185,7,4),'Hoja1 (2)'!I:J,2,FALSE) -> Turismo, empleo y fomento económico | F185: =VLOOKUP(C185,'Base (3)'!C:E,3,FALSE) -> Impartir capacitaciones y asesorias a micro y pequeñas empresas con el proposito de tener la posibilidad de acceder a diferentes instrumentos de financiamiento.
A186: 02CD03 | B186: =CONCATENATE(A186,"_",COUNTIF(A$1:A186,A186)) -> 02CD03_40 | C186: 02CD03K023_1 | D186: K023 | E186: =VLOOKUP(MID(C186,7,4),'Hoja1 (2)'!I:J,2,FALSE) -> Infraestructura urbana | F186: =VLOOKUP(C186,'Base (3)'!C:E,3,FALSE) -> Mantenimiento conservacion y rehabilitacion de Infraestructura de edificios publicos, espacios recreativos, e infraestructura comercial.
A187: 02CD03 | B187: =CONCATENATE(A187,"_",COUNTIF(A$1:A187,A187)) -> 02CD03_41 | C187: 02CD03K023_2 | D187: K023 | E187: =VLOOKUP(MID(C187,7,4),'Hoja1 (2)'!I:J,2,FALSE) -> Infraestructura urbana | F187: =VLOOKUP(C187,'Base (3)'!C:E,3,FALSE) -> Mantenimiento, conservacion y rehabilitacion de espacios publicos, asfalto y bacheo en vialidades secundarias.
A188: 02CD03 | B188: =CONCATENATE(A188,"_",COUNTIF(A$1:A188,A188)) -> 02CD03_42 | C188: 02CD03K026_1 | D188: K026 | E188: =VLOOKUP(MID(C188,7,4),'Hoja1 (2)'!I:J,2,FALSE) -> Infraestructura de agua potable en Alcaldías | F188: =VLOOKUP(C188,'Base (3)'!C:E,3,FALSE) -> Mantenimiento preventivo y correctivo a la red secundaria de agua potable
A189: 02CD03 | B189: =CONCATENATE(A189,"_",COUNTIF(A$1:A189,A189)) -> 02CD03_43 | C189: 02CD03K027_1 | D189: K027 | E189: =VLOOKUP(MID(C189,7,4),'Hoja1 (2)'!I:J,2,FALSE) -> Infraestructura de drenaje, alcantarillado y saneamiento en Alcaldías | F189: =VLOOKUP(C189,'Base (3)'!C:E,3,FALSE) -> Mantenimiento de la red secundaria de alcantarillado y saneamiento.
A190: 02CD03 | B190: =CONCATENATE(A190,"_",COUNTIF(A$1:A190,A190)) -> 02CD03_44 | C190: 02CD03N001_1 | D190: N001 | E190: =VLOOKUP(MID(C190,7,4),'Hoja1 (2)'!I:J,2,FALSE) -> Cumplimiento de los programas de protección civil | F190: =VLOOKUP(C190,'Base (3)'!C:E,3,FALSE) -> Capacitacion a brigadistas que integran el comite de proteccion civil interno.
A191: 02CD03 | B191: =CONCATENATE(A191,"_",COUNTIF(A$1:A191,A191)) -> 02CD03_45 | C191: 02CD03N001_2 | D191: N001 | E191: =VLOOKUP(MID(C191,7,4),'Hoja1 (2)'!I:J,2,FALSE) -> Cumplimiento de los programas de protección civil | F191: =VLOOKUP(C191,'Base (3)'!C:E,3,FALSE) -> Adquisicion de equipos de seguridad y de identificacion del personal y de las zonas de riesgo de las oficinas de la Alcaldia.
A192: 02CD03 | B192: =CONCATENATE(A192,"_",COUNTIF(A$1:A192,A192)) -> 02CD03_46 | C192: 02CD03R002_1 | D192: R002 | E192: =VLOOKUP(MID(C192,7,4),'Hoja1 (2)'!I:J,2,FALSE) -> Presupuesto participativo | F192: =VLOOKUP(C192,'Base (3)'!C:E,3,FALSE) -> Brindar los servicios y obras a cada uno de los comites veciales conforme los proyectos ganadores en la consulta ciudadana.
A193: 02CD03 | B193: =CONCATENATE(A193,"_",COUNTIF(A$1:A193,A193)) -> 02CD03_47 | C193: 02CD03S230_1 | D193: S230 | E193: =VLOOKUP(MID(C193,7,4),'Hoja1 (2)'!I:J,2,FALSE) -> Programa para enfermedades crónico degenerativas y discapacidad | F193: =VLOOKUP(C193,'Base (3)'!C:E,3,FALSE) -> Apoyo a personas con Discpacidad Permanente y/o Enfermedades Cronico Degenerativas.
A194: 02CD03 | B194: =CONCATENATE(A194,"_",COUNTIF(A$1:A194,A194)) -> 02CD03_48 | C194: 02CD03S230_2 | D194: S230 | E194: =VLOOKUP(MID(C194,7,4),'Hoja1 (2)'!I:J,2,FALSE) -> Programa para enfermedades crónico degenerativas y discapacidad | F194: =VLOOKUP(C194,'Base (3)'!C:E,3,FALSE) -> Apoyos a familias de pacientes con cancer.
A195: =MID(C195,1,6) -> 02CD03 | B195: =CONCATENATE(A195,"_",COUNTIF(A$1:A195,A195)) -> 02CD03_49 | C195: 02CD03S235_1 | D195: =MID(C195,7,4) -> S235 | E195: =VLOOKUP(MID(C195,7,4),'Hoja1 (2)'!I:J,2,FALSE) -> Apoyos para el cuidado del adulto mayor | F195: =VLOOKUP(C195,'Base (3)'!C:E,3,FALSE) -> Apoyo a personas adultas mayores BJ
A196: 02CD03 | B196: =CONCATENATE(A196,"_",COUNTIF(A$1:A196,A196)) -> 02CD03_50 | C196: 02CD03E188_1 | D196: E188 | E196: =VLOOKUP(MID(C196,7,4),'Hoja1 (2)'!I:J,2,FALSE) -> Educación, cultura, deporte y recreación | F196: =VLOOKUP(C196,'Base (3)'!C:E,3,FALSE) -> Creacion de Espacios, Eventos y Platicas; Apoyar y Promocionar a talentos Juveniles; ademas de realizar Convenios de colaboracion y descuentos en Instituciones Educativas privadas para la poblacion juvenil.
A197: 02CD03 | B197: =CONCATENATE(A197,"_",COUNTIF(A$1:A197,A197)) -> 02CD03_51 | C197: 02CD03E188_2 | D197: E188 | E197: =VLOOKUP(MID(C197,7,4),'Hoja1 (2)'!I:J,2,FALSE) -> Educación, cultura, deporte y recreación | F197: =VLOOKUP(C197,'Base (3)'!C:E,3,FALSE) -> Realizar Festival Narv- Arte BJ, ferias, conciertos, obras de teatro, exposiciones, talleres, proyecciones cinematograficas y demas eventos culturales; asi como la promocion del respeto a los derechos, cultura y patrimonio de los pueblos y barrios originarios de la demarcacion.
A198: 02CD03 | B198: =CONCATENATE(A198,"_",COUNTIF(A$1:A198,A198)) -> 02CD03_52 | C198: 02CD03E188_3 | D198: E188 | E198: =VLOOKUP(MID(C198,7,4),'Hoja1 (2)'!I:J,2,FALSE) -> Educación, cultura, deporte y recreación | F198: =VLOOKUP(C198,'Base (3)'!C:E,3,FALSE) -> Realizar actividades de promocion cultural, fomento de la lectura, supervision de la operacion en las casas de cultura y bibliotecas.
A199: 02CD03 | B199: =CONCATENATE(A199,"_",COUNTIF(A$1:A199,A199)) -> 02CD03_53 | C199: 02CD03E188_4 | D199: E188 | E199: =VLOOKUP(MID(C199,7,4),'Hoja1 (2)'!I:J,2,FALSE) -> Educación, cultura, deporte y recreación | F199: =VLOOKUP(C199,'Base (3)'!C:E,3,FALSE) -> Celebracion de Convenios, intercambios y vinculaciones con planteles educativos para la programacion de actividades
A200: 02CD03 | B200: =CONCATENATE(A200,"_",COUNTIF(A$1:A200,A200)) -> 02CD03_54 | C200: 02CD03E188_5 | D200: E188 | E200: =VLOOKUP(MID(C200,7,4),'Hoja1 (2)'!I:J,2,FALSE) -> Educación, cultura, deporte y recreación | F200: =VLOOKUP(C200,'Base (3)'!C:E,3,FALSE) -> Realizacion de actividades de participacion deportiva y recreativa en la comunidad a traves de eventos deportivos y actividad fisica. (Avanza Deporte BJ)
... 1748 more rows

Sheet Hoja1 (hidden)
A3: 01C001
A4: 01CD03
A5: 01CD06
A6: 01P0ES
A7: 02C001
A8: 02CD01
A9: 02CD02
A10: 02CD03
A11: 02CD04
A12: 02CD05
A13: 02CD06
A14: 02CD07
A15: 02CD08
A16: 02CD09
A17: 02CD10
A18: 02CD11
A19: 02CD12
A20: 02CD13
A21: 02CD14
A22: 02CD15
A23: 02CD16
A24: 02CDBP
A25: 02OD04
A26: 02OD06
A27: 02PDAV
A28: 02PDDP
A29: 03C001
A30: 03PDIV
A31: 04C001
A32: 04P0DE
A33: 04P0DS
A34: 05C001
A35: 05P0PT
A36: 06C001
A37: 06CD03
A38: 06CD05
A39: 06P0FA
A40: 06PDPA
A41: 07C001
A42: 07CD01
A43: 07PDIF
A44: 07PDIS
A45: 08C001
A46: 08PDCP
A47: 08PDDF
A48: 08PDII
A49: 08PDIJ
A50: 08PDPS
A51: 09C001
A52: 09PDLR
A53: 09PDPA
A54: 09PDPP
A55: 09PECM
A56: 09PESM
A57: 09PFCH
A58: 09PFRC
A59: 10C001
A60: 10P0AC
A61: 10P0TP
A62: 10PDMB
A63: 10PDME
A64: 10PDOR
A65: 10PDRT
A66: 10PDTE
A67: 11C001
A68: 11CD01
A69: 11CD02
A70: 11CD03
A71: 13C001
A72: 13PDEA
A73: 13PDVA
A74: 15C006
A75: 16C000
A76: 25C001
A77: 26C001
A78: 26CD01
A79: 26PDIA
A80: 26PDSP
A81: 31C000
A82: 31PDMP
A83: 31PFMA
A84: 31PFME
A85: 31PFPC
A86: 33C001
A87: 33PDCL
A88: 33PDIT
A89: 34C001
A90: 34PDHB
A91: 35C001
A92: 36C001
A93: 36CD01
A94: 36CDES
A95: 36PDID
A96: 36PDIE
A97: 36PFEG
A98: 38C001
A99: 41PDIP

Sheet Hoja2 (hidden)
A1: 01C001P020_1 | B1: 01C001M001_1 | C1: 01C001M002_1 | D1: 01C001N001_1 | E1: 01CD03E065_1 | F1: 01CD03M001_1 | G1: 01CD03M002_1 | H1: 01CD03N001_1 | I1: 01CD06E005_1 | J1: 01CD06E157_1 | K1: 01CD06M001_1 | L1: 01CD06M002_1 | M1: 01CD06N001_1 | N1: 01P0ESP054_1 | O1: 01P0ESM001_1 | P1: 01P0ESM002_1 | Q1: 01P0ESN001_1 | R1: 02C001M001_1 | S1: 02C001M002_1 | T1: 02C001P055_1 | U1: 02C001N001_1 | V1: 02C001S005_1 | W1: 02C001U019_1 | X1: 02CD01E185_1 | Y1: 02CD01E186_1 | Z1: 02CD01E187_1 | AA1: 02CD01E188_1 | AB1: 02CD01E189_1 | AC1: 02CD01E190_1 | AD1: 02CD01E198_1 | AE1: 02CD01F037_1 | AF1: 02CD01K023_1 | AG1: 02CD01K026_1 | AH1: 02CD01K027_1 | AI1: 02CD01M001_1 | AJ1: 02CD01M002_1 | AK1: 02CD01N001_1 | AL1: 02CD01R002_1 | AM1: 02CD01S229_1 | AN1: 02CD01S230_1 | AO1: 02CD01U048_1 | AP1: 02CD02E185_1 | AQ1: 02CD02E186_1 | AR1: 02CD02E187_1 | AS1: 02CD02E188_1 | AT1: 02CD02E198_1 | AU1: 02CD02F037_1 | AV1: 02CD02K023_1 | AW1: 02CD02K026_1 | AX1: 02CD02K027_1 | AY1: 02CD02M001_1 | AZ1: 02CD02M002_1 | BA1: 02CD02N001_1 | BB1: 02CD02R002_1 | BC1: 02CD02S229_1 | BD1: 02CD02S230_1 | BE1: 02CD03E185_1 | BF1: 02CD03E186_1 | BG1: 02CD03E187_1 | BH1: 02CD03E190_1 | BI1: 02CD03E189_1 | BJ1: 02CD03E198_1 | BK1: 02CD03F037_1 | BL1: 02CD03K023_1 | BM1: 02CD03K026_1 | BN1: 02CD03K027_1 | BO1: 02CD03N001_1 | BP1: 02CD03R002_1 | BQ1: 02CD03S230_1 | BR1: 02CD03S235_1 | BS1: 02CD03E188_1 | BT1: 02CD03M001_1 | BU1: 02CD03M002_1 | BV1: 02CD03S234_1 | BW1: 02CD04E185_1 | BX1: 02CD04E186_1 | BY1: 02CD04E187_1 | BZ1: 02CD04E188_1 | CA1: 02CD04E189_1 | CB1: 02CD04E190_1 | CC1: 02CD04E198_1 | CD1: 02CD04F037_1 | CE1: 02CD04K023_1 | CF1: 02CD04K026_1 | CG1: 02CD04K027_1 | CH1: 02CD04M001_1 | CI1: 02CD04M002_1 | CJ1: 02CD04N001_1 | CK1: 02CD04R002_1 | CL1: 02CD04S230_1 | CM1: 02CD04S234_1 | CN1: 02CD04U048_1 | CO1: 02CD05E185_1 | CP1: 02CD05E186_1 | CQ1: 02CD05E187_1 | CR1: 02CD05E188_1 | CS1: 02CD05E189_1 | CT1: 02CD05E190_1 | CU1: 02CD05E198_1 | CV1: 02CD05F037_1 | CW1: 02CD05K023_1 | CX1: 02CD05K026_1 | CY1: 02CD05K027_1 | CZ1: 02CD05M001_1 | DA1: 02CD05M002_1 | DB1: 02CD05N001_1 | DC1: 02CD05R002_1 | DD1: 02CD05S234_1 | DE1: 02CD05U048_1 | DF1: 02CD06E185_1 | DG1: 02CD06E186_1 | DH1: 02CD06E187_1 | DI1: 02CD06E188_1 | DJ1: 02CD06E189_1 | DK1: 02CD06E190_1 | DL1: 02CD06E198_1 | DM1: 02CD06F037_1 | DN1: 02CD06K023_1 | DO1: 02CD06K026_1 | DP1: 02CD06K027_1 | DQ1: 02CD06M001_1 | DR1: 02CD06M002_1 | DS1: 02CD06N001_1 | DT1: 02CD06R002_1 | DU1: 02CD06S230_1 | DV1: 02CD06S232_1 | DW1: 02CD06U048_1 | DX1: 02CD07E185_1 | DY1: 02CD07E186_1 | DZ1: 02CD07E187_1 | EA1: 02CD07E188_1 | EB1: 02CD07E189_1 | EC1: 02CD07E190_1 | ED1: 02CD07E198_1 | EE1: 02CD07F037_1 | EF1: 02CD07K023_1 | EG1: 02CD07K026_1 | EH1: 02CD07K027_1 | EI1: 02CD07M001_1 | EJ1: 02CD07M002_1 | EK1: 02CD07N001_1 | EL1: 02CD07R002_1 | EM1: 02CD07S229_1 | EN1: 02CD07S230_1 | EO1: 02CD07U048_1 | EP1: 02CD08E185_1 | EQ1: 02CD08E186_1 | ER1: 02CD08E187_1 | ES1: 02CD08E188_1 | ET1: 02CD08E189_1 | EU1: 02CD08E190_1 | EV1: 02CD08E198_1 | EW1: 02CD08F037_1 | EX1: 02CD08K023_1 | EY1: 02CD08K026_1 | EZ1: 02CD08K027_1 | FA1: 02CD08M001_1 | FB1: 02CD08M002_1 | FC1: 02CD08N001_1 | FD1: 02CD08R002_1 | FE1: 02CD08S229_1 | FF1: 02CD08S230_1 | FG1: 02CD08U048_1 | FH1: 02CD09E185_1 | FI1: 02CD09E186_1 | FJ1: 02CD09E187_1 | FK1: 02CD09E188_1 | FL1: 02CD09E189_1 | FM1: 02CD09E190_1 | FN1: 02CD09E198_1 | FO1: 02CD09F037_1 | FP1: 02CD09K023_1 | FQ1: 02CD09K026_1 | FR1: 02CD09K027_1 | FS1: 02CD09M001_1 | FT1: 02CD09M002_1 | FU1: 02CD09N001_1 | FV1: 02CD09R002_1 | FW1: 02CD09S229_1 | FX1: 02CD09S230_1 | FY1: 02CD09U048_1 | FZ1: 02CD10E185_1 | GA1: 02CD10E186_1 | GB1: 02CD10E187_1 | GC1: 02CD10E188_1 | GD1: 02CD10E189_1 | GE1: 02CD10E190_1 | GF1: 02CD10E198_1 | GG1: 02CD10F037_1 | GH1: 02CD10K023_1 | GI1: 02CD10K026_1 | GJ1: 02CD10K027_1 | GK1: 02CD10M001_1 | GL1: 02CD10M002_1 | GM1: 02CD10N001_1 | GN1: 02CD10R002_1 | GO1: 02CD10S230_1 | GP1: 02CD10S231_1 | GQ1: 02CD10S232_1 | GR1: 02CD10S233_1 | GS1: 02CD10S234_1 | GT1: 02CD10S235_1 | GU1: 02CD10U048_1 | GV1: 02CD11E185_1 | GW1: 02CD11E186_1 | GX1: 02CD11E187_1 | GY1: 02CD11E188_1 | GZ1: 02CD11E189_1 | HA1: 02CD11E190_1 | HB1: 02CD11E198_1 | HC1: 02CD11F037_1 | HD1: 02CD11K023_1 | HE1: 02CD11K026_1 | HF1: 02CD11K027_1 | HG1: 02CD11M001_1 | HH1: 02CD11M002_1 | HI1: 02CD11R002_1 | HJ1: 02CD11S229_1 | HK1: 02CD11S233_1 | HL1: 02CD11N001_1 | HM1: 02CD12E185_1 | HN1: 02CD12E186_1 | HO1: 02CD12E187_1 | HP1: 02CD12E188_1 | HQ1: 02CD12E189_1 | HR1: 02CD12E190_1 | HS1: 02CD12E198_1 | HT1: 02CD12F037_1 | HU1: 02CD12K023_1 | HV1: 02CD12K026_1 | HW1: 02CD12K027_1 | HX1: 02CD12N001_1 | HY1: 02CD12R002_1 | HZ1: 02CD12S231_1 | IA1: 02CD12S233_1 | IB1: 02CD12M001_1 | IC1: 02CD12M002_1 | ID1: 02CD12U048_1 | IE1: 02CD13E185_1 | IF1: 02CD13E186_1 | IG1: 02CD13E187_1 | IH1: 02CD13E188_1 | II1: 02CD13E189_1 | IJ1: 02CD13E190_1 | IK1: 02CD13E198_1 | IL1: 02CD13F037_1 | IM1: 02CD13K023_1 | IN1: 02CD13K026_1 | IO1: 02CD13K027_1 | IP1: 02CD13M001_1 | IQ1: 02CD13M002_1 | IR1: 02CD13N001_1 | IS1: 02CD13R002_1 | IT1: 02CD13U048_1 | IU1: 02CD14E185_1 | IV1: 02CD14E186_1 | IW1: 02CD14E187_1 | IX1: 02CD14E188_1 | IY1: 02CD14E189_1 | IZ1: 02CD14E190_1 | JA1: 02CD14E198_1 | JB1: 02CD14F037_1 | JC1: 02CD14K023_1 | JD1: 02CD14K026_1 | JE1: 02CD14K027_1 | JF1: 02CD14M001_1 | JG1: 02CD14M002_1 | JH1: 02CD14N001_1 | JI1: 02CD14R002_1 | JJ1: 02CD14S229_1 | JK1: 02CD14S231_1 | JL1: 02CD14S233_1 | JM1: 02CD14S234_1 | JN1: 02CD14S235_1 | JO1: 02CD14U048_1 | JP1: 02CD15E185_1 | JQ1: 02CD15E186_1 | JR1: 02CD15E187_1 | JS1: 02CD15E188_1 | JT1: 02CD15E189_1 | JU1: 02CD15E190_1 | JV1: 02CD15E198_1 | JW1: 02CD15F037_1 | JX1: 02CD15K023_1 | JY1: 02CD15K026_1 | JZ1: 02CD15K027_1 | KA1: 02CD15M001_1 | KB1: 02CD15M002_1 | KC1: 02CD15N001_1 | KD1: 02CD15R002_1 | KE1: 02CD15S229_1 | KF1: 02CD15S230_1 | KG1: 02CD15S232_1 | KH1: 02CD15S233_1 | KI1: 02CD15S235_1 | KJ1: 02CD15U048_1 | KK1: 02CD16E185_1 | KL1: 02CD16E186_1 | KM1: 02CD16E187_1 | KN1: 02CD16E188_1 | KO1: 02CD16E189_1 | KP1: 02CD16E190_1 | KQ1: 02CD16E198_1 | KR1: 02CD16F037_1 | KS1: 02CD16K023_1 | KT1: 02CD16K026_1 | KU1: 02CD16K027_1 | KV1: 02CD16M001_1 | KW1: 02CD16M002_1 | KX1: 02CD16N001_1 | KY1: 02CD16R002_1 | KZ1: 02CD16S230_1 | LA1: 02CD16S231_1 | LB1: 02CD16U048_1 | LC1: 02CDBPM001_1 | LD1: 02CDBPE097_1 | LE1: 02OD04M002_1 | LF1: 02OD04E003_1 | LG1: 02OD04N001_1 | LH1: 02OD04M001_1 | LI1: 02OD06P017_1 | LJ1: 02OD06M001_1 | LK1: 02OD06M002_1 | LL1: 02OD06N001_1 | LM1: 02PDAVM001_1 | LN1: 02PDAVM002_1 | LO1: 02PDAVE109_1 | LP1: 02PDDPE158_1 | LQ1: 02PDDPM001_1 | LR1: 02PDDPM002_1 | LS1: 02PDDPN001_1 | LT1: 03C001G073_1 | LU1: 03C001M001_1 | LV1: 03C001M002_1 | LW1: 03C001N001_1 | LX1: 03PDIVM001_1 | LY1: 03PDIVM002_1 | LZ1: 03PDIVN001_1 | MA1: 03PDIVS027_1 | MB1: 03PDIVS061_1 | MC1: 04C001F034_1 | MD1: 04C001F036_1 | ME1: 04C001G074_1 | MF1: 04C001N001_1 | MG1: 04C001P016_1 | MH1: 04C001M001_1 | MI1: 04C001M002_1 | MJ1: 04P0DER001_1 | MK1: 04P0DSF006_1 | ML1: 04P0DSM001_1 | MM1: 04P0DSM002_1 | MN1: 04P0DSN001_1 | MO1: 05C001F005_1 | MP1: 05C001M001_1 | MQ1: 05C001M002_1 | MR1: 05C001N001_1 | MS1: 05P0PTF022_1 | MT1: 05P0PTM001_1 | MU1: 05P0PTM002_1 | MV1: 05P0PTN001_1 | MW1: 06C001P005_1 | MX1: 06C001E022_1 | MY1: 06C001E107_1 | MZ1: 06C001E159_1 | NA1: 06C001G013_1 | NB1: 06C001M001_1 | NC1: 06C001M002_1 | ND1: 06C001N001_1 | NE1: 06C001P056_1 | NF1: 06CD03M001_1 | NG1: 06CD03M002_1 | NH1: 06CD03N001_1 | NI1: 06CD03K024_1 | NJ1: 06CD03K025_1 | NK1: 06CD03E160_1 | NL1: 06CD03E184_1 | NM1: 06CD05E090_1 | NN1: 06CD05N001_1 | NO1: 06P0FAE006_1 | NP1: 06P0FAS034_1 | NQ1: 06P0FAS036_1 | NR1: 06P0FAU045_1 | NS1: 06PDPAE154_1 | NT1: 06PDPAM001_1 | NU1: 06PDPAM002_1 | NV1: 06PDPAN001_1 | NW1: 07C001E093_1 | NX1: 07C001K008_1 | NY1: 07C001K020_1 | NZ1: 07C001K021_1 | OA1: 07C001K022_1 | OB1: 07C001M001_1 | OC1: 07C001M002_1 | OD1: 07C001N001_1 | OE1: 07C001U046_1 | OF1: 07CD01B001_1 | OG1: 07CD01M001_1 | OH1: 07CD01M002_1 | OI1: 07CD01N001_1 | OJ1: 07PDIFM001_1 | OK1: 07PDIFM002_1 | OL1: 07PDIFN001_1 | OM1: 07PDIFK012_1 | ON1: 07PDISE067_1 | OO1: 07PDISM001_1 | OP1: 07PDISM002_1 | OQ1: 07PDISN001_1 | OR1: 08C001E081_1 | OS1: 08C001E161_1 | OT1: 08C001E162_1 | OU1: 08C001N001_1 | OV1: 08C001S047_1 | OW1: 08C001S220_1 | OX1: 08C001S221_1 | OY1: 08C001M001_1 | OZ1: 08C001M002_1 | PA1: 08PDCPN001_1 | PB1: 08PDCPP027_1 | PC1: 08PDCPM001_1 | PD1: 08PDCPM002_1 | PE1: 08PDCPU038_1 | PF1: 08PDDFE163_1 | PG1: 08PDDFE164_1 | PH1: 08PDDFE165_1 | PI1: 08PDDFE166_1 | PJ1: 08PDDFM001_1 | PK1: 08PDDFM002_1 | PL1: 08PDDFN001_1 | PM1: 08PDDFS035_1 | PN1: 08PDDFS066_1 | PO1: 08PDDFS221_1 | PP1: 08PDDFU032_1 | PQ1: 08PDDFU037_1 | PR1: 08PDDFS010_1 | PS1: 08PDIIE165_1 | PT1: 08PDIIM001_1 | PU1: 08PDIIM002_1 | PV1: 08PDIIN001_1 | PW1: 08PDIIP031_1 | PX1: 08PDIJE193_1 | PY1: 08PDIJM001_1 | PZ1: 08PDIJM002_1 | QA1: 08PDIJN001_1 | QB1: 08PDIJS004_1 | QC1: 08PDIJS025_1 | QD1: 08PDPSM001_1 | QE1: 08PDPSM002_1 | QF1: 08PDPSN001_1 | QG1: 08PDPSS053_1 | QH1: 09C001E191_1 | QI1: 09C001E192_1 | QJ1: 09C001M001_1 | QK1: 09C001M002_1 | QL1: 09C001N001_1 | QM1: 09C001O004_1 | QN1: 09C001O007_1 | QO1: 09C001P014_1 | QP1: 09C001P026_1 | QQ1: 09PDLRE195_1 | QR1: 09PDLRJ001_1 | QS1: 09PDLRM001_1 | QT1: 09PDLRM002_1 | QU1: 09PDLRN001_1 | QV1: 09PDPAE195_1 | QW1: 09PDPAJ001_1 | QX1: 09PDPAM001_1 | QY1: 09PDPAM002_1 | QZ1: 09PDPAN001_1 | RA1: 09PDPPE195_1 | RB1: 09PDPPJ001_1 | RC1: 09PDPPM001_1 | RD1: 09PDPPM002_1 | RE1: 09PDPPN001_1 | RF1: 09PECME077_1 | RG1: 09PECMM001_1 | RH1: 09PECMM002_1 | RI1: 09PECMN001_1 | RJ1: 09PESME084_1 | RK1: 09PESMM001_1 | RL1: 09PESMM002_1 | RM1: 09PESMN001_1 | RN1: 09PFCHM001_1 | RO1: 09PFCHM002_1 | RP1: 09PFCHN001_1 | RQ1: 09PFCHE003_1 | RR1: 09PFRCG010_1 | RS1: 09PFRCN001_1 | RT1: 09PFRCM002_1 | RU1: 10C001E167_1 | RV1: 10C001E196_1 | RW1: 10C001M001_1 | RX1: 10C001M002_1 | RY1: 10C001N001_1 | RZ1: 10P0ACE196_1 | SA1: 10P0TPU022_1 | SB1: 10PDMBE042_1 | SC1: 10PDMBM001_1 | SD1: 10PDMBM002_1 | SE1: 10PDMBN001_1 | SF1: 10PDMEE042_1 | SG1: 10PDMEU039_1 | SH1: 10PDMEM001_1 | SI1: 10PDMEM002_1 | SJ1: 10PDMEN001_1 | SK1: 10PDORG005_1 | SL1: 10PDORM001_1 | SM1: 10PDORM002_1 | SN1: 10PDORN001_1 | SO1: 10PDRTE042_1 | SP1: 10PDRTM001_1 | SQ1: 10PDRTM002_1 | SR1: 10PDRTN001_1 | SS1: 10PDTEE042_1 | ST1: 10PDTEJ001_1 | SU1: 10PDTEM001_1 | SV1: 10PDTEM002_1 | SW1: 10PDTEN001_1 | SX1: 11C001M001_1 | SY1: 11C001U047_1 | SZ1: 11C001N001_1 | TA1: 11C001K019_1 | TB1: 11C001E194_1 | TC1: 11C001E168_1 | TD1: 11C001E169_1 | TE1: 11C001M002_1 | TF1: 11CD01E026_1 | TG1: 11CD01E170_1 | TH1: 11CD01U040_1 | TI1: 11CD01N001_1 | TJ1: 11CD01M001_1 | TK1: 11CD01M002_1 | TL1: 11CD02M001_1 | TM1: 11CD02E169_1 | TN1: 11CD02E026_1 | TO1: 11CD02N001_1 | TP1: 11CD02M002_1 | TQ1: 11CD03E169_1 | TR1: 11CD03M001_1 | TS1: 11CD03M002_1 | TT1: 11CD03N001_1 | TU1: 13C001O006_1 | TV1: 13C001O008_1 | TW1: 13C001M001_1 | TX1: 13C001M002_1 | TY1: 13C001N001_1 | TZ1: 13PDEAO009_1 | UA1: 13PDEAM001_1 | UB1: 13PDEAM002_1 | UC1: 13PDEAN001_1 | UD1: 13PDVAG076_1 | UE1: 13PDVAM001_1 | UF1: 13PDVAM002_1 | UG1: 13PDVAN001_1 | UH1: 15C006U009_1 | UI1: 16C000D001_1 | UJ1: 16C000D002_1 | UK1: 25C001E171_1 | UL1: 25C001O010_1 | UM1: 25C001N001_1 | UN1: 25C001M001_1 | UO1: 25C001M002_1 | UP1: 26C001E017_1 | UQ1: 26C001E172_1 | UR1: 26C001E173_1 | US1: 26C001E174_1 | UT1: 26C001M001_1 | UU1: 26C001M002_1 | UV1: 26C001N001_1 | UW1: 26CD01G077_1 | UX1: 26CD01M001_1 | UY1: 26CD01M002_1 | UZ1: 26CD01N001_1 | VA1: 26PDIAP022_1 | VB1: 26PDIAM001_1 | VC1: 26PDIAM002_1 | VD1: 26PDIAN001_1 | VE1: 26PDSPN001_1 | VF1: 26PDSPE066_1 | VG1: 26PDSPE173_1 | VH1: 26PDSPM001_1 | VI1: 26PDSPM002_1 | VJ1: 31C000E175_1 | VK1: 31C000S012_1 | VL1: 31C000S051_1 | VM1: 31C000S057_1 | VN1: 31C000U014_1 | VO1: 31C000M001_1 | VP1: 31C000M002_1 | VQ1: 31C000N001_1 | VR1: 31PDMPE048_1 | VS1: 31PDMPM001_1 | VT1: 31PDMPM002_1 | VU1: 31PDMPN001_1 | VV1: 31PFMAE177_1 | VW1: 31PFMAM001_1 | VX1: 31PFMAM002_1 | VY1: 31PFMAN001_1 | VZ1: 31PFMEE177_1 | WA1: 31PFMEM001_1 | WB1: 31PFMEM002_1 | WC1: 31PFMEN001_1 | WD1: 31PFPCU036_1 | WE1: 31PFPCM001_1 | WF1: 31PFPCM002_1 | WG1: 31PFPCN001_1 | WH1: 33C001E178_1 | WI1: 33C001M001_1 | WJ1: 33C001M002_1 | WK1: 33C001N001_1 | WL1: 33C001S022_1 | WM1: 33C001S023_1 | WN1: 33C001S054_1 | WO1: 33PDCLE199_1 | WP1: 33PDITE100_1 | WQ1: 33PDITM001_1 | WR1: 33PDITM002_1 | WS1: 33PDITN001_1 | WT1: 34C001N005_1 | WU1: 34C001M001_1 | WV1: 34C001M002_1 | WW1: 34C001N001_1 | WX1: 34PDHBN005_1 | WY1: 34PDHBM001_1 | WZ1: 34PDHBM002_1 | XA1: 34PDHBN001_1 | XB1: 35C001E179_1 | XC1: 35C001S223_1 | XD1: 35C001M001_1 | XE1: 35C001M002_1 | XF1: 35C001N001_1 | XG1: 36C001E086_1 | XH1: 36C001E116_1 | XI1: 36C001E180_1 | XJ1: 36C001M001_1 | XK1: 36C001M002_1 | XL1: 36C001N001_1 | XM1: 36C001S224_1 | XN1: 36C001U041_1 | XO1: 36CD01E153_1 | XP1: 36CD01M001_1 | XQ1: 36CD01M002_1 | XR1: 36CD01N001_1 | XS1: 36CDESE181_1 | XT1: 36CDESM001_1 | XU1: 36CDESM002_1 | XV1: 36CDESN001_1 | XW1: 36PDIDE182_1 | XX1: 36PDIDE197_1 | XY1: 36PDIDM001_1 | XZ1: 36PDIDM002_1 | YA1: 36PDIDN001_1 | YB1: 36PDIDU042_1 | YC1: 36PDIEE086_1 | YD1: 36PDIEM001_1 | YE1: 36PDIEM002_1 | YF1: 36PDIEN001_1 | YG1: 36PFEGE161_1 | YH1: 36PFEGM001_1 | YI1: 36PFEGM002_1 | YJ1: 36PFEGN001_1 | YK1: 36PFEGS210_1 | YL1: 36PFEGS225_1 | YM1: 36PFEGS226_1 | YN1: 36PFEGS227_1 | YO1: 36PFEGU043_1 | YP1: 36PFEGU044_1 | YQ1: 38C001E183_1 | YR1: 38C001S056_1 | YS1: 38C001P003_1 | YT1: 38C001M001_1 | YU1: 38C001N001_1 | YV1: 38C001M002_1 | YW1: 41PDIPM001_1 | YX1: 41PDIPM002_1 | YY1: 41PDIPP051_1
A2: 01C001P020_2 | B2: 01C001M001_2 | C2: 01C001M002_2 | D2: 01C001N001_2 | E2: 01CD03E065_2 | F2: 01CD03M001_2 | G2: 01CD03M002_2 | H2: 01CD03N001_2 | I2: 01CD06E005_2 | J2: 01CD06E157_2 | K2: 01CD06M001_2 | L2: 01CD06M002_2 | M2: 01CD06N001_2 | N2: 01P0ESP054_2 | O2: 01P0ESM001_2 | P2: 01P0ESM002_2 | Q2: 01P0ESN001_2 | R2: 02C001M001_2 | S2: 02C001M002_2 | T2: 02C001P055_2 | U2: 02C001N001_2 | V2: 02C001S005_2 | W2: 02C001U019_2 | X2: 02CD01E185_2 | Y2: 02CD01E186_2 | Z2: 02CD01E187_2 | AA2: 02CD01E188_2 | AB2: 02CD01E189_2 | AC2: 02CD01E190_2 | AD2: 02CD01E198_2 | AE2: 02CD01F037_2 | AF2: 02CD01K023_2 | AG2: 02CD01K026_2 | AH2: 02CD01K027_2 | AI2: 02CD01M001_2 | AJ2: 02CD01M002_2 | AK2: 02CD01N001_2 | AL2: 02CD01R002_2 | AM2: 02CD01S229_2 | AN2: 02CD01S230_2 | AO2: 02CD01U048_2 | AP2: 02CD02E185_2 | AQ2: 02CD02E186_2 | AR2: 02CD02E187_2 | AS2: 02CD02E188_2 | AT2: 02CD02E198_2 | AU2: 02CD02F037_2 | AV2: 02CD02K023_2 | AW2: 02CD02K026_2 | AX2: 02CD02K027_2 | AY2: 02CD02M001_2 | AZ2: 02CD02M002_2 | BA2: 02CD02N001_2 | BB2: 02CD02R002_2 | BC2: 02CD02S229_2 | BD2: 02CD02S230_2 | BE2: 02CD03E185_2 | BF2: 02CD03E186_2 | BG2: 02CD03E187_2 | BH2: 02CD03E190_2 | BI2: 02CD03E189_2 | BJ2: 02CD03E198_2 | BK2: 02CD03F037_2 | BL2: 02CD03K023_2 | BM2: 02CD03K026_2 | BN2: 02CD03K027_2 | BO2: 02CD03N001_2 | BP2: 02CD03R002_2 | BQ2: 02CD03S230_2 | BR2: 02CD03S235_2 | BS2: 02CD03E188_2 | BT2: 02CD03M001_2 | BU2: 02CD03M002_2 | BV2: 02CD03S234_2 | BW2: 02CD04E185_2 | BX2: 02CD04E186_2 | BY2: 02CD04E187_2 | BZ2: 02CD04E188_2 | CA2: 02CD04E189_2 | CB2: 02CD04E190_2 | CC2: 02CD04E198_2 | CD2: 02CD04F037_2 | CE2: 02CD04K023_2 | CF2: 02CD04K026_2 | CG2: 02CD04K027_2 | CH2: 02CD04M001_2 | CI2: 02CD04M002_2 | CJ2: 02CD04N001_2 | CK2: 02CD04R002_2 | CL2: 02CD04S230_2 | CM2: 02CD04S234_2 | CN2: 02CD04U048_2 | CO2: 02CD05E185_2 | CP2: 02CD05E186_2 | CQ2: 02CD05E187_2 | CR2: 02CD05E188_2 | CS2: 02CD05E189_2 | CT2: 02CD05E190_2 | CU2: 02CD05E198_2 | CV2: 02CD05F037_2 | CW2: 02CD05K023_2 | CX2: 02CD05K026_2 | CY2: 02CD05K027_2 | CZ2: 02CD05M001_2 | DA2: 02CD05M002_2 | DB2: 02CD05N001_2 | DC2: 02CD05R002_2 | DD2: 02CD05S234_2 | DE2: 02CD05U048_2 | DF2: 02CD06E185_2 | DG2: 02CD06E186_2 | DH2: 02CD06E187_2 | DI2: 02CD06E188_2 | DJ2: 02CD06E189_2 | DK2: 02CD06E190_2 | DL2: 02CD06E198_2 | DM2: 02CD06F037_2 | DN2: 02CD06K023_2 | DO2: 02CD06K026_2 | DP2: 02CD06K027_2 | DQ2: 02CD06M001_2 | DR2: 02CD06M002_2 | DS2: 02CD06N001_2 | DT2: 02CD06R002_2 | DU2: 02CD06S230_2 | DV2: 02CD06S232_2 | DW2: 02CD06U048_2 | DX2: 02CD07E185_2 | DY2: 02CD07E186_2 | DZ2: 02CD07E187_2 | EA2: 02CD07E188_2 | EB2: 02CD07E189_2 | EC2: 02CD07E190_2 | ED2: 02CD07E198_2 | EE2: 02CD07F037_2 | EF2: 02CD07K023_2 | EG2: 02CD07K026_2 | EH2: 02CD07K027_2 | EI2: 02CD07M001_2 | EJ2: 02CD07M002_2 | EK2: 02CD07N001_2 | EL2: 02CD07R002_2 | EM2: 02CD07S229_2 | EN2: 02CD07S230_2 | EO2: 02CD07U048_2 | EP2: 02CD08E185_2 | EQ2: 02CD08E186_2 | ER2: 02CD08E187_2 | ES2: 02CD08E188_2 | ET2: 02CD08E189_2 | EU2: 02CD08E190_2 | EV2: 02CD08E198_2 | EW2: 02CD08F037_2 | EX2: 02CD08K023_2 | EY2: 02CD08K026_2 | EZ2: 02CD08K027_2 | FA2: 02CD08M001_2 | FB2: 02CD08M002_2 | FC2: 02CD08N001_2 | FD2: 02CD08R002_2 | FE2: 02CD08S229_2 | FF2: 02CD08S230_2 | FG2: 02CD08U048_2 | FH2: 02CD09E185_2 | FI2: 02CD09E186_2 | FJ2: 02CD09E187_2 | FK2: 02CD09E188_2 | FL2: 02CD09E189_2 | FM2: 02CD09E190_2 | FN2: 02CD09E198_2 | FO2: 02CD09F037_2 | FP2: 02CD09K023_2 | FQ2: 02CD09K026_2 | FR2: 02CD09K027_2 | FS2: 02CD09M001_2 | FT2: 02CD09M002_2 | FU2: 02CD09N001_2 | FV2: 02CD09R002_2 | FW2: 02CD09S229_2 | FX2: 02CD09S230_2 | FY2: 02CD09U048_2 | FZ2: 02CD10E185_2 | GA2: 02CD10E186_2 | GB2: 02CD10E187_2 | GC2: 02CD10E188_2 | GD2: 02CD10E189_2 | GE2: 02CD10E190_2 | GF2: 02CD10E198_2 | GG2: 02CD10F037_2 | GH2: 02CD10K023_2 | GI2: 02CD10K026_2 | GJ2: 02CD10K027_2 | GK2: 02CD10M001_2 | GL2: 02CD10M002_2 | GM2: 02CD10N001_2 | GN2: 02CD10R002_2 | GO2: 02CD10S230_2 | GP2: 02CD10S231_2 | GQ2: 02CD10S232_2 | GR2: 02CD10S233_2 | GS2: 02CD10S234_2 | GT2: 02CD10S235_2 | GU2: 02CD10U048_2 | GV2: 02CD11E185_2 | GW2: 02CD11E186_2 | GX2: 02CD11E187_2 | GY2: 02CD11E188_2 | GZ2: 02CD11E189_2 | HA2: 02CD11E190_2 | HB2: 02CD11E198_2 | HC2: 02CD11F037_2 | HD2: 02CD11K023_2 | HE2: 02CD11K026_2 | HF2: 02CD11K027_2 | HG2: 02CD11M001_2 | HH2: 02CD11M002_2 | HI2: 02CD11R002_2 | HJ2: 02CD11S229_2 | HK2: 02CD11S233_2 | HL2: 02CD11N001_2 | HM2: 02CD12E185_2 | HN2: 02CD12E186_2 | HO2: 02CD12E187_2 | HP2: 02CD12E188_2 | HQ2: 02CD12E189_2 | HR2: 02CD12E190_2 | HS2: 02CD12E198_2 | HT2: 02CD12F037_2 | HU2: 02CD12K023_2 | HV2: 02CD12K026_2 | HW2: 02CD12K027_2 | HX2: 02CD12N001_2 | HY2: 02CD12R002_2 | HZ2: 02CD12S231_2 | IA2: 02CD12S233_2 | IB2: 02CD12M001_2 | IC2: 02CD12M002_2 | ID2: 02CD12U048_2 | IE2: 02CD13E185_2 | IF2: 02CD13E186_2 | IG2: 02CD13E187_2 | IH2: 02CD13E188_2 | II2: 02CD13E189_2 | IJ2: 02CD13E190_2 | IK2: 02CD13E198_2 | IL2: 02CD13F037_2 | IM2: 02CD13K023_2 | IN2: 02CD13K026_2 | IO2: 02CD13K027_2 | IP2: 02CD13M001_2 | IQ2: 02CD13M002_2 | IR2: 02CD13N001_2 | IS2: 02CD13R002_2 | IT2: 02CD13U048_2 | IU2: 02CD14E185_2 | IV2: 02CD14E186_2 | IW2: 02CD14E187_2 | IX2: 02CD14E188_2 | IY2: 02CD14E189_2 | IZ2: 02CD14E190_2 | JA2: 02CD14E198_2 | JB2: 02CD14F037_2 | JC2: 02CD14K023_2 | JD2: 02CD14K026_2 | JE2: 02CD14K027_2 | JF2: 02CD14M001_2 | JG2: 02CD14M002_2 | JH2: 02CD14N001_2 | JI2: 02CD14R002_2 | JJ2: 02CD14S229_2 | JK2: 02CD14S231_2 | JL2: 02CD14S233_2 | JM2: 02CD14S234_2 | JN2: 02CD14S235_2 | JO2: 02CD14U048_2 | JP2: 02CD15E185_2 | JQ2: 02CD15E186_2 | JR2: 02CD15E187_2 | JS2: 02CD15E188_2 | JT2: 02CD15E189_2 | JU2: 02CD15E190_2 | JV2: 02CD15E198_2 | JW2: 02CD15F037_2 | JX2: 02CD15K023_2 | JY2: 02CD15K026_2 | JZ2: 02CD15K027_2 | KA2: 02CD15M001_2 | KB2: 02CD15M002_2 | KC2: 02CD15N001_2 | KD2: 02CD15R002_2 | KE2: 02CD15S229_2 | KF2: 02CD15S230_2 | KG2: 02CD15S232_2 | KH2: 02CD15S233_2 | KI2: 02CD15S235_2 | KJ2: 02CD15U048_2 | KK2: 02CD16E185_2 | KL2: 02CD16E186_2 | KM2: 02CD16E187_2 | KN2: 02CD16E188_2 | KO2: 02CD16E189_2 | KP2: 02CD16E190_2 | KQ2: 02CD16E198_2 | KR2: 02CD16F037_2 | KS2: 02CD16K023_2 | KT2: 02CD16K026_2 | KU2: 02CD16K027_2 | KV2: 02CD16M001_2 | KW2: 02CD16M002_2 | KX2: 02CD16N001_2 | KY2: 02CD16R002_2 | KZ2: 02CD16S230_2 | LA2: 02CD16S231_2 | LB2: 02CD16U048_2 | LC2: 02CDBPM001_2 | LD2: 02CDBPE097_2 | LE2: 02OD04M002_2 | LF2: 02OD04E003_2 | LG2: 02OD04N001_2 | LH2: 02OD04M001_2 | LI2: 02OD06P017_2 | LJ2: 02OD06M001_2 | LK2: 02OD06M002_2 | LL2: 02OD06N001_2 | LM2: 02PDAVM001_2 | LN2: 02PDAVM002_2 | LO2: 02PDAVE109_2 | LP2: 02PDDPE158_2 | LQ2: 02PDDPM001_2 | LR2: 02PDDPM002_2 | LS2: 02PDDPN001_2 | LT2: 03C001G073_2 | LU2: 03C001M001_2 | LV2: 03C001M002_2 | LW2: 03C001N001_2 | LX2: 03PDIVM001_2 | LY2: 03PDIVM002_2 | LZ2: 03PDIVN001_2 | MA2: 03PDIVS027_2 | MB2: 03PDIVS061_2 | MC2: 04C001F034_2 | MD2: 04C001F036_2 | ME2: 04C001G074_2 | MF2: 04C001N001_2 | MG2: 04C001P016_2 | MH2: 04C001M001_2 | MI2: 04C001M002_2 | MJ2: 04P0DER001_2 | MK2: 04P0DSF006_2 | ML2: 04P0DSM001_2 | MM2: 04P0DSM002_2 | MN2: 04P0DSN001_2 | MO2: 05C001F005_2 | MP2: 05C001M001_2 | MQ2: 05C001M002_2 | MR2: 05C001N001_2 | MS2: 05P0PTF022_2 | MT2: 05P0PTM001_2 | MU2: 05P0PTM002_2 | MV2: 05P0PTN001_2 | MW2: 06C001P005_2 | MX2: 06C001E022_2 | MY2: 06C001E107_2 | MZ2: 06C001E159_2 | NA2: 06C001G013_2 | NB2: 06C001M001_2 | NC2: 06C001M002_2 | ND2: 06C001N001_2 | NE2: 06C001P056_2 | NF2: 06CD03M001_2 | NG2: 06CD03M002_2 | NH2: 06CD03N001_2 | NI2: 06CD03K024_2 | NJ2: 06CD03K025_2 | NK2: 06CD03E160_2 | NL2: 06CD03E184_2 | NM2: 06CD05E090_2 | NN2: 06CD05N001_2 | NO2: 06P0FAE006_2 | NP2: 06P0FAS034_2 | NQ2: 06P0FAS036_2 | NR2: 06P0FAU045_2 | NS2: 06PDPAE154_2 | NT2: 06PDPAM001_2 | NU2: 06PDPAM002_2 | NV2: 06PDPAN001_2 | NW2: 07C001E093_2 | NX2: 07C001K008_2 | NY2: 07C001K020_2 | NZ2: 07C001K021_2 | OA2: 07C001K022_2 | OB2: 07C001M001_2 | OC2: 07C001M002_2 | OD2: 07C001N001_2 | OE2: 07C001U046_2 | OF2: 07CD01B001_2 | OG2: 07CD01M001_2 | OH2: 07CD01M002_2 | OI2: 07CD01N001_2 | OJ2: 07PDIFM001_2 | OK2: 07PDIFM002_2 | OL2: 07PDIFN001_2 | OM2: 07PDIFK012_2 | ON2: 07PDISE067_2 | OO2: 07PDISM001_2 | OP2: 07PDISM002_2 | OQ2: 07PDISN001_2 | OR2: 08C001E081_2 | OS2: 08C001E161_2 | OT2: 08C001E162_2 | OU2: 08C001N001_2 | OV2: 08C001S047_2 | OW2: 08C001S220_2 | OX2: 08C001S221_2 | OY2: 08C001M001_2 | OZ2: 08C001M002_2 | PA2: 08PDCPN001_2 | PB2: 08PDCPP027_2 | PC2: 08PDCPM001_2 | PD2: 08PDCPM002_2 | PE2: 08PDCPU038_2 | PF2: 08PDDFE163_2 | PG2: 08PDDFE164_2 | PH2: 08PDDFE165_2 | PI2: 08PDDFE166_2 | PJ2: 08PDDFM001_2 | PK2: 08PDDFM002_2 | PL2: 08PDDFN001_2 | PM2: 08PDDFS035_2 | PN2: 08PDDFS066_2 | PO2: 08PDDFS221_2 | PP2: 08PDDFU032_2 | PQ2: 08PDDFU037_2 | PR2: 08PDDFS010_2 | PS2: 08PDIIE165_2 | PT2: 08PDIIM001_2 | PU2: 08PDIIM002_2 | PV2: 08PDIIN001_2 | PW2: 08PDIIP031_2 | PX2: 08PDIJE193_2 | PY2: 08PDIJM001_2 | PZ2: 08PDIJM002_2 | QA2: 08PDIJN001_2 | QB2: 08PDIJS004_2 | QC2: 08PDIJS025_2 | QD2: 08PDPSM001_2 | QE2: 08PDPSM002_2 | QF2: 08PDPSN001_2 | QG2: 08PDPSS053_2 | QH2: 09C001E191_2 | QI2: 09C001E192_2 | QJ2: 09C001M001_2 | QK2: 09C001M002_2 | QL2: 09C001N001_2 | QM2: 09C001O004_2 | QN2: 09C001O007_2 | QO2: 09C001P014_2 | QP2: 09C001P026_2 | QQ2: 09PDLRE195_2 | QR2: 09PDLRJ001_2 | QS2: 09PDLRM001_2 | QT2: 09PDLRM002_2 | QU2: 09PDLRN001_2 | QV2: 09PDPAE195_2 | QW2: 09PDPAJ001_2 | QX2: 09PDPAM001_2 | QY2: 09PDPAM002_2 | QZ2: 09PDPAN001_2 | RA2: 09PDPPE195_2 | RB2: 09PDPPJ001_2 | RC2: 09PDPPM001_2 | RD2: 09PDPPM002_2 | RE2: 09PDPPN001_2 | RF2: 09PECME077_2 | RG2: 09PECMM001_2 | RH2: 09PECMM002_2 | RI2: 09PECMN001_2 | RJ2: 09PESME084_2 | RK2: 09PESMM001_2 | RL2: 09PESMM002_2 | RM2: 09PESMN001_2 | RN2: 09PFCHM001_2 | RO2: 09PFCHM002_2 | RP2: 09PFCHN001_2 | RQ2: 09PFCHE003_2 | RR2: 09PFRCG010_2 | RS2: 09PFRCN001_2 | RT2: 09PFRCM002_2 | RU2: 10C001E167_2 | RV2: 10C001E196_2 | RW2: 10C001M001_2 | RX2: 10C001M002_2 | RY2: 10C001N001_2 | RZ2: 10P0ACE196_2 | SA2: 10P0TPU022_2 | SB2: 10PDMBE042_2 | SC2: 10PDMBM001_2 | SD2: 10PDMBM002_2 | SE2: 10PDMBN001_2 | SF2: 10PDMEE042_2 | SG2: 10PDMEU039_2 | SH2: 10PDMEM001_2 | SI2: 10PDMEM002_2 | SJ2: 10PDMEN001_2 | SK2: 10PDORG005_2 | SL2: 10PDORM001_2 | SM2: 10PDORM002_2 | SN2: 10PDORN001_2 | SO2: 10PDRTE042_2 | SP2: 10PDRTM001_2 | SQ2: 10PDRTM002_2 | SR2: 10PDRTN001_2 | SS2: 10PDTEE042_2 | ST2: 10PDTEJ001_2 | SU2: 10PDTEM001_2 | SV2: 10PDTEM002_2 | SW2: 10PDTEN001_2 | SX2: 11C001M001_2 | SY2: 11C001U047_2 | SZ2: 11C001N001_2 | TA2: 11C001K019_2 | TB2: 11C001E194_2 | TC2: 11C001E168_2 | TD2: 11C001E169_2 | TE2: 11C001M002_2 | TF2: 11CD01E026_2 | TG2: 11CD01E170_2 | TH2: 11CD01U040_2 | TI2: 11CD01N001_2 | TJ2: 11CD01M001_2 | TK2: 11CD01M002_2 | TL2: 11CD02M001_2 | TM2: 11CD02E169_2 | TN2: 11CD02E026_2 | TO2: 11CD02N001_2 | TP2: 11CD02M002_2 | TQ2: 11CD03E169_2 | TR2: 11CD03M001_2 | TS2: 11CD03M002_2 | TT2: 11CD03N001_2 | TU2: 13C001O006_2 | TV2: 13C001O008_2 | TW2: 13C001M001_2 | TX2: 13C001M002_2 | TY2: 13C001N001_2 | TZ2: 13PDEAO009_2 | UA2: 13PDEAM001_2 | UB2: 13PDEAM002_2 | UC2: 13PDEAN001_2 | UD2: 13PDVAG076_2 | UE2: 13PDVAM001_2 | UF2: 13PDVAM002_2 | UG2: 13PDVAN001_2 | UH2: 15C006U009_2 | UI2: 16C000D001_2 | UJ2: 16C000D002_2 | UK2: 25C001E171_2 | UL2: 25C001O010_2 | UM2: 25C001N001_2 | UN2: 25C001M001_2 | UO2: 25C001M002_2 | UP2: 26C001E017_2 | UQ2: 26C001E172_2 | UR2: 26C001E173_2 | US2: 26C001E174_2 | UT2: 26C001M001_2 | UU2: 26C001M002_2 | UV2: 26C001N001_2 | UW2: 26CD01G077_2 | UX2: 26CD01M001_2 | UY2: 26CD01M002_2 | UZ2: 26CD01N001_2 | VA2: 26PDIAP022_2 | VB2: 26PDIAM001_2 | VC2: 26PDIAM002_2 | VD2: 26PDIAN001_2 | VE2: 26PDSPN001_2 | VF2: 26PDSPE066_2 | VG2: 26PDSPE173_2 | VH2: 26PDSPM001_2 | VI2: 26PDSPM002_2 | VJ2: 31C000E175_2 | VK2: 31C000S012_2 | VL2: 31C000S051_2 | VM2: 31C000S057_2 | VN2: 31C000U014_2 | VO2: 31C000M001_2 | VP2: 31C000M002_2 | VQ2: 31C000N001_2 | VR2: 31PDMPE048_2 | VS2: 31PDMPM001_2 | VT2: 31PDMPM002_2 | VU2: 31PDMPN001_2 | VV2: 31PFMAE177_2 | VW2: 31PFMAM001_2 | VX2: 31PFMAM002_2 | VY2: 31PFMAN001_2 | VZ2: 31PFMEE177_2 | WA2: 31PFMEM001_2 | WB2: 31PFMEM002_2 | WC2: 31PFMEN001_2 | WD2: 31PFPCU036_2 | WE2: 31PFPCM001_2 | WF2: 31PFPCM002_2 | WG2: 31PFPCN001_2 | WH2: 33C001E178_2 | WI2: 33C001M001_2 | WJ2: 33C001M002_2 | WK2: 33C001N001_2 | WL2: 33C001S022_2 | WM2: 33C001S023_2 | WN2: 33C001S054_2 | WO2: 33PDCLE199_2 | WP2: 33PDITE100_2 | WQ2: 33PDITM001_2 | WR2: 33PDITM002_2 | WS2: 33PDITN001_2 | WT2: 34C001N005_2 | WU2: 34C001M001_2 | WV2: 34C001M002_2 | WW2: 34C001N001_2 | WX2: 34PDHBN005_2 | WY2: 34PDHBM001_2 | WZ2: 34PDHBM002_2 | XA2: 34PDHBN001_2 | XB2: 35C001E179_2 | XC2: 35C001S223_2 | XD2: 35C001M001_2 | XE2: 35C001M002_2 | XF2: 35C001N001_2 | XG2: 36C001E086_2 | XH2: 36C001E116_2 | XI2: 36C001E180_2 | XJ2: 36C001M001_2 | XK2: 36C001M002_2 | XL2: 36C001N001_2 | XM2: 36C001S224_2 | XN2: 36C001U041_2 | XO2: 36CD01E153_2 | XP2: 36CD01M001_2 | XQ2: 36CD01M002_2 | XR2: 36CD01N001_2 | XS2: 36CDESE181_2 | XT2: 36CDESM001_2 | XU2: 36CDESM002_2 | XV2: 36CDESN001_2 | XW2: 36PDIDE182_2 | XX2: 36PDIDE197_2 | XY2: 36PDIDM001_2 | XZ2: 36PDIDM002_2 | YA2: 36PDIDN001_2 | YB2: 36PDIDU042_2 | YC2: 36PDIEE086_2 | YD2: 36PDIEM001_2 | YE2: 36PDIEM002_2 | YF2: 36PDIEN001_2 | YG2: 36PFEGE161_2 | YH2: 36PFEGM001_2 | YI2: 36PFEGM002_2 | YJ2: 36PFEGN001_2 | YK2: 36PFEGS210_2 | YL2: 36PFEGS225_2 | YM2: 36PFEGS226_2 | YN2: 36PFEGS227_2 | YO2: 36PFEGU043_2 | YP2: 36PFEGU044_2 | YQ2: 38C001E183_2 | YR2: 38C001S056_2 | YS2: 38C001P003_2 | YT2: 38C001M001_2 | YU2: 38C001N001_2 | YV2: 38C001M002_2 | YW2: 41PDIPM001_2 | YX2: 41PDIPM002_2 | YY2: 41PDIPP051_2
A3: 01C001P020_3 | B3: 01C001M001_3 | C3: 01C001M002_3 | D3: 01C001N001_3 | E3: 01CD03E065_3 | F3: 01CD03M001_3 | G3: 01CD03M002_3 | H3: 01CD03N001_3 | I3: 01CD06E005_3 | J3: 01CD06E157_3 | K3: 01CD06M001_3 | L3: 01CD06M002_3 | M3: 01CD06N001_3 | N3: 01P0ESP054_3 | O3: 01P0ESM001_3 | P3: 01P0ESM002_3 | Q3: 01P0ESN001_3 | R3: 02C001M001_3 | S3: 02C001M002_3 | T3: 02C001P055_3 | U3: 02C001N001_3 | V3: 02C001S005_3 | W3: 02C001U019_3 | X3: 02CD01E185_3 | Y3: 02CD01E186_3 | Z3: 02CD01E187_3 | AA3: 02CD01E188_3 | AB3: 02CD01E189_3 | AC3: 02CD01E190_3 | AD3: 02CD01E198_3 | AE3: 02CD01F037_3 | AF3: 02CD01K023_3 | AG3: 02CD01K026_3 | AH3: 02CD01K027_3 | AI3: 02CD01M001_3 | AJ3: 02CD01M002_3 | AK3: 02CD01N001_3 | AL3: 02CD01R002_3 | AM3: 02CD01S229_3 | AN3: 02CD01S230_3 | AO3: 02CD01U048_3 | AP3: 02CD02E185_3 | AQ3: 02CD02E186_3 | AR3: 02CD02E187_3 | AS3: 02CD02E188_3 | AT3: 02CD02E198_3 | AU3: 02CD02F037_3 | AV3: 02CD02K023_3 | AW3: 02CD02K026_3 | AX3: 02CD02K027_3 | AY3: 02CD02M001_3 | AZ3: 02CD02M002_3 | BA3: 02CD02N001_3 | BB3: 02CD02R002_3 | BC3: 02CD02S229_3 | BD3: 02CD02S230_3 | BE3: 02CD03E185_3 | BF3: 02CD03E186_3 | BG3: 02CD03E187_3 | BH3: 02CD03E190_3 | BI3: 02CD03E189_3 | BJ3: 02CD03E198_3 | BK3: 02CD03F037_3 | BL3: 02CD03K023_3 | BM3: 02CD03K026_3 | BN3: 02CD03K027_3 | BO3: 02CD03N001_3 | BP3: 02CD03R002_3 | BQ3: 02CD03S230_3 | BR3: 02CD03S235_3 | BS3: 02CD03E188_3 | BT3: 02CD03M001_3 | BU3: 02CD03M002_3 | BV3: 02CD03S234_3 | BW3: 02CD04E185_3 | BX3: 02CD04E186_3 | BY3: 02CD04E187_3 | BZ3: 02CD04E188_3 | CA3: 02CD04E189_3 | CB3: 02CD04E190_3 | CC3: 02CD04E198_3 | CD3: 02CD04F037_3 | CE3: 02CD04K023_3 | CF3: 02CD04K026_3 | CG3: 02CD04K027_3 | CH3: 02CD04M001_3 | CI3: 02CD04M002_3 | CJ3: 02CD04N001_3 | CK3: 02CD04R002_3 | CL3: 02CD04S230_3 | CM3: 02CD04S234_3 | CN3: 02CD04U048_3 | CO3: 02CD05E185_3 | CP3: 02CD05E186_3 | CQ3: 02CD05E187_3 | CR3: 02CD05E188_3 | CS3: 02CD05E189_3 | CT3: 02CD05E190_3 | CU3: 02CD05E198_3 | CV3: 02CD05F037_3 | CW3: 02CD05K023_3 | CX3: 02CD05K026_3 | CY3: 02CD05K027_3 | CZ3: 02CD05M001_3 | DA3: 02CD05M002_3 | DB3: 02CD05N001_3 | DC3: 02CD05R002_3 | DD3: 02CD05S234_3 | DE3: 02CD05U048_3 | DF3: 02CD06E185_3 | DG3: 02CD06E186_3 | DH3: 02CD06E187_3 | DI3: 02CD06E188_3 | DJ3: 02CD06E189_3 | DK3: 02CD06E190_3 | DL3: 02CD06E198_3 | DM3: 02CD06F037_3 | DN3: 02CD06K023_3 | DO3: 02CD06K026_3 | DP3: 02CD06K027_3 | DQ3: 02CD06M001_3 | DR3: 02CD06M002_3 | DS3: 02CD06N001_3 | DT3: 02CD06R002_3 | DU3: 02CD06S230_3 | DV3: 02CD06S232_3 | DW3: 02CD06U048_3 | DX3: 02CD07E185_3 | DY3: 02CD07E186_3 | DZ3: 02CD07E187_3 | EA3: 02CD07E188_3 | EB3: 02CD07E189_3 | EC3: 02CD07E190_3 | ED3: 02CD07E198_3 | EE3: 02CD07F037_3 | EF3: 02CD07K023_3 | EG3: 02CD07K026_3 | EH3: 02CD07K027_3 | EI3: 02CD07M001_3 | EJ3: 02CD07M002_3 | EK3: 02CD07N001_3 | EL3: 02CD07R002_3 | EM3: 02CD07S229_3 | EN3: 02CD07S230_3 | EO3: 02CD07U048_3 | EP3: 02CD08E185_3 | EQ3: 02CD08E186_3 | ER3: 02CD08E187_3 | ES3: 02CD08E188_3 | ET3: 02CD08E189_3 | EU3: 02CD08E190_3 | EV3: 02CD08E198_3 | EW3: 02CD08F037_3 | EX3: 02CD08K023_3 | EY3: 02CD08K026_3 | EZ3: 02CD08K027_3 | FA3: 02CD08M001_3 | FB3: 02CD08M002_3 | FC3: 02CD08N001_3 | FD3: 02CD08R002_3 | FE3: 02CD08S229_3 | FF3: 02CD08S230_3 | FG3: 02CD08U048_3 | FH3: 02CD09E185_3 | FI3: 02CD09E186_3 | FJ3: 02CD09E187_3 | FK3: 02CD09E188_3 | FL3: 02CD09E189_3 | FM3: 02CD09E190_3 | FN3: 02CD09E198_3 | FO3: 02CD09F037_3 | FP3: 02CD09K023_3 | FQ3: 02CD09K026_3 | FR3: 02CD09K027_3 | FS3: 02CD09M001_3 | FT3: 02CD09M002_3 | FU3: 02CD09N001_3 | FV3: 02CD09R002_3 | FW3: 02CD09S229_3 | FX3: 02CD09S230_3 | FY3: 02CD09U048_3 | FZ3: 02CD10E185_3 | GA3: 02CD10E186_3 | GB3: 02CD10E187_3 | GC3: 02CD10E188_3 | GD3: 02CD10E189_3 | GE3: 02CD10E190_3 | GF3: 02CD10E198_3 | GG3: 02CD10F037_3 | GH3: 02CD10K023_3 | GI3: 02CD10K026_3 | GJ3: 02CD10K027_3 | GK3: 02CD10M001_3 | GL3: 02CD10M002_3 | GM3: 02CD10N001_3 | GN3: 02CD10R002_3 | GO3: 02CD10S230_3 | GP3: 02CD10S231_3 | GQ3: 02CD10S232_3 | GR3: 02CD10S233_3 | GS3: 02CD10S234_3 | GT3: 02CD10S235_3 | GU3: 02CD10U048_3 | GV3: 02CD11E185_3 | GW3: 02CD11E186_3 | GX3: 02CD11E187_3 | GY3: 02CD11E188_3 | GZ3: 02CD11E189_3 | HA3: 02CD11E190_3 | HB3: 02CD11E198_3 | HC3: 02CD11F037_3 | HD3: 02CD11K023_3 | HE3: 02CD11K026_3 | HF3: 02CD11K027_3 | HG3: 02CD11M001_3 | HH3: 02CD11M002_3 | HI3: 02CD11R002_3 | HJ3: 02CD11S229_3 | HK3: 02CD11S233_3 | HL3: 02CD11N001_3 | HM3: 02CD12E185_3 | HN3: 02CD12E186_3 | HO3: 02CD12E187_3 | HP3: 02CD12E188_3 | HQ3: 02CD12E189_3 | HR3: 02CD12E190_3 | HS3: 02CD12E198_3 | HT3: 02CD12F037_3 | HU3: 02CD12K023_3 | HV3: 02CD12K026_3 | HW3: 02CD12K027_3 | HX3: 02CD12N001_3 | HY3: 02CD12R002_3 | HZ3: 02CD12S231_3 | IA3: 02CD12S233_3 | IB3: 02CD12M001_3 | IC3: 02CD12M002_3 | ID3: 02CD12U048_3 | IE3: 02CD13E185_3 | IF3: 02CD13E186_3 | IG3: 02CD13E187_3 | IH3: 02CD13E188_3 | II3: 02CD13E189_3 | IJ3: 02CD13E190_3 | IK3: 02CD13E198_3 | IL3: 02CD13F037_3 | IM3: 02CD13K023_3 | IN3: 02CD13K026_3 | IO3: 02CD13K027_3 | IP3: 02CD13M001_3 | IQ3: 02CD13M002_3 | IR3: 02CD13N001_3 | IS3: 02CD13R002_3 | IT3: 02CD13U048_3 | IU3: 02CD14E185_3 | IV3: 02CD14E186_3 | IW3: 02CD14E187_3 | IX3: 02CD14E188_3 | IY3: 02CD14E189_3 | IZ3: 02CD14E190_3 | JA3: 02CD14E198_3 | JB3: 02CD14F037_3 | JC3: 02CD14K023_3 | JD3: 02CD14K026_3 | JE3: 02CD14K027_3 | JF3: 02CD14M001_3 | JG3: 02CD14M002_3 | JH3: 02CD14N001_3 | JI3: 02CD14R002_3 | JJ3: 02CD14S229_3 | JK3: 02CD14S231_3 | JL3: 02CD14S233_3 | JM3: 02CD14S234_3 | JN3: 02CD14S235_3 | JO3: 02CD14U048_3 | JP3: 02CD15E185_3 | JQ3: 02CD15E186_3 | JR3: 02CD15E187_3 | JS3: 02CD15E188_3 | JT3: 02CD15E189_3 | JU3: 02CD15E190_3 | JV3: 02CD15E198_3 | JW3: 02CD15F037_3 | JX3: 02CD15K023_3 | JY3: 02CD15K026_3 | JZ3: 02CD15K027_3 | KA3: 02CD15M001_3 | KB3: 02CD15M002_3 | KC3: 02CD15N001_3 | KD3: 02CD15R002_3 | KE3: 02CD15S229_3 | KF3: 02CD15S230_3 | KG3: 02CD15S232_3 | KH3: 02CD15S233_3 | KI3: 02CD15S235_3 | KJ3: 02CD15U048_3 | KK3: 02CD16E185_3 | KL3: 02CD16E186_3 | KM3: 02CD16E187_3 | KN3: 02CD16E188_3 | KO3: 02CD16E189_3 | KP3: 02CD16E190_3 | KQ3: 02CD16E198_3 | KR3: 02CD16F037_3 | KS3: 02CD16K023_3 | KT3: 02CD16K026_3 | KU3: 02CD16K027_3 | KV3: 02CD16M001_3 | KW3: 02CD16M002_3 | KX3: 02CD16N001_3 | KY3: 02CD16R002_3 | KZ3: 02CD16S230_3 | LA3: 02CD16S231_3 | LB3: 02CD16U048_3 | LC3: 02CDBPM001_3 | LD3: 02CDBPE097_3 | LE3: 02OD04M002_3 | LF3: 02OD04E003_3 | LG3: 02OD04N001_3 | LH3: 02OD04M001_3 | LI3: 02OD06P017_3 | LJ3: 02OD06M001_3 | LK3: 02OD06M002_3 | LL3: 02OD06N001_3 | LM3: 02PDAVM001_3 | LN3: 02PDAVM002_3 | LO3: 02PDAVE109_3 | LP3: 02PDDPE158_3 | LQ3: 02PDDPM001_3 | LR3: 02PDDPM002_3 | LS3: 02PDDPN001_3 | LT3: 03C001G073_3 | LU3: 03C001M001_3 | LV3: 03C001M002_3 | LW3: 03C001N001_3 | LX3: 03PDIVM001_3 | LY3: 03PDIVM002_3 | LZ3: 03PDIVN001_3 | MA3: 03PDIVS027_3 | MB3: 03PDIVS061_3 | MC3: 04C001F034_3 | MD3: 04C001F036_3 | ME3: 04C001G074_3 | MF3: 04C001N001_3 | MG3: 04C001P016_3 | MH3: 04C001M001_3 | MI3: 04C001M002_3 | MJ3: 04P0DER001_3 | MK3: 04P0DSF006_3 | ML3: 04P0DSM001_3 | MM3: 04P0DSM002_3 | MN3: 04P0DSN001_3 | MO3: 05C001F005_3 | MP3: 05C001M001_3 | MQ3: 05C001M002_3 | MR3: 05C001N001_3 | MS3: 05P0PTF022_3 | MT3: 05P0PTM001_3 | MU3: 05P0PTM002_3 | MV3: 05P0PTN001_3 | MW3: 06C001P005_3 | MX3: 06C001E022_3 | MY3: 06C001E107_3 | MZ3: 06C001E159_3 | NA3: 06C001G013_3 | NB3: 06C001M001_3 | NC3: 06C001M002_3 | ND3: 06C001N001_3 | NE3: 06C001P056_3 | NF3: 06CD03M001_3 | NG3: 06CD03M002_3 | NH3: 06CD03N001_3 | NI3: 06CD03K024_3 | NJ3: 06CD03K025_3 | NK3: 06CD03E160_3 | NL3: 06CD03E184_3 | NM3: 06CD05E090_3 | NN3: 06CD05N001_3 | NO3: 06P0FAE006_3 | NP3: 06P0FAS034_3 | NQ3: 06P0FAS036_3 | NR3: 06P0FAU045_3 | NS3: 06PDPAE154_3 | NT3: 06PDPAM001_3 | NU3: 06PDPAM002_3 | NV3: 06PDPAN001_3 | NW3: 07C001E093_3 | NX3: 07C001K008_3 | NY3: 07C001K020_3 | NZ3: 07C001K021_3 | OA3: 07C001K022_3 | OB3: 07C001M001_3 | OC3: 07C001M002_3 | OD3: 07C001N001_3 | OE3: 07C001U046_3 | OF3: 07CD01B001_3 | OG3: 07CD01M001_3 | OH3: 07CD01M002_3 | OI3: 07CD01N001_3 | OJ3: 07PDIFM001_3 | OK3: 07PDIFM002_3 | OL3: 07PDIFN001_3 | OM3: 07PDIFK012_3 | ON3: 07PDISE067_3 | OO3: 07PDISM001_3 | OP3: 07PDISM002_3 | OQ3: 07PDISN001_3 | OR3: 08C001E081_3 | OS3: 08C001E161_3 | OT3: 08C001E162_3 | OU3: 08C001N001_3 | OV3: 08C001S047_3 | OW3: 08C001S220_3 | OX3: 08C001S221_3 | OY3: 08C001M001_3 | OZ3: 08C001M002_3 | PA3: 08PDCPN001_3 | PB3: 08PDCPP027_3 | PC3: 08PDCPM001_3 | PD3: 08PDCPM002_3 | PE3: 08PDCPU038_3 | PF3: 08PDDFE163_3 | PG3: 08PDDFE164_3 | PH3: 08PDDFE165_3 | PI3: 08PDDFE166_3 | PJ3: 08PDDFM001_3 | PK3: 08PDDFM002_3 | PL3: 08PDDFN001_3 | PM3: 08PDDFS035_3 | PN3: 08PDDFS066_3 | PO3: 08PDDFS221_3 | PP3: 08PDDFU032_3 | PQ3: 08PDDFU037_3 | PR3: 08PDDFS010_3 | PS3: 08PDIIE165_3 | PT3: 08PDIIM001_3 | PU3: 08PDIIM002_3 | PV3: 08PDIIN001_3 | PW3: 08PDIIP031_3 | PX3: 08PDIJE193_3 | PY3: 08PDIJM001_3 | PZ3: 08PDIJM002_3 | QA3: 08PDIJN001_3 | QB3: 08PDIJS004_3 | QC3: 08PDIJS025_3 | QD3: 08PDPSM001_3 | QE3: 08PDPSM002_3 | QF3: 08PDPSN001_3 | QG3: 08PDPSS053_3 | QH3: 09C001E191_3 | QI3: 09C001E192_3 | QJ3: 09C001M001_3 | QK3: 09C001M002_3 | QL3: 09C001N001_3 | QM3: 09C001O004_3 | QN3: 09C001O007_3 | QO3: 09C001P014_3 | QP3: 09C001P026_3 | QQ3: 09PDLRE195_3 | QR3: 09PDLRJ001_3 | QS3: 09PDLRM001_3 | QT3: 09PDLRM002_3 | QU3: 09PDLRN001_3 | QV3: 09PDPAE195_3 | QW3: 09PDPAJ001_3 | QX3: 09PDPAM001_3 | QY3: 09PDPAM002_3 | QZ3: 09PDPAN001_3 | RA3: 09PDPPE195_3 | RB3: 09PDPPJ001_3 | RC3: 09PDPPM001_3 | RD3: 09PDPPM002_3 | RE3: 09PDPPN001_3 | RF3: 09PECME077_3 | RG3: 09PECMM001_3 | RH3: 09PECMM002_3 | RI3: 09PECMN001_3 | RJ3: 09PESME084_3 | RK3: 09PESMM001_3 | RL3: 09PESMM002_3 | RM3: 09PESMN001_3 | RN3: 09PFCHM001_3 | RO3: 09PFCHM002_3 | RP3: 09PFCHN001_3 | RQ3: 09PFCHE003_3 | RR3: 09PFRCG010_3 | RS3: 09PFRCN001_3 | RT3: 09PFRCM002_3 | RU3: 10C001E167_3 | RV3: 10C001E196_3 | RW3: 10C001M001_3 | RX3: 10C001M002_3 | RY3: 10C001N001_3 | RZ3: 10P0ACE196_3 | SA3: 10P0TPU022_3 | SB3: 10PDMBE042_3 | SC3: 10PDMBM001_3 | SD3: 10PDMBM002_3 | SE3: 10PDMBN001_3 | SF3: 10PDMEE042_3 | SG3: 10PDMEU039_3 | SH3: 10PDMEM001_3 | SI3: 10PDMEM002_3 | SJ3: 10PDMEN001_3 | SK3: 10PDORG005_3 | SL3: 10PDORM001_3 | SM3: 10PDORM002_3 | SN3: 10PDORN001_3 | SO3: 10PDRTE042_3 | SP3: 10PDRTM001_3 | SQ3: 10PDRTM002_3 | SR3: 10PDRTN001_3 | SS3: 10PDTEE042_3 | ST3: 10PDTEJ001_3 | SU3: 10PDTEM001_3 | SV3: 10PDTEM002_3 | SW3: 10PDTEN001_3 | SX3: 11C001M001_3 | SY3: 11C001U047_3 | SZ3: 11C001N001_3 | TA3: 11C001K019_3 | TB3: 11C001E194_3 | TC3: 11C001E168_3 | TD3: 11C001E169_3 | TE3: 11C001M002_3 | TF3: 11CD01E026_3 | TG3: 11CD01E170_3 | TH3: 11CD01U040_3 | TI3: 11CD01N001_3 | TJ3: 11CD01M001_3 | TK3: 11CD01M002_3 | TL3: 11CD02M001_3 | TM3: 11CD02E169_3 | TN3: 11CD02E026_3 | TO3: 11CD02N001_3 | TP3: 11CD02M002_3 | TQ3: 11CD03E169_3 | TR3: 11CD03M001_3 | TS3: 11CD03M002_3 | TT3: 11CD03N001_3 | TU3: 13C001O006_3 | TV3: 13C001O008_3 | TW3: 13C001M001_3 | TX3: 13C001M002_3 | TY3: 13C001N001_3 | TZ3: 13PDEAO009_3 | UA3: 13PDEAM001_3 | UB3: 13PDEAM002_3 | UC3: 13PDEAN001_3 | UD3: 13PDVAG076_3 | UE3: 13PDVAM001_3 | UF3: 13PDVAM002_3 | UG3: 13PDVAN001_3 | UH3: 15C006U009_3 | UI3: 16C000D001_3 | UJ3: 16C000D002_3 | UK3: 25C001E171_3 | UL3: 25C001O010_3 | UM3: 25C001N001_3 | UN3: 25C001M001_3 | UO3: 25C001M002_3 | UP3: 26C001E017_3 | UQ3: 26C001E172_3 | UR3: 26C001E173_3 | US3: 26C001E174_3 | UT3: 26C001M001_3 | UU3: 26C001M002_3 | UV3: 26C001N001_3 | UW3: 26CD01G077_3 | UX3: 26CD01M001_3 | UY3: 26CD01M002_3 | UZ3: 26CD01N001_3 | VA3: 26PDIAP022_3 | VB3: 26PDIAM001_3 | VC3: 26PDIAM002_3 | VD3: 26PDIAN001_3 | VE3: 26PDSPN001_3 | VF3: 26PDSPE066_3 | VG3: 26PDSPE173_3 | VH3: 26PDSPM001_3 | VI3: 26PDSPM002_3 | VJ3: 31C000E175_3 | VK3: 31C000S012_3 | VL3: 31C000S051_3 | VM3: 31C000S057_3 | VN3: 31C000U014_3 | VO3: 31C000M001_3 | VP3: 31C000M002_3 | VQ3: 31C000N001_3 | VR3: 31PDMPE048_3 | VS3: 31PDMPM001_3 | VT3: 31PDMPM002_3 | VU3: 31PDMPN001_3 | VV3: 31PFMAE177_3 | VW3: 31PFMAM001_3 | VX3: 31PFMAM002_3 | VY3: 31PFMAN001_3 | VZ3: 31PFMEE177_3 | WA3: 31PFMEM001_3 | WB3: 31PFMEM002_3 | WC3: 31PFMEN001_3 | WD3: 31PFPCU036_3 | WE3: 31PFPCM001_3 | WF3: 31PFPCM002_3 | WG3: 31PFPCN001_3 | WH3: 33C001E178_3 | WI3: 33C001M001_3 | WJ3: 33C001M002_3 | WK3: 33C001N001_3 | WL3: 33C001S022_3 | WM3: 33C001S023_3 | WN3: 33C001S054_3 | WO3: 33PDCLE199_3 | WP3: 33PDITE100_3 | WQ3: 33PDITM001_3 | WR3: 33PDITM002_3 | WS3: 33PDITN001_3 | WT3: 34C001N005_3 | WU3: 34C001M001_3 | WV3: 34C001M002_3 | WW3: 34C001N001_3 | WX3: 34PDHBN005_3 | WY3: 34PDHBM001_3 | WZ3: 34PDHBM002_3 | XA3: 34PDHBN001_3 | XB3: 35C001E179_3 | XC3: 35C001S223_3 | XD3: 35C001M001_3 | XE3: 35C001M002_3 | XF3: 35C001N001_3 | XG3: 36C001E086_3 | XH3: 36C001E116_3 | XI3: 36C001E180_3 | XJ3: 36C001M001_3 | XK3: 36C001M002_3 | XL3: 36C001N001_3 | XM3: 36C001S224_3 | XN3: 36C001U041_3 | XO3: 36CD01E153_3 | XP3: 36CD01M001_3 | XQ3: 36CD01M002_3 | XR3: 36CD01N001_3 | XS3: 36CDESE181_3 | XT3: 36CDESM001_3 | XU3: 36CDESM002_3 | XV3: 36CDESN001_3 | XW3: 36PDIDE182_3 | XX3: 36PDIDE197_3 | XY3: 36PDIDM001_3 | XZ3: 36PDIDM002_3 | YA3: 36PDIDN001_3 | YB3: 36PDIDU042_3 | YC3: 36PDIEE086_3 | YD3: 36PDIEM001_3 | YE3: 36PDIEM002_3 | YF3: 36PDIEN001_3 | YG3: 36PFEGE161_3 | YH3: 36PFEGM001_3 | YI3: 36PFEGM002_3 | YJ3: 36PFEGN001_3 | YK3: 36PFEGS210_3 | YL3: 36PFEGS225_3 | YM3: 36PFEGS226_3 | YN3: 36PFEGS227_3 | YO3: 36PFEGU043_3 | YP3: 36PFEGU044_3 | YQ3: 38C001E183_3 | YR3: 38C001S056_3 | YS3: 38C001P003_3 | YT3: 38C001M001_3 | YU3: 38C001N001_3 | YV3: 38C001M002_3 | YW3: 41PDIPM001_3 | YX3: 41PDIPM002_3 | YY3: 41PDIPP051_3
A4: 01C001P020_4 | B4: 01C001M001_4 | C4: 01C001M002_4 | D4: 01C001N001_4 | E4: 01CD03E065_4 | F4: 01CD03M001_4 | G4: 01CD03M002_4 | H4: 01CD03N001_4 | I4: 01CD06E005_4 | J4: 01CD06E157_4 | K4: 01CD06M001_4 | L4: 01CD06M002_4 | M4: 01CD06N001_4 | N4: 01P0ESP054_4 | O4: 01P0ESM001_4 | P4: 01P0ESM002_4 | Q4: 01P0ESN001_4 | R4: 02C001M001_4 | S4: 02C001M002_4 | T4: 02C001P055_4 | U4: 02C001N001_4 | V4: 02C001S005_4 | W4: 02C001U019_4 | X4: 02CD01E185_4 | Y4: 02CD01E186_4 | Z4: 02CD01E187_4 | AA4: 02CD01E188_4 | AB4: 02CD01E189_4 | AC4: 02CD01E190_4 | AD4: 02CD01E198_4 | AE4: 02CD01F037_4 | AF4: 02CD01K023_4 | AG4: 02CD01K026_4 | AH4: 02CD01K027_4 | AI4: 02CD01M001_4 | AJ4: 02CD01M002_4 | AK4: 02CD01N001_4 | AL4: 02CD01R002_4 | AM4: 02CD01S229_4 | AN4: 02CD01S230_4 | AO4: 02CD01U048_4 | AP4: 02CD02E185_4 | AQ4: 02CD02E186_4 | AR4: 02CD02E187_4 | AS4: 02CD02E188_4 | AT4: 02CD02E198_4 | AU4: 02CD02F037_4 | AV4: 02CD02K023_4 | AW4: 02CD02K026_4 | AX4: 02CD02K027_4 | AY4: 02CD02M001_4 | AZ4: 02CD02M002_4 | BA4: 02CD02N001_4 | BB4: 02CD02R002_4 | BC4: 02CD02S229_4 | BD4: 02CD02S230_4 | BE4: 02CD03E185_4 | BF4: 02CD03E186_4 | BG4: 02CD03E187_4 | BH4: 02CD03E190_4 | BI4: 02CD03E189_4 | BJ4: 02CD03E198_4 | BK4: 02CD03F037_4 | BL4: 02CD03K023_4 | BM4: 02CD03K026_4 | BN4: 02CD03K027_4 | BO4: 02CD03N001_4 | BP4: 02CD03R002_4 | BQ4: 02CD03S230_4 | BR4: 02CD03S235_4 | BS4: 02CD03E188_4 | BT4: 02CD03M001_4 | BU4: 02CD03M002_4 | BV4: 02CD03S234_4 | BW4: 02CD04E185_4 | BX4: 02CD04E186_4 | BY4: 02CD04E187_4 | BZ4: 02CD04E188_4 | CA4: 02CD04E189_4 | CB4: 02CD04E190_4 | CC4: 02CD04E198_4 | CD4: 02CD04F037_4 | CE4: 02CD04K023_4 | CF4: 02CD04K026_4 | CG4: 02CD04K027_4 | CH4: 02CD04M001_4 | CI4: 02CD04M002_4 | CJ4: 02CD04N001_4 | CK4: 02CD04R002_4 | CL4: 02CD04S230_4 | CM4: 02CD04S234_4 | CN4: 02CD04U048_4 | CO4: 02CD05E185_4 | CP4: 02CD05E186_4 | CQ4: 02CD05E187_4 | CR4: 02CD05E188_4 | CS4: 02CD05E189_4 | CT4: 02CD05E190_4 | CU4: 02CD05E198_4 | CV4: 02CD05F037_4 | CW4: 02CD05K023_4 | CX4: 02CD05K026_4 | CY4: 02CD05K027_4 | CZ4: 02CD05M001_4 | DA4: 02CD05M002_4 | DB4: 02CD05N001_4 | DC4: 02CD05R002_4 | DD4: 02CD05S234_4 | DE4: 02CD05U048_4 | DF4: 02CD06E185_4 | DG4: 02CD06E186_4 | DH4: 02CD06E187_4 | DI4: 02CD06E188_4 | DJ4: 02CD06E189_4 | DK4: 02CD06E190_4 | DL4: 02CD06E198_4 | DM4: 02CD06F037_4 | DN4: 02CD06K023_4 | DO4: 02CD06K026_4 | DP4: 02CD06K027_4 | DQ4: 02CD06M001_4 | DR4: 02CD06M002_4 | DS4: 02CD06N001_4 | DT4: 02CD06R002_4 | DU4: 02CD06S230_4 | DV4: 02CD06S232_4 | DW4: 02CD06U048_4 | DX4: 02CD07E185_4 | DY4: 02CD07E186_4 | DZ4: 02CD07E187_4 | EA4: 02CD07E188_4 | EB4: 02CD07E189_4 | EC4: 02CD07E190_4 | ED4: 02CD07E198_4 | EE4: 02CD07F037_4 | EF4: 02CD07K023_4 | EG4: 02CD07K026_4 | EH4: 02CD07K027_4 | EI4: 02CD07M001_4 | EJ4: 02CD07M002_4 | EK4: 02CD07N001_4 | EL4: 02CD07R002_4 | EM4: 02CD07S229_4 | EN4: 02CD07S230_4 | EO4: 02CD07U048_4 | EP4: 02CD08E185_4 | EQ4: 02CD08E186_4 | ER4: 02CD08E187_4 | ES4: 02CD08E188_4 | ET4: 02CD08E189_4 | EU4: 02CD08E190_4 | EV4: 02CD08E198_4 | EW4: 02CD08F037_4 | EX4: 02CD08K023_4 | EY4: 02CD08K026_4 | EZ4: 02CD08K027_4 | FA4: 02CD08M001_4 | FB4: 02CD08M002_4 | FC4: 02CD08N001_4 | FD4: 02CD08R002_4 | FE4: 02CD08S229_4 | FF4: 02CD08S230_4 | FG4: 02CD08U048_4 | FH4: 02CD09E185_4 | FI4: 02CD09E186_4 | FJ4: 02CD09E187_4 | FK4: 02CD09E188_4 | FL4: 02CD09E189_4 | FM4: 02CD09E190_4 | FN4: 02CD09E198_4 | FO4: 02CD09F037_4 | FP4: 02CD09K023_4 | FQ4: 02CD09K026_4 | FR4: 02CD09K027_4 | FS4: 02CD09M001_4 | FT4: 02CD09M002_4 | FU4: 02CD09N001_4 | FV4: 02CD09R002_4 | FW4: 02CD09S229_4 | FX4: 02CD09S230_4 | FY4: 02CD09U048_4 | FZ4: 02CD10E185_4 | GA4: 02CD10E186_4 | GB4: 02CD10E187_4 | GC4: 02CD10E188_4 | GD4: 02CD10E189_4 | GE4: 02CD10E190_4 | GF4: 02CD10E198_4 | GG4: 02CD10F037_4 | GH4: 02CD10K023_4 | GI4: 02CD10K026_4 | GJ4: 02CD10K027_4 | GK4: 02CD10M001_4 | GL4: 02CD10M002_4 | GM4: 02CD10N001_4 | GN4: 02CD10R002_4 | GO4: 02CD10S230_4 | GP4: 02CD10S231_4 | GQ4: 02CD10S232_4 | GR4: 02CD10S233_4 | GS4: 02CD10S234_4 | GT4: 02CD10S235_4 | GU4: 02CD10U048_4 | GV4: 02CD11E185_4 | GW4: 02CD11E186_4 | GX4: 02CD11E187_4 | GY4: 02CD11E188_4 | GZ4: 02CD11E189_4 | HA4: 02CD11E190_4 | HB4: 02CD11E198_4 | HC4: 02CD11F037_4 | HD4: 02CD11K023_4 | HE4: 02CD11K026_4 | HF4: 02CD11K027_4 | HG4: 02CD11M001_4 | HH4: 02CD11M002_4 | HI4: 02CD11R002_4 | HJ4: 02CD11S229_4 | HK4: 02CD11S233_4 | HL4: 02CD11N001_4 | HM4: 02CD12E185_4 | HN4: 02CD12E186_4 | HO4: 02CD12E187_4 | HP4: 02CD12E188_4 | HQ4: 02CD12E189_4 | HR4: 02CD12E190_4 | HS4: 02CD12E198_4 | HT4: 02CD12F037_4 | HU4: 02CD12K023_4 | HV4: 02CD12K026_4 | HW4: 02CD12K027_4 | HX4: 02CD12N001_4 | HY4: 02CD12R002_4 | HZ4: 02CD12S231_4 | IA4: 02CD12S233_4 | IB4: 02CD12M001_4 | IC4: 02CD12M002_4 | ID4: 02CD12U048_4 | IE4: 02CD13E185_4 | IF4: 02CD13E186_4 | IG4: 02CD13E187_4 | IH4: 02CD13E188_4 | II4: 02CD13E189_4 | IJ4: 02CD13E190_4 | IK4: 02CD13E198_4 | IL4: 02CD13F037_4 | IM4: 02CD13K023_4 | IN4: 02CD13K026_4 | IO4: 02CD13K027_4 | IP4: 02CD13M001_4 | IQ4: 02CD13M002_4 | IR4: 02CD13N001_4 | IS4: 02CD13R002_4 | IT4: 02CD13U048_4 | IU4: 02CD14E185_4 | IV4: 02CD14E186_4 | IW4: 02CD14E187_4 | IX4: 02CD14E188_4 | IY4: 02CD14E189_4 | IZ4: 02CD14E190_4 | JA4: 02CD14E198_4 | JB4: 02CD14F037_4 | JC4: 02CD14K023_4 | JD4: 02CD14K026_4 | JE4: 02CD14K027_4 | JF4: 02CD14M001_4 | JG4: 02CD14M002_4 | JH4: 02CD14N001_4 | JI4: 02CD14R002_4 | JJ4: 02CD14S229_4 | JK4: 02CD14S231_4 | JL4: 02CD14S233_4 | JM4: 02CD14S234_4 | JN4: 02CD14S235_4 | JO4: 02CD14U048_4 | JP4: 02CD15E185_4 | JQ4: 02CD15E186_4 | JR4: 02CD15E187_4 | JS4: 02CD15E188_4 | JT4: 02CD15E189_4 | JU4: 02CD15E190_4 | JV4: 02CD15E198_4 | JW4: 02CD15F037_4 | JX4: 02CD15K023_4 | JY4: 02CD15K026_4 | JZ4: 02CD15K027_4 | KA4: 02CD15M001_4 | KB4: 02CD15M002_4 | KC4: 02CD15N001_4 | KD4: 02CD15R002_4 | KE4: 02CD15S229_4 | KF4: 02CD15S230_4 | KG4: 02CD15S232_4 | KH4: 02CD15S233_4 | KI4: 02CD15S235_4 | KJ4: 02CD15U048_4 | KK4: 02CD16E185_4 | KL4: 02CD16E186_4 | KM4: 02CD16E187_4 | KN4: 02CD16E188_4 | KO4: 02CD16E189_4 | KP4: 02CD16E190_4 | KQ4: 02CD16E198_4 | KR4: 02CD16F037_4 | KS4: 02CD16K023_4 | KT4: 02CD16K026_4 | KU4: 02CD16K027_4 | KV4: 02CD16M001_4 | KW4: 02CD16M002_4 | KX4: 02CD16N001_4 | KY4: 02CD16R002_4 | KZ4: 02CD16S230_4 | LA4: 02CD16S231_4 | LB4: 02CD16U048_4 | LC4: 02CDBPM001_4 | LD4: 02CDBPE097_4 | LE4: 02OD04M002_4 | LF4: 02OD04E003_4 | LG4: 02OD04N001_4 | LH4: 02OD04M001_4 | LI4: 02OD06P017_4 | LJ4: 02OD06M001_4 | LK4: 02OD06M002_4 | LL4: 02OD06N001_4 | LM4: 02PDAVM001_4 | LN4: 02PDAVM002_4 | LO4: 02PDAVE109_4 | LP4: 02PDDPE158_4 | LQ4: 02PDDPM001_4 | LR4: 02PDDPM002_4 | LS4: 02PDDPN001_4 | LT4: 03C001G073_4 | LU4: 03C001M001_4 | LV4: 03C001M002_4 | LW4: 03C001N001_4 | LX4: 03PDIVM001_4 | LY4: 03PDIVM002_4 | LZ4: 03PDIVN001_4 | MA4: 03PDIVS027_4 | MB4: 03PDIVS061_4 | MC4: 04C001F034_4 | MD4: 04C001F036_4 | ME4: 04C001G074_4 | MF4: 04C001N001_4 | MG4: 04C001P016_4 | MH4: 04C001M001_4 | MI4: 04C001M002_4 | MJ4: 04P0DER001_4 | MK4: 04P0DSF006_4 | ML4: 04P0DSM001_4 | MM4: 04P0DSM002_4 | MN4: 04P0DSN001_4 | MO4: 05C001F005_4 | MP4: 05C001M001_4 | MQ4: 05C001M002_4 | MR4: 05C001N001_4 | MS4: 05P0PTF022_4 | MT4: 05P0PTM001_4 | MU4: 05P0PTM002_4 | MV4: 05P0PTN001_4 | MW4: 06C001P005_4 | MX4: 06C001E022_4 | MY4: 06C001E107_4 | MZ4: 06C001E159_4 | NA4: 06C001G013_4 | NB4: 06C001M001_4 | NC4: 06C001M002_4 | ND4: 06C001N001_4 | NE4: 06C001P056_4 | NF4: 06CD03M001_4 | NG4: 06CD03M002_4 | NH4: 06CD03N001_4 | NI4: 06CD03K024_4 | NJ4: 06CD03K025_4 | NK4: 06CD03E160_4 | NL4: 06CD03E184_4 | NM4: 06CD05E090_4 | NN4: 06CD05N001_4 | NO4: 06P0FAE006_4 | NP4: 06P0FAS034_4 | NQ4: 06P0FAS036_4 | NR4: 06P0FAU045_4 | NS4: 06PDPAE154_4 | NT4: 06PDPAM001_4 | NU4: 06PDPAM002_4 | NV4: 06PDPAN001_4 | NW4: 07C001E093_4 | NX4: 07C001K008_4 | NY4: 07C001K020_4 | NZ4: 07C001K021_4 | OA4: 07C001K022_4 | OB4: 07C001M001_4 | OC4: 07C001M002_4 | OD4: 07C001N001_4 | OE4: 07C001U046_4 | OF4: 07CD01B001_4 | OG4: 07CD01M001_4 | OH4: 07CD01M002_4 | OI4: 07CD01N001_4 | OJ4: 07PDIFM001_4 | OK4: 07PDIFM002_4 | OL4: 07PDIFN001_4 | OM4: 07PDIFK012_4 | ON4: 07PDISE067_4 | OO4: 07PDISM001_4 | OP4: 07PDISM002_4 | OQ4: 07PDISN001_4 | OR4: 08C001E081_4 | OS4: 08C001E161_4 | OT4: 08C001E162_4 | OU4: 08C001N001_4 | OV4: 08C001S047_4 | OW4: 08C001S220_4 | OX4: 08C001S221_4 | OY4: 08C001M001_4 | OZ4: 08C001M002_4 | PA4: 08PDCPN001_4 | PB4: 08PDCPP027_4 | PC4: 08PDCPM001_4 | PD4: 08PDCPM002_4 | PE4: 08PDCPU038_4 | PF4: 08PDDFE163_4 | PG4: 08PDDFE164_4 | PH4: 08PDDFE165_4 | PI4: 08PDDFE166_4 | PJ4: 08PDDFM001_4 | PK4: 08PDDFM002_4 | PL4: 08PDDFN001_4 | PM4: 08PDDFS035_4 | PN4: 08PDDFS066_4 | PO4: 08PDDFS221_4 | PP4: 08PDDFU032_4 | PQ4: 08PDDFU037_4 | PR4: 08PDDFS010_4 | PS4: 08PDIIE165_4 | PT4: 08PDIIM001_4 | PU4: 08PDIIM002_4 | PV4: 08PDIIN001_4 | PW4: 08PDIIP031_4 | PX4: 08PDIJE193_4 | PY4: 08PDIJM001_4 | PZ4: 08PDIJM002_4 | QA4: 08PDIJN001_4 | QB4: 08PDIJS004_4 | QC4: 08PDIJS025_4 | QD4: 08PDPSM001_4 | QE4: 08PDPSM002_4 | QF4: 08PDPSN001_4 | QG4: 08PDPSS053_4 | QH4: 09C001E191_4 | QI4: 09C001E192_4 | QJ4: 09C001M001_4 | QK4: 09C001M002_4 | QL4: 09C001N001_4 | QM4: 09C001O004_4 | QN4: 09C001O007_4 | QO4: 09C001P014_4 | QP4: 09C001P026_4 | QQ4: 09PDLRE195_4 | QR4: 09PDLRJ001_4 | QS4: 09PDLRM001_4 | QT4: 09PDLRM002_4 | QU4: 09PDLRN001_4 | QV4: 09PDPAE195_4 | QW4: 09PDPAJ001_4 | QX4: 09PDPAM001_4 | QY4: 09PDPAM002_4 | QZ4: 09PDPAN001_4 | RA4: 09PDPPE195_4 | RB4: 09PDPPJ001_4 | RC4: 09PDPPM001_4 | RD4: 09PDPPM002_4 | RE4: 09PDPPN001_4 | RF4: 09PECME077_4 | RG4: 09PECMM001_4 | RH4: 09PECMM002_4 | RI4: 09PECMN001_4 | RJ4: 09PESME084_4 | RK4: 09PESMM001_4 | RL4: 09PESMM002_4 | RM4: 09PESMN001_4 | RN4: 09PFCHM001_4 | RO4: 09PFCHM002_4 | RP4: 09PFCHN001_4 | RQ4: 09PFCHE003_4 | RR4: 09PFRCG010_4 | RS4: 09PFRCN001_4 | RT4: 09PFRCM002_4 | RU4: 10C001E167_4 | RV4: 10C001E196_4 | RW4: 10C001M001_4 | RX4: 10C001M002_4 | RY4: 10C001N001_4 | RZ4: 10P0ACE196_4 | SA4: 10P0TPU022_4 | SB4: 10PDMBE042_4 | SC4: 10PDMBM001_4 | SD4: 10PDMBM002_4 | SE4: 10PDMBN001_4 | SF4: 10PDMEE042_4 | SG4: 10PDMEU039_4 | SH4: 10PDMEM001_4 | SI4: 10PDMEM002_4 | SJ4: 10PDMEN001_4 | SK4: 10PDORG005_4 | SL4: 10PDORM001_4 | SM4: 10PDORM002_4 | SN4: 10PDORN001_4 | SO4: 10PDRTE042_4 | SP4: 10PDRTM001_4 | SQ4: 10PDRTM002_4 | SR4: 10PDRTN001_4 | SS4: 10PDTEE042_4 | ST4: 10PDTEJ001_4 | SU4: 10PDTEM001_4 | SV4: 10PDTEM002_4 | SW4: 10PDTEN001_4 | SX4: 11C001M001_4 | SY4: 11C001U047_4 | SZ4: 11C001N001_4 | TA4: 11C001K019_4 | TB4: 11C001E194_4 | TC4: 11C001E168_4 | TD4: 11C001E169_4 | TE4: 11C001M002_4 | TF4: 11CD01E026_4 | TG4: 11CD01E170_4 | TH4: 11CD01U040_4 | TI4: 11CD01N001_4 | TJ4: 11CD01M001_4 | TK4: 11CD01M002_4 | TL4: 11CD02M001_4 | TM4: 11CD02E169_4 | TN4: 11CD02E026_4 | TO4: 11CD02N001_4 | TP4: 11CD02M002_4 | TQ4: 11CD03E169_4 | TR4: 11CD03M001_4 | TS4: 11CD03M002_4 | TT4: 11CD03N001_4 | TU4: 13C001O006_4 | TV4: 13C001O008_4 | TW4: 13C001M001_4 | TX4: 13C001M002_4 | TY4: 13C001N001_4 | TZ4: 13PDEAO009_4 | UA4: 13PDEAM001_4 | UB4: 13PDEAM002_4 | UC4: 13PDEAN001_4 | UD4: 13PDVAG076_4 | UE4: 13PDVAM001_4 | UF4: 13PDVAM002_4 | UG4: 13PDVAN001_4 | UH4: 15C006U009_4 | UI4: 16C000D001_4 | UJ4: 16C000D002_4 | UK4: 25C001E171_4 | UL4: 25C001O010_4 | UM4: 25C001N001_4 | UN4: 25C001M001_4 | UO4: 25C001M002_4 | UP4: 26C001E017_4 | UQ4: 26C001E172_4 | UR4: 26C001E173_4 | US4: 26C001E174_4 | UT4: 26C001M001_4 | UU4: 26C001M002_4 | UV4: 26C001N001_4 | UW4: 26CD01G077_4 | UX4: 26CD01M001_4 | UY4: 26CD01M002_4 | UZ4: 26CD01N001_4 | VA4: 26PDIAP022_4 | VB4: 26PDIAM001_4 | VC4: 26PDIAM002_4 | VD4: 26PDIAN001_4 | VE4: 26PDSPN001_4 | VF4: 26PDSPE066_4 | VG4: 26PDSPE173_4 | VH4: 26PDSPM001_4 | VI4: 26PDSPM002_4 | VJ4: 31C000E175_4 | VK4: 31C000S012_4 | VL4: 31C000S051_4 | VM4: 31C000S057_4 | VN4: 31C000U014_4 | VO4: 31C000M001_4 | VP4: 31C000M002_4 | VQ4: 31C000N001_4 | VR4: 31PDMPE048_4 | VS4: 31PDMPM001_4 | VT4: 31PDMPM002_4 | VU4: 31PDMPN001_4 | VV4: 31PFMAE177_4 | VW4: 31PFMAM001_4 | VX4: 31PFMAM002_4 | VY4: 31PFMAN001_4 | VZ4: 31PFMEE177_4 | WA4: 31PFMEM001_4 | WB4: 31PFMEM002_4 | WC4: 31PFMEN001_4 | WD4: 31PFPCU036_4 | WE4: 31PFPCM001_4 | WF4: 31PFPCM002_4 | WG4: 31PFPCN001_4 | WH4: 33C001E178_4 | WI4: 33C001M001_4 | WJ4: 33C001M002_4 | WK4: 33C001N001_4 | WL4: 33C001S022_4 | WM4: 33C001S023_4 | WN4: 33C001S054_4 | WO4: 33PDCLE199_4 | WP4: 33PDITE100_4 | WQ4: 33PDITM001_4 | WR4: 33PDITM002_4 | WS4: 33PDITN001_4 | WT4: 34C001N005_4 | WU4: 34C001M001_4 | WV4: 34C001M002_4 | WW4: 34C001N001_4 | WX4: 34PDHBN005_4 | WY4: 34PDHBM001_4 | WZ4: 34PDHBM002_4 | XA4: 34PDHBN001_4 | XB4: 35C001E179_4 | XC4: 35C001S223_4 | XD4: 35C001M001_4 | XE4: 35C001M002_4 | XF4: 35C001N001_4 | XG4: 36C001E086_4 | XH4: 36C001E116_4 | XI4: 36C001E180_4 | XJ4: 36C001M001_4 | XK4: 36C001M002_4 | XL4: 36C001N001_4 | XM4: 36C001S224_4 | XN4: 36C001U041_4 | XO4: 36CD01E153_4 | XP4: 36CD01M001_4 | XQ4: 36CD01M002_4 | XR4: 36CD01N001_4 | XS4: 36CDESE181_4 | XT4: 36CDESM001_4 | XU4: 36CDESM002_4 | XV4: 36CDESN001_4 | XW4: 36PDIDE182_4 | XX4: 36PDIDE197_4 | XY4: 36PDIDM001_4 | XZ4: 36PDIDM002_4 | YA4: 36PDIDN001_4 | YB4: 36PDIDU042_4 | YC4: 36PDIEE086_4 | YD4: 36PDIEM001_4 | YE4: 36PDIEM002_4 | YF4: 36PDIEN001_4 | YG4: 36PFEGE161_4 | YH4: 36PFEGM001_4 | YI4: 36PFEGM002_4 | YJ4: 36PFEGN001_4 | YK4: 36PFEGS210_4 | YL4: 36PFEGS225_4 | YM4: 36PFEGS226_4 | YN4: 36PFEGS227_4 | YO4: 36PFEGU043_4 | YP4: 36PFEGU044_4 | YQ4: 38C001E183_4 | YR4: 38C001S056_4 | YS4: 38C001P003_4 | YT4: 38C001M001_4 | YU4: 38C001N001_4 | YV4: 38C001M002_4 | YW4: 41PDIPM001_4 | YX4: 41PDIPM002_4 | YY4: 41PDIPP051_4
A5: 01C001P020_5 | B5: 01C001M001_5 | C5: 01C001M002_5 | D5: 01C001N001_5 | E5: 01CD03E065_5 | F5: 01CD03M001_5 | G5: 01CD03M002_5 | H5: 01CD03N001_5 | I5: 01CD06E005_5 | J5: 01CD06E157_5 | K5: 01CD06M001_5 | L5: 01CD06M002_5 | M5: 01CD06N001_5 | N5: 01P0ESP054_5 | O5: 01P0ESM001_5 | P5: 01P0ESM002_5 | Q5: 01P0ESN001_5 | R5: 02C001M001_5 | S5: 02C001M002_5 | T5: 02C001P055_5 | U5: 02C001N001_5 | V5: 02C001S005_5 | W5: 02C001U019_5 | X5: 02CD01E185_5 | Y5: 02CD01E186_5 | Z5: 02CD01E187_5 | AA5: 02CD01E188_5 | AB5: 02CD01E189_5 | AC5: 02CD01E190_5 | AD5: 02CD01E198_5 | AE5: 02CD01F037_5 | AF5: 02CD01K023_5 | AG5: 02CD01K026_5 | AH5: 02CD01K027_5 | AI5: 02CD01M001_5 | AJ5: 02CD01M002_5 | AK5: 02CD01N001_5 | AL5: 02CD01R002_5 | AM5: 02CD01S229_5 | AN5: 02CD01S230_5 | AO5: 02CD01U048_5 | AP5: 02CD02E185_5 | AQ5: 02CD02E186_5 | AR5: 02CD02E187_5 | AS5: 02CD02E188_5 | AT5: 02CD02E198_5 | AU5: 02CD02F037_5 | AV5: 02CD02K023_5 | AW5: 02CD02K026_5 | AX5: 02CD02K027_5 | AY5: 02CD02M001_5 | AZ5: 02CD02M002_5 | BA5: 02CD02N001_5 | BB5: 02CD02R002_5 | BC5: 02CD02S229_5 | BD5: 02CD02S230_5 | BE5: 02CD03E185_5 | BF5: 02CD03E186_5 | BG5: 02CD03E187_5 | BH5: 02CD03E190_5 | BI5: 02CD03E189_5 | BJ5: 02CD03E198_5 | BK5: 02CD03F037_5 | BL5: 02CD03K023_5 | BM5: 02CD03K026_5 | BN5: 02CD03K027_5 | BO5: 02CD03N001_5 | BP5: 02CD03R002_5 | BQ5: 02CD03S230_5 | BR5: 02CD03S235_5 | BS5: 02CD03E188_5 | BT5: 02CD03M001_5 | BU5: 02CD03M002_5 | BV5: 02CD03S234_5 | BW5: 02CD04E185_5 | BX5: 02CD04E186_5 | BY5: 02CD04E187_5 | BZ5: 02CD04E188_5 | CA5: 02CD04E189_5 | CB5: 02CD04E190_5 | CC5: 02CD04E198_5 | CD5: 02CD04F037_5 | CE5: 02CD04K023_5 | CF5: 02CD04K026_5 | CG5: 02CD04K027_5 | CH5: 02CD04M001_5 | CI5: 02CD04M002_5 | CJ5: 02CD04N001_5 | CK5: 02CD04R002_5 | CL5: 02CD04S230_5 | CM5: 02CD04S234_5 | CN5: 02CD04U048_5 | CO5: 02CD05E185_5 | CP5: 02CD05E186_5 | CQ5: 02CD05E187_5 | CR5: 02CD05E188_5 | CS5: 02CD05E189_5 | CT5: 02CD05E190_5 | CU5: 02CD05E198_5 | CV5: 02CD05F037_5 | CW5: 02CD05K023_5 | CX5: 02CD05K026_5 | CY5: 02CD05K027_5 | CZ5: 02CD05M001_5 | DA5: 02CD05M002_5 | DB5: 02CD05N001_5 | DC5: 02CD05R002_5 | DD5: 02CD05S234_5 | DE5: 02CD05U048_5 | DF5: 02CD06E185_5 | DG5: 02CD06E186_5 | DH5: 02CD06E187_5 | DI5: 02CD06E188_5 | DJ5: 02CD06E189_5 | DK5: 02CD06E190_5 | DL5: 02CD06E198_5 | DM5: 02CD06F037_5 | DN5: 02CD06K023_5 | DO5: 02CD06K026_5 | DP5: 02CD06K027_5 | DQ5: 02CD06M001_5 | DR5: 02CD06M002_5 | DS5: 02CD06N001_5 | DT5: 02CD06R002_5 | DU5: 02CD06S230_5 | DV5: 02CD06S232_5 | DW5: 02CD06U048_5 | DX5: 02CD07E185_5 | DY5: 02CD07E186_5 | DZ5: 02CD07E187_5 | EA5: 02CD07E188_5 | EB5: 02CD07E189_5 | EC5: 02CD07E190_5 | ED5: 02CD07E198_5 | EE5: 02CD07F037_5 | EF5: 02CD07K023_5 | EG5: 02CD07K026_5 | EH5: 02CD07K027_5 | EI5: 02CD07M001_5 | EJ5: 02CD07M002_5 | EK5: 02CD07N001_5 | EL5: 02CD07R002_5 | EM5: 02CD07S229_5 | EN5: 02CD07S230_5 | EO5: 02CD07U048_5 | EP5: 02CD08E185_5 | EQ5: 02CD08E186_5 | ER5: 02CD08E187_5 | ES5: 02CD08E188_5 | ET5: 02CD08E189_5 | EU5: 02CD08E190_5 | EV5: 02CD08E198_5 | EW5: 02CD08F037_5 | EX5: 02CD08K023_5 | EY5: 02CD08K026_5 | EZ5: 02CD08K027_5 | FA5: 02CD08M001_5 | FB5: 02CD08M002_5 | FC5: 02CD08N001_5 | FD5: 02CD08R002_5 | FE5: 02CD08S229_5 | FF5: 02CD08S230_5 | FG5: 02CD08U048_5 | FH5: 02CD09E185_5 | FI5: 02CD09E186_5 | FJ5: 02CD09E187_5 | FK5: 02CD09E188_5 | FL5: 02CD09E189_5 | FM5: 02CD09E190_5 | FN5: 02CD09E198_5 | FO5: 02CD09F037_5 | FP5: 02CD09K023_5 | FQ5: 02CD09K026_5 | FR5: 02CD09K027_5 | FS5: 02CD09M001_5 | FT5: 02CD09M002_5 | FU5: 02CD09N001_5 | FV5: 02CD09R002_5 | FW5: 02CD09S229_5 | FX5: 02CD09S230_5 | FY5: 02CD09U048_5 | FZ5: 02CD10E185_5 | GA5: 02CD10E186_5 | GB5: 02CD10E187_5 | GC5: 02CD10E188_5 | GD5: 02CD10E189_5 | GE5: 02CD10E190_5 | GF5: 02CD10E198_5 | GG5: 02CD10F037_5 | GH5: 02CD10K023_5 | GI5: 02CD10K026_5 | GJ5: 02CD10K027_5 | GK5: 02CD10M001_5 | GL5: 02CD10M002_5 | GM5: 02CD10N001_5 | GN5: 02CD10R002_5 | GO5: 02CD10S230_5 | GP5: 02CD10S231_5 | GQ5: 02CD10S232_5 | GR5: 02CD10S233_5 | GS5: 02CD10S234_5 | GT5: 02CD10S235_5 | GU5: 02CD10U048_5 | GV5: 02CD11E185_5 | GW5: 02CD11E186_5 | GX5: 02CD11E187_5 | GY5: 02CD11E188_5 | GZ5: 02CD11E189_5 | HA5: 02CD11E190_5 | HB5: 02CD11E198_5 | HC5: 02CD11F037_5 | HD5: 02CD11K023_5 | HE5: 02CD11K026_5 | HF5: 02CD11K027_5 | HG5: 02CD11M001_5 | HH5: 02CD11M002_5 | HI5: 02CD11R002_5 | HJ5: 02CD11S229_5 | HK5: 02CD11S233_5 | HL5: 02CD11N001_5 | HM5: 02CD12E185_5 | HN5: 02CD12E186_5 | HO5: 02CD12E187_5 | HP5: 02CD12E188_5 | HQ5: 02CD12E189_5 | HR5: 02CD12E190_5 | HS5: 02CD12E198_5 | HT5: 02CD12F037_5 | HU5: 02CD12K023_5 | HV5: 02CD12K026_5 | HW5: 02CD12K027_5 | HX5: 02CD12N001_5 | HY5: 02CD12R002_5 | HZ5: 02CD12S231_5 | IA5: 02CD12S233_5 | IB5: 02CD12M001_5 | IC5: 02CD12M002_5 | ID5: 02CD12U048_5 | IE5: 02CD13E185_5 | IF5: 02CD13E186_5 | IG5: 02CD13E187_5 | IH5: 02CD13E188_5 | II5: 02CD13E189_5 | IJ5: 02CD13E190_5 | IK5: 02CD13E198_5 | IL5: 02CD13F037_5 | IM5: 02CD13K023_5 | IN5: 02CD13K026_5 | IO5: 02CD13K027_5 | IP5: 02CD13M001_5 | IQ5: 02CD13M002_5 | IR5: 02CD13N001_5 | IS5: 02CD13R002_5 | IT5: 02CD13U048_5 | IU5: 02CD14E185_5 | IV5: 02CD14E186_5 | IW5: 02CD14E187_5 | IX5: 02CD14E188_5 | IY5: 02CD14E189_5 | IZ5: 02CD14E190_5 | JA5: 02CD14E198_5 | JB5: 02CD14F037_5 | JC5: 02CD14K023_5 | JD5: 02CD14K026_5 | JE5: 02CD14K027_5 | JF5: 02CD14M001_5 | JG5: 02CD14M002_5 | JH5: 02CD14N001_5 | JI5: 02CD14R002_5 | JJ5: 02CD14S229_5 | JK5: 02CD14S231_5 | JL5: 02CD14S233_5 | JM5: 02CD14S234_5 | JN5: 02CD14S235_5 | JO5: 02CD14U048_5 | JP5: 02CD15E185_5 | JQ5: 02CD15E186_5 | JR5: 02CD15E187_5 | JS5: 02CD15E188_5 | JT5: 02CD15E189_5 | JU5: 02CD15E190_5 | JV5: 02CD15E198_5 | JW5: 02CD15F037_5 | JX5: 02CD15K023_5 | JY5: 02CD15K026_5 | JZ5: 02CD15K027_5 | KA5: 02CD15M001_5 | KB5: 02CD15M002_5 | KC5: 02CD15N001_5 | KD5: 02CD15R002_5 | KE5: 02CD15S229_5 | KF5: 02CD15S230_5 | KG5: 02CD15S232_5 | KH5: 02CD15S233_5 | KI5: 02CD15S235_5 | KJ5: 02CD15U048_5 | KK5: 02CD16E185_5 | KL5: 02CD16E186_5 | KM5: 02CD16E187_5 | KN5: 02CD16E188_5 | KO5: 02CD16E189_5 | KP5: 02CD16E190_5 | KQ5: 02CD16E198_5 | KR5: 02CD16F037_5 | KS5: 02CD16K023_5 | KT5: 02CD16K026_5 | KU5: 02CD16K027_5 | KV5: 02CD16M001_5 | KW5: 02CD16M002_5 | KX5: 02CD16N001_5 | KY5: 02CD16R002_5 | KZ5: 02CD16S230_5 | LA5: 02CD16S231_5 | LB5: 02CD16U048_5 | LC5: 02CDBPM001_5 | LD5: 02CDBPE097_5 | LE5: 02OD04M002_5 | LF5: 02OD04E003_5 | LG5: 02OD04N001_5 | LH5: 02OD04M001_5 | LI5: 02OD06P017_5 | LJ5: 02OD06M001_5 | LK5: 02OD06M002_5 | LL5: 02OD06N001_5 | LM5: 02PDAVM001_5 | LN5: 02PDAVM002_5 | LO5: 02PDAVE109_5 | LP5: 02PDDPE158_5 | LQ5: 02PDDPM001_5 | LR5: 02PDDPM002_5 | LS5: 02PDDPN001_5 | LT5: 03C001G073_5 | LU5: 03C001M001_5 | LV5: 03C001M002_5 | LW5: 03C001N001_5 | LX5: 03PDIVM001_5 | LY5: 03PDIVM002_5 | LZ5: 03PDIVN001_5 | MA5: 03PDIVS027_5 | MB5: 03PDIVS061_5 | MC5: 04C001F034_5 | MD5: 04C001F036_5 | ME5: 04C001G074_5 | MF5: 04C001N001_5 | MG5: 04C001P016_5 | MH5: 04C001M001_5 | MI5: 04C001M002_5 | MJ5: 04P0DER001_5 | MK5: 04P0DSF006_5 | ML5: 04P0DSM001_5 | MM5: 04P0DSM002_5 | MN5: 04P0DSN001_5 | MO5: 05C001F005_5 | MP5: 05C001M001_5 | MQ5: 05C001M002_5 | MR5: 05C001N001_5 | MS5: 05P0PTF022_5 | MT5: 05P0PTM001_5 | MU5: 05P0PTM002_5 | MV5: 05P0PTN001_5 | MW5: 06C001P005_5 | MX5: 06C001E022_5 | MY5: 06C001E107_5 | MZ5: 06C001E159_5 | NA5: 06C001G013_5 | NB5: 06C001M001_5 | NC5: 06C001M002_5 | ND5: 06C001N001_5 | NE5: 06C001P056_5 | NF5: 06CD03M001_5 | NG5: 06CD03M002_5 | NH5: 06CD03N001_5 | NI5: 06CD03K024_5 | NJ5: 06CD03K025_5 | NK5: 06CD03E160_5 | NL5: 06CD03E184_5 | NM5: 06CD05E090_5 | NN5: 06CD05N001_5 | NO5: 06P0FAE006_5 | NP5: 06P0FAS034_5 | NQ5: 06P0FAS036_5 | NR5: 06P0FAU045_5 | NS5: 06PDPAE154_5 | NT5: 06PDPAM001_5 | NU5: 06PDPAM002_5 | NV5: 06PDPAN001_5 | NW5: 07C001E093_5 | NX5: 07C001K008_5 | NY5: 07C001K020_5 | NZ5: 07C001K021_5 | OA5: 07C001K022_5 | OB5: 07C001M001_5 | OC5: 07C001M002_5 | OD5: 07C001N001_5 | OE5: 07C001U046_5 | OF5: 07CD01B001_5 | OG5: 07CD01M001_5 | OH5: 07CD01M002_5 | OI5: 07CD01N001_5 | OJ5: 07PDIFM001_5 | OK5: 07PDIFM002_5 | OL5: 07PDIFN001_5 | OM5: 07PDIFK012_5 | ON5: 07PDISE067_5 | OO5: 07PDISM001_5 | OP5: 07PDISM002_5 | OQ5: 07PDISN001_5 | OR5: 08C001E081_5 | OS5: 08C001E161_5 | OT5: 08C001E162_5 | OU5: 08C001N001_5 | OV5: 08C001S047_5 | OW5: 08C001S220_5 | OX5: 08C001S221_5 | OY5: 08C001M001_5 | OZ5: 08C001M002_5 | PA5: 08PDCPN001_5 | PB5: 08PDCPP027_5 | PC5: 08PDCPM001_5 | PD5: 08PDCPM002_5 | PE5: 08PDCPU038_5 | PF5: 08PDDFE163_5 | PG5: 08PDDFE164_5 | PH5: 08PDDFE165_5 | PI5: 08PDDFE166_5 | PJ5: 08PDDFM001_5 | PK5: 08PDDFM002_5 | PL5: 08PDDFN001_5 | PM5: 08PDDFS035_5 | PN5: 08PDDFS066_5 | PO5: 08PDDFS221_5 | PP5: 08PDDFU032_5 | PQ5: 08PDDFU037_5 | PR5: 08PDDFS010_5 | PS5: 08PDIIE165_5 | PT5: 08PDIIM001_5 | PU5: 08PDIIM002_5 | PV5: 08PDIIN001_5 | PW5: 08PDIIP031_5 | PX5: 08PDIJE193_5 | PY5: 08PDIJM001_5 | PZ5: 08PDIJM002_5 | QA5: 08PDIJN001_5 | QB5: 08PDIJS004_5 | QC5: 08PDIJS025_5 | QD5: 08PDPSM001_5 | QE5: 08PDPSM002_5 | QF5: 08PDPSN001_5 | QG5: 08PDPSS053_5 | QH5: 09C001E191_5 | QI5: 09C001E192_5 | QJ5: 09C001M001_5 | QK5: 09C001M002_5 | QL5: 09C001N001_5 | QM5: 09C001O004_5 | QN5: 09C001O007_5 | QO5: 09C001P014_5 | QP5: 09C001P026_5 | QQ5: 09PDLRE195_5 | QR5: 09PDLRJ001_5 | QS5: 09PDLRM001_5 | QT5: 09PDLRM002_5 | QU5: 09PDLRN001_5 | QV5: 09PDPAE195_5 | QW5: 09PDPAJ001_5 | QX5: 09PDPAM001_5 | QY5: 09PDPAM002_5 | QZ5: 09PDPAN001_5 | RA5: 09PDPPE195_5 | RB5: 09PDPPJ001_5 | RC5: 09PDPPM001_5 | RD5: 09PDPPM002_5 | RE5: 09PDPPN001_5 | RF5: 09PECME077_5 | RG5: 09PECMM001_5 | RH5: 09PECMM002_5 | RI5: 09PECMN001_5 | RJ5: 09PESME084_5 | RK5: 09PESMM001_5 | RL5: 09PESMM002_5 | RM5: 09PESMN001_5 | RN5: 09PFCHM001_5 | RO5: 09PFCHM002_5 | RP5: 09PFCHN001_5 | RQ5: 09PFCHE003_5 | RR5: 09PFRCG010_5 | RS5: 09PFRCN001_5 | RT5: 09PFRCM002_5 | RU5: 10C001E167_5 | RV5: 10C001E196_5 | RW5: 10C001M001_5 | RX5: 10C001M002_5 | RY5: 10C001N001_5 | RZ5: 10P0ACE196_5 | SA5: 10P0TPU022_5 | SB5: 10PDMBE042_5 | SC5: 10PDMBM001_5 | SD5: 10PDMBM002_5 | SE5: 10PDMBN001_5 | SF5: 10PDMEE042_5 | SG5: 10PDMEU039_5 | SH5: 10PDMEM001_5 | SI5: 10PDMEM002_5 | SJ5: 10PDMEN001_5 | SK5: 10PDORG005_5 | SL5: 10PDORM001_5 | SM5: 10PDORM002_5 | SN5: 10PDORN001_5 | SO5: 10PDRTE042_5 | SP5: 10PDRTM001_5 | SQ5: 10PDRTM002_5 | SR5: 10PDRTN001_5 | SS5: 10PDTEE042_5 | ST5: 10PDTEJ001_5 | SU5: 10PDTEM001_5 | SV5: 10PDTEM002_5 | SW5: 10PDTEN001_5 | SX5: 11C001M001_5 | SY5: 11C001U047_5 | SZ5: 11C001N001_5 | TA5: 11C001K019_5 | TB5: 11C001E194_5 | TC5: 11C001E168_5 | TD5: 11C001E169_5 | TE5: 11C001M002_5 | TF5: 11CD01E026_5 | TG5: 11CD01E170_5 | TH5: 11CD01U040_5 | TI5: 11CD01N001_5 | TJ5: 11CD01M001_5 | TK5: 11CD01M002_5 | TL5: 11CD02M001_5 | TM5: 11CD02E169_5 | TN5: 11CD02E026_5 | TO5: 11CD02N001_5 | TP5: 11CD02M002_5 | TQ5: 11CD03E169_5 | TR5: 11CD03M001_5 | TS5: 11CD03M002_5 | TT5: 11CD03N001_5 | TU5: 13C001O006_5 | TV5: 13C001O008_5 | TW5: 13C001M001_5 | TX5: 13C001M002_5 | TY5: 13C001N001_5 | TZ5: 13PDEAO009_5 | UA5: 13PDEAM001_5 | UB5: 13PDEAM002_5 | UC5: 13PDEAN001_5 | UD5: 13PDVAG076_5 | UE5: 13PDVAM001_5 | UF5: 13PDVAM002_5 | UG5: 13PDVAN001_5 | UH5: 15C006U009_5 | UI5: 16C000D001_5 | UJ5: 16C000D002_5 | UK5: 25C001E171_5 | UL5: 25C001O010_5 | UM5: 25C001N001_5 | UN5: 25C001M001_5 | UO5: 25C001M002_5 | UP5: 26C001E017_5 | UQ5: 26C001E172_5 | UR5: 26C001E173_5 | US5: 26C001E174_5 | UT5: 26C001M001_5 | UU5: 26C001M002_5 | UV5: 26C001N001_5 | UW5: 26CD01G077_5 | UX5: 26CD01M001_5 | UY5: 26CD01M002_5 | UZ5: 26CD01N001_5 | VA5: 26PDIAP022_5 | VB5: 26PDIAM001_5 | VC5: 26PDIAM002_5 | VD5: 26PDIAN001_5 | VE5: 26PDSPN001_5 | VF5: 26PDSPE066_5 | VG5: 26PDSPE173_5 | VH5: 26PDSPM001_5 | VI5: 26PDSPM002_5 | VJ5: 31C000E175_5 | VK5: 31C000S012_5 | VL5: 31C000S051_5 | VM5: 31C000S057_5 | VN5: 31C000U014_5 | VO5: 31C000M001_5 | VP5: 31C000M002_5 | VQ5: 31C000N001_5 | VR5: 31PDMPE048_5 | VS5: 31PDMPM001_5 | VT5: 31PDMPM002_5 | VU5: 31PDMPN001_5 | VV5: 31PFMAE177_5 | VW5: 31PFMAM001_5 | VX5: 31PFMAM002_5 | VY5: 31PFMAN001_5 | VZ5: 31PFMEE177_5 | WA5: 31PFMEM001_5 | WB5: 31PFMEM002_5 | WC5: 31PFMEN001_5 | WD5: 31PFPCU036_5 | WE5: 31PFPCM001_5 | WF5: 31PFPCM002_5 | WG5: 31PFPCN001_5 | WH5: 33C001E178_5 | WI5: 33C001M001_5 | WJ5: 33C001M002_5 | WK5: 33C001N001_5 | WL5: 33C001S022_5 | WM5: 33C001S023_5 | WN5: 33C001S054_5 | WO5: 33PDCLE199_5 | WP5: 33PDITE100_5 | WQ5: 33PDITM001_5 | WR5: 33PDITM002_5 | WS5: 33PDITN001_5 | WT5: 34C001N005_5 | WU5: 34C001M001_5 | WV5: 34C001M002_5 | WW5: 34C001N001_5 | WX5: 34PDHBN005_5 | WY5: 34PDHBM001_5 | WZ5: 34PDHBM002_5 | XA5: 34PDHBN001_5 | XB5: 35C001E179_5 | XC5: 35C001S223_5 | XD5: 35C001M001_5 | XE5: 35C001M002_5 | XF5: 35C001N001_5 | XG5: 36C001E086_5 | XH5: 36C001E116_5 | XI5: 36C001E180_5 | XJ5: 36C001M001_5 | XK5: 36C001M002_5 | XL5: 36C001N001_5 | XM5: 36C001S224_5 | XN5: 36C001U041_5 | XO5: 36CD01E153_5 | XP5: 36CD01M001_5 | XQ5: 36CD01M002_5 | XR5: 36CD01N001_5 | XS5: 36CDESE181_5 | XT5: 36CDESM001_5 | XU5: 36CDESM002_5 | XV5: 36CDESN001_5 | XW5: 36PDIDE182_5 | XX5: 36PDIDE197_5 | XY5: 36PDIDM001_5 | XZ5: 36PDIDM002_5 | YA5: 36PDIDN001_5 | YB5: 36PDIDU042_5 | YC5: 36PDIEE086_5 | YD5: 36PDIEM001_5 | YE5: 36PDIEM002_5 | YF5: 36PDIEN001_5 | YG5: 36PFEGE161_5 | YH5: 36PFEGM001_5 | YI5: 36PFEGM002_5 | YJ5: 36PFEGN001_5 | YK5: 36PFEGS210_5 | YL5: 36PFEGS225_5 | YM5: 36PFEGS226_5 | YN5: 36PFEGS227_5 | YO5: 36PFEGU043_5 | YP5: 36PFEGU044_5 | YQ5: 38C001E183_5 | YR5: 38C001S056_5 | YS5: 38C001P003_5 | YT5: 38C001M001_5 | YU5: 38C001N001_5 | YV5: 38C001M002_5 | YW5: 41PDIPM001_5 | YX5: 41PDIPM002_5 | YY5: 41PDIPP051_5
A6: 01C001P020_6 | B6: 01C001M001_6 | C6: 01C001M002_6 | D6: 01C001N001_6 | E6: 01CD03E065_6 | F6: 01CD03M001_6 | G6: 01CD03M002_6 | H6: 01CD03N001_6 | I6: 01CD06E005_6 | J6: 01CD06E157_6 | K6: 01CD06M001_6 | L6: 01CD06M002_6 | M6: 01CD06N001_6 | N6: 01P0ESP054_6 | O6: 01P0ESM001_6 | P6: 01P0ESM002_6 | Q6: 01P0ESN001_6 | R6: 02C001M001_6 | S6: 02C001M002_6 | T6: 02C001P055_6 | U6: 02C001N001_6 | V6: 02C001S005_6 | W6: 02C001U019_6 | X6: 02CD01E185_6 | Y6: 02CD01E186_6 | Z6: 02CD01E187_6 | AA6: 02CD01E188_6 | AB6: 02CD01E189_6 | AC6: 02CD01E190_6 | AD6: 02CD01E198_6 | AE6: 02CD01F037_6 | AF6: 02CD01K023_6 | AG6: 02CD01K026_6 | AH6: 02CD01K027_6 | AI6: 02CD01M001_6 | AJ6: 02CD01M002_6 | AK6: 02CD01N001_6 | AL6: 02CD01R002_6 | AM6: 02CD01S229_6 | AN6: 02CD01S230_6 | AO6: 02CD01U048_6 | AP6: 02CD02E185_6 | AQ6: 02CD02E186_6 | AR6: 02CD02E187_6 | AS6: 02CD02E188_6 | AT6: 02CD02E198_6 | AU6: 02CD02F037_6 | AV6: 02CD02K023_6 | AW6: 02CD02K026_6 | AX6: 02CD02K027_6 | AY6: 02CD02M001_6 | AZ6: 02CD02M002_6 | BA6: 02CD02N001_6 | BB6: 02CD02R002_6 | BC6: 02CD02S229_6 | BD6: 02CD02S230_6 | BE6: 02CD03E185_6 | BF6: 02CD03E186_6 | BG6: 02CD03E187_6 | BH6: 02CD03E190_6 | BI6: 02CD03E189_6 | BJ6: 02CD03E198_6 | BK6: 02CD03F037_6 | BL6: 02CD03K023_6 | BM6: 02CD03K026_6 | BN6: 02CD03K027_6 | BO6: 02CD03N001_6 | BP6: 02CD03R002_6 | BQ6: 02CD03S230_6 | BR6: 02CD03S235_6 | BS6: 02CD03E188_6 | BT6: 02CD03M001_6 | BU6: 02CD03M002_6 | BV6: 02CD03S234_6 | BW6: 02CD04E185_6 | BX6: 02CD04E186_6 | BY6: 02CD04E187_6 | BZ6: 02CD04E188_6 | CA6: 02CD04E189_6 | CB6: 02CD04E190_6 | CC6: 02CD04E198_6 | CD6: 02CD04F037_6 | CE6: 02CD04K023_6 | CF6: 02CD04K026_6 | CG6: 02CD04K027_6 | CH6: 02CD04M001_6 | CI6: 02CD04M002_6 | CJ6: 02CD04N001_6 | CK6: 02CD04R002_6 | CL6: 02CD04S230_6 | CM6: 02CD04S234_6 | CN6: 02CD04U048_6 | CO6: 02CD05E185_6 | CP6: 02CD05E186_6 | CQ6: 02CD05E187_6 | CR6: 02CD05E188_6 | CS6: 02CD05E189_6 | CT6: 02CD05E190_6 | CU6: 02CD05E198_6 | CV6: 02CD05F037_6 | CW6: 02CD05K023_6 | CX6: 02CD05K026_6 | CY6: 02CD05K027_6 | CZ6: 02CD05M001_6 | DA6: 02CD05M002_6 | DB6: 02CD05N001_6 | DC6: 02CD05R002_6 | DD6: 02CD05S234_6 | DE6: 02CD05U048_6 | DF6: 02CD06E185_6 | DG6: 02CD06E186_6 | DH6: 02CD06E187_6 | DI6: 02CD06E188_6 | DJ6: 02CD06E189_6 | DK6: 02CD06E190_6 | DL6: 02CD06E198_6 | DM6: 02CD06F037_6 | DN6: 02CD06K023_6 | DO6: 02CD06K026_6 | DP6: 02CD06K027_6 | DQ6: 02CD06M001_6 | DR6: 02CD06M002_6 | DS6: 02CD06N001_6 | DT6: 02CD06R002_6 | DU6: 02CD06S230_6 | DV6: 02CD06S232_6 | DW6: 02CD06U048_6 | DX6: 02CD07E185_6 | DY6: 02CD07E186_6 | DZ6: 02CD07E187_6 | EA6: 02CD07E188_6 | EB6: 02CD07E189_6 | EC6: 02CD07E190_6 | ED6: 02CD07E198_6 | EE6: 02CD07F037_6 | EF6: 02CD07K023_6 | EG6: 02CD07K026_6 | EH6: 02CD07K027_6 | EI6: 02CD07M001_6 | EJ6: 02CD07M002_6 | EK6: 02CD07N001_6 | EL6: 02CD07R002_6 | EM6: 02CD07S229_6 | EN6: 02CD07S230_6 | EO6: 02CD07U048_6 | EP6: 02CD08E185_6 | EQ6: 02CD08E186_6 | ER6: 02CD08E187_6 | ES6: 02CD08E188_6 | ET6: 02CD08E189_6 | EU6: 02CD08E190_6 | EV6: 02CD08E198_6 | EW6: 02CD08F037_6 | EX6: 02CD08K023_6 | EY6: 02CD08K026_6 | EZ6: 02CD08K027_6 | FA6: 02CD08M001_6 | FB6: 02CD08M002_6 | FC6: 02CD08N001_6 | FD6: 02CD08R002_6 | FE6: 02CD08S229_6 | FF6: 02CD08S230_6 | FG6: 02CD08U048_6 | FH6: 02CD09E185_6 | FI6: 02CD09E186_6 | FJ6: 02CD09E187_6 | FK6: 02CD09E188_6 | FL6: 02CD09E189_6 | FM6: 02CD09E190_6 | FN6: 02CD09E198_6 | FO6: 02CD09F037_6 | FP6: 02CD09K023_6 | FQ6: 02CD09K026_6 | FR6: 02CD09K027_6 | FS6: 02CD09M001_6 | FT6: 02CD09M002_6 | FU6: 02CD09N001_6 | FV6: 02CD09R002_6 | FW6: 02CD09S229_6 | FX6: 02CD09S230_6 | FY6: 02CD09U048_6 | FZ6: 02CD10E185_6 | GA6: 02CD10E186_6 | GB6: 02CD10E187_6 | GC6: 02CD10E188_6 | GD6: 02CD10E189_6 | GE6: 02CD10E190_6 | GF6: 02CD10E198_6 | GG6: 02CD10F037_6 | GH6: 02CD10K023_6 | GI6: 02CD10K026_6 | GJ6: 02CD10K027_6 | GK6: 02CD10M001_6 | GL6: 02CD10M002_6 | GM6: 02CD10N001_6 | GN6: 02CD10R002_6 | GO6: 02CD10S230_6 | GP6: 02CD10S231_6 | GQ6: 02CD10S232_6 | GR6: 02CD10S233_6 | GS6: 02CD10S234_6 | GT6: 02CD10S235_6 | GU6: 02CD10U048_6 | GV6: 02CD11E185_6 | GW6: 02CD11E186_6 | GX6: 02CD11E187_6 | GY6: 02CD11E188_6 | GZ6: 02CD11E189_6 | HA6: 02CD11E190_6 | HB6: 02CD11E198_6 | HC6: 02CD11F037_6 | HD6: 02CD11K023_6 | HE6: 02CD11K026_6 | HF6: 02CD11K027_6 | HG6: 02CD11M001_6 | HH6: 02CD11M002_6 | HI6: 02CD11R002_6 | HJ6: 02CD11S229_6 | HK6: 02CD11S233_6 | HL6: 02CD11N001_6 | HM6: 02CD12E185_6 | HN6: 02CD12E186_6 | HO6: 02CD12E187_6 | HP6: 02CD12E188_6 | HQ6: 02CD12E189_6 | HR6: 02CD12E190_6 | HS6: 02CD12E198_6 | HT6: 02CD12F037_6 | HU6: 02CD12K023_6 | HV6: 02CD12K026_6 | HW6: 02CD12K027_6 | HX6: 02CD12N001_6 | HY6: 02CD12R002_6 | HZ6: 02CD12S231_6 | IA6: 02CD12S233_6 | IB6: 02CD12M001_6 | IC6: 02CD12M002_6 | ID6: 02CD12U048_6 | IE6: 02CD13E185_6 | IF6: 02CD13E186_6 | IG6: 02CD13E187_6 | IH6: 02CD13E188_6 | II6: 02CD13E189_6 | IJ6: 02CD13E190_6 | IK6: 02CD13E198_6 | IL6: 02CD13F037_6 | IM6: 02CD13K023_6 | IN6: 02CD13K026_6 | IO6: 02CD13K027_6 | IP6: 02CD13M001_6 | IQ6: 02CD13M002_6 | IR6: 02CD13N001_6 | IS6: 02CD13R002_6 | IT6: 02CD13U048_6 | IU6: 02CD14E185_6 | IV6: 02CD14E186_6 | IW6: 02CD14E187_6 | IX6: 02CD14E188_6 | IY6: 02CD14E189_6 | IZ6: 02CD14E190_6 | JA6: 02CD14E198_6 | JB6: 02CD14F037_6 | JC6: 02CD14K023_6 | JD6: 02CD14K026_6 | JE6: 02CD14K027_6 | JF6: 02CD14M001_6 | JG6: 02CD14M002_6 | JH6: 02CD14N001_6 | JI6: 02CD14R002_6 | JJ6: 02CD14S229_6 | JK6: 02CD14S231_6 | JL6: 02CD14S233_6 | JM6: 02CD14S234_6 | JN6: 02CD14S235_6 | JO6: 02CD14U048_6 | JP6: 02CD15E185_6 | JQ6: 02CD15E186_6 | JR6: 02CD15E187_6 | JS6: 02CD15E188_6 | JT6: 02CD15E189_6 | JU6: 02CD15E190_6 | JV6: 02CD15E198_6 | JW6: 02CD15F037_6 | JX6: 02CD15K023_6 | JY6: 02CD15K026_6 | JZ6: 02CD15K027_6 | KA6: 02CD15M001_6 | KB6: 02CD15M002_6 | KC6: 02CD15N001_6 | KD6: 02CD15R002_6 | KE6: 02CD15S229_6 | KF6: 02CD15S230_6 | KG6: 02CD15S232_6 | KH6: 02CD15S233_6 | KI6: 02CD15S235_6 | KJ6: 02CD15U048_6 | KK6: 02CD16E185_6 | KL6: 02CD16E186_6 | KM6: 02CD16E187_6 | KN6: 02CD16E188_6 | KO6: 02CD16E189_6 | KP6: 02CD16E190_6 | KQ6: 02CD16E198_6 | KR6: 02CD16F037_6 | KS6: 02CD16K023_6 | KT6: 02CD16K026_6 | KU6: 02CD16K027_6 | KV6: 02CD16M001_6 | KW6: 02CD16M002_6 | KX6: 02CD16N001_6 | KY6: 02CD16R002_6 | KZ6: 02CD16S230_6 | LA6: 02CD16S231_6 | LB6: 02CD16U048_6 | LC6: 02CDBPM001_6 | LD6: 02CDBPE097_6 | LE6: 02OD04M002_6 | LF6: 02OD04E003_6 | LG6: 02OD04N001_6 | LH6: 02OD04M001_6 | LI6: 02OD06P017_6 | LJ6: 02OD06M001_6 | LK6: 02OD06M002_6 | LL6: 02OD06N001_6 | LM6: 02PDAVM001_6 | LN6: 02PDAVM002_6 | LO6: 02PDAVE109_6 | LP6: 02PDDPE158_6 | LQ6: 02PDDPM001_6 | LR6: 02PDDPM002_6 | LS6: 02PDDPN001_6 | LT6: 03C001G073_6 | LU6: 03C001M001_6 | LV6: 03C001M002_6 | LW6: 03C001N001_6 | LX6: 03PDIVM001_6 | LY6: 03PDIVM002_6 | LZ6: 03PDIVN001_6 | MA6: 03PDIVS027_6 | MB6: 03PDIVS061_6 | MC6: 04C001F034_6 | MD6: 04C001F036_6 | ME6: 04C001G074_6 | MF6: 04C001N001_6 | MG6: 04C001P016_6 | MH6: 04C001M001_6 | MI6: 04C001M002_6 | MJ6: 04P0DER001_6 | MK6: 04P0DSF006_6 | ML6: 04P0DSM001_6 | MM6: 04P0DSM002_6 | MN6: 04P0DSN001_6 | MO6: 05C001F005_6 | MP6: 05C001M001_6 | MQ6: 05C001M002_6 | MR6: 05C001N001_6 | MS6: 05P0PTF022_6 | MT6: 05P0PTM001_6 | MU6: 05P0PTM002_6 | MV6: 05P0PTN001_6 | MW6: 06C001P005_6 | MX6: 06C001E022_6 | MY6: 06C001E107_6 | MZ6: 06C001E159_6 | NA6: 06C001G013_6 | NB6: 06C001M001_6 | NC6: 06C001M002_6 | ND6: 06C001N001_6 | NE6: 06C001P056_6 | NF6: 06CD03M001_6 | NG6: 06CD03M002_6 | NH6: 06CD03N001_6 | NI6: 06CD03K024_6 | NJ6: 06CD03K025_6 | NK6: 06CD03E160_6 | NL6: 06CD03E184_6 | NM6: 06CD05E090_6 | NN6: 06CD05N001_6 | NO6: 06P0FAE006_6 | NP6: 06P0FAS034_6 | NQ6: 06P0FAS036_6 | NR6: 06P0FAU045_6 | NS6: 06PDPAE154_6 | NT6: 06PDPAM001_6 | NU6: 06PDPAM002_6 | NV6: 06PDPAN001_6 | NW6: 07C001E093_6 | NX6: 07C001K008_6 | NY6: 07C001K020_6 | NZ6: 07C001K021_6 | OA6: 07C001K022_6 | OB6: 07C001M001_6 | OC6: 07C001M002_6 | OD6: 07C001N001_6 | OE6: 07C001U046_6 | OF6: 07CD01B001_6 | OG6: 07CD01M001_6 | OH6: 07CD01M002_6 | OI6: 07CD01N001_6 | OJ6: 07PDIFM001_6 | OK6: 07PDIFM002_6 | OL6: 07PDIFN001_6 | OM6: 07PDIFK012_6 | ON6: 07PDISE067_6 | OO6: 07PDISM001_6 | OP6: 07PDISM002_6 | OQ6: 07PDISN001_6 | OR6: 08C001E081_6 | OS6: 08C001E161_6 | OT6: 08C001E162_6 | OU6: 08C001N001_6 | OV6: 08C001S047_6 | OW6: 08C001S220_6 | OX6: 08C001S221_6 | OY6: 08C001M001_6 | OZ6: 08C001M002_6 | PA6: 08PDCPN001_6 | PB6: 08PDCPP027_6 | PC6: 08PDCPM001_6 | PD6: 08PDCPM002_6 | PE6: 08PDCPU038_6 | PF6: 08PDDFE163_6 | PG6: 08PDDFE164_6 | PH6: 08PDDFE165_6 | PI6: 08PDDFE166_6 | PJ6: 08PDDFM001_6 | PK6: 08PDDFM002_6 | PL6: 08PDDFN001_6 | PM6: 08PDDFS035_6 | PN6: 08PDDFS066_6 | PO6: 08PDDFS221_6 | PP6: 08PDDFU032_6 | PQ6: 08PDDFU037_6 | PR6: 08PDDFS010_6 | PS6: 08PDIIE165_6 | PT6: 08PDIIM001_6 | PU6: 08PDIIM002_6 | PV6: 08PDIIN001_6 | PW6: 08PDIIP031_6 | PX6: 08PDIJE193_6 | PY6: 08PDIJM001_6 | PZ6: 08PDIJM002_6 | QA6: 08PDIJN001_6 | QB6: 08PDIJS004_6 | QC6: 08PDIJS025_6 | QD6: 08PDPSM001_6 | QE6: 08PDPSM002_6 | QF6: 08PDPSN001_6 | QG6: 08PDPSS053_6 | QH6: 09C001E191_6 | QI6: 09C001E192_6 | QJ6: 09C001M001_6 | QK6: 09C001M002_6 | QL6: 09C001N001_6 | QM6: 09C001O004_6 | QN6: 09C001O007_6 | QO6: 09C001P014_6 | QP6: 09C001P026_6 | QQ6: 09PDLRE195_6 | QR6: 09PDLRJ001_6 | QS6: 09PDLRM001_6 | QT6: 09PDLRM002_6 | QU6: 09PDLRN001_6 | QV6: 09PDPAE195_6 | QW6: 09PDPAJ001_6 | QX6: 09PDPAM001_6 | QY6: 09PDPAM002_6 | QZ6: 09PDPAN001_6 | RA6: 09PDPPE195_6 | RB6: 09PDPPJ001_6 | RC6: 09PDPPM001_6 | RD6: 09PDPPM002_6 | RE6: 09PDPPN001_6 | RF6: 09PECME077_6 | RG6: 09PECMM001_6 | RH6: 09PECMM002_6 | RI6: 09PECMN001_6 | RJ6: 09PESME084_6 | RK6: 09PESMM001_6 | RL6: 09PESMM002_6 | RM6: 09PESMN001_6 | RN6: 09PFCHM001_6 | RO6: 09PFCHM002_6 | RP6: 09PFCHN001_6 | RQ6: 09PFCHE003_6 | RR6: 09PFRCG010_6 | RS6: 09PFRCN001_6 | RT6: 09PFRCM002_6 | RU6: 10C001E167_6 | RV6: 10C001E196_6 | RW6: 10C001M001_6 | RX6: 10C001M002_6 | RY6: 10C001N001_6 | RZ6: 10P0ACE196_6 | SA6: 10P0TPU022_6 | SB6: 10PDMBE042_6 | SC6: 10PDMBM001_6 | SD6: 10PDMBM002_6 | SE6: 10PDMBN001_6 | SF6: 10PDMEE042_6 | SG6: 10PDMEU039_6 | SH6: 10PDMEM001_6 | SI6: 10PDMEM002_6 | SJ6: 10PDMEN001_6 | SK6: 10PDORG005_6 | SL6: 10PDORM001_6 | SM6: 10PDORM002_6 | SN6: 10PDORN001_6 | SO6: 10PDRTE042_6 | SP6: 10PDRTM001_6 | SQ6: 10PDRTM002_6 | SR6: 10PDRTN001_6 | SS6: 10PDTEE042_6 | ST6: 10PDTEJ001_6 | SU6: 10PDTEM001_6 | SV6: 10PDTEM002_6 | SW6: 10PDTEN001_6 | SX6: 11C001M001_6 | SY6: 11C001U047_6 | SZ6: 11C001N001_6 | TA6: 11C001K019_6 | TB6: 11C001E194_6 | TC6: 11C001E168_6 | TD6: 11C001E169_6 | TE6: 11C001M002_6 | TF6: 11CD01E026_6 | TG6: 11CD01E170_6 | TH6: 11CD01U040_6 | TI6: 11CD01N001_6 | TJ6: 11CD01M001_6 | TK6: 11CD01M002_6 | TL6: 11CD02M001_6 | TM6: 11CD02E169_6 | TN6: 11CD02E026_6 | TO6: 11CD02N001_6 | TP6: 11CD02M002_6 | TQ6: 11CD03E169_6 | TR6: 11CD03M001_6 | TS6: 11CD03M002_6 | TT6: 11CD03N001_6 | TU6: 13C001O006_6 | TV6: 13C001O008_6 | TW6: 13C001M001_6 | TX6: 13C001M002_6 | TY6: 13C001N001_6 | TZ6: 13PDEAO009_6 | UA6: 13PDEAM001_6 | UB6: 13PDEAM002_6 | UC6: 13PDEAN001_6 | UD6: 13PDVAG076_6 | UE6: 13PDVAM001_6 | UF6: 13PDVAM002_6 | UG6: 13PDVAN001_6 | UH6: 15C006U009_6 | UI6: 16C000D001_6 | UJ6: 16C000D002_6 | UK6: 25C001E171_6 | UL6: 25C001O010_6 | UM6: 25C001N001_6 | UN6: 25C001M001_6 | UO6: 25C001M002_6 | UP6: 26C001E017_6 | UQ6: 26C001E172_6 | UR6: 26C001E173_6 | US6: 26C001E174_6 | UT6: 26C001M001_6 | UU6: 26C001M002_6 | UV6: 26C001N001_6 | UW6: 26CD01G077_6 | UX6: 26CD01M001_6 | UY6: 26CD01M002_6 | UZ6: 26CD01N001_6 | VA6: 26PDIAP022_6 | VB6: 26PDIAM001_6 | VC6: 26PDIAM002_6 | VD6: 26PDIAN001_6 | VE6: 26PDSPN001_6 | VF6: 26PDSPE066_6 | VG6: 26PDSPE173_6 | VH6: 26PDSPM001_6 | VI6: 26PDSPM002_6 | VJ6: 31C000E175_6 | VK6: 31C000S012_6 | VL6: 31C000S051_6 | VM6: 31C000S057_6 | VN6: 31C000U014_6 | VO6: 31C000M001_6 | VP6: 31C000M002_6 | VQ6: 31C000N001_6 | VR6: 31PDMPE048_6 | VS6: 31PDMPM001_6 | VT6: 31PDMPM002_6 | VU6: 31PDMPN001_6 | VV6: 31PFMAE177_6 | VW6: 31PFMAM001_6 | VX6: 31PFMAM002_6 | VY6: 31PFMAN001_6 | VZ6: 31PFMEE177_6 | WA6: 31PFMEM001_6 | WB6: 31PFMEM002_6 | WC6: 31PFMEN001_6 | WD6: 31PFPCU036_6 | WE6: 31PFPCM001_6 | WF6: 31PFPCM002_6 | WG6: 31PFPCN001_6 | WH6: 33C001E178_6 | WI6: 33C001M001_6 | WJ6: 33C001M002_6 | WK6: 33C001N001_6 | WL6: 33C001S022_6 | WM6: 33C001S023_6 | WN6: 33C001S054_6 | WO6: 33PDCLE199_6 | WP6: 33PDITE100_6 | WQ6: 33PDITM001_6 | WR6: 33PDITM002_6 | WS6: 33PDITN001_6 | WT6: 34C001N005_6 | WU6: 34C001M001_6 | WV6: 34C001M002_6 | WW6: 34C001N001_6 | WX6: 34PDHBN005_6 | WY6: 34PDHBM001_6 | WZ6: 34PDHBM002_6 | XA6: 34PDHBN001_6 | XB6: 35C001E179_6 | XC6: 35C001S223_6 | XD6: 35C001M001_6 | XE6: 35C001M002_6 | XF6: 35C001N001_6 | XG6: 36C001E086_6 | XH6: 36C001E116_6 | XI6: 36C001E180_6 | XJ6: 36C001M001_6 | XK6: 36C001M002_6 | XL6: 36C001N001_6 | XM6: 36C001S224_6 | XN6: 36C001U041_6 | XO6: 36CD01E153_6 | XP6: 36CD01M001_6 | XQ6: 36CD01M002_6 | XR6: 36CD01N001_6 | XS6: 36CDESE181_6 | XT6: 36CDESM001_6 | XU6: 36CDESM002_6 | XV6: 36CDESN001_6 | XW6: 36PDIDE182_6 | XX6: 36PDIDE197_6 | XY6: 36PDIDM001_6 | XZ6: 36PDIDM002_6 | YA6: 36PDIDN001_6 | YB6: 36PDIDU042_6 | YC6: 36PDIEE086_6 | YD6: 36PDIEM001_6 | YE6: 36PDIEM002_6 | YF6: 36PDIEN001_6 | YG6: 36PFEGE161_6 | YH6: 36PFEGM001_6 | YI6: 36PFEGM002_6 | YJ6: 36PFEGN001_6 | YK6: 36PFEGS210_6 | YL6: 36PFEGS225_6 | YM6: 36PFEGS226_6 | YN6: 36PFEGS227_6 | YO6: 36PFEGU043_6 | YP6: 36PFEGU044_6 | YQ6: 38C001E183_6 | YR6: 38C001S056_6 | YS6: 38C001P003_6 | YT6: 38C001M001_6 | YU6: 38C001N001_6 | YV6: 38C001M002_6 | YW6: 41PDIPM001_6 | YX6: 41PDIPM002_6 | YY6: 41PDIPP051_6
A7: 01C001P020_7 | B7: 01C001M001_7 | C7: 01C001M002_7 | D7: 01C001N001_7 | E7: 01CD03E065_7 | F7: 01CD03M001_7 | G7: 01CD03M002_7 | H7: 01CD03N001_7 | I7: 01CD06E005_7 | J7: 01CD06E157_7 | K7: 01CD06M001_7 | L7: 01CD06M002_7 | M7: 01CD06N001_7 | N7: 01P0ESP054_7 | O7: 01P0ESM001_7 | P7: 01P0ESM002_7 | Q7: 01P0ESN001_7 | R7: 02C001M001_7 | S7: 02C001M002_7 | T7: 02C001P055_7 | U7: 02C001N001_7 | V7: 02C001S005_7 | W7: 02C001U019_7 | X7: 02CD01E185_7 | Y7: 02CD01E186_7 | Z7: 02CD01E187_7 | AA7: 02CD01E188_7 | AB7: 02CD01E189_7 | AC7: 02CD01E190_7 | AD7: 02CD01E198_7 | AE7: 02CD01F037_7 | AF7: 02CD01K023_7 | AG7: 02CD01K026_7 | AH7: 02CD01K027_7 | AI7: 02CD01M001_7 | AJ7: 02CD01M002_7 | AK7: 02CD01N001_7 | AL7: 02CD01R002_7 | AM7: 02CD01S229_7 | AN7: 02CD01S230_7 | AO7: 02CD01U048_7 | AP7: 02CD02E185_7 | AQ7: 02CD02E186_7 | AR7: 02CD02E187_7 | AS7: 02CD02E188_7 | AT7: 02CD02E198_7 | AU7: 02CD02F037_7 | AV7: 02CD02K023_7 | AW7: 02CD02K026_7 | AX7: 02CD02K027_7 | AY7: 02CD02M001_7 | AZ7: 02CD02M002_7 | BA7: 02CD02N001_7 | BB7: 02CD02R002_7 | BC7: 02CD02S229_7 | BD7: 02CD02S230_7 | BE7: 02CD03E185_7 | BF7: 02CD03E186_7 | BG7: 02CD03E187_7 | BH7: 02CD03E190_7 | BI7: 02CD03E189_7 | BJ7: 02CD03E198_7 | BK7: 02CD03F037_7 | BL7: 02CD03K023_7 | BM7: 02CD03K026_7 | BN7: 02CD03K027_7 | BO7: 02CD03N001_7 | BP7: 02CD03R002_7 | BQ7: 02CD03S230_7 | BR7: 02CD03S235_7 | BS7: 02CD03E188_7 | BT7: 02CD03M001_7 | BU7: 02CD03M002_7 | BV7: 02CD03S234_7 | BW7: 02CD04E185_7 | BX7: 02CD04E186_7 | BY7: 02CD04E187_7 | BZ7: 02CD04E188_7 | CA7: 02CD04E189_7 | CB7: 02CD04E190_7 | CC7: 02CD04E198_7 | CD7: 02CD04F037_7 | CE7: 02CD04K023_7 | CF7: 02CD04K026_7 | CG7: 02CD04K027_7 | CH7: 02CD04M001_7 | CI7: 02CD04M002_7 | CJ7: 02CD04N001_7 | CK7: 02CD04R002_7 | CL7: 02CD04S230_7 | CM7: 02CD04S234_7 | CN7: 02CD04U048_7 | CO7: 02CD05E185_7 | CP7: 02CD05E186_7 | CQ7: 02CD05E187_7 | CR7: 02CD05E188_7 | CS7: 02CD05E189_7 | CT7: 02CD05E190_7 | CU7: 02CD05E198_7 | CV7: 02CD05F037_7 | CW7: 02CD05K023_7 | CX7: 02CD05K026_7 | CY7: 02CD05K027_7 | CZ7: 02CD05M001_7 | DA7: 02CD05M002_7 | DB7: 02CD05N001_7 | DC7: 02CD05R002_7 | DD7: 02CD05S234_7 | DE7: 02CD05U048_7 | DF7: 02CD06E185_7 | DG7: 02CD06E186_7 | DH7: 02CD06E187_7 | DI7: 02CD06E188_7 | DJ7: 02CD06E189_7 | DK7: 02CD06E190_7 | DL7: 02CD06E198_7 | DM7: 02CD06F037_7 | DN7: 02CD06K023_7 | DO7: 02CD06K026_7 | DP7: 02CD06K027_7 | DQ7: 02CD06M001_7 | DR7: 02CD06M002_7 | DS7: 02CD06N001_7 | DT7: 02CD06R002_7 | DU7: 02CD06S230_7 | DV7: 02CD06S232_7 | DW7: 02CD06U048_7 | DX7: 02CD07E185_7 | DY7: 02CD07E186_7 | DZ7: 02CD07E187_7 | EA7: 02CD07E188_7 | EB7: 02CD07E189_7 | EC7: 02CD07E190_7 | ED7: 02CD07E198_7 | EE7: 02CD07F037_7 | EF7: 02CD07K023_7 | EG7: 02CD07K026_7 | EH7: 02CD07K027_7 | EI7: 02CD07M001_7 | EJ7: 02CD07M002_7 | EK7: 02CD07N001_7 | EL7: 02CD07R002_7 | EM7: 02CD07S229_7 | EN7: 02CD07S230_7 | EO7: 02CD07U048_7 | EP7: 02CD08E185_7 | EQ7: 02CD08E186_7 | ER7: 02CD08E187_7 | ES7: 02CD08E188_7 | ET7: 02CD08E189_7 | EU7: 02CD08E190_7 | EV7: 02CD08E198_7 | EW7: 02CD08F037_7 | EX7: 02CD08K023_7 | EY7: 02CD08K026_7 | EZ7: 02CD08K027_7 | FA7: 02CD08M001_7 | FB7: 02CD08M002_7 | FC7: 02CD08N001_7 | FD7: 02CD08R002_7 | FE7: 02CD08S229_7 | FF7: 02CD08S230_7 | FG7: 02CD08U048_7 | FH7: 02CD09E185_7 | FI7: 02CD09E186_7 | FJ7: 02CD09E187_7 | FK7: 02CD09E188_7 | FL7: 02CD09E189_7 | FM7: 02CD09E190_7 | FN7: 02CD09E198_7 | FO7: 02CD09F037_7 | FP7: 02CD09K023_7 | FQ7: 02CD09K026_7 | FR7: 02CD09K027_7 | FS7: 02CD09M001_7 | FT7: 02CD09M002_7 | FU7: 02CD09N001_7 | FV7: 02CD09R002_7 | FW7: 02CD09S229_7 | FX7: 02CD09S230_7 | FY7: 02CD09U048_7 | FZ7: 02CD10E185_7 | GA7: 02CD10E186_7 | GB7: 02CD10E187_7 | GC7: 02CD10E188_7 | GD7: 02CD10E189_7 | GE7: 02CD10E190_7 | GF7: 02CD10E198_7 | GG7: 02CD10F037_7 | GH7: 02CD10K023_7 | GI7: 02CD10K026_7 | GJ7: 02CD10K027_7 | GK7: 02CD10M001_7 | GL7: 02CD10M002_7 | GM7: 02CD10N001_7 | GN7: 02CD10R002_7 | GO7: 02CD10S230_7 | GP7: 02CD10S231_7 | GQ7: 02CD10S232_7 | GR7: 02CD10S233_7 | GS7: 02CD10S234_7 | GT7: 02CD10S235_7 | GU7: 02CD10U048_7 | GV7: 02CD11E185_7 | GW7: 02CD11E186_7 | GX7: 02CD11E187_7 | GY7: 02CD11E188_7 | GZ7: 02CD11E189_7 | HA7: 02CD11E190_7 | HB7: 02CD11E198_7 | HC7: 02CD11F037_7 | HD7: 02CD11K023_7 | HE7: 02CD11K026_7 | HF7: 02CD11K027_7 | HG7: 02CD11M001_7 | HH7: 02CD11M002_7 | HI7: 02CD11R002_7 | HJ7: 02CD11S229_7 | HK7: 02CD11S233_7 | HL7: 02CD11N001_7 | HM7: 02CD12E185_7 | HN7: 02CD12E186_7 | HO7: 02CD12E187_7 | HP7: 02CD12E188_7 | HQ7: 02CD12E189_7 | HR7: 02CD12E190_7 | HS7: 02CD12E198_7 | HT7: 02CD12F037_7 | HU7: 02CD12K023_7 | HV7: 02CD12K026_7 | HW7: 02CD12K027_7 | HX7: 02CD12N001_7 | HY7: 02CD12R002_7 | HZ7: 02CD12S231_7 | IA7: 02CD12S233_7 | IB7: 02CD12M001_7 | IC7: 02CD12M002_7 | ID7: 02CD12U048_7 | IE7: 02CD13E185_7 | IF7: 02CD13E186_7 | IG7: 02CD13E187_7 | IH7: 02CD13E188_7 | II7: 02CD13E189_7 | IJ7: 02CD13E190_7 | IK7: 02CD13E198_7 | IL7: 02CD13F037_7 | IM7: 02CD13K023_7 | IN7: 02CD13K026_7 | IO7: 02CD13K027_7 | IP7: 02CD13M001_7 | IQ7: 02CD13M002_7 | IR7: 02CD13N001_7 | IS7: 02CD13R002_7 | IT7: 02CD13U048_7 | IU7: 02CD14E185_7 | IV7: 02CD14E186_7 | IW7: 02CD14E187_7 | IX7: 02CD14E188_7 | IY7: 02CD14E189_7 | IZ7: 02CD14E190_7 | JA7: 02CD14E198_7 | JB7: 02CD14F037_7 | JC7: 02CD14K023_7 | JD7: 02CD14K026_7 | JE7: 02CD14K027_7 | JF7: 02CD14M001_7 | JG7: 02CD14M002_7 | JH7: 02CD14N001_7 | JI7: 02CD14R002_7 | JJ7: 02CD14S229_7 | JK7: 02CD14S231_7 | JL7: 02CD14S233_7 | JM7: 02CD14S234_7 | JN7: 02CD14S235_7 | JO7: 02CD14U048_7 | JP7: 02CD15E185_7 | JQ7: 02CD15E186_7 | JR7: 02CD15E187_7 | JS7: 02CD15E188_7 | JT7: 02CD15E189_7 | JU7: 02CD15E190_7 | JV7: 02CD15E198_7 | JW7: 02CD15F037_7 | JX7: 02CD15K023_7 | JY7: 02CD15K026_7 | JZ7: 02CD15K027_7 | KA7: 02CD15M001_7 | KB7: 02CD15M002_7 | KC7: 02CD15N001_7 | KD7: 02CD15R002_7 | KE7: 02CD15S229_7 | KF7: 02CD15S230_7 | KG7: 02CD15S232_7 | KH7: 02CD15S233_7 | KI7: 02CD15S235_7 | KJ7: 02CD15U048_7 | KK7: 02CD16E185_7 | KL7: 02CD16E186_7 | KM7: 02CD16E187_7 | KN7: 02CD16E188_7 | KO7: 02CD16E189_7 | KP7: 02CD16E190_7 | KQ7: 02CD16E198_7 | KR7: 02CD16F037_7 | KS7: 02CD16K023_7 | KT7: 02CD16K026_7 | KU7: 02CD16K027_7 | KV7: 02CD16M001_7 | KW7: 02CD16M002_7 | KX7: 02CD16N001_7 | KY7: 02CD16R002_7 | KZ7: 02CD16S230_7 | LA7: 02CD16S231_7 | LB7: 02CD16U048_7 | LC7: 02CDBPM001_7 | LD7: 02CDBPE097_7 | LE7: 02OD04M002_7 | LF7: 02OD04E003_7 | LG7: 02OD04N001_7 | LH7: 02OD04M001_7 | LI7: 02OD06P017_7 | LJ7: 02OD06M001_7 | LK7: 02OD06M002_7 | LL7: 02OD06N001_7 | LM7: 02PDAVM001_7 | LN7: 02PDAVM002_7 | LO7: 02PDAVE109_7 | LP7: 02PDDPE158_7 | LQ7: 02PDDPM001_7 | LR7: 02PDDPM002_7 | LS7: 02PDDPN001_7 | LT7: 03C001G073_7 | LU7: 03C001M001_7 | LV7: 03C001M002_7 | LW7: 03C001N001_7 | LX7: 03PDIVM001_7 | LY7: 03PDIVM002_7 | LZ7: 03PDIVN001_7 | MA7: 03PDIVS027_7 | MB7: 03PDIVS061_7 | MC7: 04C001F034_7 | MD7: 04C001F036_7 | ME7: 04C001G074_7 | MF7: 04C001N001_7 | MG7: 04C001P016_7 | MH7: 04C001M001_7 | MI7: 04C001M002_7 | MJ7: 04P0DER001_7 | MK7: 04P0DSF006_7 | ML7: 04P0DSM001_7 | MM7: 04P0DSM002_7 | MN7: 04P0DSN001_7 | MO7: 05C001F005_7 | MP7: 05C001M001_7 | MQ7: 05C001M002_7 | MR7: 05C001N001_7 | MS7: 05P0PTF022_7 | MT7: 05P0PTM001_7 | MU7: 05P0PTM002_7 | MV7: 05P0PTN001_7 | MW7: 06C001P005_7 | MX7: 06C001E022_7 | MY7: 06C001E107_7 | MZ7: 06C001E159_7 | NA7: 06C001G013_7 | NB7: 06C001M001_7 | NC7: 06C001M002_7 | ND7: 06C001N001_7 | NE7: 06C001P056_7 | NF7: 06CD03M001_7 | NG7: 06CD03M002_7 | NH7: 06CD03N001_7 | NI7: 06CD03K024_7 | NJ7: 06CD03K025_7 | NK7: 06CD03E160_7 | NL7: 06CD03E184_7 | NM7: 06CD05E090_7 | NN7: 06CD05N001_7 | NO7: 06P0FAE006_7 | NP7: 06P0FAS034_7 | NQ7: 06P0FAS036_7 | NR7: 06P0FAU045_7 | NS7: 06PDPAE154_7 | NT7: 06PDPAM001_7 | NU7: 06PDPAM002_7 | NV7: 06PDPAN001_7 | NW7: 07C001E093_7 | NX7: 07C001K008_7 | NY7: 07C001K020_7 | NZ7: 07C001K021_7 | OA7: 07C001K022_7 | OB7: 07C001M001_7 | OC7: 07C001M002_7 | OD7: 07C001N001_7 | OE7: 07C001U046_7 | OF7: 07CD01B001_7 | OG7: 07CD01M001_7 | OH7: 07CD01M002_7 | OI7: 07CD01N001_7 | OJ7: 07PDIFM001_7 | OK7: 07PDIFM002_7 | OL7: 07PDIFN001_7 | OM7: 07PDIFK012_7 | ON7: 07PDISE067_7 | OO7: 07PDISM001_7 | OP7: 07PDISM002_7 | OQ7: 07PDISN001_7 | OR7: 08C001E081_7 | OS7: 08C001E161_7 | OT7: 08C001E162_7 | OU7: 08C001N001_7 | OV7: 08C001S047_7 | OW7: 08C001S220_7 | OX7: 08C001S221_7 | OY7: 08C001M001_7 | OZ7: 08C001M002_7 | PA7: 08PDCPN001_7 | PB7: 08PDCPP027_7 | PC7: 08PDCPM001_7 | PD7: 08PDCPM002_7 | PE7: 08PDCPU038_7 | PF7: 08PDDFE163_7 | PG7: 08PDDFE164_7 | PH7: 08PDDFE165_7 | PI7: 08PDDFE166_7 | PJ7: 08PDDFM001_7 | PK7: 08PDDFM002_7 | PL7: 08PDDFN001_7 | PM7: 08PDDFS035_7 | PN7: 08PDDFS066_7 | PO7: 08PDDFS221_7 | PP7: 08PDDFU032_7 | PQ7: 08PDDFU037_7 | PR7: 08PDDFS010_7 | PS7: 08PDIIE165_7 | PT7: 08PDIIM001_7 | PU7: 08PDIIM002_7 | PV7: 08PDIIN001_7 | PW7: 08PDIIP031_7 | PX7: 08PDIJE193_7 | PY7: 08PDIJM001_7 | PZ7: 08PDIJM002_7 | QA7: 08PDIJN001_7 | QB7: 08PDIJS004_7 | QC7: 08PDIJS025_7 | QD7: 08PDPSM001_7 | QE7: 08PDPSM002_7 | QF7: 08PDPSN001_7 | QG7: 08PDPSS053_7 | QH7: 09C001E191_7 | QI7: 09C001E192_7 | QJ7: 09C001M001_7 | QK7: 09C001M002_7 | QL7: 09C001N001_7 | QM7: 09C001O004_7 | QN7: 09C001O007_7 | QO7: 09C001P014_7 | QP7: 09C001P026_7 | QQ7: 09PDLRE195_7 | QR7: 09PDLRJ001_7 | QS7: 09PDLRM001_7 | QT7: 09PDLRM002_7 | QU7: 09PDLRN001_7 | QV7: 09PDPAE195_7 | QW7: 09PDPAJ001_7 | QX7: 09PDPAM001_7 | QY7: 09PDPAM002_7 | QZ7: 09PDPAN001_7 | RA7: 09PDPPE195_7 | RB7: 09PDPPJ001_7 | RC7: 09PDPPM001_7 | RD7: 09PDPPM002_7 | RE7: 09PDPPN001_7 | RF7: 09PECME077_7 | RG7: 09PECMM001_7 | RH7: 09PECMM002_7 | RI7: 09PECMN001_7 | RJ7: 09PESME084_7 | RK7: 09PESMM001_7 | RL7: 09PESMM002_7 | RM7: 09PESMN001_7 | RN7: 09PFCHM001_7 | RO7: 09PFCHM002_7 | RP7: 09PFCHN001_7 | RQ7: 09PFCHE003_7 | RR7: 09PFRCG010_7 | RS7: 09PFRCN001_7 | RT7: 09PFRCM002_7 | RU7: 10C001E167_7 | RV7: 10C001E196_7 | RW7: 10C001M001_7 | RX7: 10C001M002_7 | RY7: 10C001N001_7 | RZ7: 10P0ACE196_7 | SA7: 10P0TPU022_7 | SB7: 10PDMBE042_7 | SC7: 10PDMBM001_7 | SD7: 10PDMBM002_7 | SE7: 10PDMBN001_7 | SF7: 10PDMEE042_7 | SG7: 10PDMEU039_7 | SH7: 10PDMEM001_7 | SI7: 10PDMEM002_7 | SJ7: 10PDMEN001_7 | SK7: 10PDORG005_7 | SL7: 10PDORM001_7 | SM7: 10PDORM002_7 | SN7: 10PDORN001_7 | SO7: 10PDRTE042_7 | SP7: 10PDRTM001_7 | SQ7: 10PDRTM002_7 | SR7: 10PDRTN001_7 | SS7: 10PDTEE042_7 | ST7: 10PDTEJ001_7 | SU7: 10PDTEM001_7 | SV7: 10PDTEM002_7 | SW7: 10PDTEN001_7 | SX7: 11C001M001_7 | SY7: 11C001U047_7 | SZ7: 11C001N001_7 | TA7: 11C001K019_7 | TB7: 11C001E194_7 | TC7: 11C001E168_7 | TD7: 11C001E169_7 | TE7: 11C001M002_7 | TF7: 11CD01E026_7 | TG7: 11CD01E170_7 | TH7: 11CD01U040_7 | TI7: 11CD01N001_7 | TJ7: 11CD01M001_7 | TK7: 11CD01M002_7 | TL7: 11CD02M001_7 | TM7: 11CD02E169_7 | TN7: 11CD02E026_7 | TO7: 11CD02N001_7 | TP7: 11CD02M002_7 | TQ7: 11CD03E169_7 | TR7: 11CD03M001_7 | TS7: 11CD03M002_7 | TT7: 11CD03N001_7 | TU7: 13C001O006_7 | TV7: 13C001O008_7 | TW7: 13C001M001_7 | TX7: 13C001M002_7 | TY7: 13C001N001_7 | TZ7: 13PDEAO009_7 | UA7: 13PDEAM001_7 | UB7: 13PDEAM002_7 | UC7: 13PDEAN001_7 | UD7: 13PDVAG076_7 | UE7: 13PDVAM001_7 | UF7: 13PDVAM002_7 | UG7: 13PDVAN001_7 | UH7: 15C006U009_7 | UI7: 16C000D001_7 | UJ7: 16C000D002_7 | UK7: 25C001E171_7 | UL7: 25C001O010_7 | UM7: 25C001N001_7 | UN7: 25C001M001_7 | UO7: 25C001M002_7 | UP7: 26C001E017_7 | UQ7: 26C001E172_7 | UR7: 26C001E173_7 | US7: 26C001E174_7 | UT7: 26C001M001_7 | UU7: 26C001M002_7 | UV7: 26C001N001_7 | UW7: 26CD01G077_7 | UX7: 26CD01M001_7 | UY7: 26CD01M002_7 | UZ7: 26CD01N001_7 | VA7: 26PDIAP022_7 | VB7: 26PDIAM001_7 | VC7: 26PDIAM002_7 | VD7: 26PDIAN001_7 | VE7: 26PDSPN001_7 | VF7: 26PDSPE066_7 | VG7: 26PDSPE173_7 | VH7: 26PDSPM001_7 | VI7: 26PDSPM002_7 | VJ7: 31C000E175_7 | VK7: 31C000S012_7 | VL7: 31C000S051_7 | VM7: 31C000S057_7 | VN7: 31C000U014_7 | VO7: 31C000M001_7 | VP7: 31C000M002_7 | VQ7: 31C000N001_7 | VR7: 31PDMPE048_7 | VS7: 31PDMPM001_7 | VT7: 31PDMPM002_7 | VU7: 31PDMPN001_7 | VV7: 31PFMAE177_7 | VW7: 31PFMAM001_7 | VX7: 31PFMAM002_7 | VY7: 31PFMAN001_7 | VZ7: 31PFMEE177_7 | WA7: 31PFMEM001_7 | WB7: 31PFMEM002_7 | WC7: 31PFMEN001_7 | WD7: 31PFPCU036_7 | WE7: 31PFPCM001_7 | WF7: 31PFPCM002_7 | WG7: 31PFPCN001_7 | WH7: 33C001E178_7 | WI7: 33C001M001_7 | WJ7: 33C001M002_7 | WK7: 33C001N001_7 | WL7: 33C001S022_7 | WM7: 33C001S023_7 | WN7: 33C001S054_7 | WO7: 33PDCLE199_7 | WP7: 33PDITE100_7 | WQ7: 33PDITM001_7 | WR7: 33PDITM002_7 | WS7: 33PDITN001_7 | WT7: 34C001N005_7 | WU7: 34C001M001_7 | WV7: 34C001M002_7 | WW7: 34C001N001_7 | WX7: 34PDHBN005_7 | WY7: 34PDHBM001_7 | WZ7: 34PDHBM002_7 | XA7: 34PDHBN001_7 | XB7: 35C001E179_7 | XC7: 35C001S223_7 | XD7: 35C001M001_7 | XE7: 35C001M002_7 | XF7: 35C001N001_7 | XG7: 36C001E086_7 | XH7: 36C001E116_7 | XI7: 36C001E180_7 | XJ7: 36C001M001_7 | XK7: 36C001M002_7 | XL7: 36C001N001_7 | XM7: 36C001S224_7 | XN7: 36C001U041_7 | XO7: 36CD01E153_7 | XP7: 36CD01M001_7 | XQ7: 36CD01M002_7 | XR7: 36CD01N001_7 | XS7: 36CDESE181_7 | XT7: 36CDESM001_7 | XU7: 36CDESM002_7 | XV7: 36CDESN001_7 | XW7: 36PDIDE182_7 | XX7: 36PDIDE197_7 | XY7: 36PDIDM001_7 | XZ7: 36PDIDM002_7 | YA7: 36PDIDN001_7 | YB7: 36PDIDU042_7 | YC7: 36PDIEE086_7 | YD7: 36PDIEM001_7 | YE7: 36PDIEM002_7 | YF7: 36PDIEN001_7 | YG7: 36PFEGE161_7 | YH7: 36PFEGM001_7 | YI7: 36PFEGM002_7 | YJ7: 36PFEGN001_7 | YK7: 36PFEGS210_7 | YL7: 36PFEGS225_7 | YM7: 36PFEGS226_7 | YN7: 36PFEGS227_7 | YO7: 36PFEGU043_7 | YP7: 36PFEGU044_7 | YQ7: 38C001E183_7 | YR7: 38C001S056_7 | YS7: 38C001P003_7 | YT7: 38C001M001_7 | YU7: 38C001N001_7 | YV7: 38C001M002_7 | YW7: 41PDIPM001_7 | YX7: 41PDIPM002_7 | YY7: 41PDIPP051_7
